Workbook

Sheet Simulador Valora
Q1: . | BX1: .
C3: SIMULADOR CREDITO HIPOTECARIO
C4: FINANCIAMIENTO PARA CONSTRUCCION SCOTIABANK
C5: VALORA
C7: =TODAY() -> 2025-04-10
C9: Lugar | E9: Fecha Firma | G9: Sucursal
C12: Nombre del cliente / Conyuge en su caso. | G12: Ejecutivo / Broker que le atendió
C15: Telefonos del cliente | G15: Teléfonos del ejecutivo
C18: Paso 1 | G18: =IF(T91=1,"Paso 4","") -> Paso 4
C19: Escoja su base de cálculo | G19: =IF(T91=1,"Escoja la opción de su interés:","") -> Escoja la opción de su interés: | L19: =IF(T91=1,"Paso 8","Paso 7") -> Paso 8
C20: Campaña | L20: Escoja el plazo y la tasa aplicable:
C21: Paso 2
C22: Escriba los datos solicitados: | G22: =IF(T91=1,"Comisión Manual por Apertura","") -> Comisión Manual por Apertura
E23: =IF(AB45=1,"Presupuesto de obra","Ingresos brutos mensuales") -> Presupuesto de obra | K23: =IF(AND(K22<>"",$T$65=2),"corrije comisión en el pto 4","") -> 
E24: Valor del terreno | G24: =IF(T91=1,"Paso 5","Paso 4") -> Paso 5 | M24: Plazo 20 años
E25: =IF(AB45=1,"Capital invertido en la obra",IF(AND(C23>0,AB45=2),"El crédito solicitado podría ser menor por perfil de cliente","")) -> Capital invertido en la obra | G25: Va a construir en la frontera
C26: =IF(AND(C23="",C24=""),"",IF(AB45=1,C23+C24,"")) ->  | E26: =+IF(AB45=2,"","Valor físico proyectado") -> Valor físico proyectado
C27: =IF(AND(AB45=1,C23>0,C24>0,C25>=AC39),"",AC39) ->  | E27: =IF(C27<>"","Usted necesita como mínimo de capital invertido","") ->  | G27: =IF(T91=1,"Paso 6","Paso 5") -> Paso 6 | M27: Plazo 15 años
C28: Paso 3 | G28: Con apoyo Infonavit
C29: Financiamiento para comprar el terreno? | G29: =IF(AND($AB$45=1,$AE$45=1),"",IF($AB$45=2,"","Teclee su sueldo bruto")) -> 
C30: =IF(AB45=2,"",IF(AND(C23=0,C24=0,C25=0),"",IF(AND(AB45=1,C23+C24<1000000),"El valor de la vivienda mínimo para Monterrey, Guadalajara y México es de $1,000,000 para el resto de la república es de $750,000",""))) ->  | G30: =IF(T91=1,"Paso 7","Paso 6") -> Paso 7 | M30: Plazo 10 años
C31: =IF(AB45=2,"",IF(AND(C23=0,C24=0,C25=0),"",IF(M46<150000,"El monto mínimo a financiar es de $150,000",""))) ->  | G31: El cliente opta por seguros externos
C32: =IF(AND(AB45=2,C23<25000,C23>0),"Se requiere $25,000 como ingresos mínimos",IF((AD71+AI71+AN71)>0,"Línea máxima a otorgar puede ser menor por perfil del cliente ","")) -> 
C33: =IF(AND(AB45=1,C23=0,C24=0,C25=0),"",IF(AND(AB45=1,C25>=C23),"El capital invertido en la obra es más alto o igual que el presupuesto de obra","")) -> 
E36: VALORA
C38: Plazo | E38: 10 AÑOS | I38: 15 AÑOS | L38: 20 AÑOS | AA38: Calculo de credito construcción | AC38: AFORO = | AD38: 0.8 | AF38: =IF(V40=4,AN72,IF(V40=3,AI72,AD72)) -> 0.5 | AH38: IR | AI38: PTI Construcción
AA39: =IF($AB$45=1,(C23+C24)*AD$38,C23*$AF$38) -> 0 | AC39: =IF(AND(AB45=1,C23>0,C24>0),C23-AA42,"") ->  | AD39: capital invertido | AF39: PTI | AH39: 1 | AI39: 0.5
C40: Tasa de Interés | E40: =IF(T91=1,AY75,IF(T91=3,BE75,IF(T91=4,BK75,"Error"))) -> Mínima 12.00% y Máxima 14.00% | I40: =+E40 -> Mínima 12.00% y Máxima 14.00% | L40: =+I40 -> Mínima 12.00% y Máxima 14.00% | S40: Esquemas | T40: =E36&" "&IF(V40=1,L38,IF(V40=3,I38,IF(V40=4,E38,0))) -> VALORA 20 AÑOS | V40: 1 | AA40: =C23 -> 0 | AH40: 2
AA41: =+AA39 -> 0 | AC41: =IF((C25+C24)<((C23+C24)*0.7),"Se necesita mayor capital invertido","") ->  | AH41: 3 | AI41: 0.45
C42: Valor de la vivienda proyectado | E42: =IF($AB$45=1,$C$23+$C$24,E46/$AD$38) -> 0 | I42: =IF($AB$45=1,$C$23+$C$24,I46/$AD$38) -> 0 | L42: =IF($AB$45=1,$C$23+$C$24,M46/$AD$38) -> 0 | R42: LTV | S42: =IFERROR(M46/L42,0) -> 0 | AA42: =+IF(C23+C24-C25<AA41,C23+C24-C25,AA41) -> 0 | AH42: 4 | AI42: 0.4
W43: Cambio de etiqueta | X43: =IF(AB45=1,"Valor del inmueble","Ingresos Brutos Mensuales") -> Valor del inmueble | AA43: Ingresos | AB43: =IF(AND(AE45=2,AB45=1),I29,C23) -> 0
C44: % máximo de financiamiento | E44: =AD38 -> 0.8 | I44: =AD38 -> 0.8 | L44: =AD38 -> 0.8 | AD44: Apoyo Infonavit
S45: Adquisición | T45: 1 | X45: =IF(T45=2," ","Monto a Financiar") -> Monto a Financiar | Z45: Pago por mil | AA45: Por Valor del Inmueble | AB45: 1 | AD45: NO | AE45: 1
C46: Monto del crédito | E46: =Z61 -> 0 | I46: =AB61 -> 0 | M46: =AC61 -> 0 | S46: Pasivo Hipotecario | U46: Cambio de pasivo o adquisi | W46: =IF(AND(T45=1,AB45=1),"Enganche",IF(AND(T45=2,AB45=1),"Saldo actual","")) -> Enganche | X46: =IF($V$40=1,M46,IF($V$40=3,I46,IF($V$40=4,E46))) -> 0 | Z46: =IF($V$40=1,AD67,IF($V$40=3,AI67,IF($V$40=4,AN67))) -> 10.36 | AA46: Por Ingresos | AD46: SI
C48: Erogación inicial | E48: =IF($AB$45=1,E46/1000*AN67,$C$23*$AF$38) -> 0 | I48: =IF($AB$45=1,I46/1000*AI67,$C$23*$AF$38) -> 0 | L48: =IF($AB$45=1,M46/1000*AD67,$C$23*$AF$38) -> 0 | U48: Pag Red 10.90 | W48: Pag Red 10.90 | Y48: PAGOS OPOTUNOS | Z48: PAGOS OPOTUNOS | AB48: PAGOS OPOTUNOS | AC48: PAGOS OPOTUNOS | AD48: PAGOS OPOTUNOS
R49: Plazo | U49: 15 | W49: 20 | Y49: 7 | Z49: 10 | AB49: 15 | AC49: 20 | AD49: 30
C50: Seguro de vida | E50: =IF($X$73=1,0,E46*$X$76) -> 0 | I50: =IF($X$73=1,0,I46*$X$76) -> 0 | L50: =IF($X$73=1,0,M46*$X$76) -> 0
R51: Pago x mil | U51: 9.3 | W51: 10.3 | Y51: 16.94 | Z51: 13.7 | AB51: 11.47 | AC51: 10.57 | AD51: 0 | AF51: =IF($V$40=1,L48,IF($V$40=3,I48,IF(V40=4,E48,0))) -> 0
C52: Seguro de daños | E52: =IF($AB$45=1,$C$23,E42)*IF($X$73=1,0,$X$77) -> 0 | I52: =IF($AB$45=1,$C$23,I42)*IF($X$73=1,0,$X$77) -> 0 | L52: =IF($AB$45=1,$C$23,L42)*IF($X$73=1,0,$X$77) -> 0
R53: Incremento anual | Y53: 0 | Z53: 0 | AB53: 0 | AC53: 0 | AD53: 0 | AF53: =IF($V$40=1,AD68,IF($V$40=3,AI68,IF($V$40=4,AN68))) -> 0.02
C54: Total mensualidad inicial | E54: =E52+E50+E48 -> 0 | I54: =I52+I50+I48 -> 0 | L54: =L52+L50+L48 -> 0 | R54: Tasa de int. | Y54: 0.1045 | Z54: 0.1055 | AB54: 0.118 | AC54: 0.1086 | AD54: 0
Y55: PO 7 años | Z55: 10 años | AB55: 15 años | AC55: 20 años
C56: Incremento anual del pago | E56: =AN68 -> 0.02 | I56: =AI68 -> 0.02 | L56: =AD68 -> 0.02 | R56: Monto a financiar adquisición | U56: =IF($AB$45=1,$AA$42,IF($AB$45=2,L48/U51*1000,0)) -> 0 | W56: =IF($AB$45=1,$AA$42,IF($AB$45=2,I48/W51*1000,0)) -> 0 | Z56: =IF($AB$45=1,$AA$42,$AA$39/AN67*1000) -> 0 | AB56: =IF($AB$45=1,$AA$42,$AA$39/AI67*1000) -> 0 | AC56: =IF($AB$45=1,$AA$42,$AA$39/AD67*1000) -> 0 | AD56: =IF($AB$45=1,$AA$41,IF($AB$45=2,L48/AD51*1000,0)) -> 0
R57: Monto a financiar adquisición | U57: =IF(U56>4000000,4000000,U56) -> 0 | W57: =IF(W56>4000000,4000000,W56) -> 0 | Y57: =IF(Y56>4000000,4000000,Y56) -> 0 | Z57: =IF(Z56>4000000,4000000,Z56) -> 0 | AB57: =IF(AB56>4000000,4000000,AB56) -> 0 | AC57: =IF(AC56>4000000,4000000,AC56) -> 0 | AD57: =IF(AD56>4000000,4000000,AD56) -> 0
C58: Ingresos brutos por comprobar | E58: =IF($AB$45=1,(E46/1000*AN67)/$AF$38,$C$23) -> 0 | I58: =IF($AB$45=1,(I46/1000*AI67)/$AF$38,$C$23) -> 0 | L58: =IF($AB$45=1,(M46/1000*AD67)/$AF$38,$C$23) -> 0 | R58: erogación adquisición | U58: =U57/1000*U51 -> 0 | W58: =W57/1000*W51 -> 0 | Y58: =Y57/1000*Y51 -> 0 | Z58: =AC56/1000*AN67 -> 0 | AB58: =AC56/1000*AI67 -> 0 | AC58: =AC56/1000*AD67 -> 0 | AD58: =AD57/1000*AD51 -> 0
R59: Monto a financiar pasivo
C60: Comisión por apertura | E60: =IF(OR(T91=3,T91=4),0,IF(OR($T$65=1,K22<>""),E46*$X$82,0)) -> 0 | I60: =IF(OR(T91=3,T91=4),0,IF(OR($T$65=1,K22<>""),I46*$X$82,0)) -> 0 | L60: =IF(OR(T91=3,T91=4),0,IF(OR($T$65=1,K22<>""),M46*$X$82,0)) -> 0 | R60: Monto a financiar pasivo
R61: Desición de monto a financiar | U61: =U56 -> 0 | W61: =W56 -> 0 | Y61: =Y56 -> 0 | Z61: =Z56 -> 0 | AB61: =AB56 -> 0 | AC61: =AC56 -> 0 | AD61: =AD56 -> 0
C62: ="Avalúo " &IF(OR(AND($AB$45=1,$C$23>S84),($C$23+$C$24)>S84),"'Favor de Cotizar.' - Val. apróx.","") -> Avalúo | E62: =IF(T91=3,0,IFERROR(IF(AND($AB$45=1,$C$23<=S84),VLOOKUP(($C$23+$C$24),$R$71:$T$86,3),IF(AND($AB$45=2,E42<=S84),VLOOKUP(E42,$R$71:$T$86,3),$T$85)),0)) -> 0 | I62: =IF(T91=3,0,IFERROR(IF(AND($AB$45=1,$C$23<=S84),VLOOKUP(($C$23+$C$24),$R$71:$T$86,3),IF(AND($AB$45=2,I42<=S84),VLOOKUP(I42,$R$71:$T$86,3),$T$85)),0)) -> 0 | L62: =IF(T91=3,0,IFERROR(IF(AND($AB$45=1,$C$23<=S84),VLOOKUP(($C$23+$C$24),$R$71:$T$86,3),IF(AND($AB$45=2,L42<=S84),VLOOKUP(L42,$R$71:$T$86,3),$T$85)),0)) -> 0 | AP62: 5000000 | AQ62: 5000000 | AR62: 6500000
R63: Frontera | S63: NO | V63: Compra Terreno? | X63: NO | AP63: 1 | AQ63: 2 | AR63: 3
C64: Comisión por pagos anticipados | E64: =$T$66 -> NO APLICA | I64: =$T$66 -> NO APLICA | L64: =$T$66 -> NO APLICA | R64: IVA | S64: SI | T64: 1 | U64: =IF(T64=1,1.16,1.16) -> 1.16 | V64: No compra terreno | X64: SI | Y64: 1 | AP64: Aforo p/créd > $5'000,000 | AY64: 1 | BE64: 3 | BK64: 4
R65: Comisión de apertura | T65: 1 | U65: =IF(T91=1,"Comisión por apertura "&TEXT($X$82,"##.00%")&" y comisión por prepago 0%","Comisión por apertura 0% y comisión por prepago 0%") -> Comisión por apertura 1.00% y comisión por prepago 0% | Y65: IR | Z65: Rango | AA65: Tasas PAR | AB65: Tasas Valora 20 años | AF65: Tasas Valora 15 años | AK65: Tasas Valora 10 años | AP65: < $5mdp | AQ65: < $6.5mdp | AR65: > $6.5 mdp | AY65: VALORA | AZ65: ppm 20 | BA65: ppm 15 | BB65: ppm 10 | BC65: Inc. Anual | BE65: VALORA 15 | BF65: ppm 20 | BG65: ppm 15 | BH65: ppm 10 | BI65: Inc. Anual | BK65: VALORA 10 | BL65: ppm 20 | BM65: ppm 15 | BN65: ppm 10 | BO65: Inc. Anual
R66: Comisión por prepago | T66: =IF(T65=2,$X$83,"NO APLICA") -> NO APLICA | Y66: 1+ | Z66: 1 | AA66: =IF(IF($T$91=1,AY66,IF($T$91=3,BE66,IF($T$91=4,BK66,"")))=0,"",IF($T$91=1,AY66,IF($T$91=3,BE66,IF($T$91=4,BK66,"")))) -> 0.12 | AB66: =IF(IF($T$91=1,AZ66,IF($T$91=3,BF66,IF($T$91=4,BL66,"")))=0,"",IF($T$91=1,AZ66,IF($T$91=3,BF66,IF($T$91=4,BL66,"")))) -> 10.36 | AC66: =IF(IF($T$91=1,BC66,IF($T$91=3,BI66,IF($T$91=4,BO66,"")))=0,"",IF($T$91=1,BC66,IF($T$91=3,BI66,IF($T$91=4,BO66,"")))) -> 0.02 | AD66: =S91 -> 1 | AF66: =AA66 -> 0.12 | AG66: =IF(IF($T$91=1,BA66,IF($T$91=3,BG66,IF($T$91=4,BM66,"")))=0,"",IF($T$91=1,BA66,IF($T$91=3,BG66,IF($T$91=4,BM66,"")))) -> 11.32 | AH66: =AC66 -> 0.02 | AI66: =S91 -> 1 | AK66: =AA66 -> 0.12 | AL66: =IF(IF($T$91=1,BB66,IF($T$91=3,BH66,IF($T$91=4,BN66,"")))=0,"",IF($T$91=1,BB66,IF($T$91=3,BH66,IF($T$91=4,BN66,"")))) -> 13.63 | AM66: =AC66 -> 0.02 | AN66: =S91 -> 1 | AP66: 0.8 | AQ66: 0.7 | AR66: 0.65 | AX66: 1 | AY66: 0.12 | AZ66: 10.36 | BA66: 11.32 | BB66: 13.63 | BC66: 0.02 | BD66: 1+,2+,3+,4+,R | BE66: 0.0975 | BF66: 8.54 | BG66: 9.64 | BH66: 12.12 | BI66: 0.026 | BJ66: 1,2,3,4,R, EA | BK66: 0.1075 | BL66: 9.3 | BM66: 10.33 | BN66: 12.75 | BO66: 0.024
C67: Ver tabla de amortización | Y67: 1 | Z67: 2 | AA67: =IF(IF($T$91=1,AY67,IF($T$91=3,BE67,IF($T$91=4,BK67,"")))=0,"",IF($T$91=1,AY67,IF($T$91=3,BE67,IF($T$91=4,BK67,"")))) -> 0.125 | AB67: =IF(IF($T$91=1,AZ67,IF($T$91=3,BF67,IF($T$91=4,BL67,"")))=0,"",IF($T$91=1,AZ67,IF($T$91=3,BF67,IF($T$91=4,BL67,"")))) -> 10.84 | AC67: =IF(IF($T$91=1,BC67,IF($T$91=3,BI67,IF($T$91=4,BO67,"")))=0,"",IF($T$91=1,BC67,IF($T$91=3,BI67,IF($T$91=4,BO67,"")))) -> 0.017 | AD67: =IF($AD$66=1,AB66,IF($AD$66=2,AB67,IF($AD$66=3,AB68,IF($AD$66=4,AB69,IF($AD$66=5,AB70,IF($AD$66=6,AB71,AB72)))))) -> 10.36 | AF67: =AA67 -> 0.125 | AG67: =IF(IF($T$91=1,BA67,IF($T$91=3,BG67,IF($T$91=4,BM67,"")))=0,"",IF($T$91=1,BA67,IF($T$91=3,BG67,IF($T$91=4,BM67,"")))) -> 11.78 | AH67: 0.017 | AI67: =IF($AI$66=1,AG66,IF($AI$66=2,AG67,IF($AI$66=3,AG68,IF($AI$66=4,AG69,IF($AI$66=5,AG70,IF($AI$66=6,AG71,AG72)))))) -> 11.32 | AK67: =AA67 -> 0.125 | AL67: =IF(IF($T$91=1,BB67,IF($T$91=3,BH67,IF($T$91=4,BN67,"")))=0,"",IF($T$91=1,BB67,IF($T$91=3,BH67,IF($T$91=4,BN67,"")))) -> 14.06 | AM67: =AC67 -> 0.017 | AN67: =IF($AN$66=1,AL66,IF($AN$66=2,AL67,IF($AN$66=3,AL68,IF($AN$66=4,AL69,IF($AN$66=5,AL70,IF($AN$66=6,AL71,AL72)))))) -> 13.63 | AP67: 0.8 | AQ67: 0.7 | AR67: 0.65 | AX67: 2 | AY67: 0.125 | AZ67: 10.84 | BA67: 11.78 | BB67: 14.06 | BC67: 0.017
C68: Observaciones: | R68: Com Aut Dif | S68: 250 | T68: 250 | U68: 250 | V68: 250 | W68: 250 | Y68: 2 | Z68: 3 | AA68: 0.13 | AB68: 11.28 | AC68: 0.014 | AD68: =IF($AD$66=1,AC66,IF($AD$66=2,AC67,IF($AD$66=3,AC68,IF($AD$66=4,AC69,IF($AD$66=5,AC70,IF($AD$66=6,AC71,AC72)))))) -> 0.02 | AF68: 0.13 | AG68: 12.22 | AH68: 0.014 | AI68: =IF($AI$66=1,AH66,IF($AI$66=2,AH67,IF($AI$66=3,AH68,IF($AI$66=4,AH69,IF($AI$66=5,AH70,IF($AI$66=6,AH71,AH72)))))) -> 0.02 | AK68: 0.13 | AL68: 14.5 | AM68: 0.014 | AN68: =IF($AN$66=1,AM66,IF($AN$66=2,AM67,IF($AN$66=3,AM68,IF($AN$66=4,AM69,IF($AN$66=5,AM70,IF($AN$66=6,AM71,AM72)))))) -> 0.02 | AP68: 0.8 | AQ68: 0.7 | AR68: 0.65 | AX68: 3 | AY68: 0.13 | AZ68: 11.28 | BA68: 12.22 | BB68: 14.5 | BC68: 0.014
C69: -No se incluyen los gastos notariales, los cuales se pagaran al momento de la firma del crédito | R69: Avalúo | Z69: 4 | AA69: 0.135 | AB69: 11.7 | AC69: 0.011 | AD69: =IF($AD$66=1,AA66,IF($AD$66=2,AA67,IF($AD$66=3,AA68,IF($AD$66=4,AA69,IF($AD$66=5,AA70,IF($AD$66=6,AA71,AA72)))))) -> 0.12 | AF69: 0.135 | AG69: 12.63 | AH69: 0.011 | AI69: =IF($AI$66=1,AF66,IF($AI$66=2,AF67,IF($AI$66=3,AF68,IF($AI$66=4,AF69,IF($AI$66=5,AF70,IF($AI$66=6,AF71,AF72)))))) -> 0.12 | AK69: 0.135 | AL69: 14.9 | AM69: 0.011 | AN69: =IF($AN$66=1,AK66,IF($AN$66=2,AK67,IF($AN$66=3,AK68,IF($AN$66=4,AK69,IF($AN$66=5,AK70,IF($AN$66=6,AK71,AK72)))))) -> 0.12 | AP69: 0.7 | AQ69: 0.65 | AR69: 0.5 | AX69: 4 | AY69: 0.135 | AZ69: 11.7 | BA69: 12.63 | BB69: 14.9 | BC69: 0.011
C70: - El crédito solicitado dependerá de la capacidad de pago de cada cliente | R70: Mayor a | S70: Hasta a | T70: Importe | Z70: 5 | AA70: 0.14 | AB70: 12.13 | AC70: 0.007 | AF70: 0.14 | AG70: 13.04 | AH70: 0.007 | AK70: 0.14 | AL70: 15.3 | AM70: 0.007 | AP70: 0.7 | AQ70: 0.65 | AR70: 0.5 | AX70: R | AY70: 0.14 | AZ70: 12.13 | BA70: 13.04 | BB70: 15.3 | BC70: 0.007
C71: - Scotiabank se reserva el derecho de solicitar información adicional y/o restringir parámetros de enganche, monto, plazo o tasa en función de las características específicas | R71: 0.01 | S71: 500000 | T71: 1900 | AD71: =+IF(AD66>3,1,0) -> 0 | AI71: =+IF(AI66>3,1,0) -> 0 | AN71: =+IF(AN66>3,1,0) -> 0 | AP71: 0.7 | AQ71: 0.65 | AR71: 0.5 | AX71: Piso | AY71: 0.12 | BD71: Piso | BE71: 0.0975 | BJ71: Piso | BK71: 0.1075
C72: del solicitante y del inmueble objeto de la operación. | R72: 500001 | S72: 1000000 | T72: 3300 | W72: Contratación de Seguros | Z72: PTI | AD72: =+IF(AD66<=3,$AI$39,IF(AD66=4,$AI$41,$AI$42)) -> 0.5 | AI72: =+IF(AI66<=3,$AI$39,IF(AI66=4,$AI$41,$AI$42)) -> 0.5 | AN72: =+IF(AN66<=3,$AI$39,IF(AN66=4,$AI$41,$AI$42)) -> 0.5 | AX72: Techo | AY72: 0.14 | BD72: Techo | BE72: 0.1175 | BJ72: Techo | BK72: 0.1275
C73: - En caso de que aplique, la comisión por pagos anticipados causa I.V.A. | R73: 1000001 | S73: 1500000 | T73: 4500 | W73: SI | X73: 2 | AP73: =IF($C$23>$AR$62,3,IF($C$23>$AQ$62,2,IF($C$23<=$AP$62,1,0))) -> 1
C74: - Esta cotización tiene carácter informativo, Scotiabank se reserva el derecho de cambiar cualquier condición sin previo aviso. | R74: 1500001 | S74: 2000000 | T74: 5750 | W74: NO | AA74: Valor del Inmueble | AB74: =IF($V$40=1,L42,IF($V$40=3,I42,IF($V$40=4,E42))) -> 0 | AD74: CALCULO PARA EL IMPORTE MAXIMO DE APORTACION PATRONAL
C75: - Este documento NO implica que el crédito ha sido autorizado, ni establece obligación alguna para Scotiabank. | R75: 2000001 | S75: 2500000 | T75: 7000 | W75: Seguros | AA75: Pago por mil | AB75: =IF($V$40=1,AD67,IF($V$40=3,AI67,IF($V$40=4,AN67))) -> 10.36 | AD75: Salario diario nominal (UMA enero 2024) | AF75: 108.57 | AY75: Mínima 12.00% y Máxima 14.00% | BE75: Mínima 9.75% y Máxima 11.75% | BK75: Mínima 10.75% y Máxima 12.75%
C76: - Para los esquemas de "Pagos Oportunos" y "Valora" se deberá cumplir con las reglas establecidas en los programas para la disminución de la tasa de interés | M76: v2025.04 | R76: 2500001 | S76: 3000000 | T76: 8200 | W76: Vida | X76: 0.0006 | Y76: =X76 -> 0.0006 | AA76: Plazo | AB76: =IF($V$40=1,"20 Años",IF($V$40=3,"15 Años",IF($V$40=4,"10 Años"))) -> 20 Años | AD76: Tope de aportación patronal | AF76: 25
R77: 3000001 | S77: 4000000 | T77: 11000 | W77: Daños | X77: 0.00031 | Y77: =X77 -> 0.00031 | AA77: Tasa | AB77: =IF($V$40=1,AD69,IF($V$40=3,AI69,IF($V$40=4,AN69))) -> 0.12 | AD77: Aportación patronal | AF77: =+AF75*AF76 -> 2714.25
R78: 4000001 | S78: 5000000 | T78: 13900 | AA78: Monto Crédito | AB78: =IF($V$40=1,M46,IF($V$40=3,I46,IF($V$40=4,E46))) -> 0 | AD78: Aportación Patronal 5% | AF78: =+AF77*0.05 -> 135.7125
R79: 5000001 | S79: 6000000 | T79: 15500 | Z79: LTV | AE79: 0.05
R80: 6000001 | S80: 7000000 | T80: 19000 | Z80: =IFERROR(M46/L42,0) -> 0 | AA80: =IFERROR(I46/I42,0) -> 0 | AB80: =IFERROR(E46/E42,0) -> 0 | AC80: =IFERROR(K46/K42,0) -> 0 | AD80: No. de días del bimestre (promedio 60 días) | AF80: 60.8
R81: 7000001 | S81: 8000000 | T81: 20000 | W81: Comisión por aut difer = | X81: 250 | AD81: Aportación Patronal bimestral | AF81: =+AF78*AF80 -> 8251.32
R82: 8000001 | S82: 9000000 | T82: 20100 | W82: Comisión por Apertura = | X82: =IFERROR(IF($K$22<>"",$K$22,1%),0) -> 0.01 | AD82: Incremento anual promedio para las aportaciones = | AF82: 0.03
R83: 9000001 | S83: 10000000 | T83: 22500 | W83: Comisión por Prepago = | X83: 0.03
R84: 10000001 | S84: 11000000 | T84: 27000 | W84: Avalúo | X84: 0.001
R85: 11000000 | S85: 30000000 | T85: 27000 | W85: Dictamen técnico | X85: 0.01 | Y85: 18000
Y86: Máximo
Y87: Ya no hay minimo
R91: Tasas | S91: 1 | T91: 1 | V91: 1 | W91: 1 | X91: EA10
R92: =AA66 -> 0.12 | S92: EA 1+ | T92: Ninguna | U92: 1 | V92: 2 | W92: 1 | X92: EA10.5
R93: =AA67 -> 0.125 | S93: EA 2+ 3+ 4+ | U93: 2 | V93: 1 | W93: 2 | X93: NEA10.5
R94: 0.13 | S94: Valora nEA | T94: Premium | U94: 3
R95: 0.135 | T95: Vinculación | U95: 4
R96: 0.14

Sheet Tabla Valora
A1: Scotiabank Inverlat, S.A., Institución de Banca Múltiple, Grupo Financiero Scotiabank Inverlat | BC1: -
A2: SIMULADOR CREDITO HIPOTECARIO
A3: FINANCIAMIENTO PARA CONSTRUCCION SCOTIABANK | AG3: Piso | AH3: Techo | AK3: Comision por apertura | AM3: =IF('Simulador Valora'!$V$40=1,'Simulador Valora'!L60,IF('Simulador Valora'!$V$40=3,'Simulador Valora'!I60,IF('Simulador Valora'!$V$40=4,'Simulador Valora'!E60))) -> 0 | AO3: 2
A4: =IF('Simulador Valora'!V40=1,"VALORA 20 AÑOS",IF('Simulador Valora'!V40=3,"VALORA 15 AÑOS","VALORA 10 AÑOS")) -> VALORA 20 AÑOS | AG4: ='Simulador Valora'!R92 -> 0.12 | AH4: =AG4+2% -> 0.14 | AK4: Avalúo | AM4: =IF('Simulador Valora'!$V$40=1,'Simulador Valora'!L62,IF('Simulador Valora'!$V$40=3,'Simulador Valora'!I62,IF('Simulador Valora'!$V$40=4,'Simulador Valora'!E62))) -> 0 | AO4: Disminución de plazo
B5: Excepción 6 Ministraciones | L5: Observaciones | AO5: Disminución de pago
B6: Avance de Obra Actual | F6: 0 | H6: =IF(F6<20%,0,IF(F6<40%,1,IF(F6<60%,2,IF(F6<75%,3,IF(F6<90%,4,5))))) -> 0 | L6: - La comisión por prepagos causa IVA y en la corrida ya lo incluye | X6: ='Simulador Valora'!C7 -> 2025-04-10 | AE6: ='Simulador Valora'!E24 -> Valor del terreno | AF6: 100% terreno | AG6: 70% monto
B7: Teclear los datos con celdas en blanco | L7: - El escenario que se presenta en la tabla de amortización siempre es considerando que se paga de manera puntual. | AE7: ='Simulador Valora'!C24 -> 0 | AF7: =IF(AE7>0,IF(AE7/H10<70%,AE7,AG7),0) -> 0 | AG7: =+H10*70% -> 0 | AH7: =AH8/H10 ->  | AK7: Total | AM7: =SUM(AM3:AM5) -> 0
B8: Período | D8: Monto | F8: Erogación | L8: - Esta cotización tiene carácter informativo, Scotiabank se reserva el derecho de cambiar cualquier condición sin previo aviso. | AH8: =AF7 -> 0 | AI8: 2
A9: 0.2 | B9: 1 | D9: =IF(H6=0,AH9,IF(H6=1,AH10,IF(H6=2,AH11,IF(H6=3,AH12,IF(H6=4,AH13,IF(H6=5,AH13,IF(H6=6,AH13))))))) -> 0 | F9: =(D9/1000)*'Simulador Valora'!Z46 -> 0 | H9: Linea máxima de crédito | L9: - Este documento NO implica que el crédito ha sido autorizado, ni establece obligación alguna para Scotiabank. | AH9: =AF7 -> 0 | AI9: SI
A10: 0.4 | D10: =IF(AI8=2,IF(H6>=4,"",(H10-D9)/(5-H6-1)),IF(H6>=4,"",(H10-D9)/(5-H6-1))) -> 0 | F10: =IFERROR(IF(B10>12,(((D10+D9)/1000*'Simulador Valora'!Z46*Z32)+(D10+D9)/1000*'Simulador Valora'!Z46),(D10+D9)/1000*'Simulador Valora'!Z46),"") -> 0 | H10: ='Simulador Valora'!X46 -> 0 | L10: - Para los esquemas "Pagos Oportunos" y "Valora" se deberán cumplir con las reglas establecidas en los programas | AG10: 1 | AH10: =IF(AI8=2,AH9+((H10-AH9)/4),AH9+((H10-AH9)/4)) -> 0 | AI10: NO
A11: 0.6 | D11: =IF(AI8=2,IF(H6>=3,"",(H10-D9)/(5-H6-1)),IF(H6>=3,"",(H10-D9)/(5-H6-1))) -> 0 | F11: =IFERROR(IF(B11>12,(((D11+D10+D9)/1000*'Simulador Valora'!Z46*Z32)+(D11+D10+D9)/1000*'Simulador Valora'!Z46),(D11+D10+D9)/1000*'Simulador Valora'!Z46),"") -> 0 | H11: =IFERROR(IF((D10+D9)>H10,"Se excede de la línea autorizada",""),"") ->  | L11: para la disminución de la tasa de interés. | AG11: 2 | AH11: =IF(AI8=2,AH9+(((H10-AH9)/4)*2),AH9+(((H10-AH9)/4)*2)) -> 0
A12: 0.75 | D12: =IF(AI8=2,IF(H6>=2,"",(H10-D9)/(5-H6-1)),IF(H6>=2,"",(H10-D9)/(5-H6-1))) -> 0 | F12: =IFERROR(IF(B12>12,(((D12+D11+D10+D9)/1000*'Simulador Valora'!Z46*Z32)+(D12+D11+D10+D9)/1000*'Simulador Valora'!Z46),(D12+D11+D10+D9)/1000*'Simulador Valora'!Z46),"") -> 0 | AG12: 3 | AH12: =IF(AI8=2,AH9+(((H10-AH9)/4)*3),AH9+(((H10-AH9)/4)*3)) -> 0
A13: 0.9 | D13: =IF(AI8=2,IF(H6>=1,"",(H10-D9)/(5-H6-1)),IF(H6>=1,"",((H10-D9)/(5-H6-1)/2))) -> 0 | F13: =IFERROR(IF(B13>12,(((D13+D12+D11+D10+D9)/1000*'Simulador Valora'!Z46*Z32)+(D13+D12+D11+D10+D9)/1000*'Simulador Valora'!Z46),(D13+D12+D11+D10+D9)/1000*'Simulador Valora'!Z46),"") -> 0 | L13: - CAT =. | M13: =AR14 -> 0 | O13: "Para fines informativos de comparación exclusivamente sin IVA" | AG13: 4 | AH13: =IF(AI8=2,AH9+(((H10-AH9)/4)*4),AH9+((((H10-AH9)/4)))*3.5) -> 0 | AR13: =AR17*12 -> 0
D14: =IF(AI8=2,"",IF(H6>=1,"",((H10-D9)/(5-H6-1)/2))) ->  | F14: =IFERROR(IF(B14>12,(((D14+D13+D12+D11+D10+D9)/1000*'Simulador Valora'!Z46*Z33)+(D14+D13+D12+D11+D10+D9)/1000*'Simulador Valora'!Z46),(D14+D13+D12+D11+D10+D9)/1000*'Simulador Valora'!Z46),"") ->  | L14: - En caso de anticipos a capital escoja la opción: | AG14: 5 | AH14: =IF(AI8=2,"",AH9+((((H10-AH9)/4))*4)) ->  | AR14: =((1+AR17)^12)-1 -> 0
B15: ="Créditos en etapa de ministración no deben recibir pagos anticipados" -> Créditos en etapa de ministración no deben recibir pagos anticipados | AR15: Corrida para CAT
B16: =IF(OR('Simulador Valora'!T91=1,'Simulador Valora'!T91=2),"Se cobrará el 1% del monto por cada disposición","") -> Se cobrará el 1% del monto por cada disposición | L16: El crédito se liquida | P16: =AE19 -> 0 | Q16: Años | AG16: Corrida CAT | AR16: TIR
L17: por pago puntual en: | P17: =AF19 -> 0 | Q17: Meses | AG17: =IFERROR(IRR(AG19:AG259,0),0) -> 0 | AH17: =((1+AG17)^12)-1 -> 0 | AR17: =IFERROR(IRR(AR18:AR259,0),0) -> 0
AR18: =AM7-H10 -> 0
A19: Período | B19: Saldo Inicial | D19: Erogación | F19: Interés | H19: Amortización | J19: Aportación Bimestral | L19: Prepagos a capital | N19: Comisión por prepagos | P19: Tasa aplicada | R19: Saldo Final | T19: Seguro de vida y desempleo | V19: Seguro de daños | X19: Pago Mensual | Z19: Inc. Pago | AB19: años | AC19: meses | AD19: =SUM(AD20:AD259) -> 1 | AE19: =SUM(AE20:AE259) -> 0 | AF19: =SUM(AF20:AF259) -> 0 | AG19: =AM7-H10 -> 0 | AH19: Tasa Aplic. | AI19: Factor de pago | AJ19: Saldo Inicial | AK19: Erogación | AL19: Interés | AM19: Amortización | AN19: Saldo Final | AO19: Tasa Aplic. | AP19: Seguros | AQ19: Incremento Pago | AR19: Pago Mensual | AS19: Plazo | AT19: Fecha | AU19: Dias | AV19: Período | AW19: Año actual | AX19: Mes actual | AY19: Día actual | AZ19: Dia/corte | BA19: sumar a mes
A20: 1 | B20: =IFERROR(VLOOKUP(A20,$B$9:$F$14,3,FALSE),0) -> 0 | D20: =F9 -> 0 | F20: =IF(B20=0,0,P20/360*AU20*B20) -> 0 | H20: =D20-F20 -> 0 | N20: =IF(OR('Simulador Valora'!$T$65=1,'Simulador Valora'!$T$65=3),0,L20*'Simulador Valora'!$T$66*'Simulador Valora'!$U$64) -> 0 | P20: =IF(B20=0,0,AH20) -> 0 | R20: =B20-H20-J20-L20+N20 -> 0 | T20: =IF(B20<=0,0,IF('Simulador Valora'!$X$73=1,0,B20*'Simulador Valora'!$X$76)) -> 0 | V20: =IF(B20<=0,0,IF('Simulador Valora'!$V$40=1,'Simulador Valora'!$L$52,IF('Simulador Valora'!$V$40=3,'Simulador Valora'!$I$52,IF('Simulador Valora'!$V$40=4,'Simulador Valora'!$E$52)))) -> 0 | X20: =IF(B20<=0,0,(D20+L20+T20+V20)) -> 0 | AB20: 0 | AC20: =IF(B20=0,0,1) -> 0 | AD20: =+IF(R20<=0,IF(R19>0,+A20,0),0) -> 1 | AE20: =+IF(AD20>0,+AB20,0) -> 0 | AF20: =+IF(AD20>0,+AC20,0) -> 0 | AG20: =X20 -> 0 | AH20: =IF('Simulador Valora'!$V$40=1,'Simulador Valora'!$AD$69,IF('Simulador Valora'!$V$40=3,'Simulador Valora'!$AI$69,'Simulador Valora'!$AN$69)) -> 0.12 | AI20: =IFERROR(AK20/AJ20,0) -> 0 | AJ20: =B20 -> 0 | AK20: =D20 -> 0 | AL20: =IFERROR((AO20/360*AU20*AJ20),0) -> 0 | AM20: =+AK20-AL20 -> 0 | AN20: =+AJ20-AM20 -> 0 | AO20: =IF(AJ20=0,"",AH20) ->  | AP20: =IF(AJ20<=0,0,IF('Simulador Valora'!$X$73=1,0,AJ20*'Simulador Valora'!$X$76))+IF(AJ20<=0,0,IF('Simulador Valora'!$V$40=1,'Simulador Valora'!$L$52,IF('Simulador Valora'!$V$40=3,'Simulador Valora'!$I$52,IF('Simulador Valora'!$V$40=4,'Simulador Valora'!$E$52)))) -> 0 | AR20: =AL20+AM20+AP20 -> 0 | AS20: =IF('Simulador Valora'!$V$40=1,240,IF('Simulador Valora'!$V$40=3,180,120)) -> 240 | AT20: =IF(AJ20=0,"",DATE(AW20,AX20+BA20,AZ20)) ->  | AU20: =IFERROR(DAY(DATE(YEAR(AT20),MONTH(AT20)+1,0)),0) -> 0 | AV20: 1 | AW20: =IFERROR(YEAR('Simulador Valora'!C7),YEAR('Simulador Valora'!C7)) -> 2025 | AX20: =IFERROR(MONTH('Simulador Valora'!C7),MONTH('Simulador Valora'!C7)) -> 4 | AY20: =IFERROR(DAY('Simulador Valora'!C7),DAY('Simulador Valora'!C7)) -> 10 | AZ20: =IF(AND(DAY('Simulador Valora'!C7)>=3,DAY('Simulador Valora'!C7)<=16),3,17) -> 3 | BA20: =IF(AY20>AZ20,1,0) -> 1
A21: 2 | B21: =IF(R20<0,0,IF(A21=$B$10,R20+$D$10,IF(A21=$B$11,R20+$D$11,IF(A21=$B$12,R20+$D$12,IF(A21=$B$13,R20+$D$13,IF(A21=$B$14,R20+$D$14,R20)))))) -> 0 | D21: =IF(B21+F21-D20<=0,B21+F21,IF(A21=$B$10,$F$10,IF(A21=$B$11,$F$11,IF(A21=$B$12,$F$12,IF(A21=$B$13,$F$13,IF(A21=$B$14,$F$14,IF(AND('Simulador Valora'!$AE$45=2,L20=0),D20*(1+Z21),IF($AO$3=2,B21*AI21,D20*(1+Z21))))))))) -> 0 | F21: =IF(B21=0,0,P21/360*AU21*B21) -> 0 | H21: =D21-F21 -> 0 | J21: =IF(B21=0,0,IF('Simulador Valora'!$AE$45=1,0,IF('Simulador Valora'!$AB$43*'Simulador Valora'!$AE$79*2>'Simulador Valora'!$AF$81,'Simulador Valora'!$AF$81,IF(B21=0,0,'Simulador Valora'!$AB$43*'Simulador Valora'!$AE$79*2)))) -> 0 | N21: =IF(OR('Simulador Valora'!$T$65=1,'Simulador Valora'!$T$65=3),0,L21*'Simulador Valora'!$T$66*'Simulador Valora'!$U$64) -> 0 | P21: =IF(B21=0,0,AH21) -> 0 | R21: =B21-H21-J21-L21+N21 -> 0 | T21: =IF(B21<=0,0,IF('Simulador Valora'!$X$73=1,0,B21*'Simulador Valora'!$X$76)) -> 0 | V21: =IF(B21<=0,0,IF('Simulador Valora'!$V$40=1,'Simulador Valora'!$L$52,IF('Simulador Valora'!$V$40=3,'Simulador Valora'!$I$52,IF('Simulador Valora'!$V$40=4,'Simulador Valora'!$E$52)))) -> 0 | X21: 0 | AB21: 0 | AC21: 2 | AD21: =+IF(R21<=0,IF(R20>0,+A21,0),0) -> 0 | AE21: =+IF(AD21>0,+AB21,0) -> 0 | AF21: =+IF(AD21>0,+AC21,0) -> 0 | AG21: =X21 -> 0 | AH21: =IF('Simulador Valora'!$V$40=1,'Simulador Valora'!$AD$69,IF('Simulador Valora'!$V$40=3,'Simulador Valora'!$AI$69,'Simulador Valora'!$AN$69)) -> 0.12 | AI21: =IFERROR(AK21/AJ21,0) -> 0 | AJ21: =IF(AN20<0,0,IF(A21=$B$10,AN20+$D$10,IF(A21=$B$11,AN20+$D$11,IF(A21=$B$12,AN20+$D$12,IF(A21=$B$13,AN20+$D$13,IF(A21=$B$14,AN20+$D$14,AN20)))))) -> 0 | AK21: =IF(AJ21+AL21-AK20<=0,AJ21+AL21,IF(A21=$B$10,$F$10,IF(A21=$B$11,$F$11,IF(A21=$B$12,$F$12,IF(A21=$B$13,$F$13,IF(A21=$B$14,$F$14,AK20*(1+AQ21))))))) -> 0 | AL21: =IFERROR((AO21/360*AU21*AJ21),0) -> 0 | AM21: 0 | AN21: 0 | AO21: =IF(AJ21=0,"",AH21) ->  | AP21: =IF(AJ21<=0,0,IF('Simulador Valora'!$X$73=1,0,AJ21*'Simulador Valora'!$X$76))+IF(AJ21<=0,0,IF('Simulador Valora'!$V$40=1,'Simulador Valora'!$L$52,IF('Simulador Valora'!$V$40=3,'Simulador Valora'!$I$52,IF('Simulador Valora'!$V$40=4,'Simulador Valora'!$E$52)))) -> 0 | AR21: =AL21+AM21+AP21 -> 0 | AS21: =IFERROR(IF(AK21<=0.01,0,AS20-1),0) -> 0 | AT21: =IF(AJ21=0,"",DATE(YEAR(AT20),MONTH(AT20)+1,1)) ->  | AU21: =IFERROR(DAY(DATE(YEAR(AT21),MONTH(AT21)+1,0)),0) -> 0 | AV21: 2
A22: 3 | B22: 0 | D22: =IF(B22+F22-D21<=0,B22+F22,IF(A22=$B$10,$F$10,IF(A22=$B$11,$F$11,IF(A22=$B$12,$F$12,IF(A22=$B$13,$F$13,IF(A22=$B$14,$F$14,IF(AND('Simulador Valora'!$AE$45=2,L21=0),D21*(1+Z22),IF($AO$3=2,B22*AI22,D21*(1+Z22))))))))) -> 0 | F22: 0 | H22: =D22-F22 -> 0 | N22: =IF(OR('Simulador Valora'!$T$65=1,'Simulador Valora'!$T$65=3),0,L22*'Simulador Valora'!$T$66*'Simulador Valora'!$U$64) -> 0 | P22: 0 | R22: 0 | T22: =IF(B22<=0,0,IF('Simulador Valora'!$X$73=1,0,B22*'Simulador Valora'!$X$76)) -> 0 | V22: =IF(B22<=0,0,IF('Simulador Valora'!$V$40=1,'Simulador Valora'!$L$52,IF('Simulador Valora'!$V$40=3,'Simulador Valora'!$I$52,IF('Simulador Valora'!$V$40=4,'Simulador Valora'!$E$52)))) -> 0 | X22: 0 | AB22: 0 | AC22: 3 | AD22: 0 | AE22: 0 | AF22: 0 | AG22: 0 | AH22: =IF('Simulador Valora'!$V$40=1,'Simulador Valora'!$AD$69,IF('Simulador Valora'!$V$40=3,'Simulador Valora'!$AI$69,'Simulador Valora'!$AN$69)) -> 0.12 | AI22: 0 | AJ22: =IF(AN21<0,0,IF(A22=$B$10,AN21+$D$10,IF(A22=$B$11,AN21+$D$11,IF(A22=$B$12,AN21+$D$12,IF(A22=$B$13,AN21+$D$13,IF(A22=$B$14,AN21+$D$14,AN21)))))) -> 0 | AK22: =IF(AJ22+AL22-AK21<=0,AJ22+AL22,IF(A22=$B$10,$F$10,IF(A22=$B$11,$F$11,IF(A22=$B$12,$F$12,IF(A22=$B$13,$F$13,IF(A22=$B$14,$F$14,AK21*(1+AQ22))))))) -> 0 | AL22: 0 | AM22: 0 | AN22: 0 | AP22: =IF(AJ22<=0,0,IF('Simulador Valora'!$X$73=1,0,AJ22*'Simulador Valora'!$X$76))+IF(AJ22<=0,0,IF('Simulador Valora'!$V$40=1,'Simulador Valora'!$L$52,IF('Simulador Valora'!$V$40=3,'Simulador Valora'!$I$52,IF('Simulador Valora'!$V$40=4,'Simulador Valora'!$E$52)))) -> 0 | AR22: 0 | AS22: 0 | AT22: =IF(AJ22=0,"",DATE(YEAR(AT21),MONTH(AT21)+1,1)) ->  | AU22: 0 | AV22: 3 | AW22: Días/Mes | AX22: =365.25/12 -> 30.4375
A23: 4 | B23: 0 | D23: =IF(B23+F23-D22<=0,B23+F23,IF(A23=$B$10,$F$10,IF(A23=$B$11,$F$11,IF(A23=$B$12,$F$12,IF(A23=$B$13,$F$13,IF(A23=$B$14,$F$14,IF(AND('Simulador Valora'!$AE$45=2,L22=0),D22*(1+Z23),IF($AO$3=2,B23*AI23,D22*(1+Z23))))))))) -> 0 | F23: 0 | H23: 0 | J23: =IF(B23-H23=0,0,J21) -> 0 | N23: =IF(OR('Simulador Valora'!$T$65=1,'Simulador Valora'!$T$65=3),0,L23*'Simulador Valora'!$T$66*'Simulador Valora'!$U$64) -> 0 | P23: 0 | R23: 0 | T23: =IF(B23<=0,0,IF('Simulador Valora'!$X$73=1,0,B23*'Simulador Valora'!$X$76)) -> 0 | V23: =IF(B23<=0,0,IF('Simulador Valora'!$V$40=1,'Simulador Valora'!$L$52,IF('Simulador Valora'!$V$40=3,'Simulador Valora'!$I$52,IF('Simulador Valora'!$V$40=4,'Simulador Valora'!$E$52)))) -> 0 | X23: 0 | AB23: 0 | AC23: 4 | AD23: 0 | AE23: 0 | AF23: 0 | AG23: 0 | AH23: =IF('Simulador Valora'!$V$40=1,'Simulador Valora'!$AD$69,IF('Simulador Valora'!$V$40=3,'Simulador Valora'!$AI$69,'Simulador Valora'!$AN$69)) -> 0.12 | AI23: 0 | AJ23: 0 | AK23: 0 | AL23: 0 | AM23: 0 | AN23: 0 | AP23: =IF(AJ23<=0,0,IF('Simulador Valora'!$X$73=1,0,AJ23*'Simulador Valora'!$X$76))+IF(AJ23<=0,0,IF('Simulador Valora'!$V$40=1,'Simulador Valora'!$L$52,IF('Simulador Valora'!$V$40=3,'Simulador Valora'!$I$52,IF('Simulador Valora'!$V$40=4,'Simulador Valora'!$E$52)))) -> 0 | AR23: 0 | AS23: 0 | AU23: 0 | AV23: 4 | AX23: Interés mensual = Sdo inicial x tasa / 360 x # días del mes
A24: 5 | B24: 0 | D24: =IF(B24+F24-D23<=0,B24+F24,IF(A24=$B$10,$F$10,IF(A24=$B$11,$F$11,IF(A24=$B$12,$F$12,IF(A24=$B$13,$F$13,IF(A24=$B$14,$F$14,IF(AND('Simulador Valora'!$AE$45=2,L23=0),D23*(1+Z24),IF($AO$3=2,B24*AI24,D23*(1+Z24))))))))) -> 0 | F24: 0 | H24: 0 | N24: =IF(OR('Simulador Valora'!$T$65=1,'Simulador Valora'!$T$65=3),0,L24*'Simulador Valora'!$T$66*'Simulador Valora'!$U$64) -> 0 | P24: 0 | R24: 0 | T24: =IF(B24<=0,0,IF('Simulador Valora'!$X$73=1,0,B24*'Simulador Valora'!$X$76)) -> 0 | V24: =IF(B24<=0,0,IF('Simulador Valora'!$V$40=1,'Simulador Valora'!$L$52,IF('Simulador Valora'!$V$40=3,'Simulador Valora'!$I$52,IF('Simulador Valora'!$V$40=4,'Simulador Valora'!$E$52)))) -> 0 | X24: 0 | AB24: 0 | AC24: 5 | AD24: 0 | AE24: 0 | AF24: 0 | AG24: 0 | AH24: =IF('Simulador Valora'!$V$40=1,'Simulador Valora'!$AD$69,IF('Simulador Valora'!$V$40=3,'Simulador Valora'!$AI$69,'Simulador Valora'!$AN$69)) -> 0.12 | AI24: 0 | AJ24: 0 | AK24: 0 | AL24: 0 | AM24: 0 | AN24: 0 | AP24: =IF(AJ24<=0,0,IF('Simulador Valora'!$X$73=1,0,AJ24*'Simulador Valora'!$X$76))+IF(AJ24<=0,0,IF('Simulador Valora'!$V$40=1,'Simulador Valora'!$L$52,IF('Simulador Valora'!$V$40=3,'Simulador Valora'!$I$52,IF('Simulador Valora'!$V$40=4,'Simulador Valora'!$E$52)))) -> 0 | AR24: 0 | AS24: 0 | AU24: 0 | AV24: 5
A25: 6 | B25: 0 | D25: =IF(B25+F25-D24<=0,B25+F25,IF(A25=$B$10,$F$10,IF(A25=$B$11,$F$11,IF(A25=$B$12,$F$12,IF(A25=$B$13,$F$13,IF(A25=$B$14,$F$14,IF(AND('Simulador Valora'!$AE$45=2,L24=0),D24*(1+Z25),IF($AO$3=2,B25*AI25,D24*(1+Z25))))))))) -> 0 | F25: 0 | H25: 0 | J25: =IF(B25-H25=0,0,J23) -> 0 | N25: =IF(OR('Simulador Valora'!$T$65=1,'Simulador Valora'!$T$65=3),0,L25*'Simulador Valora'!$T$66*'Simulador Valora'!$U$64) -> 0 | P25: 0 | R25: 0 | T25: =IF(B25<=0,0,IF('Simulador Valora'!$X$73=1,0,B25*'Simulador Valora'!$X$76)) -> 0 | V25: =IF(B25<=0,0,IF('Simulador Valora'!$V$40=1,'Simulador Valora'!$L$52,IF('Simulador Valora'!$V$40=3,'Simulador Valora'!$I$52,IF('Simulador Valora'!$V$40=4,'Simulador Valora'!$E$52)))) -> 0 | X25: 0 | AB25: 0 | AC25: 6 | AD25: 0 | AE25: 0 | AF25: 0 | AG25: 0 | AH25: =IF('Simulador Valora'!$V$40=1,'Simulador Valora'!$AD$69,IF('Simulador Valora'!$V$40=3,'Simulador Valora'!$AI$69,'Simulador Valora'!$AN$69)) -> 0.12 | AI25: 0 | AJ25: 0 | AK25: 0 | AL25: 0 | AM25: 0 | AN25: 0 | AP25: =IF(AJ25<=0,0,IF('Simulador Valora'!$X$73=1,0,AJ25*'Simulador Valora'!$X$76))+IF(AJ25<=0,0,IF('Simulador Valora'!$V$40=1,'Simulador Valora'!$L$52,IF('Simulador Valora'!$V$40=3,'Simulador Valora'!$I$52,IF('Simulador Valora'!$V$40=4,'Simulador Valora'!$E$52)))) -> 0 | AR25: 0 | AS25: 0 | AU25: 0 | AV25: 6
A26: 7 | B26: 0 | D26: =IF(B26+F26-D25<=0,B26+F26,IF(A26=$B$10,$F$10,IF(A26=$B$11,$F$11,IF(A26=$B$12,$F$12,IF(A26=$B$13,$F$13,IF(A26=$B$14,$F$14,IF(AND('Simulador Valora'!$AE$45=2,L25=0),D25*(1+Z26),IF($AO$3=2,B26*AI26,D25*(1+Z26))))))))) -> 0 | F26: 0 | H26: 0 | N26: =IF(OR('Simulador Valora'!$T$65=1,'Simulador Valora'!$T$65=3),0,L26*'Simulador Valora'!$T$66*'Simulador Valora'!$U$64) -> 0 | P26: 0 | R26: 0 | T26: =IF(B26<=0,0,IF('Simulador Valora'!$X$73=1,0,B26*'Simulador Valora'!$X$76)) -> 0 | V26: =IF(B26<=0,0,IF('Simulador Valora'!$V$40=1,'Simulador Valora'!$L$52,IF('Simulador Valora'!$V$40=3,'Simulador Valora'!$I$52,IF('Simulador Valora'!$V$40=4,'Simulador Valora'!$E$52)))) -> 0 | X26: 0 | AB26: 0 | AC26: 7 | AD26: 0 | AE26: 0 | AF26: 0 | AG26: 0 | AH26: =IF('Simulador Valora'!$V$40=1,'Simulador Valora'!$AD$69,IF('Simulador Valora'!$V$40=3,'Simulador Valora'!$AI$69,'Simulador Valora'!$AN$69)) -> 0.12 | AI26: 0 | AJ26: 0 | AK26: 0 | AL26: 0 | AM26: 0 | AN26: 0 | AP26: =IF(AJ26<=0,0,IF('Simulador Valora'!$X$73=1,0,AJ26*'Simulador Valora'!$X$76))+IF(AJ26<=0,0,IF('Simulador Valora'!$V$40=1,'Simulador Valora'!$L$52,IF('Simulador Valora'!$V$40=3,'Simulador Valora'!$I$52,IF('Simulador Valora'!$V$40=4,'Simulador Valora'!$E$52)))) -> 0 | AR26: 0 | AS26: 0 | AU26: 0 | AV26: 7
A27: 8 | B27: 0 | D27: =IF(B27+F27-D26<=0,B27+F27,IF(A27=$B$10,$F$10,IF(A27=$B$11,$F$11,IF(A27=$B$12,$F$12,IF(A27=$B$13,$F$13,IF(A27=$B$14,$F$14,IF(AND('Simulador Valora'!$AE$45=2,L26=0),D26*(1+Z27),IF($AO$3=2,B27*AI27,D26*(1+Z27))))))))) -> 0 | F27: 0 | H27: 0 | J27: =IF(B27-H27=0,0,J25) -> 0 | N27: =IF(OR('Simulador Valora'!$T$65=1,'Simulador Valora'!$T$65=3),0,L27*'Simulador Valora'!$T$66*'Simulador Valora'!$U$64) -> 0 | P27: 0 | R27: 0 | T27: =IF(B27<=0,0,IF('Simulador Valora'!$X$73=1,0,B27*'Simulador Valora'!$X$76)) -> 0 | V27: =IF(B27<=0,0,IF('Simulador Valora'!$V$40=1,'Simulador Valora'!$L$52,IF('Simulador Valora'!$V$40=3,'Simulador Valora'!$I$52,IF('Simulador Valora'!$V$40=4,'Simulador Valora'!$E$52)))) -> 0 | X27: 0 | AB27: 0 | AC27: 8 | AD27: 0 | AE27: 0 | AF27: 0 | AG27: 0 | AH27: =IF('Simulador Valora'!$V$40=1,'Simulador Valora'!$AD$69,IF('Simulador Valora'!$V$40=3,'Simulador Valora'!$AI$69,'Simulador Valora'!$AN$69)) -> 0.12 | AI27: 0 | AJ27: 0 | AK27: 0 | AL27: 0 | AM27: 0 | AN27: 0 | AP27: =IF(AJ27<=0,0,IF('Simulador Valora'!$X$73=1,0,AJ27*'Simulador Valora'!$X$76))+IF(AJ27<=0,0,IF('Simulador Valora'!$V$40=1,'Simulador Valora'!$L$52,IF('Simulador Valora'!$V$40=3,'Simulador Valora'!$I$52,IF('Simulador Valora'!$V$40=4,'Simulador Valora'!$E$52)))) -> 0 | AR27: 0 | AS27: 0 | AU27: 0 | AV27: 8
A28: 9 | B28: 0 | D28: =IF(B28+F28-D27<=0,B28+F28,IF(A28=$B$10,$F$10,IF(A28=$B$11,$F$11,IF(A28=$B$12,$F$12,IF(A28=$B$13,$F$13,IF(A28=$B$14,$F$14,IF(AND('Simulador Valora'!$AE$45=2,L27=0),D27*(1+Z28),IF($AO$3=2,B28*AI28,D27*(1+Z28))))))))) -> 0 | F28: 0 | H28: 0 | N28: =IF(OR('Simulador Valora'!$T$65=1,'Simulador Valora'!$T$65=3),0,L28*'Simulador Valora'!$T$66*'Simulador Valora'!$U$64) -> 0 | P28: 0 | R28: 0 | T28: =IF(B28<=0,0,IF('Simulador Valora'!$X$73=1,0,B28*'Simulador Valora'!$X$76)) -> 0 | V28: =IF(B28<=0,0,IF('Simulador Valora'!$V$40=1,'Simulador Valora'!$L$52,IF('Simulador Valora'!$V$40=3,'Simulador Valora'!$I$52,IF('Simulador Valora'!$V$40=4,'Simulador Valora'!$E$52)))) -> 0 | X28: 0 | AB28: 0 | AC28: 9 | AD28: 0 | AE28: 0 | AF28: 0 | AG28: 0 | AH28: =IF('Simulador Valora'!$V$40=1,'Simulador Valora'!$AD$69,IF('Simulador Valora'!$V$40=3,'Simulador Valora'!$AI$69,'Simulador Valora'!$AN$69)) -> 0.12 | AI28: 0 | AJ28: 0 | AK28: 0 | AL28: 0 | AM28: 0 | AN28: 0 | AP28: =IF(AJ28<=0,0,IF('Simulador Valora'!$X$73=1,0,AJ28*'Simulador Valora'!$X$76))+IF(AJ28<=0,0,IF('Simulador Valora'!$V$40=1,'Simulador Valora'!$L$52,IF('Simulador Valora'!$V$40=3,'Simulador Valora'!$I$52,IF('Simulador Valora'!$V$40=4,'Simulador Valora'!$E$52)))) -> 0 | AR28: 0 | AS28: 0 | AU28: 0 | AV28: 9
A29: 10 | B29: 0 | D29: =IF(B29+F29-D28<=0,B29+F29,IF(A29=$B$10,$F$10,IF(A29=$B$11,$F$11,IF(A29=$B$12,$F$12,IF(A29=$B$13,$F$13,IF(A29=$B$14,$F$14,IF(AND('Simulador Valora'!$AE$45=2,L28=0),D28*(1+Z29),IF($AO$3=2,B29*AI29,D28*(1+Z29))))))))) -> 0 | F29: 0 | H29: 0 | J29: =IF(B29-H29=0,0,J27) -> 0 | N29: =IF(OR('Simulador Valora'!$T$65=1,'Simulador Valora'!$T$65=3),0,L29*'Simulador Valora'!$T$66*'Simulador Valora'!$U$64) -> 0 | P29: 0 | R29: 0 | T29: =IF(B29<=0,0,IF('Simulador Valora'!$X$73=1,0,B29*'Simulador Valora'!$X$76)) -> 0 | V29: =IF(B29<=0,0,IF('Simulador Valora'!$V$40=1,'Simulador Valora'!$L$52,IF('Simulador Valora'!$V$40=3,'Simulador Valora'!$I$52,IF('Simulador Valora'!$V$40=4,'Simulador Valora'!$E$52)))) -> 0 | X29: 0 | AB29: 0 | AC29: 10 | AD29: 0 | AE29: 0 | AF29: 0 | AG29: 0 | AH29: =IF('Simulador Valora'!$V$40=1,'Simulador Valora'!$AD$69,IF('Simulador Valora'!$V$40=3,'Simulador Valora'!$AI$69,'Simulador Valora'!$AN$69)) -> 0.12 | AI29: 0 | AJ29: 0 | AK29: 0 | AL29: 0 | AM29: 0 | AN29: 0 | AP29: =IF(AJ29<=0,0,IF('Simulador Valora'!$X$73=1,0,AJ29*'Simulador Valora'!$X$76))+IF(AJ29<=0,0,IF('Simulador Valora'!$V$40=1,'Simulador Valora'!$L$52,IF('Simulador Valora'!$V$40=3,'Simulador Valora'!$I$52,IF('Simulador Valora'!$V$40=4,'Simulador Valora'!$E$52)))) -> 0 | AR29: 0 | AS29: 0 | AU29: 0 | AV29: 10
A30: 11 | B30: 0 | D30: =IF(B30+F30-D29<=0,B30+F30,IF(A30=$B$10,$F$10,IF(A30=$B$11,$F$11,IF(A30=$B$12,$F$12,IF(A30=$B$13,$F$13,IF(A30=$B$14,$F$14,IF(AND('Simulador Valora'!$AE$45=2,L29=0),D29*(1+Z30),IF($AO$3=2,B30*AI30,D29*(1+Z30))))))))) -> 0 | F30: 0 | H30: 0 | N30: =IF(OR('Simulador Valora'!$T$65=1,'Simulador Valora'!$T$65=3),0,L30*'Simulador Valora'!$T$66*'Simulador Valora'!$U$64) -> 0 | P30: 0 | R30: 0 | T30: =IF(B30<=0,0,IF('Simulador Valora'!$X$73=1,0,B30*'Simulador Valora'!$X$76)) -> 0 | V30: =IF(B30<=0,0,IF('Simulador Valora'!$V$40=1,'Simulador Valora'!$L$52,IF('Simulador Valora'!$V$40=3,'Simulador Valora'!$I$52,IF('Simulador Valora'!$V$40=4,'Simulador Valora'!$E$52)))) -> 0 | X30: 0 | AB30: 0 | AC30: 11 | AD30: 0 | AE30: 0 | AF30: 0 | AG30: 0 | AH30: =IF('Simulador Valora'!$V$40=1,'Simulador Valora'!$AD$69,IF('Simulador Valora'!$V$40=3,'Simulador Valora'!$AI$69,'Simulador Valora'!$AN$69)) -> 0.12 | AI30: 0 | AJ30: 0 | AK30: 0 | AL30: 0 | AM30: 0 | AN30: 0 | AP30: =IF(AJ30<=0,0,IF('Simulador Valora'!$X$73=1,0,AJ30*'Simulador Valora'!$X$76))+IF(AJ30<=0,0,IF('Simulador Valora'!$V$40=1,'Simulador Valora'!$L$52,IF('Simulador Valora'!$V$40=3,'Simulador Valora'!$I$52,IF('Simulador Valora'!$V$40=4,'Simulador Valora'!$E$52)))) -> 0 | AR30: 0 | AS30: 0 | AU30: 0 | AV30: 11
A31: 12 | B31: 0 | D31: =IF(B31+F31-D30<=0,B31+F31,IF(A31=$B$10,$F$10,IF(A31=$B$11,$F$11,IF(A31=$B$12,$F$12,IF(A31=$B$13,$F$13,IF(A31=$B$14,$F$14,IF(AND('Simulador Valora'!$AE$45=2,L30=0),D30*(1+Z31),IF($AO$3=2,B31*AI31,D30*(1+Z31))))))))) -> 0 | F31: 0 | H31: 0 | J31: =IF(B31-H31=0,0,J29) -> 0 | N31: =IF(OR('Simulador Valora'!$T$65=1,'Simulador Valora'!$T$65=3),0,L31*'Simulador Valora'!$T$66*'Simulador Valora'!$U$64) -> 0 | P31: 0 | R31: 0 | T31: =IF(B31<=0,0,IF('Simulador Valora'!$X$73=1,0,B31*'Simulador Valora'!$X$76)) -> 0 | V31: =IF(B31<=0,0,IF('Simulador Valora'!$V$40=1,'Simulador Valora'!$L$52,IF('Simulador Valora'!$V$40=3,'Simulador Valora'!$I$52,IF('Simulador Valora'!$V$40=4,'Simulador Valora'!$E$52)))) -> 0 | X31: 0 | AB31: 1 | AC31: 0 | AD31: 0 | AE31: 0 | AF31: 0 | AG31: 0 | AH31: =IF('Simulador Valora'!$V$40=1,'Simulador Valora'!$AD$69,IF('Simulador Valora'!$V$40=3,'Simulador Valora'!$AI$69,'Simulador Valora'!$AN$69)) -> 0.12 | AI31: 0 | AJ31: 0 | AK31: 0 | AL31: 0 | AM31: 0 | AN31: 0 | AP31: =IF(AJ31<=0,0,IF('Simulador Valora'!$X$73=1,0,AJ31*'Simulador Valora'!$X$76))+IF(AJ31<=0,0,IF('Simulador Valora'!$V$40=1,'Simulador Valora'!$L$52,IF('Simulador Valora'!$V$40=3,'Simulador Valora'!$I$52,IF('Simulador Valora'!$V$40=4,'Simulador Valora'!$E$52)))) -> 0 | AR31: 0 | AS31: 0 | AU31: 0 | AV31: 12
A32: 13 | B32: 0 | D32: =IF(B32+F32-D31<=0,B32+F32,IF(A32=$B$10,$F$10,IF(A32=$B$11,$F$11,IF(A32=$B$12,$F$12,IF(A32=$B$13,$F$13,IF(A32=$B$14,$F$14,IF(AND('Simulador Valora'!$AE$45=2,L31=0),D31*(1+Z32),IF($AO$3=2,B32*AI32,D31*(1+Z32))))))))) -> 0 | F32: 0 | H32: 0 | N32: =IF(OR('Simulador Valora'!$T$65=1,'Simulador Valora'!$T$65=3),0,L32*'Simulador Valora'!$T$66*'Simulador Valora'!$U$64) -> 0 | P32: 0 | R32: 0 | T32: =IF(B32<=0,0,IF('Simulador Valora'!$X$73=1,0,B32*'Simulador Valora'!$X$76)) -> 0 | V32: =IF(B32<=0,0,IF('Simulador Valora'!$V$40=1,'Simulador Valora'!$L$52,IF('Simulador Valora'!$V$40=3,'Simulador Valora'!$I$52,IF('Simulador Valora'!$V$40=4,'Simulador Valora'!$E$52)))) -> 0 | X32: 0 | Z32: =IF(B32<=0,0,'Simulador Valora'!$AF$53) -> 0 | AB32: 1 | AC32: 1 | AD32: 0 | AE32: 0 | AF32: 0 | AG32: 0 | AH32: =IF('Simulador Valora'!$V$40=1,'Simulador Valora'!$AD$69,IF('Simulador Valora'!$V$40=3,'Simulador Valora'!$AI$69,'Simulador Valora'!$AN$69)) -> 0.12 | AI32: 0 | AJ32: 0 | AK32: 0 | AL32: 0 | AM32: 0 | AN32: 0 | AP32: =IF(AJ32<=0,0,IF('Simulador Valora'!$X$73=1,0,AJ32*'Simulador Valora'!$X$76))+IF(AJ32<=0,0,IF('Simulador Valora'!$V$40=1,'Simulador Valora'!$L$52,IF('Simulador Valora'!$V$40=3,'Simulador Valora'!$I$52,IF('Simulador Valora'!$V$40=4,'Simulador Valora'!$E$52)))) -> 0 | AQ32: =IF(AJ32<=0,0,'Simulador Valora'!$AF$53) -> 0 | AR32: 0 | AS32: 0 | AU32: 0 | AV32: 13
A33: 14 | B33: 0 | D33: =IF(B33+F33-D32<=0,B33+F33,IF(A33=$B$10,$F$10,IF(A33=$B$11,$F$11,IF(A33=$B$12,$F$12,IF(A33=$B$13,$F$13,IF(A33=$B$14,$F$14,IF(AND('Simulador Valora'!$AE$45=2,L32=0),D32*(1+Z33),IF($AO$3=2,B33*AI33,D32*(1+Z33))))))))) -> 0 | F33: 0 | H33: 0 | J33: =IF(B33-H33=0,0,J31*(1+(3%))) -> 0 | N33: =IF(OR('Simulador Valora'!$T$65=1,'Simulador Valora'!$T$65=3),0,L33*'Simulador Valora'!$T$66*'Simulador Valora'!$U$64) -> 0 | P33: 0 | R33: 0 | T33: =IF(B33<=0,0,IF('Simulador Valora'!$X$73=1,0,B33*'Simulador Valora'!$X$76)) -> 0 | V33: =IF(B33<=0,0,IF('Simulador Valora'!$V$40=1,'Simulador Valora'!$L$52,IF('Simulador Valora'!$V$40=3,'Simulador Valora'!$I$52,IF('Simulador Valora'!$V$40=4,'Simulador Valora'!$E$52)))) -> 0 | X33: 0 | AB33: 1 | AC33: 2 | AD33: 0 | AE33: 0 | AF33: 0 | AG33: 0 | AH33: =IF('Simulador Valora'!$V$40=1,'Simulador Valora'!$AD$69,IF('Simulador Valora'!$V$40=3,'Simulador Valora'!$AI$69,'Simulador Valora'!$AN$69)) -> 0.12 | AI33: 0 | AJ33: 0 | AK33: 0 | AL33: 0 | AM33: 0 | AN33: 0 | AP33: =IF(AJ33<=0,0,IF('Simulador Valora'!$X$73=1,0,AJ33*'Simulador Valora'!$X$76))+IF(AJ33<=0,0,IF('Simulador Valora'!$V$40=1,'Simulador Valora'!$L$52,IF('Simulador Valora'!$V$40=3,'Simulador Valora'!$I$52,IF('Simulador Valora'!$V$40=4,'Simulador Valora'!$E$52)))) -> 0 | AR33: 0 | AS33: 0 | AU33: 0 | AV33: 14
A34: 15 | B34: 0 | D34: =IF(B34+F34-D33<=0,B34+F34,IF(A34=$B$10,$F$10,IF(A34=$B$11,$F$11,IF(A34=$B$12,$F$12,IF(A34=$B$13,$F$13,IF(A34=$B$14,$F$14,IF(AND('Simulador Valora'!$AE$45=2,L33=0),D33*(1+Z34),IF($AO$3=2,B34*AI34,D33*(1+Z34))))))))) -> 0 | F34: 0 | H34: 0 | N34: =IF(OR('Simulador Valora'!$T$65=1,'Simulador Valora'!$T$65=3),0,L34*'Simulador Valora'!$T$66*'Simulador Valora'!$U$64) -> 0 | P34: 0 | R34: 0 | T34: =IF(B34<=0,0,IF('Simulador Valora'!$X$73=1,0,B34*'Simulador Valora'!$X$76)) -> 0 | V34: =IF(B34<=0,0,IF('Simulador Valora'!$V$40=1,'Simulador Valora'!$L$52,IF('Simulador Valora'!$V$40=3,'Simulador Valora'!$I$52,IF('Simulador Valora'!$V$40=4,'Simulador Valora'!$E$52)))) -> 0 | X34: 0 | AB34: 1 | AC34: 3 | AD34: 0 | AE34: 0 | AF34: 0 | AG34: 0 | AH34: =IF('Simulador Valora'!$V$40=1,'Simulador Valora'!$AD$69,IF('Simulador Valora'!$V$40=3,'Simulador Valora'!$AI$69,'Simulador Valora'!$AN$69)) -> 0.12 | AI34: 0 | AJ34: 0 | AK34: 0 | AL34: 0 | AM34: 0 | AN34: 0 | AP34: =IF(AJ34<=0,0,IF('Simulador Valora'!$X$73=1,0,AJ34*'Simulador Valora'!$X$76))+IF(AJ34<=0,0,IF('Simulador Valora'!$V$40=1,'Simulador Valora'!$L$52,IF('Simulador Valora'!$V$40=3,'Simulador Valora'!$I$52,IF('Simulador Valora'!$V$40=4,'Simulador Valora'!$E$52)))) -> 0 | AR34: 0 | AS34: 0 | AU34: 0 | AV34: 15
A35: 16 | B35: 0 | D35: =IF(B35+F35-D34<=0,B35+F35,IF(A35=$B$10,$F$10,IF(A35=$B$11,$F$11,IF(A35=$B$12,$F$12,IF(A35=$B$13,$F$13,IF(A35=$B$14,$F$14,IF(AND('Simulador Valora'!$AE$45=2,L34=0),D34*(1+Z35),IF($AO$3=2,B35*AI35,D34*(1+Z35))))))))) -> 0 | F35: 0 | H35: 0 | J35: =IF(B35-H35=0,0,J33) -> 0 | N35: =IF(OR('Simulador Valora'!$T$65=1,'Simulador Valora'!$T$65=3),0,L35*'Simulador Valora'!$T$66*'Simulador Valora'!$U$64) -> 0 | P35: 0 | R35: 0 | T35: =IF(B35<=0,0,IF('Simulador Valora'!$X$73=1,0,B35*'Simulador Valora'!$X$76)) -> 0 | V35: =IF(B35<=0,0,IF('Simulador Valora'!$V$40=1,'Simulador Valora'!$L$52,IF('Simulador Valora'!$V$40=3,'Simulador Valora'!$I$52,IF('Simulador Valora'!$V$40=4,'Simulador Valora'!$E$52)))) -> 0 | X35: 0 | AB35: 1 | AC35: 4 | AD35: 0 | AE35: 0 | AF35: 0 | AG35: 0 | AH35: =IF('Simulador Valora'!$V$40=1,'Simulador Valora'!$AD$69,IF('Simulador Valora'!$V$40=3,'Simulador Valora'!$AI$69,'Simulador Valora'!$AN$69)) -> 0.12 | AI35: 0 | AJ35: 0 | AK35: 0 | AL35: 0 | AM35: 0 | AN35: 0 | AP35: =IF(AJ35<=0,0,IF('Simulador Valora'!$X$73=1,0,AJ35*'Simulador Valora'!$X$76))+IF(AJ35<=0,0,IF('Simulador Valora'!$V$40=1,'Simulador Valora'!$L$52,IF('Simulador Valora'!$V$40=3,'Simulador Valora'!$I$52,IF('Simulador Valora'!$V$40=4,'Simulador Valora'!$E$52)))) -> 0 | AR35: 0 | AS35: 0 | AU35: 0 | AV35: 16
A36: 17 | B36: 0 | D36: =IF(B36+F36-D35<=0,B36+F36,IF(A36=$B$10,$F$10,IF(A36=$B$11,$F$11,IF(A36=$B$12,$F$12,IF(A36=$B$13,$F$13,IF(A36=$B$14,$F$14,IF(AND('Simulador Valora'!$AE$45=2,L35=0),D35*(1+Z36),IF($AO$3=2,B36*AI36,D35*(1+Z36))))))))) -> 0 | F36: 0 | H36: 0 | N36: =IF(OR('Simulador Valora'!$T$65=1,'Simulador Valora'!$T$65=3),0,L36*'Simulador Valora'!$T$66*'Simulador Valora'!$U$64) -> 0 | P36: 0 | R36: 0 | T36: =IF(B36<=0,0,IF('Simulador Valora'!$X$73=1,0,B36*'Simulador Valora'!$X$76)) -> 0 | V36: =IF(B36<=0,0,IF('Simulador Valora'!$V$40=1,'Simulador Valora'!$L$52,IF('Simulador Valora'!$V$40=3,'Simulador Valora'!$I$52,IF('Simulador Valora'!$V$40=4,'Simulador Valora'!$E$52)))) -> 0 | X36: 0 | AB36: 1 | AC36: 5 | AD36: 0 | AE36: 0 | AF36: 0 | AG36: 0 | AH36: =IF('Simulador Valora'!$V$40=1,'Simulador Valora'!$AD$69,IF('Simulador Valora'!$V$40=3,'Simulador Valora'!$AI$69,'Simulador Valora'!$AN$69)) -> 0.12 | AI36: 0 | AJ36: 0 | AK36: 0 | AL36: 0 | AM36: 0 | AN36: 0 | AP36: =IF(AJ36<=0,0,IF('Simulador Valora'!$X$73=1,0,AJ36*'Simulador Valora'!$X$76))+IF(AJ36<=0,0,IF('Simulador Valora'!$V$40=1,'Simulador Valora'!$L$52,IF('Simulador Valora'!$V$40=3,'Simulador Valora'!$I$52,IF('Simulador Valora'!$V$40=4,'Simulador Valora'!$E$52)))) -> 0 | AR36: 0 | AS36: 0 | AU36: 0 | AV36: 17
A37: 18 | B37: 0 | D37: =IF(B37+F37-D36<=0,B37+F37,IF(A37=$B$10,$F$10,IF(A37=$B$11,$F$11,IF(A37=$B$12,$F$12,IF(A37=$B$13,$F$13,IF(A37=$B$14,$F$14,IF(AND('Simulador Valora'!$AE$45=2,L36=0),D36*(1+Z37),IF($AO$3=2,B37*AI37,D36*(1+Z37))))))))) -> 0 | F37: 0 | H37: 0 | J37: =IF(B37-H37=0,0,J35) -> 0 | N37: =IF(OR('Simulador Valora'!$T$65=1,'Simulador Valora'!$T$65=3),0,L37*'Simulador Valora'!$T$66*'Simulador Valora'!$U$64) -> 0 | P37: 0 | R37: 0 | T37: =IF(B37<=0,0,IF('Simulador Valora'!$X$73=1,0,B37*'Simulador Valora'!$X$76)) -> 0 | V37: =IF(B37<=0,0,IF('Simulador Valora'!$V$40=1,'Simulador Valora'!$L$52,IF('Simulador Valora'!$V$40=3,'Simulador Valora'!$I$52,IF('Simulador Valora'!$V$40=4,'Simulador Valora'!$E$52)))) -> 0 | X37: 0 | AB37: 1 | AC37: 6 | AD37: 0 | AE37: 0 | AF37: 0 | AG37: 0 | AH37: =IF('Simulador Valora'!$V$40=1,'Simulador Valora'!$AD$69,IF('Simulador Valora'!$V$40=3,'Simulador Valora'!$AI$69,'Simulador Valora'!$AN$69)) -> 0.12 | AI37: 0 | AJ37: 0 | AK37: 0 | AL37: 0 | AM37: 0 | AN37: 0 | AP37: =IF(AJ37<=0,0,IF('Simulador Valora'!$X$73=1,0,AJ37*'Simulador Valora'!$X$76))+IF(AJ37<=0,0,IF('Simulador Valora'!$V$40=1,'Simulador Valora'!$L$52,IF('Simulador Valora'!$V$40=3,'Simulador Valora'!$I$52,IF('Simulador Valora'!$V$40=4,'Simulador Valora'!$E$52)))) -> 0 | AR37: 0 | AS37: 0 | AU37: 0 | AV37: 18
A38: 19 | B38: 0 | D38: =IF(B38+F38-D37<=0,B38+F38,IF(A38=$B$10,$F$10,IF(A38=$B$11,$F$11,IF(A38=$B$12,$F$12,IF(A38=$B$13,$F$13,IF(A38=$B$14,$F$14,IF(AND('Simulador Valora'!$AE$45=2,L37=0),D37*(1+Z38),IF($AO$3=2,B38*AI38,D37*(1+Z38))))))))) -> 0 | F38: 0 | H38: 0 | N38: =IF(OR('Simulador Valora'!$T$65=1,'Simulador Valora'!$T$65=3),0,L38*'Simulador Valora'!$T$66*'Simulador Valora'!$U$64) -> 0 | P38: 0 | R38: 0 | T38: =IF(B38<=0,0,IF('Simulador Valora'!$X$73=1,0,B38*'Simulador Valora'!$X$76)) -> 0 | V38: =IF(B38<=0,0,IF('Simulador Valora'!$V$40=1,'Simulador Valora'!$L$52,IF('Simulador Valora'!$V$40=3,'Simulador Valora'!$I$52,IF('Simulador Valora'!$V$40=4,'Simulador Valora'!$E$52)))) -> 0 | X38: 0 | AB38: 1 | AC38: 7 | AD38: 0 | AE38: 0 | AF38: 0 | AG38: 0 | AH38: =IF('Simulador Valora'!$V$40=1,'Simulador Valora'!$AD$69,IF('Simulador Valora'!$V$40=3,'Simulador Valora'!$AI$69,'Simulador Valora'!$AN$69)) -> 0.12 | AI38: 0 | AJ38: 0 | AK38: 0 | AL38: 0 | AM38: 0 | AN38: 0 | AP38: =IF(AJ38<=0,0,IF('Simulador Valora'!$X$73=1,0,AJ38*'Simulador Valora'!$X$76))+IF(AJ38<=0,0,IF('Simulador Valora'!$V$40=1,'Simulador Valora'!$L$52,IF('Simulador Valora'!$V$40=3,'Simulador Valora'!$I$52,IF('Simulador Valora'!$V$40=4,'Simulador Valora'!$E$52)))) -> 0 | AR38: 0 | AS38: 0 | AU38: 0 | AV38: 19
A39: 20 | B39: 0 | D39: =IF(B39+F39-D38<=0,B39+F39,IF(A39=$B$10,$F$10,IF(A39=$B$11,$F$11,IF(A39=$B$12,$F$12,IF(A39=$B$13,$F$13,IF(A39=$B$14,$F$14,IF(AND('Simulador Valora'!$AE$45=2,L38=0),D38*(1+Z39),IF($AO$3=2,B39*AI39,D38*(1+Z39))))))))) -> 0 | F39: 0 | H39: 0 | J39: =IF(B39-H39=0,0,J37) -> 0 | N39: =IF(OR('Simulador Valora'!$T$65=1,'Simulador Valora'!$T$65=3),0,L39*'Simulador Valora'!$T$66*'Simulador Valora'!$U$64) -> 0 | P39: 0 | R39: 0 | T39: =IF(B39<=0,0,IF('Simulador Valora'!$X$73=1,0,B39*'Simulador Valora'!$X$76)) -> 0 | V39: =IF(B39<=0,0,IF('Simulador Valora'!$V$40=1,'Simulador Valora'!$L$52,IF('Simulador Valora'!$V$40=3,'Simulador Valora'!$I$52,IF('Simulador Valora'!$V$40=4,'Simulador Valora'!$E$52)))) -> 0 | X39: 0 | AB39: 1 | AC39: 8 | AD39: 0 | AE39: 0 | AF39: 0 | AG39: 0 | AH39: =IF('Simulador Valora'!$V$40=1,'Simulador Valora'!$AD$69,IF('Simulador Valora'!$V$40=3,'Simulador Valora'!$AI$69,'Simulador Valora'!$AN$69)) -> 0.12 | AI39: 0 | AJ39: 0 | AK39: 0 | AL39: 0 | AM39: 0 | AN39: 0 | AP39: =IF(AJ39<=0,0,IF('Simulador Valora'!$X$73=1,0,AJ39*'Simulador Valora'!$X$76))+IF(AJ39<=0,0,IF('Simulador Valora'!$V$40=1,'Simulador Valora'!$L$52,IF('Simulador Valora'!$V$40=3,'Simulador Valora'!$I$52,IF('Simulador Valora'!$V$40=4,'Simulador Valora'!$E$52)))) -> 0 | AR39: 0 | AS39: 0 | AU39: 0 | AV39: 20
A40: 21 | B40: 0 | D40: =IF(B40+F40-D39<=0,B40+F40,IF(A40=$B$10,$F$10,IF(A40=$B$11,$F$11,IF(A40=$B$12,$F$12,IF(A40=$B$13,$F$13,IF(A40=$B$14,$F$14,IF(AND('Simulador Valora'!$AE$45=2,L39=0),D39*(1+Z40),IF($AO$3=2,B40*AI40,D39*(1+Z40))))))))) -> 0 | F40: 0 | H40: 0 | N40: =IF(OR('Simulador Valora'!$T$65=1,'Simulador Valora'!$T$65=3),0,L40*'Simulador Valora'!$T$66*'Simulador Valora'!$U$64) -> 0 | P40: 0 | R40: 0 | T40: =IF(B40<=0,0,IF('Simulador Valora'!$X$73=1,0,B40*'Simulador Valora'!$X$76)) -> 0 | V40: =IF(B40<=0,0,IF('Simulador Valora'!$V$40=1,'Simulador Valora'!$L$52,IF('Simulador Valora'!$V$40=3,'Simulador Valora'!$I$52,IF('Simulador Valora'!$V$40=4,'Simulador Valora'!$E$52)))) -> 0 | X40: 0 | AB40: 1 | AC40: 9 | AD40: 0 | AE40: 0 | AF40: 0 | AG40: 0 | AH40: =IF('Simulador Valora'!$V$40=1,'Simulador Valora'!$AD$69,IF('Simulador Valora'!$V$40=3,'Simulador Valora'!$AI$69,'Simulador Valora'!$AN$69)) -> 0.12 | AI40: 0 | AJ40: 0 | AK40: 0 | AL40: 0 | AM40: 0 | AN40: 0 | AP40: =IF(AJ40<=0,0,IF('Simulador Valora'!$X$73=1,0,AJ40*'Simulador Valora'!$X$76))+IF(AJ40<=0,0,IF('Simulador Valora'!$V$40=1,'Simulador Valora'!$L$52,IF('Simulador Valora'!$V$40=3,'Simulador Valora'!$I$52,IF('Simulador Valora'!$V$40=4,'Simulador Valora'!$E$52)))) -> 0 | AR40: 0 | AS40: 0 | AU40: 0 | AV40: 21
A41: 22 | B41: 0 | D41: =IF(B41+F41-D40<=0,B41+F41,IF(A41=$B$10,$F$10,IF(A41=$B$11,$F$11,IF(A41=$B$12,$F$12,IF(A41=$B$13,$F$13,IF(A41=$B$14,$F$14,IF(AND('Simulador Valora'!$AE$45=2,L40=0),D40*(1+Z41),IF($AO$3=2,B41*AI41,D40*(1+Z41))))))))) -> 0 | F41: 0 | H41: 0 | J41: =IF(B41-H41=0,0,J39) -> 0 | N41: =IF(OR('Simulador Valora'!$T$65=1,'Simulador Valora'!$T$65=3),0,L41*'Simulador Valora'!$T$66*'Simulador Valora'!$U$64) -> 0 | P41: 0 | R41: 0 | T41: =IF(B41<=0,0,IF('Simulador Valora'!$X$73=1,0,B41*'Simulador Valora'!$X$76)) -> 0 | V41: =IF(B41<=0,0,IF('Simulador Valora'!$V$40=1,'Simulador Valora'!$L$52,IF('Simulador Valora'!$V$40=3,'Simulador Valora'!$I$52,IF('Simulador Valora'!$V$40=4,'Simulador Valora'!$E$52)))) -> 0 | X41: 0 | AB41: 1 | AC41: 10 | AD41: 0 | AE41: 0 | AF41: 0 | AG41: 0 | AH41: =IF('Simulador Valora'!$V$40=1,'Simulador Valora'!$AD$69,IF('Simulador Valora'!$V$40=3,'Simulador Valora'!$AI$69,'Simulador Valora'!$AN$69)) -> 0.12 | AI41: 0 | AJ41: 0 | AK41: 0 | AL41: 0 | AM41: 0 | AN41: 0 | AP41: =IF(AJ41<=0,0,IF('Simulador Valora'!$X$73=1,0,AJ41*'Simulador Valora'!$X$76))+IF(AJ41<=0,0,IF('Simulador Valora'!$V$40=1,'Simulador Valora'!$L$52,IF('Simulador Valora'!$V$40=3,'Simulador Valora'!$I$52,IF('Simulador Valora'!$V$40=4,'Simulador Valora'!$E$52)))) -> 0 | AR41: 0 | AS41: 0 | AU41: 0 | AV41: 22
A42: 23 | B42: 0 | D42: =IF(B42+F42-D41<=0,B42+F42,IF(A42=$B$10,$F$10,IF(A42=$B$11,$F$11,IF(A42=$B$12,$F$12,IF(A42=$B$13,$F$13,IF(A42=$B$14,$F$14,IF(AND('Simulador Valora'!$AE$45=2,L41=0),D41*(1+Z42),IF($AO$3=2,B42*AI42,D41*(1+Z42))))))))) -> 0 | F42: 0 | H42: 0 | N42: =IF(OR('Simulador Valora'!$T$65=1,'Simulador Valora'!$T$65=3),0,L42*'Simulador Valora'!$T$66*'Simulador Valora'!$U$64) -> 0 | P42: 0 | R42: 0 | T42: =IF(B42<=0,0,IF('Simulador Valora'!$X$73=1,0,B42*'Simulador Valora'!$X$76)) -> 0 | V42: =IF(B42<=0,0,IF('Simulador Valora'!$V$40=1,'Simulador Valora'!$L$52,IF('Simulador Valora'!$V$40=3,'Simulador Valora'!$I$52,IF('Simulador Valora'!$V$40=4,'Simulador Valora'!$E$52)))) -> 0 | X42: 0 | AB42: 1 | AC42: 11 | AD42: 0 | AE42: 0 | AF42: 0 | AG42: 0 | AH42: =IF('Simulador Valora'!$V$40=1,'Simulador Valora'!$AD$69,IF('Simulador Valora'!$V$40=3,'Simulador Valora'!$AI$69,'Simulador Valora'!$AN$69)) -> 0.12 | AI42: 0 | AJ42: 0 | AK42: 0 | AL42: 0 | AM42: 0 | AN42: 0 | AP42: =IF(AJ42<=0,0,IF('Simulador Valora'!$X$73=1,0,AJ42*'Simulador Valora'!$X$76))+IF(AJ42<=0,0,IF('Simulador Valora'!$V$40=1,'Simulador Valora'!$L$52,IF('Simulador Valora'!$V$40=3,'Simulador Valora'!$I$52,IF('Simulador Valora'!$V$40=4,'Simulador Valora'!$E$52)))) -> 0 | AR42: 0 | AS42: 0 | AU42: 0 | AV42: 23
A43: 24 | B43: 0 | D43: =IF(B43+F43-D42<=0,B43+F43,IF(A43=$B$10,$F$10,IF(A43=$B$11,$F$11,IF(A43=$B$12,$F$12,IF(A43=$B$13,$F$13,IF(A43=$B$14,$F$14,IF(AND('Simulador Valora'!$AE$45=2,L42=0),D42*(1+Z43),IF($AO$3=2,B43*AI43,D42*(1+Z43))))))))) -> 0 | F43: 0 | H43: 0 | J43: =IF(B43-H43=0,0,J41) -> 0 | N43: =IF(OR('Simulador Valora'!$T$65=1,'Simulador Valora'!$T$65=3),0,L43*'Simulador Valora'!$T$66*'Simulador Valora'!$U$64) -> 0 | P43: 0 | R43: 0 | T43: =IF(B43<=0,0,IF('Simulador Valora'!$X$73=1,0,B43*'Simulador Valora'!$X$76)) -> 0 | V43: =IF(B43<=0,0,IF('Simulador Valora'!$V$40=1,'Simulador Valora'!$L$52,IF('Simulador Valora'!$V$40=3,'Simulador Valora'!$I$52,IF('Simulador Valora'!$V$40=4,'Simulador Valora'!$E$52)))) -> 0 | X43: 0 | AB43: 2 | AC43: 0 | AD43: 0 | AE43: 0 | AF43: 0 | AG43: 0 | AH43: =IF('Simulador Valora'!$V$40=1,'Simulador Valora'!$AD$69,IF('Simulador Valora'!$V$40=3,'Simulador Valora'!$AI$69,'Simulador Valora'!$AN$69)) -> 0.12 | AI43: 0 | AJ43: 0 | AK43: 0 | AL43: 0 | AM43: 0 | AN43: 0 | AP43: =IF(AJ43<=0,0,IF('Simulador Valora'!$X$73=1,0,AJ43*'Simulador Valora'!$X$76))+IF(AJ43<=0,0,IF('Simulador Valora'!$V$40=1,'Simulador Valora'!$L$52,IF('Simulador Valora'!$V$40=3,'Simulador Valora'!$I$52,IF('Simulador Valora'!$V$40=4,'Simulador Valora'!$E$52)))) -> 0 | AR43: 0 | AS43: 0 | AU43: 0 | AV43: 24
A44: 25 | B44: 0 | D44: =IF(B44+F44-D43<=0,B44+F44,IF(A44=$B$10,$F$10,IF(A44=$B$11,$F$11,IF(A44=$B$12,$F$12,IF(A44=$B$13,$F$13,IF(A44=$B$14,$F$14,IF(AND('Simulador Valora'!$AE$45=2,L43=0),D43*(1+Z44),IF($AO$3=2,B44*AI44,D43*(1+Z44))))))))) -> 0 | F44: 0 | H44: 0 | N44: =IF(OR('Simulador Valora'!$T$65=1,'Simulador Valora'!$T$65=3),0,L44*'Simulador Valora'!$T$66*'Simulador Valora'!$U$64) -> 0 | P44: 0 | R44: 0 | T44: =IF(B44<=0,0,IF('Simulador Valora'!$X$73=1,0,B44*'Simulador Valora'!$X$76)) -> 0 | V44: =IF(B44<=0,0,IF('Simulador Valora'!$V$40=1,'Simulador Valora'!$L$52,IF('Simulador Valora'!$V$40=3,'Simulador Valora'!$I$52,IF('Simulador Valora'!$V$40=4,'Simulador Valora'!$E$52)))) -> 0 | X44: 0 | Z44: =IF(B44<=0,0,'Simulador Valora'!$AF$53) -> 0 | AB44: 2 | AC44: 1 | AD44: 0 | AE44: 0 | AF44: 0 | AG44: 0 | AH44: =IF('Simulador Valora'!$V$40=1,'Simulador Valora'!$AD$69,IF('Simulador Valora'!$V$40=3,'Simulador Valora'!$AI$69,'Simulador Valora'!$AN$69)) -> 0.12 | AI44: 0 | AJ44: 0 | AK44: 0 | AL44: 0 | AM44: 0 | AN44: 0 | AP44: =IF(AJ44<=0,0,IF('Simulador Valora'!$X$73=1,0,AJ44*'Simulador Valora'!$X$76))+IF(AJ44<=0,0,IF('Simulador Valora'!$V$40=1,'Simulador Valora'!$L$52,IF('Simulador Valora'!$V$40=3,'Simulador Valora'!$I$52,IF('Simulador Valora'!$V$40=4,'Simulador Valora'!$E$52)))) -> 0 | AQ44: =IF(AJ44<=0,0,$AQ$32) -> 0 | AR44: 0 | AS44: 0 | AU44: 0 | AV44: 25
A45: 26 | B45: 0 | D45: =IF(B45+F45-D44<=0,B45+F45,IF(A45=$B$10,$F$10,IF(A45=$B$11,$F$11,IF(A45=$B$12,$F$12,IF(A45=$B$13,$F$13,IF(A45=$B$14,$F$14,IF(AND('Simulador Valora'!$AE$45=2,L44=0),D44*(1+Z45),IF($AO$3=2,B45*AI45,D44*(1+Z45))))))))) -> 0 | F45: 0 | H45: 0 | J45: =IF(B45-H45=0,0,J43*(1+(3%))) -> 0 | N45: =IF(OR('Simulador Valora'!$T$65=1,'Simulador Valora'!$T$65=3),0,L45*'Simulador Valora'!$T$66*'Simulador Valora'!$U$64) -> 0 | P45: 0 | R45: 0 | T45: =IF(B45<=0,0,IF('Simulador Valora'!$X$73=1,0,B45*'Simulador Valora'!$X$76)) -> 0 | V45: =IF(B45<=0,0,IF('Simulador Valora'!$V$40=1,'Simulador Valora'!$L$52,IF('Simulador Valora'!$V$40=3,'Simulador Valora'!$I$52,IF('Simulador Valora'!$V$40=4,'Simulador Valora'!$E$52)))) -> 0 | X45: 0 | AB45: 2 | AC45: 2 | AD45: 0 | AE45: 0 | AF45: 0 | AG45: 0 | AH45: =IF('Simulador Valora'!$V$40=1,'Simulador Valora'!$AD$69,IF('Simulador Valora'!$V$40=3,'Simulador Valora'!$AI$69,'Simulador Valora'!$AN$69)) -> 0.12 | AI45: 0 | AJ45: 0 | AK45: 0 | AL45: 0 | AM45: 0 | AN45: 0 | AP45: =IF(AJ45<=0,0,IF('Simulador Valora'!$X$73=1,0,AJ45*'Simulador Valora'!$X$76))+IF(AJ45<=0,0,IF('Simulador Valora'!$V$40=1,'Simulador Valora'!$L$52,IF('Simulador Valora'!$V$40=3,'Simulador Valora'!$I$52,IF('Simulador Valora'!$V$40=4,'Simulador Valora'!$E$52)))) -> 0 | AR45: 0 | AS45: 0 | AU45: 0 | AV45: 26
A46: 27 | B46: 0 | D46: =IF(B46+F46-D45<=0,B46+F46,IF(A46=$B$10,$F$10,IF(A46=$B$11,$F$11,IF(A46=$B$12,$F$12,IF(A46=$B$13,$F$13,IF(A46=$B$14,$F$14,IF(AND('Simulador Valora'!$AE$45=2,L45=0),D45*(1+Z46),IF($AO$3=2,B46*AI46,D45*(1+Z46))))))))) -> 0 | F46: 0 | H46: 0 | N46: =IF(OR('Simulador Valora'!$T$65=1,'Simulador Valora'!$T$65=3),0,L46*'Simulador Valora'!$T$66*'Simulador Valora'!$U$64) -> 0 | P46: 0 | R46: 0 | T46: =IF(B46<=0,0,IF('Simulador Valora'!$X$73=1,0,B46*'Simulador Valora'!$X$76)) -> 0 | V46: =IF(B46<=0,0,IF('Simulador Valora'!$V$40=1,'Simulador Valora'!$L$52,IF('Simulador Valora'!$V$40=3,'Simulador Valora'!$I$52,IF('Simulador Valora'!$V$40=4,'Simulador Valora'!$E$52)))) -> 0 | X46: 0 | AB46: 2 | AC46: 3 | AD46: 0 | AE46: 0 | AF46: 0 | AG46: 0 | AH46: =IF('Simulador Valora'!$V$40=1,'Simulador Valora'!$AD$69,IF('Simulador Valora'!$V$40=3,'Simulador Valora'!$AI$69,'Simulador Valora'!$AN$69)) -> 0.12 | AI46: 0 | AJ46: 0 | AK46: 0 | AL46: 0 | AM46: 0 | AN46: 0 | AP46: =IF(AJ46<=0,0,IF('Simulador Valora'!$X$73=1,0,AJ46*'Simulador Valora'!$X$76))+IF(AJ46<=0,0,IF('Simulador Valora'!$V$40=1,'Simulador Valora'!$L$52,IF('Simulador Valora'!$V$40=3,'Simulador Valora'!$I$52,IF('Simulador Valora'!$V$40=4,'Simulador Valora'!$E$52)))) -> 0 | AR46: 0 | AS46: 0 | AU46: 0 | AV46: 27
A47: 28 | B47: 0 | D47: =IF(B47+F47-D46<=0,B47+F47,IF(A47=$B$10,$F$10,IF(A47=$B$11,$F$11,IF(A47=$B$12,$F$12,IF(A47=$B$13,$F$13,IF(A47=$B$14,$F$14,IF(AND('Simulador Valora'!$AE$45=2,L46=0),D46*(1+Z47),IF($AO$3=2,B47*AI47,D46*(1+Z47))))))))) -> 0 | F47: 0 | H47: 0 | J47: =IF(B47-H47=0,0,J45) -> 0 | N47: =IF(OR('Simulador Valora'!$T$65=1,'Simulador Valora'!$T$65=3),0,L47*'Simulador Valora'!$T$66*'Simulador Valora'!$U$64) -> 0 | P47: 0 | R47: 0 | T47: =IF(B47<=0,0,IF('Simulador Valora'!$X$73=1,0,B47*'Simulador Valora'!$X$76)) -> 0 | V47: =IF(B47<=0,0,IF('Simulador Valora'!$V$40=1,'Simulador Valora'!$L$52,IF('Simulador Valora'!$V$40=3,'Simulador Valora'!$I$52,IF('Simulador Valora'!$V$40=4,'Simulador Valora'!$E$52)))) -> 0 | X47: 0 | AB47: 2 | AC47: 4 | AD47: 0 | AE47: 0 | AF47: 0 | AG47: 0 | AH47: =IF('Simulador Valora'!$V$40=1,'Simulador Valora'!$AD$69,IF('Simulador Valora'!$V$40=3,'Simulador Valora'!$AI$69,'Simulador Valora'!$AN$69)) -> 0.12 | AI47: 0 | AJ47: 0 | AK47: 0 | AL47: 0 | AM47: 0 | AN47: 0 | AP47: =IF(AJ47<=0,0,IF('Simulador Valora'!$X$73=1,0,AJ47*'Simulador Valora'!$X$76))+IF(AJ47<=0,0,IF('Simulador Valora'!$V$40=1,'Simulador Valora'!$L$52,IF('Simulador Valora'!$V$40=3,'Simulador Valora'!$I$52,IF('Simulador Valora'!$V$40=4,'Simulador Valora'!$E$52)))) -> 0 | AR47: 0 | AS47: 0 | AU47: 0 | AV47: 28
A48: 29 | B48: 0 | D48: =IF(B48+F48-D47<=0,B48+F48,IF(A48=$B$10,$F$10,IF(A48=$B$11,$F$11,IF(A48=$B$12,$F$12,IF(A48=$B$13,$F$13,IF(A48=$B$14,$F$14,IF(AND('Simulador Valora'!$AE$45=2,L47=0),D47*(1+Z48),IF($AO$3=2,B48*AI48,D47*(1+Z48))))))))) -> 0 | F48: 0 | H48: 0 | N48: =IF(OR('Simulador Valora'!$T$65=1,'Simulador Valora'!$T$65=3),0,L48*'Simulador Valora'!$T$66*'Simulador Valora'!$U$64) -> 0 | P48: 0 | R48: 0 | T48: =IF(B48<=0,0,IF('Simulador Valora'!$X$73=1,0,B48*'Simulador Valora'!$X$76)) -> 0 | V48: =IF(B48<=0,0,IF('Simulador Valora'!$V$40=1,'Simulador Valora'!$L$52,IF('Simulador Valora'!$V$40=3,'Simulador Valora'!$I$52,IF('Simulador Valora'!$V$40=4,'Simulador Valora'!$E$52)))) -> 0 | X48: 0 | AB48: 2 | AC48: 5 | AD48: 0 | AE48: 0 | AF48: 0 | AG48: 0 | AH48: =IF('Simulador Valora'!$V$40=1,'Simulador Valora'!$AD$69,IF('Simulador Valora'!$V$40=3,'Simulador Valora'!$AI$69,'Simulador Valora'!$AN$69)) -> 0.12 | AI48: 0 | AJ48: 0 | AK48: 0 | AL48: 0 | AM48: 0 | AN48: 0 | AP48: =IF(AJ48<=0,0,IF('Simulador Valora'!$X$73=1,0,AJ48*'Simulador Valora'!$X$76))+IF(AJ48<=0,0,IF('Simulador Valora'!$V$40=1,'Simulador Valora'!$L$52,IF('Simulador Valora'!$V$40=3,'Simulador Valora'!$I$52,IF('Simulador Valora'!$V$40=4,'Simulador Valora'!$E$52)))) -> 0 | AR48: 0 | AS48: 0 | AU48: 0 | AV48: 29
A49: 30 | B49: 0 | D49: =IF(B49+F49-D48<=0,B49+F49,IF(A49=$B$10,$F$10,IF(A49=$B$11,$F$11,IF(A49=$B$12,$F$12,IF(A49=$B$13,$F$13,IF(A49=$B$14,$F$14,IF(AND('Simulador Valora'!$AE$45=2,L48=0),D48*(1+Z49),IF($AO$3=2,B49*AI49,D48*(1+Z49))))))))) -> 0 | F49: 0 | H49: 0 | J49: =IF(B49-H49=0,0,J47) -> 0 | N49: =IF(OR('Simulador Valora'!$T$65=1,'Simulador Valora'!$T$65=3),0,L49*'Simulador Valora'!$T$66*'Simulador Valora'!$U$64) -> 0 | P49: 0 | R49: 0 | T49: =IF(B49<=0,0,IF('Simulador Valora'!$X$73=1,0,B49*'Simulador Valora'!$X$76)) -> 0 | V49: =IF(B49<=0,0,IF('Simulador Valora'!$V$40=1,'Simulador Valora'!$L$52,IF('Simulador Valora'!$V$40=3,'Simulador Valora'!$I$52,IF('Simulador Valora'!$V$40=4,'Simulador Valora'!$E$52)))) -> 0 | X49: 0 | AB49: 2 | AC49: 6 | AD49: 0 | AE49: 0 | AF49: 0 | AG49: 0 | AH49: =IF('Simulador Valora'!$V$40=1,'Simulador Valora'!$AD$69,IF('Simulador Valora'!$V$40=3,'Simulador Valora'!$AI$69,'Simulador Valora'!$AN$69)) -> 0.12 | AI49: 0 | AJ49: 0 | AK49: 0 | AL49: 0 | AM49: 0 | AN49: 0 | AP49: =IF(AJ49<=0,0,IF('Simulador Valora'!$X$73=1,0,AJ49*'Simulador Valora'!$X$76))+IF(AJ49<=0,0,IF('Simulador Valora'!$V$40=1,'Simulador Valora'!$L$52,IF('Simulador Valora'!$V$40=3,'Simulador Valora'!$I$52,IF('Simulador Valora'!$V$40=4,'Simulador Valora'!$E$52)))) -> 0 | AR49: 0 | AS49: 0 | AU49: 0 | AV49: 30
A50: 31 | B50: 0 | D50: =IF(B50+F50-D49<=0,B50+F50,IF(A50=$B$10,$F$10,IF(A50=$B$11,$F$11,IF(A50=$B$12,$F$12,IF(A50=$B$13,$F$13,IF(A50=$B$14,$F$14,IF(AND('Simulador Valora'!$AE$45=2,L49=0),D49*(1+Z50),IF($AO$3=2,B50*AI50,D49*(1+Z50))))))))) -> 0 | F50: 0 | H50: 0 | N50: =IF(OR('Simulador Valora'!$T$65=1,'Simulador Valora'!$T$65=3),0,L50*'Simulador Valora'!$T$66*'Simulador Valora'!$U$64) -> 0 | P50: 0 | R50: 0 | T50: =IF(B50<=0,0,IF('Simulador Valora'!$X$73=1,0,B50*'Simulador Valora'!$X$76)) -> 0 | V50: =IF(B50<=0,0,IF('Simulador Valora'!$V$40=1,'Simulador Valora'!$L$52,IF('Simulador Valora'!$V$40=3,'Simulador Valora'!$I$52,IF('Simulador Valora'!$V$40=4,'Simulador Valora'!$E$52)))) -> 0 | X50: 0 | AB50: 2 | AC50: 7 | AD50: 0 | AE50: 0 | AF50: 0 | AG50: 0 | AH50: =IF('Simulador Valora'!$V$40=1,'Simulador Valora'!$AD$69,IF('Simulador Valora'!$V$40=3,'Simulador Valora'!$AI$69,'Simulador Valora'!$AN$69)) -> 0.12 | AI50: 0 | AJ50: 0 | AK50: 0 | AL50: 0 | AM50: 0 | AN50: 0 | AP50: =IF(AJ50<=0,0,IF('Simulador Valora'!$X$73=1,0,AJ50*'Simulador Valora'!$X$76))+IF(AJ50<=0,0,IF('Simulador Valora'!$V$40=1,'Simulador Valora'!$L$52,IF('Simulador Valora'!$V$40=3,'Simulador Valora'!$I$52,IF('Simulador Valora'!$V$40=4,'Simulador Valora'!$E$52)))) -> 0 | AR50: 0 | AS50: 0 | AU50: 0 | AV50: 31
A51: 32 | B51: 0 | D51: =IF(B51+F51-D50<=0,B51+F51,IF(A51=$B$10,$F$10,IF(A51=$B$11,$F$11,IF(A51=$B$12,$F$12,IF(A51=$B$13,$F$13,IF(A51=$B$14,$F$14,IF(AND('Simulador Valora'!$AE$45=2,L50=0),D50*(1+Z51),IF($AO$3=2,B51*AI51,D50*(1+Z51))))))))) -> 0 | F51: 0 | H51: 0 | J51: =IF(B51-H51=0,0,J49) -> 0 | N51: =IF(OR('Simulador Valora'!$T$65=1,'Simulador Valora'!$T$65=3),0,L51*'Simulador Valora'!$T$66*'Simulador Valora'!$U$64) -> 0 | P51: 0 | R51: 0 | T51: =IF(B51<=0,0,IF('Simulador Valora'!$X$73=1,0,B51*'Simulador Valora'!$X$76)) -> 0 | V51: =IF(B51<=0,0,IF('Simulador Valora'!$V$40=1,'Simulador Valora'!$L$52,IF('Simulador Valora'!$V$40=3,'Simulador Valora'!$I$52,IF('Simulador Valora'!$V$40=4,'Simulador Valora'!$E$52)))) -> 0 | X51: 0 | AB51: 2 | AC51: 8 | AD51: 0 | AE51: 0 | AF51: 0 | AG51: 0 | AH51: =IF('Simulador Valora'!$V$40=1,'Simulador Valora'!$AD$69,IF('Simulador Valora'!$V$40=3,'Simulador Valora'!$AI$69,'Simulador Valora'!$AN$69)) -> 0.12 | AI51: 0 | AJ51: 0 | AK51: 0 | AL51: 0 | AM51: 0 | AN51: 0 | AP51: =IF(AJ51<=0,0,IF('Simulador Valora'!$X$73=1,0,AJ51*'Simulador Valora'!$X$76))+IF(AJ51<=0,0,IF('Simulador Valora'!$V$40=1,'Simulador Valora'!$L$52,IF('Simulador Valora'!$V$40=3,'Simulador Valora'!$I$52,IF('Simulador Valora'!$V$40=4,'Simulador Valora'!$E$52)))) -> 0 | AR51: 0 | AS51: 0 | AU51: 0 | AV51: 32
A52: 33 | B52: 0 | D52: =IF(B52+F52-D51<=0,B52+F52,IF(A52=$B$10,$F$10,IF(A52=$B$11,$F$11,IF(A52=$B$12,$F$12,IF(A52=$B$13,$F$13,IF(A52=$B$14,$F$14,IF(AND('Simulador Valora'!$AE$45=2,L51=0),D51*(1+Z52),IF($AO$3=2,B52*AI52,D51*(1+Z52))))))))) -> 0 | F52: 0 | H52: 0 | N52: =IF(OR('Simulador Valora'!$T$65=1,'Simulador Valora'!$T$65=3),0,L52*'Simulador Valora'!$T$66*'Simulador Valora'!$U$64) -> 0 | P52: 0 | R52: 0 | T52: =IF(B52<=0,0,IF('Simulador Valora'!$X$73=1,0,B52*'Simulador Valora'!$X$76)) -> 0 | V52: =IF(B52<=0,0,IF('Simulador Valora'!$V$40=1,'Simulador Valora'!$L$52,IF('Simulador Valora'!$V$40=3,'Simulador Valora'!$I$52,IF('Simulador Valora'!$V$40=4,'Simulador Valora'!$E$52)))) -> 0 | X52: 0 | AB52: 2 | AC52: 9 | AD52: 0 | AE52: 0 | AF52: 0 | AG52: 0 | AH52: =IF('Simulador Valora'!$V$40=1,'Simulador Valora'!$AD$69,IF('Simulador Valora'!$V$40=3,'Simulador Valora'!$AI$69,'Simulador Valora'!$AN$69)) -> 0.12 | AI52: 0 | AJ52: 0 | AK52: 0 | AL52: 0 | AM52: 0 | AN52: 0 | AP52: =IF(AJ52<=0,0,IF('Simulador Valora'!$X$73=1,0,AJ52*'Simulador Valora'!$X$76))+IF(AJ52<=0,0,IF('Simulador Valora'!$V$40=1,'Simulador Valora'!$L$52,IF('Simulador Valora'!$V$40=3,'Simulador Valora'!$I$52,IF('Simulador Valora'!$V$40=4,'Simulador Valora'!$E$52)))) -> 0 | AR52: 0 | AS52: 0 | AU52: 0 | AV52: 33
A53: 34 | B53: 0 | D53: =IF(B53+F53-D52<=0,B53+F53,IF(A53=$B$10,$F$10,IF(A53=$B$11,$F$11,IF(A53=$B$12,$F$12,IF(A53=$B$13,$F$13,IF(A53=$B$14,$F$14,IF(AND('Simulador Valora'!$AE$45=2,L52=0),D52*(1+Z53),IF($AO$3=2,B53*AI53,D52*(1+Z53))))))))) -> 0 | F53: 0 | H53: 0 | J53: =IF(B53-H53=0,0,J51) -> 0 | N53: =IF(OR('Simulador Valora'!$T$65=1,'Simulador Valora'!$T$65=3),0,L53*'Simulador Valora'!$T$66*'Simulador Valora'!$U$64) -> 0 | P53: 0 | R53: 0 | T53: =IF(B53<=0,0,IF('Simulador Valora'!$X$73=1,0,B53*'Simulador Valora'!$X$76)) -> 0 | V53: =IF(B53<=0,0,IF('Simulador Valora'!$V$40=1,'Simulador Valora'!$L$52,IF('Simulador Valora'!$V$40=3,'Simulador Valora'!$I$52,IF('Simulador Valora'!$V$40=4,'Simulador Valora'!$E$52)))) -> 0 | X53: 0 | AB53: 2 | AC53: 10 | AD53: 0 | AE53: 0 | AF53: 0 | AG53: 0 | AH53: =IF('Simulador Valora'!$V$40=1,'Simulador Valora'!$AD$69,IF('Simulador Valora'!$V$40=3,'Simulador Valora'!$AI$69,'Simulador Valora'!$AN$69)) -> 0.12 | AI53: 0 | AJ53: 0 | AK53: 0 | AL53: 0 | AM53: 0 | AN53: 0 | AP53: =IF(AJ53<=0,0,IF('Simulador Valora'!$X$73=1,0,AJ53*'Simulador Valora'!$X$76))+IF(AJ53<=0,0,IF('Simulador Valora'!$V$40=1,'Simulador Valora'!$L$52,IF('Simulador Valora'!$V$40=3,'Simulador Valora'!$I$52,IF('Simulador Valora'!$V$40=4,'Simulador Valora'!$E$52)))) -> 0 | AR53: 0 | AS53: 0 | AU53: 0 | AV53: 34
A54: 35 | B54: 0 | D54: =IF(B54+F54-D53<=0,B54+F54,IF(A54=$B$10,$F$10,IF(A54=$B$11,$F$11,IF(A54=$B$12,$F$12,IF(A54=$B$13,$F$13,IF(A54=$B$14,$F$14,IF(AND('Simulador Valora'!$AE$45=2,L53=0),D53*(1+Z54),IF($AO$3=2,B54*AI54,D53*(1+Z54))))))))) -> 0 | F54: 0 | H54: 0 | N54: =IF(OR('Simulador Valora'!$T$65=1,'Simulador Valora'!$T$65=3),0,L54*'Simulador Valora'!$T$66*'Simulador Valora'!$U$64) -> 0 | P54: 0 | R54: 0 | T54: =IF(B54<=0,0,IF('Simulador Valora'!$X$73=1,0,B54*'Simulador Valora'!$X$76)) -> 0 | V54: =IF(B54<=0,0,IF('Simulador Valora'!$V$40=1,'Simulador Valora'!$L$52,IF('Simulador Valora'!$V$40=3,'Simulador Valora'!$I$52,IF('Simulador Valora'!$V$40=4,'Simulador Valora'!$E$52)))) -> 0 | X54: 0 | AB54: 2 | AC54: 11 | AD54: 0 | AE54: 0 | AF54: 0 | AG54: 0 | AH54: =IF('Simulador Valora'!$V$40=1,'Simulador Valora'!$AD$69,IF('Simulador Valora'!$V$40=3,'Simulador Valora'!$AI$69,'Simulador Valora'!$AN$69)) -> 0.12 | AI54: 0 | AJ54: 0 | AK54: 0 | AL54: 0 | AM54: 0 | AN54: 0 | AP54: =IF(AJ54<=0,0,IF('Simulador Valora'!$X$73=1,0,AJ54*'Simulador Valora'!$X$76))+IF(AJ54<=0,0,IF('Simulador Valora'!$V$40=1,'Simulador Valora'!$L$52,IF('Simulador Valora'!$V$40=3,'Simulador Valora'!$I$52,IF('Simulador Valora'!$V$40=4,'Simulador Valora'!$E$52)))) -> 0 | AR54: 0 | AS54: 0 | AU54: 0 | AV54: 35
A55: 36 | B55: 0 | D55: =IF(B55+F55-D54<=0,B55+F55,IF(A55=$B$10,$F$10,IF(A55=$B$11,$F$11,IF(A55=$B$12,$F$12,IF(A55=$B$13,$F$13,IF(A55=$B$14,$F$14,IF(AND('Simulador Valora'!$AE$45=2,L54=0),D54*(1+Z55),IF($AO$3=2,B55*AI55,D54*(1+Z55))))))))) -> 0 | F55: 0 | H55: 0 | J55: =IF(B55-H55=0,0,J53) -> 0 | N55: =IF(OR('Simulador Valora'!$T$65=1,'Simulador Valora'!$T$65=3),0,L55*'Simulador Valora'!$T$66*'Simulador Valora'!$U$64) -> 0 | P55: 0 | R55: 0 | T55: =IF(B55<=0,0,IF('Simulador Valora'!$X$73=1,0,B55*'Simulador Valora'!$X$76)) -> 0 | V55: =IF(B55<=0,0,IF('Simulador Valora'!$V$40=1,'Simulador Valora'!$L$52,IF('Simulador Valora'!$V$40=3,'Simulador Valora'!$I$52,IF('Simulador Valora'!$V$40=4,'Simulador Valora'!$E$52)))) -> 0 | X55: 0 | AB55: 3 | AC55: 0 | AD55: 0 | AE55: 0 | AF55: 0 | AG55: 0 | AH55: =IF('Simulador Valora'!$V$40=1,'Simulador Valora'!$AD$69,IF('Simulador Valora'!$V$40=3,'Simulador Valora'!$AI$69,'Simulador Valora'!$AN$69)) -> 0.12 | AI55: 0 | AJ55: 0 | AK55: 0 | AL55: 0 | AM55: 0 | AN55: 0 | AP55: =IF(AJ55<=0,0,IF('Simulador Valora'!$X$73=1,0,AJ55*'Simulador Valora'!$X$76))+IF(AJ55<=0,0,IF('Simulador Valora'!$V$40=1,'Simulador Valora'!$L$52,IF('Simulador Valora'!$V$40=3,'Simulador Valora'!$I$52,IF('Simulador Valora'!$V$40=4,'Simulador Valora'!$E$52)))) -> 0 | AR55: 0 | AS55: 0 | AU55: 0 | AV55: 36
A56: 37 | B56: 0 | D56: =IF(B56+F56-D55<=0,B56+F56,IF(A56=$B$10,$F$10,IF(A56=$B$11,$F$11,IF(A56=$B$12,$F$12,IF(A56=$B$13,$F$13,IF(A56=$B$14,$F$14,IF(AND('Simulador Valora'!$AE$45=2,L55=0),D55*(1+Z56),IF($AO$3=2,B56*AI56,D55*(1+Z56))))))))) -> 0 | F56: 0 | H56: 0 | N56: =IF(OR('Simulador Valora'!$T$65=1,'Simulador Valora'!$T$65=3),0,L56*'Simulador Valora'!$T$66*'Simulador Valora'!$U$64) -> 0 | P56: 0 | R56: 0 | T56: =IF(B56<=0,0,IF('Simulador Valora'!$X$73=1,0,B56*'Simulador Valora'!$X$76)) -> 0 | V56: =IF(B56<=0,0,IF('Simulador Valora'!$V$40=1,'Simulador Valora'!$L$52,IF('Simulador Valora'!$V$40=3,'Simulador Valora'!$I$52,IF('Simulador Valora'!$V$40=4,'Simulador Valora'!$E$52)))) -> 0 | X56: 0 | Z56: =IF(B56<=0,0,'Simulador Valora'!$AF$53) -> 0 | AB56: 3 | AC56: 1 | AD56: 0 | AE56: 0 | AF56: 0 | AG56: 0 | AH56: =IF(AH55=$AG$4,AH55,IF(AH55-0.25%<=$AG$4,$AG$4,AH55-0.25%)) -> 0.12 | AI56: 0 | AJ56: 0 | AK56: 0 | AL56: 0 | AM56: 0 | AN56: 0 | AP56: =IF(AJ56<=0,0,IF('Simulador Valora'!$X$73=1,0,AJ56*'Simulador Valora'!$X$76))+IF(AJ56<=0,0,IF('Simulador Valora'!$V$40=1,'Simulador Valora'!$L$52,IF('Simulador Valora'!$V$40=3,'Simulador Valora'!$I$52,IF('Simulador Valora'!$V$40=4,'Simulador Valora'!$E$52)))) -> 0 | AQ56: =IF(AJ56<=0,0,$AQ$32) -> 0 | AR56: 0 | AS56: 0 | AU56: 0 | AV56: 37
A57: 38 | B57: 0 | D57: =IF(B57+F57-D56<=0,B57+F57,IF(A57=$B$10,$F$10,IF(A57=$B$11,$F$11,IF(A57=$B$12,$F$12,IF(A57=$B$13,$F$13,IF(A57=$B$14,$F$14,IF(AND('Simulador Valora'!$AE$45=2,L56=0),D56*(1+Z57),IF($AO$3=2,B57*AI57,D56*(1+Z57))))))))) -> 0 | F57: 0 | H57: 0 | J57: =IF(B57-H57=0,0,J55*(1+(3%))) -> 0 | N57: =IF(OR('Simulador Valora'!$T$65=1,'Simulador Valora'!$T$65=3),0,L57*'Simulador Valora'!$T$66*'Simulador Valora'!$U$64) -> 0 | P57: 0 | R57: 0 | T57: =IF(B57<=0,0,IF('Simulador Valora'!$X$73=1,0,B57*'Simulador Valora'!$X$76)) -> 0 | V57: =IF(B57<=0,0,IF('Simulador Valora'!$V$40=1,'Simulador Valora'!$L$52,IF('Simulador Valora'!$V$40=3,'Simulador Valora'!$I$52,IF('Simulador Valora'!$V$40=4,'Simulador Valora'!$E$52)))) -> 0 | X57: 0 | AB57: 3 | AC57: 2 | AD57: 0 | AE57: 0 | AF57: 0 | AG57: 0 | AH57: =AH56 -> 0.12 | AI57: 0 | AJ57: 0 | AK57: 0 | AL57: 0 | AM57: 0 | AN57: 0 | AP57: =IF(AJ57<=0,0,IF('Simulador Valora'!$X$73=1,0,AJ57*'Simulador Valora'!$X$76))+IF(AJ57<=0,0,IF('Simulador Valora'!$V$40=1,'Simulador Valora'!$L$52,IF('Simulador Valora'!$V$40=3,'Simulador Valora'!$I$52,IF('Simulador Valora'!$V$40=4,'Simulador Valora'!$E$52)))) -> 0 | AR57: 0 | AS57: 0 | AU57: 0 | AV57: 38
A58: 39 | B58: 0 | D58: =IF(B58+F58-D57<=0,B58+F58,IF(A58=$B$10,$F$10,IF(A58=$B$11,$F$11,IF(A58=$B$12,$F$12,IF(A58=$B$13,$F$13,IF(A58=$B$14,$F$14,IF(AND('Simulador Valora'!$AE$45=2,L57=0),D57*(1+Z58),IF($AO$3=2,B58*AI58,D57*(1+Z58))))))))) -> 0 | F58: 0 | H58: 0 | N58: =IF(OR('Simulador Valora'!$T$65=1,'Simulador Valora'!$T$65=3),0,L58*'Simulador Valora'!$T$66*'Simulador Valora'!$U$64) -> 0 | P58: 0 | R58: 0 | T58: =IF(B58<=0,0,IF('Simulador Valora'!$X$73=1,0,B58*'Simulador Valora'!$X$76)) -> 0 | V58: =IF(B58<=0,0,IF('Simulador Valora'!$V$40=1,'Simulador Valora'!$L$52,IF('Simulador Valora'!$V$40=3,'Simulador Valora'!$I$52,IF('Simulador Valora'!$V$40=4,'Simulador Valora'!$E$52)))) -> 0 | X58: 0 | AB58: 3 | AC58: 3 | AD58: 0 | AE58: 0 | AF58: 0 | AG58: 0 | AH58: =AH57 -> 0.12 | AI58: 0 | AJ58: 0 | AK58: 0 | AL58: 0 | AM58: 0 | AN58: 0 | AP58: =IF(AJ58<=0,0,IF('Simulador Valora'!$X$73=1,0,AJ58*'Simulador Valora'!$X$76))+IF(AJ58<=0,0,IF('Simulador Valora'!$V$40=1,'Simulador Valora'!$L$52,IF('Simulador Valora'!$V$40=3,'Simulador Valora'!$I$52,IF('Simulador Valora'!$V$40=4,'Simulador Valora'!$E$52)))) -> 0 | AR58: 0 | AS58: 0 | AU58: 0 | AV58: 39
A59: 40 | B59: 0 | D59: =IF(B59+F59-D58<=0,B59+F59,IF(A59=$B$10,$F$10,IF(A59=$B$11,$F$11,IF(A59=$B$12,$F$12,IF(A59=$B$13,$F$13,IF(A59=$B$14,$F$14,IF(AND('Simulador Valora'!$AE$45=2,L58=0),D58*(1+Z59),IF($AO$3=2,B59*AI59,D58*(1+Z59))))))))) -> 0 | F59: 0 | H59: 0 | J59: =IF(B59-H59=0,0,J57) -> 0 | N59: =IF(OR('Simulador Valora'!$T$65=1,'Simulador Valora'!$T$65=3),0,L59*'Simulador Valora'!$T$66*'Simulador Valora'!$U$64) -> 0 | P59: 0 | R59: 0 | T59: =IF(B59<=0,0,IF('Simulador Valora'!$X$73=1,0,B59*'Simulador Valora'!$X$76)) -> 0 | V59: =IF(B59<=0,0,IF('Simulador Valora'!$V$40=1,'Simulador Valora'!$L$52,IF('Simulador Valora'!$V$40=3,'Simulador Valora'!$I$52,IF('Simulador Valora'!$V$40=4,'Simulador Valora'!$E$52)))) -> 0 | X59: 0 | AB59: 3 | AC59: 4 | AD59: 0 | AE59: 0 | AF59: 0 | AG59: 0 | AH59: 0.12 | AI59: 0 | AJ59: 0 | AK59: 0 | AL59: 0 | AM59: 0 | AN59: 0 | AP59: =IF(AJ59<=0,0,IF('Simulador Valora'!$X$73=1,0,AJ59*'Simulador Valora'!$X$76))+IF(AJ59<=0,0,IF('Simulador Valora'!$V$40=1,'Simulador Valora'!$L$52,IF('Simulador Valora'!$V$40=3,'Simulador Valora'!$I$52,IF('Simulador Valora'!$V$40=4,'Simulador Valora'!$E$52)))) -> 0 | AR59: 0 | AS59: 0 | AU59: 0 | AV59: 40
A60: 41 | B60: 0 | D60: =IF(B60+F60-D59<=0,B60+F60,IF(A60=$B$10,$F$10,IF(A60=$B$11,$F$11,IF(A60=$B$12,$F$12,IF(A60=$B$13,$F$13,IF(A60=$B$14,$F$14,IF(AND('Simulador Valora'!$AE$45=2,L59=0),D59*(1+Z60),IF($AO$3=2,B60*AI60,D59*(1+Z60))))))))) -> 0 | F60: 0 | H60: 0 | N60: =IF(OR('Simulador Valora'!$T$65=1,'Simulador Valora'!$T$65=3),0,L60*'Simulador Valora'!$T$66*'Simulador Valora'!$U$64) -> 0 | P60: 0 | R60: 0 | T60: =IF(B60<=0,0,IF('Simulador Valora'!$X$73=1,0,B60*'Simulador Valora'!$X$76)) -> 0 | V60: =IF(B60<=0,0,IF('Simulador Valora'!$V$40=1,'Simulador Valora'!$L$52,IF('Simulador Valora'!$V$40=3,'Simulador Valora'!$I$52,IF('Simulador Valora'!$V$40=4,'Simulador Valora'!$E$52)))) -> 0 | X60: 0 | AB60: 3 | AC60: 5 | AD60: 0 | AE60: 0 | AF60: 0 | AG60: 0 | AH60: 0.12 | AI60: 0 | AJ60: 0 | AK60: 0 | AL60: 0 | AM60: 0 | AN60: 0 | AP60: =IF(AJ60<=0,0,IF('Simulador Valora'!$X$73=1,0,AJ60*'Simulador Valora'!$X$76))+IF(AJ60<=0,0,IF('Simulador Valora'!$V$40=1,'Simulador Valora'!$L$52,IF('Simulador Valora'!$V$40=3,'Simulador Valora'!$I$52,IF('Simulador Valora'!$V$40=4,'Simulador Valora'!$E$52)))) -> 0 | AR60: 0 | AS60: 0 | AU60: 0 | AV60: 41
A61: 42 | B61: 0 | D61: =IF(B61+F61-D60<=0,B61+F61,IF(A61=$B$10,$F$10,IF(A61=$B$11,$F$11,IF(A61=$B$12,$F$12,IF(A61=$B$13,$F$13,IF(A61=$B$14,$F$14,IF(AND('Simulador Valora'!$AE$45=2,L60=0),D60*(1+Z61),IF($AO$3=2,B61*AI61,D60*(1+Z61))))))))) -> 0 | F61: 0 | H61: 0 | J61: =IF(B61-H61=0,0,J59) -> 0 | N61: =IF(OR('Simulador Valora'!$T$65=1,'Simulador Valora'!$T$65=3),0,L61*'Simulador Valora'!$T$66*'Simulador Valora'!$U$64) -> 0 | P61: 0 | R61: 0 | T61: =IF(B61<=0,0,IF('Simulador Valora'!$X$73=1,0,B61*'Simulador Valora'!$X$76)) -> 0 | V61: =IF(B61<=0,0,IF('Simulador Valora'!$V$40=1,'Simulador Valora'!$L$52,IF('Simulador Valora'!$V$40=3,'Simulador Valora'!$I$52,IF('Simulador Valora'!$V$40=4,'Simulador Valora'!$E$52)))) -> 0 | X61: 0 | AB61: 3 | AC61: 6 | AD61: 0 | AE61: 0 | AF61: 0 | AG61: 0 | AH61: 0.12 | AI61: 0 | AJ61: 0 | AK61: 0 | AL61: 0 | AM61: 0 | AN61: 0 | AP61: =IF(AJ61<=0,0,IF('Simulador Valora'!$X$73=1,0,AJ61*'Simulador Valora'!$X$76))+IF(AJ61<=0,0,IF('Simulador Valora'!$V$40=1,'Simulador Valora'!$L$52,IF('Simulador Valora'!$V$40=3,'Simulador Valora'!$I$52,IF('Simulador Valora'!$V$40=4,'Simulador Valora'!$E$52)))) -> 0 | AR61: 0 | AS61: 0 | AU61: 0 | AV61: 42
A62: 43 | B62: 0 | D62: =IF(B62+F62-D61<=0,B62+F62,IF(A62=$B$10,$F$10,IF(A62=$B$11,$F$11,IF(A62=$B$12,$F$12,IF(A62=$B$13,$F$13,IF(A62=$B$14,$F$14,IF(AND('Simulador Valora'!$AE$45=2,L61=0),D61*(1+Z62),IF($AO$3=2,B62*AI62,D61*(1+Z62))))))))) -> 0 | F62: 0 | H62: 0 | N62: =IF(OR('Simulador Valora'!$T$65=1,'Simulador Valora'!$T$65=3),0,L62*'Simulador Valora'!$T$66*'Simulador Valora'!$U$64) -> 0 | P62: 0 | R62: 0 | T62: =IF(B62<=0,0,IF('Simulador Valora'!$X$73=1,0,B62*'Simulador Valora'!$X$76)) -> 0 | V62: =IF(B62<=0,0,IF('Simulador Valora'!$V$40=1,'Simulador Valora'!$L$52,IF('Simulador Valora'!$V$40=3,'Simulador Valora'!$I$52,IF('Simulador Valora'!$V$40=4,'Simulador Valora'!$E$52)))) -> 0 | X62: 0 | AB62: 3 | AC62: 7 | AD62: 0 | AE62: 0 | AF62: 0 | AG62: 0 | AH62: 0.12 | AI62: 0 | AJ62: 0 | AK62: 0 | AL62: 0 | AM62: 0 | AN62: 0 | AP62: =IF(AJ62<=0,0,IF('Simulador Valora'!$X$73=1,0,AJ62*'Simulador Valora'!$X$76))+IF(AJ62<=0,0,IF('Simulador Valora'!$V$40=1,'Simulador Valora'!$L$52,IF('Simulador Valora'!$V$40=3,'Simulador Valora'!$I$52,IF('Simulador Valora'!$V$40=4,'Simulador Valora'!$E$52)))) -> 0 | AR62: 0 | AS62: 0 | AU62: 0 | AV62: 43
A63: 44 | B63: 0 | D63: =IF(B63+F63-D62<=0,B63+F63,IF(A63=$B$10,$F$10,IF(A63=$B$11,$F$11,IF(A63=$B$12,$F$12,IF(A63=$B$13,$F$13,IF(A63=$B$14,$F$14,IF(AND('Simulador Valora'!$AE$45=2,L62=0),D62*(1+Z63),IF($AO$3=2,B63*AI63,D62*(1+Z63))))))))) -> 0 | F63: 0 | H63: 0 | J63: =IF(B63-H63=0,0,J61) -> 0 | N63: =IF(OR('Simulador Valora'!$T$65=1,'Simulador Valora'!$T$65=3),0,L63*'Simulador Valora'!$T$66*'Simulador Valora'!$U$64) -> 0 | P63: 0 | R63: 0 | T63: =IF(B63<=0,0,IF('Simulador Valora'!$X$73=1,0,B63*'Simulador Valora'!$X$76)) -> 0 | V63: =IF(B63<=0,0,IF('Simulador Valora'!$V$40=1,'Simulador Valora'!$L$52,IF('Simulador Valora'!$V$40=3,'Simulador Valora'!$I$52,IF('Simulador Valora'!$V$40=4,'Simulador Valora'!$E$52)))) -> 0 | X63: 0 | AB63: 3 | AC63: 8 | AD63: 0 | AE63: 0 | AF63: 0 | AG63: 0 | AH63: 0.12 | AI63: 0 | AJ63: 0 | AK63: 0 | AL63: 0 | AM63: 0 | AN63: 0 | AP63: =IF(AJ63<=0,0,IF('Simulador Valora'!$X$73=1,0,AJ63*'Simulador Valora'!$X$76))+IF(AJ63<=0,0,IF('Simulador Valora'!$V$40=1,'Simulador Valora'!$L$52,IF('Simulador Valora'!$V$40=3,'Simulador Valora'!$I$52,IF('Simulador Valora'!$V$40=4,'Simulador Valora'!$E$52)))) -> 0 | AR63: 0 | AS63: 0 | AU63: 0 | AV63: 44
A64: 45 | B64: 0 | D64: =IF(B64+F64-D63<=0,B64+F64,IF(A64=$B$10,$F$10,IF(A64=$B$11,$F$11,IF(A64=$B$12,$F$12,IF(A64=$B$13,$F$13,IF(A64=$B$14,$F$14,IF(AND('Simulador Valora'!$AE$45=2,L63=0),D63*(1+Z64),IF($AO$3=2,B64*AI64,D63*(1+Z64))))))))) -> 0 | F64: 0 | H64: 0 | N64: =IF(OR('Simulador Valora'!$T$65=1,'Simulador Valora'!$T$65=3),0,L64*'Simulador Valora'!$T$66*'Simulador Valora'!$U$64) -> 0 | P64: 0 | R64: 0 | T64: =IF(B64<=0,0,IF('Simulador Valora'!$X$73=1,0,B64*'Simulador Valora'!$X$76)) -> 0 | V64: =IF(B64<=0,0,IF('Simulador Valora'!$V$40=1,'Simulador Valora'!$L$52,IF('Simulador Valora'!$V$40=3,'Simulador Valora'!$I$52,IF('Simulador Valora'!$V$40=4,'Simulador Valora'!$E$52)))) -> 0 | X64: 0 | AB64: 3 | AC64: 9 | AD64: 0 | AE64: 0 | AF64: 0 | AG64: 0 | AH64: 0.12 | AI64: 0 | AJ64: 0 | AK64: 0 | AL64: 0 | AM64: 0 | AN64: 0 | AP64: =IF(AJ64<=0,0,IF('Simulador Valora'!$X$73=1,0,AJ64*'Simulador Valora'!$X$76))+IF(AJ64<=0,0,IF('Simulador Valora'!$V$40=1,'Simulador Valora'!$L$52,IF('Simulador Valora'!$V$40=3,'Simulador Valora'!$I$52,IF('Simulador Valora'!$V$40=4,'Simulador Valora'!$E$52)))) -> 0 | AR64: 0 | AS64: 0 | AU64: 0 | AV64: 45
A65: 46 | B65: 0 | D65: =IF(B65+F65-D64<=0,B65+F65,IF(A65=$B$10,$F$10,IF(A65=$B$11,$F$11,IF(A65=$B$12,$F$12,IF(A65=$B$13,$F$13,IF(A65=$B$14,$F$14,IF(AND('Simulador Valora'!$AE$45=2,L64=0),D64*(1+Z65),IF($AO$3=2,B65*AI65,D64*(1+Z65))))))))) -> 0 | F65: 0 | H65: 0 | J65: =IF(B65-H65=0,0,J63) -> 0 | N65: =IF(OR('Simulador Valora'!$T$65=1,'Simulador Valora'!$T$65=3),0,L65*'Simulador Valora'!$T$66*'Simulador Valora'!$U$64) -> 0 | P65: 0 | R65: 0 | T65: =IF(B65<=0,0,IF('Simulador Valora'!$X$73=1,0,B65*'Simulador Valora'!$X$76)) -> 0 | V65: =IF(B65<=0,0,IF('Simulador Valora'!$V$40=1,'Simulador Valora'!$L$52,IF('Simulador Valora'!$V$40=3,'Simulador Valora'!$I$52,IF('Simulador Valora'!$V$40=4,'Simulador Valora'!$E$52)))) -> 0 | X65: 0 | AB65: 3 | AC65: 10 | AD65: 0 | AE65: 0 | AF65: 0 | AG65: 0 | AH65: 0.12 | AI65: 0 | AJ65: 0 | AK65: 0 | AL65: 0 | AM65: 0 | AN65: 0 | AP65: =IF(AJ65<=0,0,IF('Simulador Valora'!$X$73=1,0,AJ65*'Simulador Valora'!$X$76))+IF(AJ65<=0,0,IF('Simulador Valora'!$V$40=1,'Simulador Valora'!$L$52,IF('Simulador Valora'!$V$40=3,'Simulador Valora'!$I$52,IF('Simulador Valora'!$V$40=4,'Simulador Valora'!$E$52)))) -> 0 | AR65: 0 | AS65: 0 | AU65: 0 | AV65: 46
A66: 47 | B66: 0 | D66: =IF(B66+F66-D65<=0,B66+F66,IF(A66=$B$10,$F$10,IF(A66=$B$11,$F$11,IF(A66=$B$12,$F$12,IF(A66=$B$13,$F$13,IF(A66=$B$14,$F$14,IF(AND('Simulador Valora'!$AE$45=2,L65=0),D65*(1+Z66),IF($AO$3=2,B66*AI66,D65*(1+Z66))))))))) -> 0 | F66: 0 | H66: 0 | N66: =IF(OR('Simulador Valora'!$T$65=1,'Simulador Valora'!$T$65=3),0,L66*'Simulador Valora'!$T$66*'Simulador Valora'!$U$64) -> 0 | P66: 0 | R66: 0 | T66: =IF(B66<=0,0,IF('Simulador Valora'!$X$73=1,0,B66*'Simulador Valora'!$X$76)) -> 0 | V66: =IF(B66<=0,0,IF('Simulador Valora'!$V$40=1,'Simulador Valora'!$L$52,IF('Simulador Valora'!$V$40=3,'Simulador Valora'!$I$52,IF('Simulador Valora'!$V$40=4,'Simulador Valora'!$E$52)))) -> 0 | X66: 0 | AB66: 3 | AC66: 11 | AD66: 0 | AE66: 0 | AF66: 0 | AG66: 0 | AH66: 0.12 | AI66: 0 | AJ66: 0 | AK66: 0 | AL66: 0 | AM66: 0 | AN66: 0 | AP66: =IF(AJ66<=0,0,IF('Simulador Valora'!$X$73=1,0,AJ66*'Simulador Valora'!$X$76))+IF(AJ66<=0,0,IF('Simulador Valora'!$V$40=1,'Simulador Valora'!$L$52,IF('Simulador Valora'!$V$40=3,'Simulador Valora'!$I$52,IF('Simulador Valora'!$V$40=4,'Simulador Valora'!$E$52)))) -> 0 | AR66: 0 | AS66: 0 | AU66: 0 | AV66: 47
A67: 48 | B67: 0 | D67: =IF(B67+F67-D66<=0,B67+F67,IF(A67=$B$10,$F$10,IF(A67=$B$11,$F$11,IF(A67=$B$12,$F$12,IF(A67=$B$13,$F$13,IF(A67=$B$14,$F$14,IF(AND('Simulador Valora'!$AE$45=2,L66=0),D66*(1+Z67),IF($AO$3=2,B67*AI67,D66*(1+Z67))))))))) -> 0 | F67: 0 | H67: 0 | J67: =IF(B67-H67=0,0,J65) -> 0 | N67: =IF(OR('Simulador Valora'!$T$65=1,'Simulador Valora'!$T$65=3),0,L67*'Simulador Valora'!$T$66*'Simulador Valora'!$U$64) -> 0 | P67: 0 | R67: 0 | T67: =IF(B67<=0,0,IF('Simulador Valora'!$X$73=1,0,B67*'Simulador Valora'!$X$76)) -> 0 | V67: =IF(B67<=0,0,IF('Simulador Valora'!$V$40=1,'Simulador Valora'!$L$52,IF('Simulador Valora'!$V$40=3,'Simulador Valora'!$I$52,IF('Simulador Valora'!$V$40=4,'Simulador Valora'!$E$52)))) -> 0 | X67: 0 | AB67: 4 | AC67: 0 | AD67: 0 | AE67: 0 | AF67: 0 | AG67: 0 | AH67: 0.12 | AI67: 0 | AJ67: 0 | AK67: 0 | AL67: 0 | AM67: 0 | AN67: 0 | AP67: =IF(AJ67<=0,0,IF('Simulador Valora'!$X$73=1,0,AJ67*'Simulador Valora'!$X$76))+IF(AJ67<=0,0,IF('Simulador Valora'!$V$40=1,'Simulador Valora'!$L$52,IF('Simulador Valora'!$V$40=3,'Simulador Valora'!$I$52,IF('Simulador Valora'!$V$40=4,'Simulador Valora'!$E$52)))) -> 0 | AR67: 0 | AS67: 0 | AU67: 0 | AV67: 48
A68: 49 | B68: 0 | D68: =IF(B68+F68-D67<=0,B68+F68,IF(A68=$B$10,$F$10,IF(A68=$B$11,$F$11,IF(A68=$B$12,$F$12,IF(A68=$B$13,$F$13,IF(A68=$B$14,$F$14,IF(AND('Simulador Valora'!$AE$45=2,L67=0),D67*(1+Z68),IF($AO$3=2,B68*AI68,D67*(1+Z68))))))))) -> 0 | F68: 0 | H68: 0 | N68: =IF(OR('Simulador Valora'!$T$65=1,'Simulador Valora'!$T$65=3),0,L68*'Simulador Valora'!$T$66*'Simulador Valora'!$U$64) -> 0 | P68: 0 | R68: 0 | T68: =IF(B68<=0,0,IF('Simulador Valora'!$X$73=1,0,B68*'Simulador Valora'!$X$76)) -> 0 | V68: =IF(B68<=0,0,IF('Simulador Valora'!$V$40=1,'Simulador Valora'!$L$52,IF('Simulador Valora'!$V$40=3,'Simulador Valora'!$I$52,IF('Simulador Valora'!$V$40=4,'Simulador Valora'!$E$52)))) -> 0 | X68: 0 | Z68: =IF(B68<=0,0,'Simulador Valora'!$AF$53) -> 0 | AB68: 4 | AC68: 1 | AD68: 0 | AE68: 0 | AF68: 0 | AG68: 0 | AH68: =IF(AH67=$AG$4,AH67,IF(AH67-0.25%<=$AG$4,$AG$4,AH67-0.25%)) -> 0.12 | AI68: 0 | AJ68: 0 | AK68: 0 | AL68: 0 | AM68: 0 | AN68: 0 | AP68: =IF(AJ68<=0,0,IF('Simulador Valora'!$X$73=1,0,AJ68*'Simulador Valora'!$X$76))+IF(AJ68<=0,0,IF('Simulador Valora'!$V$40=1,'Simulador Valora'!$L$52,IF('Simulador Valora'!$V$40=3,'Simulador Valora'!$I$52,IF('Simulador Valora'!$V$40=4,'Simulador Valora'!$E$52)))) -> 0 | AQ68: =IF(AJ68<=0,0,$AQ$32) -> 0 | AR68: 0 | AS68: 0 | AU68: 0 | AV68: 49
A69: 50 | B69: 0 | D69: =IF(B69+F69-D68<=0,B69+F69,IF(A69=$B$10,$F$10,IF(A69=$B$11,$F$11,IF(A69=$B$12,$F$12,IF(A69=$B$13,$F$13,IF(A69=$B$14,$F$14,IF(AND('Simulador Valora'!$AE$45=2,L68=0),D68*(1+Z69),IF($AO$3=2,B69*AI69,D68*(1+Z69))))))))) -> 0 | F69: 0 | H69: 0 | J69: =IF(B69-H69=0,0,J67*(1+(3%))) -> 0 | N69: =IF(OR('Simulador Valora'!$T$65=1,'Simulador Valora'!$T$65=3),0,L69*'Simulador Valora'!$T$66*'Simulador Valora'!$U$64) -> 0 | P69: 0 | R69: 0 | T69: =IF(B69<=0,0,IF('Simulador Valora'!$X$73=1,0,B69*'Simulador Valora'!$X$76)) -> 0 | V69: =IF(B69<=0,0,IF('Simulador Valora'!$V$40=1,'Simulador Valora'!$L$52,IF('Simulador Valora'!$V$40=3,'Simulador Valora'!$I$52,IF('Simulador Valora'!$V$40=4,'Simulador Valora'!$E$52)))) -> 0 | X69: 0 | AB69: 4 | AC69: 2 | AD69: 0 | AE69: 0 | AF69: 0 | AG69: 0 | AH69: =AH68 -> 0.12 | AI69: 0 | AJ69: 0 | AK69: 0 | AL69: 0 | AM69: 0 | AN69: 0 | AP69: =IF(AJ69<=0,0,IF('Simulador Valora'!$X$73=1,0,AJ69*'Simulador Valora'!$X$76))+IF(AJ69<=0,0,IF('Simulador Valora'!$V$40=1,'Simulador Valora'!$L$52,IF('Simulador Valora'!$V$40=3,'Simulador Valora'!$I$52,IF('Simulador Valora'!$V$40=4,'Simulador Valora'!$E$52)))) -> 0 | AR69: 0 | AS69: 0 | AU69: 0 | AV69: 50
A70: 51 | B70: 0 | D70: =IF(B70+F70-D69<=0,B70+F70,IF(A70=$B$10,$F$10,IF(A70=$B$11,$F$11,IF(A70=$B$12,$F$12,IF(A70=$B$13,$F$13,IF(A70=$B$14,$F$14,IF(AND('Simulador Valora'!$AE$45=2,L69=0),D69*(1+Z70),IF($AO$3=2,B70*AI70,D69*(1+Z70))))))))) -> 0 | F70: 0 | H70: 0 | N70: =IF(OR('Simulador Valora'!$T$65=1,'Simulador Valora'!$T$65=3),0,L70*'Simulador Valora'!$T$66*'Simulador Valora'!$U$64) -> 0 | P70: 0 | R70: 0 | T70: =IF(B70<=0,0,IF('Simulador Valora'!$X$73=1,0,B70*'Simulador Valora'!$X$76)) -> 0 | V70: =IF(B70<=0,0,IF('Simulador Valora'!$V$40=1,'Simulador Valora'!$L$52,IF('Simulador Valora'!$V$40=3,'Simulador Valora'!$I$52,IF('Simulador Valora'!$V$40=4,'Simulador Valora'!$E$52)))) -> 0 | X70: 0 | AB70: 4 | AC70: 3 | AD70: 0 | AE70: 0 | AF70: 0 | AG70: 0 | AH70: =AH69 -> 0.12 | AI70: 0 | AJ70: 0 | AK70: 0 | AL70: 0 | AM70: 0 | AN70: 0 | AP70: =IF(AJ70<=0,0,IF('Simulador Valora'!$X$73=1,0,AJ70*'Simulador Valora'!$X$76))+IF(AJ70<=0,0,IF('Simulador Valora'!$V$40=1,'Simulador Valora'!$L$52,IF('Simulador Valora'!$V$40=3,'Simulador Valora'!$I$52,IF('Simulador Valora'!$V$40=4,'Simulador Valora'!$E$52)))) -> 0 | AR70: 0 | AS70: 0 | AU70: 0 | AV70: 51
A71: 52 | B71: 0 | D71: =IF(B71+F71-D70<=0,B71+F71,IF(A71=$B$10,$F$10,IF(A71=$B$11,$F$11,IF(A71=$B$12,$F$12,IF(A71=$B$13,$F$13,IF(A71=$B$14,$F$14,IF(AND('Simulador Valora'!$AE$45=2,L70=0),D70*(1+Z71),IF($AO$3=2,B71*AI71,D70*(1+Z71))))))))) -> 0 | F71: 0 | H71: 0 | J71: =IF(B71-H71=0,0,J69) -> 0 | N71: =IF(OR('Simulador Valora'!$T$65=1,'Simulador Valora'!$T$65=3),0,L71*'Simulador Valora'!$T$66*'Simulador Valora'!$U$64) -> 0 | P71: 0 | R71: 0 | T71: =IF(B71<=0,0,IF('Simulador Valora'!$X$73=1,0,B71*'Simulador Valora'!$X$76)) -> 0 | V71: =IF(B71<=0,0,IF('Simulador Valora'!$V$40=1,'Simulador Valora'!$L$52,IF('Simulador Valora'!$V$40=3,'Simulador Valora'!$I$52,IF('Simulador Valora'!$V$40=4,'Simulador Valora'!$E$52)))) -> 0 | X71: 0 | AB71: 4 | AC71: 4 | AD71: 0 | AE71: 0 | AF71: 0 | AG71: 0 | AH71: 0.12 | AI71: 0 | AJ71: 0 | AK71: 0 | AL71: 0 | AM71: 0 | AN71: 0 | AP71: =IF(AJ71<=0,0,IF('Simulador Valora'!$X$73=1,0,AJ71*'Simulador Valora'!$X$76))+IF(AJ71<=0,0,IF('Simulador Valora'!$V$40=1,'Simulador Valora'!$L$52,IF('Simulador Valora'!$V$40=3,'Simulador Valora'!$I$52,IF('Simulador Valora'!$V$40=4,'Simulador Valora'!$E$52)))) -> 0 | AR71: 0 | AS71: 0 | AU71: 0 | AV71: 52
A72: 53 | B72: 0 | D72: =IF(B72+F72-D71<=0,B72+F72,IF(A72=$B$10,$F$10,IF(A72=$B$11,$F$11,IF(A72=$B$12,$F$12,IF(A72=$B$13,$F$13,IF(A72=$B$14,$F$14,IF(AND('Simulador Valora'!$AE$45=2,L71=0),D71*(1+Z72),IF($AO$3=2,B72*AI72,D71*(1+Z72))))))))) -> 0 | F72: 0 | H72: 0 | N72: =IF(OR('Simulador Valora'!$T$65=1,'Simulador Valora'!$T$65=3),0,L72*'Simulador Valora'!$T$66*'Simulador Valora'!$U$64) -> 0 | P72: 0 | R72: 0 | T72: =IF(B72<=0,0,IF('Simulador Valora'!$X$73=1,0,B72*'Simulador Valora'!$X$76)) -> 0 | V72: =IF(B72<=0,0,IF('Simulador Valora'!$V$40=1,'Simulador Valora'!$L$52,IF('Simulador Valora'!$V$40=3,'Simulador Valora'!$I$52,IF('Simulador Valora'!$V$40=4,'Simulador Valora'!$E$52)))) -> 0 | X72: 0 | AB72: 4 | AC72: 5 | AD72: 0 | AE72: 0 | AF72: 0 | AG72: 0 | AH72: 0.12 | AI72: 0 | AJ72: 0 | AK72: 0 | AL72: 0 | AM72: 0 | AN72: 0 | AP72: =IF(AJ72<=0,0,IF('Simulador Valora'!$X$73=1,0,AJ72*'Simulador Valora'!$X$76))+IF(AJ72<=0,0,IF('Simulador Valora'!$V$40=1,'Simulador Valora'!$L$52,IF('Simulador Valora'!$V$40=3,'Simulador Valora'!$I$52,IF('Simulador Valora'!$V$40=4,'Simulador Valora'!$E$52)))) -> 0 | AR72: 0 | AS72: 0 | AU72: 0 | AV72: 53
A73: 54 | B73: 0 | D73: =IF(B73+F73-D72<=0,B73+F73,IF(A73=$B$10,$F$10,IF(A73=$B$11,$F$11,IF(A73=$B$12,$F$12,IF(A73=$B$13,$F$13,IF(A73=$B$14,$F$14,IF(AND('Simulador Valora'!$AE$45=2,L72=0),D72*(1+Z73),IF($AO$3=2,B73*AI73,D72*(1+Z73))))))))) -> 0 | F73: 0 | H73: 0 | J73: =IF(B73-H73=0,0,J71) -> 0 | N73: =IF(OR('Simulador Valora'!$T$65=1,'Simulador Valora'!$T$65=3),0,L73*'Simulador Valora'!$T$66*'Simulador Valora'!$U$64) -> 0 | P73: 0 | R73: 0 | T73: =IF(B73<=0,0,IF('Simulador Valora'!$X$73=1,0,B73*'Simulador Valora'!$X$76)) -> 0 | V73: =IF(B73<=0,0,IF('Simulador Valora'!$V$40=1,'Simulador Valora'!$L$52,IF('Simulador Valora'!$V$40=3,'Simulador Valora'!$I$52,IF('Simulador Valora'!$V$40=4,'Simulador Valora'!$E$52)))) -> 0 | X73: 0 | AB73: 4 | AC73: 6 | AD73: 0 | AE73: 0 | AF73: 0 | AG73: 0 | AH73: 0.12 | AI73: 0 | AJ73: 0 | AK73: 0 | AL73: 0 | AM73: 0 | AN73: 0 | AP73: =IF(AJ73<=0,0,IF('Simulador Valora'!$X$73=1,0,AJ73*'Simulador Valora'!$X$76))+IF(AJ73<=0,0,IF('Simulador Valora'!$V$40=1,'Simulador Valora'!$L$52,IF('Simulador Valora'!$V$40=3,'Simulador Valora'!$I$52,IF('Simulador Valora'!$V$40=4,'Simulador Valora'!$E$52)))) -> 0 | AR73: 0 | AS73: 0 | AU73: 0 | AV73: 54
A74: 55 | B74: 0 | D74: =IF(B74+F74-D73<=0,B74+F74,IF(A74=$B$10,$F$10,IF(A74=$B$11,$F$11,IF(A74=$B$12,$F$12,IF(A74=$B$13,$F$13,IF(A74=$B$14,$F$14,IF(AND('Simulador Valora'!$AE$45=2,L73=0),D73*(1+Z74),IF($AO$3=2,B74*AI74,D73*(1+Z74))))))))) -> 0 | F74: 0 | H74: 0 | N74: =IF(OR('Simulador Valora'!$T$65=1,'Simulador Valora'!$T$65=3),0,L74*'Simulador Valora'!$T$66*'Simulador Valora'!$U$64) -> 0 | P74: 0 | R74: 0 | T74: =IF(B74<=0,0,IF('Simulador Valora'!$X$73=1,0,B74*'Simulador Valora'!$X$76)) -> 0 | V74: =IF(B74<=0,0,IF('Simulador Valora'!$V$40=1,'Simulador Valora'!$L$52,IF('Simulador Valora'!$V$40=3,'Simulador Valora'!$I$52,IF('Simulador Valora'!$V$40=4,'Simulador Valora'!$E$52)))) -> 0 | X74: 0 | AB74: 4 | AC74: 7 | AD74: 0 | AE74: 0 | AF74: 0 | AG74: 0 | AH74: 0.12 | AI74: 0 | AJ74: 0 | AK74: 0 | AL74: 0 | AM74: 0 | AN74: 0 | AP74: =IF(AJ74<=0,0,IF('Simulador Valora'!$X$73=1,0,AJ74*'Simulador Valora'!$X$76))+IF(AJ74<=0,0,IF('Simulador Valora'!$V$40=1,'Simulador Valora'!$L$52,IF('Simulador Valora'!$V$40=3,'Simulador Valora'!$I$52,IF('Simulador Valora'!$V$40=4,'Simulador Valora'!$E$52)))) -> 0 | AR74: 0 | AS74: 0 | AU74: 0 | AV74: 55
A75: 56 | B75: 0 | D75: =IF(B75+F75-D74<=0,B75+F75,IF(A75=$B$10,$F$10,IF(A75=$B$11,$F$11,IF(A75=$B$12,$F$12,IF(A75=$B$13,$F$13,IF(A75=$B$14,$F$14,IF(AND('Simulador Valora'!$AE$45=2,L74=0),D74*(1+Z75),IF($AO$3=2,B75*AI75,D74*(1+Z75))))))))) -> 0 | F75: 0 | H75: 0 | J75: =IF(B75-H75=0,0,J73) -> 0 | N75: =IF(OR('Simulador Valora'!$T$65=1,'Simulador Valora'!$T$65=3),0,L75*'Simulador Valora'!$T$66*'Simulador Valora'!$U$64) -> 0 | P75: 0 | R75: 0 | T75: =IF(B75<=0,0,IF('Simulador Valora'!$X$73=1,0,B75*'Simulador Valora'!$X$76)) -> 0 | V75: =IF(B75<=0,0,IF('Simulador Valora'!$V$40=1,'Simulador Valora'!$L$52,IF('Simulador Valora'!$V$40=3,'Simulador Valora'!$I$52,IF('Simulador Valora'!$V$40=4,'Simulador Valora'!$E$52)))) -> 0 | X75: 0 | AB75: 4 | AC75: 8 | AD75: 0 | AE75: 0 | AF75: 0 | AG75: 0 | AH75: 0.12 | AI75: 0 | AJ75: 0 | AK75: 0 | AL75: 0 | AM75: 0 | AN75: 0 | AP75: =IF(AJ75<=0,0,IF('Simulador Valora'!$X$73=1,0,AJ75*'Simulador Valora'!$X$76))+IF(AJ75<=0,0,IF('Simulador Valora'!$V$40=1,'Simulador Valora'!$L$52,IF('Simulador Valora'!$V$40=3,'Simulador Valora'!$I$52,IF('Simulador Valora'!$V$40=4,'Simulador Valora'!$E$52)))) -> 0 | AR75: 0 | AS75: 0 | AU75: 0 | AV75: 56
A76: 57 | B76: 0 | D76: =IF(B76+F76-D75<=0,B76+F76,IF(A76=$B$10,$F$10,IF(A76=$B$11,$F$11,IF(A76=$B$12,$F$12,IF(A76=$B$13,$F$13,IF(A76=$B$14,$F$14,IF(AND('Simulador Valora'!$AE$45=2,L75=0),D75*(1+Z76),IF($AO$3=2,B76*AI76,D75*(1+Z76))))))))) -> 0 | F76: 0 | H76: 0 | N76: =IF(OR('Simulador Valora'!$T$65=1,'Simulador Valora'!$T$65=3),0,L76*'Simulador Valora'!$T$66*'Simulador Valora'!$U$64) -> 0 | P76: 0 | R76: 0 | T76: =IF(B76<=0,0,IF('Simulador Valora'!$X$73=1,0,B76*'Simulador Valora'!$X$76)) -> 0 | V76: =IF(B76<=0,0,IF('Simulador Valora'!$V$40=1,'Simulador Valora'!$L$52,IF('Simulador Valora'!$V$40=3,'Simulador Valora'!$I$52,IF('Simulador Valora'!$V$40=4,'Simulador Valora'!$E$52)))) -> 0 | X76: 0 | AB76: 4 | AC76: 9 | AD76: 0 | AE76: 0 | AF76: 0 | AG76: 0 | AH76: 0.12 | AI76: 0 | AJ76: 0 | AK76: 0 | AL76: 0 | AM76: 0 | AN76: 0 | AP76: =IF(AJ76<=0,0,IF('Simulador Valora'!$X$73=1,0,AJ76*'Simulador Valora'!$X$76))+IF(AJ76<=0,0,IF('Simulador Valora'!$V$40=1,'Simulador Valora'!$L$52,IF('Simulador Valora'!$V$40=3,'Simulador Valora'!$I$52,IF('Simulador Valora'!$V$40=4,'Simulador Valora'!$E$52)))) -> 0 | AR76: 0 | AS76: 0 | AU76: 0 | AV76: 57
A77: 58 | B77: 0 | D77: =IF(B77+F77-D76<=0,B77+F77,IF(A77=$B$10,$F$10,IF(A77=$B$11,$F$11,IF(A77=$B$12,$F$12,IF(A77=$B$13,$F$13,IF(A77=$B$14,$F$14,IF(AND('Simulador Valora'!$AE$45=2,L76=0),D76*(1+Z77),IF($AO$3=2,B77*AI77,D76*(1+Z77))))))))) -> 0 | F77: 0 | H77: 0 | J77: =IF(B77-H77=0,0,J75) -> 0 | N77: =IF(OR('Simulador Valora'!$T$65=1,'Simulador Valora'!$T$65=3),0,L77*'Simulador Valora'!$T$66*'Simulador Valora'!$U$64) -> 0 | P77: 0 | R77: 0 | T77: =IF(B77<=0,0,IF('Simulador Valora'!$X$73=1,0,B77*'Simulador Valora'!$X$76)) -> 0 | V77: =IF(B77<=0,0,IF('Simulador Valora'!$V$40=1,'Simulador Valora'!$L$52,IF('Simulador Valora'!$V$40=3,'Simulador Valora'!$I$52,IF('Simulador Valora'!$V$40=4,'Simulador Valora'!$E$52)))) -> 0 | X77: 0 | AB77: 4 | AC77: 10 | AD77: 0 | AE77: 0 | AF77: 0 | AG77: 0 | AH77: 0.12 | AI77: 0 | AJ77: 0 | AK77: 0 | AL77: 0 | AM77: 0 | AN77: 0 | AP77: =IF(AJ77<=0,0,IF('Simulador Valora'!$X$73=1,0,AJ77*'Simulador Valora'!$X$76))+IF(AJ77<=0,0,IF('Simulador Valora'!$V$40=1,'Simulador Valora'!$L$52,IF('Simulador Valora'!$V$40=3,'Simulador Valora'!$I$52,IF('Simulador Valora'!$V$40=4,'Simulador Valora'!$E$52)))) -> 0 | AR77: 0 | AS77: 0 | AU77: 0 | AV77: 58
A78: 59 | B78: 0 | D78: =IF(B78+F78-D77<=0,B78+F78,IF(A78=$B$10,$F$10,IF(A78=$B$11,$F$11,IF(A78=$B$12,$F$12,IF(A78=$B$13,$F$13,IF(A78=$B$14,$F$14,IF(AND('Simulador Valora'!$AE$45=2,L77=0),D77*(1+Z78),IF($AO$3=2,B78*AI78,D77*(1+Z78))))))))) -> 0 | F78: 0 | H78: 0 | N78: =IF(OR('Simulador Valora'!$T$65=1,'Simulador Valora'!$T$65=3),0,L78*'Simulador Valora'!$T$66*'Simulador Valora'!$U$64) -> 0 | P78: 0 | R78: 0 | T78: =IF(B78<=0,0,IF('Simulador Valora'!$X$73=1,0,B78*'Simulador Valora'!$X$76)) -> 0 | V78: =IF(B78<=0,0,IF('Simulador Valora'!$V$40=1,'Simulador Valora'!$L$52,IF('Simulador Valora'!$V$40=3,'Simulador Valora'!$I$52,IF('Simulador Valora'!$V$40=4,'Simulador Valora'!$E$52)))) -> 0 | X78: 0 | AB78: 4 | AC78: 11 | AD78: 0 | AE78: 0 | AF78: 0 | AG78: 0 | AH78: 0.12 | AI78: 0 | AJ78: 0 | AK78: 0 | AL78: 0 | AM78: 0 | AN78: 0 | AP78: =IF(AJ78<=0,0,IF('Simulador Valora'!$X$73=1,0,AJ78*'Simulador Valora'!$X$76))+IF(AJ78<=0,0,IF('Simulador Valora'!$V$40=1,'Simulador Valora'!$L$52,IF('Simulador Valora'!$V$40=3,'Simulador Valora'!$I$52,IF('Simulador Valora'!$V$40=4,'Simulador Valora'!$E$52)))) -> 0 | AR78: 0 | AS78: 0 | AU78: 0 | AV78: 59
A79: 60 | B79: 0 | D79: =IF(B79+F79-D78<=0,B79+F79,IF(A79=$B$10,$F$10,IF(A79=$B$11,$F$11,IF(A79=$B$12,$F$12,IF(A79=$B$13,$F$13,IF(A79=$B$14,$F$14,IF(AND('Simulador Valora'!$AE$45=2,L78=0),D78*(1+Z79),IF($AO$3=2,B79*AI79,D78*(1+Z79))))))))) -> 0 | F79: 0 | H79: 0 | J79: =IF(B79-H79=0,0,J77) -> 0 | N79: =IF(OR('Simulador Valora'!$T$65=1,'Simulador Valora'!$T$65=3),0,L79*'Simulador Valora'!$T$66*'Simulador Valora'!$U$64) -> 0 | P79: 0 | R79: 0 | T79: =IF(B79<=0,0,IF('Simulador Valora'!$X$73=1,0,B79*'Simulador Valora'!$X$76)) -> 0 | V79: =IF(B79<=0,0,IF('Simulador Valora'!$V$40=1,'Simulador Valora'!$L$52,IF('Simulador Valora'!$V$40=3,'Simulador Valora'!$I$52,IF('Simulador Valora'!$V$40=4,'Simulador Valora'!$E$52)))) -> 0 | X79: 0 | AB79: 5 | AC79: 0 | AD79: 0 | AE79: 0 | AF79: 0 | AG79: 0 | AH79: 0.12 | AI79: 0 | AJ79: 0 | AK79: 0 | AL79: 0 | AM79: 0 | AN79: 0 | AP79: =IF(AJ79<=0,0,IF('Simulador Valora'!$X$73=1,0,AJ79*'Simulador Valora'!$X$76))+IF(AJ79<=0,0,IF('Simulador Valora'!$V$40=1,'Simulador Valora'!$L$52,IF('Simulador Valora'!$V$40=3,'Simulador Valora'!$I$52,IF('Simulador Valora'!$V$40=4,'Simulador Valora'!$E$52)))) -> 0 | AR79: 0 | AS79: 0 | AU79: 0 | AV79: 60
A80: 61 | B80: 0 | D80: =IF(B80+F80-D79<=0,B80+F80,IF(A80=$B$10,$F$10,IF(A80=$B$11,$F$11,IF(A80=$B$12,$F$12,IF(A80=$B$13,$F$13,IF(A80=$B$14,$F$14,IF(AND('Simulador Valora'!$AE$45=2,L79=0),D79*(1+Z80),IF($AO$3=2,B80*AI80,D79*(1+Z80))))))))) -> 0 | F80: 0 | H80: 0 | N80: =IF(OR('Simulador Valora'!$T$65=1,'Simulador Valora'!$T$65=3),0,L80*'Simulador Valora'!$T$66*'Simulador Valora'!$U$64) -> 0 | P80: 0 | R80: 0 | T80: =IF(B80<=0,0,IF('Simulador Valora'!$X$73=1,0,B80*'Simulador Valora'!$X$76)) -> 0 | V80: =IF(B80<=0,0,IF('Simulador Valora'!$V$40=1,'Simulador Valora'!$L$52,IF('Simulador Valora'!$V$40=3,'Simulador Valora'!$I$52,IF('Simulador Valora'!$V$40=4,'Simulador Valora'!$E$52)))) -> 0 | X80: 0 | Z80: =IF(B80<=0,0,'Simulador Valora'!$AF$53) -> 0 | AB80: 5 | AC80: 1 | AD80: 0 | AE80: 0 | AF80: 0 | AG80: 0 | AH80: =IF(AH79=$AG$4,AH79,IF(AH79-0.25%<=$AG$4,$AG$4,AH79-0.25%)) -> 0.12 | AI80: 0 | AJ80: 0 | AK80: 0 | AL80: 0 | AM80: 0 | AN80: 0 | AP80: =IF(AJ80<=0,0,IF('Simulador Valora'!$X$73=1,0,AJ80*'Simulador Valora'!$X$76))+IF(AJ80<=0,0,IF('Simulador Valora'!$V$40=1,'Simulador Valora'!$L$52,IF('Simulador Valora'!$V$40=3,'Simulador Valora'!$I$52,IF('Simulador Valora'!$V$40=4,'Simulador Valora'!$E$52)))) -> 0 | AQ80: =IF(AJ80<=0,0,$AQ$32) -> 0 | AR80: 0 | AS80: 0 | AU80: 0 | AV80: 61
A81: 62 | B81: 0 | D81: =IF(B81+F81-D80<=0,B81+F81,IF(A81=$B$10,$F$10,IF(A81=$B$11,$F$11,IF(A81=$B$12,$F$12,IF(A81=$B$13,$F$13,IF(A81=$B$14,$F$14,IF(AND('Simulador Valora'!$AE$45=2,L80=0),D80*(1+Z81),IF($AO$3=2,B81*AI81,D80*(1+Z81))))))))) -> 0 | F81: 0 | H81: 0 | J81: =IF(B81-H81=0,0,J79*(1+(3%))) -> 0 | N81: =IF(OR('Simulador Valora'!$T$65=1,'Simulador Valora'!$T$65=3),0,L81*'Simulador Valora'!$T$66*'Simulador Valora'!$U$64) -> 0 | P81: 0 | R81: 0 | T81: =IF(B81<=0,0,IF('Simulador Valora'!$X$73=1,0,B81*'Simulador Valora'!$X$76)) -> 0 | V81: =IF(B81<=0,0,IF('Simulador Valora'!$V$40=1,'Simulador Valora'!$L$52,IF('Simulador Valora'!$V$40=3,'Simulador Valora'!$I$52,IF('Simulador Valora'!$V$40=4,'Simulador Valora'!$E$52)))) -> 0 | X81: 0 | AB81: 5 | AC81: 2 | AD81: 0 | AE81: 0 | AF81: 0 | AG81: 0 | AH81: =AH80 -> 0.12 | AI81: 0 | AJ81: 0 | AK81: 0 | AL81: 0 | AM81: 0 | AN81: 0 | AP81: =IF(AJ81<=0,0,IF('Simulador Valora'!$X$73=1,0,AJ81*'Simulador Valora'!$X$76))+IF(AJ81<=0,0,IF('Simulador Valora'!$V$40=1,'Simulador Valora'!$L$52,IF('Simulador Valora'!$V$40=3,'Simulador Valora'!$I$52,IF('Simulador Valora'!$V$40=4,'Simulador Valora'!$E$52)))) -> 0 | AR81: 0 | AS81: 0 | AU81: 0 | AV81: 62
A82: 63 | B82: 0 | D82: =IF(B82+F82-D81<=0,B82+F82,IF(A82=$B$10,$F$10,IF(A82=$B$11,$F$11,IF(A82=$B$12,$F$12,IF(A82=$B$13,$F$13,IF(A82=$B$14,$F$14,IF(AND('Simulador Valora'!$AE$45=2,L81=0),D81*(1+Z82),IF($AO$3=2,B82*AI82,D81*(1+Z82))))))))) -> 0 | F82: 0 | H82: 0 | N82: =IF(OR('Simulador Valora'!$T$65=1,'Simulador Valora'!$T$65=3),0,L82*'Simulador Valora'!$T$66*'Simulador Valora'!$U$64) -> 0 | P82: 0 | R82: 0 | T82: =IF(B82<=0,0,IF('Simulador Valora'!$X$73=1,0,B82*'Simulador Valora'!$X$76)) -> 0 | V82: =IF(B82<=0,0,IF('Simulador Valora'!$V$40=1,'Simulador Valora'!$L$52,IF('Simulador Valora'!$V$40=3,'Simulador Valora'!$I$52,IF('Simulador Valora'!$V$40=4,'Simulador Valora'!$E$52)))) -> 0 | X82: 0 | AB82: 5 | AC82: 3 | AD82: 0 | AE82: 0 | AF82: 0 | AG82: 0 | AH82: =AH81 -> 0.12 | AI82: 0 | AJ82: 0 | AK82: 0 | AL82: 0 | AM82: 0 | AN82: 0 | AP82: =IF(AJ82<=0,0,IF('Simulador Valora'!$X$73=1,0,AJ82*'Simulador Valora'!$X$76))+IF(AJ82<=0,0,IF('Simulador Valora'!$V$40=1,'Simulador Valora'!$L$52,IF('Simulador Valora'!$V$40=3,'Simulador Valora'!$I$52,IF('Simulador Valora'!$V$40=4,'Simulador Valora'!$E$52)))) -> 0 | AR82: 0 | AS82: 0 | AU82: 0 | AV82: 63
A83: 64 | B83: 0 | D83: =IF(B83+F83-D82<=0,B83+F83,IF(A83=$B$10,$F$10,IF(A83=$B$11,$F$11,IF(A83=$B$12,$F$12,IF(A83=$B$13,$F$13,IF(A83=$B$14,$F$14,IF(AND('Simulador Valora'!$AE$45=2,L82=0),D82*(1+Z83),IF($AO$3=2,B83*AI83,D82*(1+Z83))))))))) -> 0 | F83: 0 | H83: 0 | J83: =IF(B83-H83=0,0,J81) -> 0 | N83: =IF(OR('Simulador Valora'!$T$65=1,'Simulador Valora'!$T$65=3),0,L83*'Simulador Valora'!$T$66*'Simulador Valora'!$U$64) -> 0 | P83: 0 | R83: 0 | T83: =IF(B83<=0,0,IF('Simulador Valora'!$X$73=1,0,B83*'Simulador Valora'!$X$76)) -> 0 | V83: =IF(B83<=0,0,IF('Simulador Valora'!$V$40=1,'Simulador Valora'!$L$52,IF('Simulador Valora'!$V$40=3,'Simulador Valora'!$I$52,IF('Simulador Valora'!$V$40=4,'Simulador Valora'!$E$52)))) -> 0 | X83: 0 | AB83: 5 | AC83: 4 | AD83: 0 | AE83: 0 | AF83: 0 | AG83: 0 | AH83: 0.12 | AI83: 0 | AJ83: 0 | AK83: 0 | AL83: 0 | AM83: 0 | AN83: 0 | AP83: =IF(AJ83<=0,0,IF('Simulador Valora'!$X$73=1,0,AJ83*'Simulador Valora'!$X$76))+IF(AJ83<=0,0,IF('Simulador Valora'!$V$40=1,'Simulador Valora'!$L$52,IF('Simulador Valora'!$V$40=3,'Simulador Valora'!$I$52,IF('Simulador Valora'!$V$40=4,'Simulador Valora'!$E$52)))) -> 0 | AR83: 0 | AS83: 0 | AU83: 0 | AV83: 64
A84: 65 | B84: 0 | D84: =IF(B84+F84-D83<=0,B84+F84,IF(A84=$B$10,$F$10,IF(A84=$B$11,$F$11,IF(A84=$B$12,$F$12,IF(A84=$B$13,$F$13,IF(A84=$B$14,$F$14,IF(AND('Simulador Valora'!$AE$45=2,L83=0),D83*(1+Z84),IF($AO$3=2,B84*AI84,D83*(1+Z84))))))))) -> 0 | F84: 0 | H84: 0 | N84: =IF(OR('Simulador Valora'!$T$65=1,'Simulador Valora'!$T$65=3),0,L84*'Simulador Valora'!$T$66*'Simulador Valora'!$U$64) -> 0 | P84: 0 | R84: 0 | T84: =IF(B84<=0,0,IF('Simulador Valora'!$X$73=1,0,B84*'Simulador Valora'!$X$76)) -> 0 | V84: =IF(B84<=0,0,IF('Simulador Valora'!$V$40=1,'Simulador Valora'!$L$52,IF('Simulador Valora'!$V$40=3,'Simulador Valora'!$I$52,IF('Simulador Valora'!$V$40=4,'Simulador Valora'!$E$52)))) -> 0 | X84: 0 | AB84: 5 | AC84: 5 | AD84: 0 | AE84: 0 | AF84: 0 | AG84: 0 | AH84: 0.12 | AI84: 0 | AJ84: 0 | AK84: 0 | AL84: 0 | AM84: =+AK84-AL84 -> 0 | AN84: =+AJ84-AM84 -> 0 | AP84: =IF(AJ84<=0,0,IF('Simulador Valora'!$X$73=1,0,AJ84*'Simulador Valora'!$X$76))+IF(AJ84<=0,0,IF('Simulador Valora'!$V$40=1,'Simulador Valora'!$L$52,IF('Simulador Valora'!$V$40=3,'Simulador Valora'!$I$52,IF('Simulador Valora'!$V$40=4,'Simulador Valora'!$E$52)))) -> 0 | AR84: 0 | AS84: 0 | AU84: 0 | AV84: 65
A85: 66 | B85: =IF(R84<0,0,IF(A85=$B$10,R84+$D$10,IF(A85=$B$11,R84+$D$11,IF(A85=$B$12,R84+$D$12,IF(A85=$B$13,R84+$D$13,IF(A85=$B$14,R84+$D$14,R84)))))) -> 0 | D85: =IF(B85+F85-D84<=0,B85+F85,IF(A85=$B$10,$F$10,IF(A85=$B$11,$F$11,IF(A85=$B$12,$F$12,IF(A85=$B$13,$F$13,IF(A85=$B$14,$F$14,IF(AND('Simulador Valora'!$AE$45=2,L84=0),D84*(1+Z85),IF($AO$3=2,B85*AI85,D84*(1+Z85))))))))) -> 0 | F85: =IF(B85=0,0,P85/360*AU85*B85) -> 0 | H85: 0 | J85: =IF(B85-H85=0,0,J83) -> 0 | N85: =IF(OR('Simulador Valora'!$T$65=1,'Simulador Valora'!$T$65=3),0,L85*'Simulador Valora'!$T$66*'Simulador Valora'!$U$64) -> 0 | P85: =IF(B85=0,0,AH85) -> 0 | R85: =B85-H85-J85-L85+N85 -> 0 | T85: =IF(B85<=0,0,IF('Simulador Valora'!$X$73=1,0,B85*'Simulador Valora'!$X$76)) -> 0 | V85: =IF(B85<=0,0,IF('Simulador Valora'!$V$40=1,'Simulador Valora'!$L$52,IF('Simulador Valora'!$V$40=3,'Simulador Valora'!$I$52,IF('Simulador Valora'!$V$40=4,'Simulador Valora'!$E$52)))) -> 0 | X85: =IF(B85<=0,0,(D85+L85+T85+V85)) -> 0 | AB85: 5 | AC85: 6 | AD85: =+IF(R85<=0,IF(R84>0,+A85,0),0) -> 0 | AE85: =+IF(AD85>0,+AB85,0) -> 0 | AF85: =+IF(AD85>0,+AC85,0) -> 0 | AG85: =X85 -> 0 | AH85: 0.12 | AI85: =IFERROR(AK85/AJ85,0) -> 0 | AJ85: 0 | AK85: 0 | AL85: =IFERROR((AO85/360*AU85*AJ85),0) -> 0 | AM85: 0 | AN85: 0 | AO85: =IF(AJ85=0,"",AH85) ->  | AP85: =IF(AJ85<=0,0,IF('Simulador Valora'!$X$73=1,0,AJ85*'Simulador Valora'!$X$76))+IF(AJ85<=0,0,IF('Simulador Valora'!$V$40=1,'Simulador Valora'!$L$52,IF('Simulador Valora'!$V$40=3,'Simulador Valora'!$I$52,IF('Simulador Valora'!$V$40=4,'Simulador Valora'!$E$52)))) -> 0 | AR85: =AL85+AM85+AP85 -> 0 | AS85: =IFERROR(IF(AK85<=0.01,0,AS84-1),0) -> 0 | AU85: =IFERROR(DAY(DATE(YEAR(AT85),MONTH(AT85)+1,0)),0) -> 0 | AV85: 66
A86: 67 | B86: 0 | D86: =IF(B86+F86-D85<=0,B86+F86,IF(A86=$B$10,$F$10,IF(A86=$B$11,$F$11,IF(A86=$B$12,$F$12,IF(A86=$B$13,$F$13,IF(A86=$B$14,$F$14,IF(AND('Simulador Valora'!$AE$45=2,L85=0),D85*(1+Z86),IF($AO$3=2,B86*AI86,D85*(1+Z86))))))))) -> 0 | F86: 0 | H86: =D86-F86 -> 0 | N86: =IF(OR('Simulador Valora'!$T$65=1,'Simulador Valora'!$T$65=3),0,L86*'Simulador Valora'!$T$66*'Simulador Valora'!$U$64) -> 0 | P86: 0 | R86: 0 | T86: =IF(B86<=0,0,IF('Simulador Valora'!$X$73=1,0,B86*'Simulador Valora'!$X$76)) -> 0 | V86: =IF(B86<=0,0,IF('Simulador Valora'!$V$40=1,'Simulador Valora'!$L$52,IF('Simulador Valora'!$V$40=3,'Simulador Valora'!$I$52,IF('Simulador Valora'!$V$40=4,'Simulador Valora'!$E$52)))) -> 0 | X86: 0 | AB86: 5 | AC86: 7 | AD86: 0 | AE86: 0 | AF86: 0 | AG86: 0 | AH86: 0.12 | AI86: 0 | AJ86: =IF(AN85<0,0,IF(A86=$B$10,AN85+$D$10,IF(A86=$B$11,AN85+$D$11,IF(A86=$B$12,AN85+$D$12,IF(A86=$B$13,AN85+$D$13,IF(A86=$B$14,AN85+$D$14,AN85)))))) -> 0 | AK86: =IF(AJ86+AL86-AK85<=0,AJ86+AL86,IF(A86=$B$10,$F$10,IF(A86=$B$11,$F$11,IF(A86=$B$12,$F$12,IF(A86=$B$13,$F$13,IF(A86=$B$14,$F$14,AK85*(1+AQ86))))))) -> 0 | AL86: 0 | AM86: 0 | AN86: 0 | AP86: =IF(AJ86<=0,0,IF('Simulador Valora'!$X$73=1,0,AJ86*'Simulador Valora'!$X$76))+IF(AJ86<=0,0,IF('Simulador Valora'!$V$40=1,'Simulador Valora'!$L$52,IF('Simulador Valora'!$V$40=3,'Simulador Valora'!$I$52,IF('Simulador Valora'!$V$40=4,'Simulador Valora'!$E$52)))) -> 0 | AR86: 0 | AS86: 0 | AT86: =IF(AJ86=0,"",DATE(YEAR(AT85),MONTH(AT85)+1,1)) ->  | AU86: 0 | AV86: 67
A87: 68 | B87: 0 | D87: =IF(B87+F87-D86<=0,B87+F87,IF(A87=$B$10,$F$10,IF(A87=$B$11,$F$11,IF(A87=$B$12,$F$12,IF(A87=$B$13,$F$13,IF(A87=$B$14,$F$14,IF(AND('Simulador Valora'!$AE$45=2,L86=0),D86*(1+Z87),IF($AO$3=2,B87*AI87,D86*(1+Z87))))))))) -> 0 | F87: 0 | H87: 0 | J87: =IF(B87-H87=0,0,J85) -> 0 | N87: =IF(OR('Simulador Valora'!$T$65=1,'Simulador Valora'!$T$65=3),0,L87*'Simulador Valora'!$T$66*'Simulador Valora'!$U$64) -> 0 | P87: 0 | R87: 0 | T87: =IF(B87<=0,0,IF('Simulador Valora'!$X$73=1,0,B87*'Simulador Valora'!$X$76)) -> 0 | V87: =IF(B87<=0,0,IF('Simulador Valora'!$V$40=1,'Simulador Valora'!$L$52,IF('Simulador Valora'!$V$40=3,'Simulador Valora'!$I$52,IF('Simulador Valora'!$V$40=4,'Simulador Valora'!$E$52)))) -> 0 | X87: 0 | AB87: 5 | AC87: 8 | AD87: 0 | AE87: 0 | AF87: 0 | AG87: 0 | AH87: 0.12 | AI87: 0 | AJ87: 0 | AK87: 0 | AL87: 0 | AM87: 0 | AN87: 0 | AP87: =IF(AJ87<=0,0,IF('Simulador Valora'!$X$73=1,0,AJ87*'Simulador Valora'!$X$76))+IF(AJ87<=0,0,IF('Simulador Valora'!$V$40=1,'Simulador Valora'!$L$52,IF('Simulador Valora'!$V$40=3,'Simulador Valora'!$I$52,IF('Simulador Valora'!$V$40=4,'Simulador Valora'!$E$52)))) -> 0 | AR87: 0 | AS87: 0 | AU87: 0 | AV87: 68
A88: 69 | B88: 0 | D88: =IF(B88+F88-D87<=0,B88+F88,IF(A88=$B$10,$F$10,IF(A88=$B$11,$F$11,IF(A88=$B$12,$F$12,IF(A88=$B$13,$F$13,IF(A88=$B$14,$F$14,IF(AND('Simulador Valora'!$AE$45=2,L87=0),D87*(1+Z88),IF($AO$3=2,B88*AI88,D87*(1+Z88))))))))) -> 0 | F88: 0 | H88: 0 | N88: =IF(OR('Simulador Valora'!$T$65=1,'Simulador Valora'!$T$65=3),0,L88*'Simulador Valora'!$T$66*'Simulador Valora'!$U$64) -> 0 | P88: 0 | R88: 0 | T88: =IF(B88<=0,0,IF('Simulador Valora'!$X$73=1,0,B88*'Simulador Valora'!$X$76)) -> 0 | V88: =IF(B88<=0,0,IF('Simulador Valora'!$V$40=1,'Simulador Valora'!$L$52,IF('Simulador Valora'!$V$40=3,'Simulador Valora'!$I$52,IF('Simulador Valora'!$V$40=4,'Simulador Valora'!$E$52)))) -> 0 | X88: 0 | AB88: 5 | AC88: 9 | AD88: 0 | AE88: 0 | AF88: 0 | AG88: 0 | AH88: 0.12 | AI88: 0 | AJ88: 0 | AK88: 0 | AL88: 0 | AM88: 0 | AN88: 0 | AP88: =IF(AJ88<=0,0,IF('Simulador Valora'!$X$73=1,0,AJ88*'Simulador Valora'!$X$76))+IF(AJ88<=0,0,IF('Simulador Valora'!$V$40=1,'Simulador Valora'!$L$52,IF('Simulador Valora'!$V$40=3,'Simulador Valora'!$I$52,IF('Simulador Valora'!$V$40=4,'Simulador Valora'!$E$52)))) -> 0 | AR88: 0 | AS88: 0 | AU88: 0 | AV88: 69
A89: 70 | B89: 0 | D89: =IF(B89+F89-D88<=0,B89+F89,IF(A89=$B$10,$F$10,IF(A89=$B$11,$F$11,IF(A89=$B$12,$F$12,IF(A89=$B$13,$F$13,IF(A89=$B$14,$F$14,IF(AND('Simulador Valora'!$AE$45=2,L88=0),D88*(1+Z89),IF($AO$3=2,B89*AI89,D88*(1+Z89))))))))) -> 0 | F89: 0 | H89: 0 | J89: =IF(B89-H89=0,0,J87) -> 0 | N89: =IF(OR('Simulador Valora'!$T$65=1,'Simulador Valora'!$T$65=3),0,L89*'Simulador Valora'!$T$66*'Simulador Valora'!$U$64) -> 0 | P89: 0 | R89: 0 | T89: =IF(B89<=0,0,IF('Simulador Valora'!$X$73=1,0,B89*'Simulador Valora'!$X$76)) -> 0 | V89: =IF(B89<=0,0,IF('Simulador Valora'!$V$40=1,'Simulador Valora'!$L$52,IF('Simulador Valora'!$V$40=3,'Simulador Valora'!$I$52,IF('Simulador Valora'!$V$40=4,'Simulador Valora'!$E$52)))) -> 0 | X89: 0 | AB89: 5 | AC89: 10 | AD89: 0 | AE89: 0 | AF89: 0 | AG89: 0 | AH89: 0.12 | AI89: 0 | AJ89: 0 | AK89: 0 | AL89: 0 | AM89: 0 | AN89: 0 | AP89: =IF(AJ89<=0,0,IF('Simulador Valora'!$X$73=1,0,AJ89*'Simulador Valora'!$X$76))+IF(AJ89<=0,0,IF('Simulador Valora'!$V$40=1,'Simulador Valora'!$L$52,IF('Simulador Valora'!$V$40=3,'Simulador Valora'!$I$52,IF('Simulador Valora'!$V$40=4,'Simulador Valora'!$E$52)))) -> 0 | AR89: 0 | AS89: 0 | AU89: 0 | AV89: 70
A90: 71 | B90: 0 | D90: =IF(B90+F90-D89<=0,B90+F90,IF(A90=$B$10,$F$10,IF(A90=$B$11,$F$11,IF(A90=$B$12,$F$12,IF(A90=$B$13,$F$13,IF(A90=$B$14,$F$14,IF(AND('Simulador Valora'!$AE$45=2,L89=0),D89*(1+Z90),IF($AO$3=2,B90*AI90,D89*(1+Z90))))))))) -> 0 | F90: 0 | H90: 0 | N90: =IF(OR('Simulador Valora'!$T$65=1,'Simulador Valora'!$T$65=3),0,L90*'Simulador Valora'!$T$66*'Simulador Valora'!$U$64) -> 0 | P90: 0 | R90: 0 | T90: =IF(B90<=0,0,IF('Simulador Valora'!$X$73=1,0,B90*'Simulador Valora'!$X$76)) -> 0 | V90: =IF(B90<=0,0,IF('Simulador Valora'!$V$40=1,'Simulador Valora'!$L$52,IF('Simulador Valora'!$V$40=3,'Simulador Valora'!$I$52,IF('Simulador Valora'!$V$40=4,'Simulador Valora'!$E$52)))) -> 0 | X90: 0 | AB90: 5 | AC90: 11 | AD90: 0 | AE90: 0 | AF90: 0 | AG90: 0 | AH90: 0.12 | AI90: 0 | AJ90: 0 | AK90: 0 | AL90: 0 | AM90: 0 | AN90: 0 | AP90: =IF(AJ90<=0,0,IF('Simulador Valora'!$X$73=1,0,AJ90*'Simulador Valora'!$X$76))+IF(AJ90<=0,0,IF('Simulador Valora'!$V$40=1,'Simulador Valora'!$L$52,IF('Simulador Valora'!$V$40=3,'Simulador Valora'!$I$52,IF('Simulador Valora'!$V$40=4,'Simulador Valora'!$E$52)))) -> 0 | AR90: 0 | AS90: 0 | AU90: 0 | AV90: 71
A91: 72 | B91: 0 | D91: =IF(B91+F91-D90<=0,B91+F91,IF(A91=$B$10,$F$10,IF(A91=$B$11,$F$11,IF(A91=$B$12,$F$12,IF(A91=$B$13,$F$13,IF(A91=$B$14,$F$14,IF(AND('Simulador Valora'!$AE$45=2,L90=0),D90*(1+Z91),IF($AO$3=2,B91*AI91,D90*(1+Z91))))))))) -> 0 | F91: 0 | H91: 0 | J91: =IF(B91-H91=0,0,J89) -> 0 | N91: =IF(OR('Simulador Valora'!$T$65=1,'Simulador Valora'!$T$65=3),0,L91*'Simulador Valora'!$T$66*'Simulador Valora'!$U$64) -> 0 | P91: 0 | R91: 0 | T91: =IF(B91<=0,0,IF('Simulador Valora'!$X$73=1,0,B91*'Simulador Valora'!$X$76)) -> 0 | V91: =IF(B91<=0,0,IF('Simulador Valora'!$V$40=1,'Simulador Valora'!$L$52,IF('Simulador Valora'!$V$40=3,'Simulador Valora'!$I$52,IF('Simulador Valora'!$V$40=4,'Simulador Valora'!$E$52)))) -> 0 | X91: 0 | AB91: 6 | AC91: 0 | AD91: 0 | AE91: 0 | AF91: 0 | AG91: 0 | AH91: 0.12 | AI91: 0 | AJ91: 0 | AK91: 0 | AL91: 0 | AM91: 0 | AN91: 0 | AP91: =IF(AJ91<=0,0,IF('Simulador Valora'!$X$73=1,0,AJ91*'Simulador Valora'!$X$76))+IF(AJ91<=0,0,IF('Simulador Valora'!$V$40=1,'Simulador Valora'!$L$52,IF('Simulador Valora'!$V$40=3,'Simulador Valora'!$I$52,IF('Simulador Valora'!$V$40=4,'Simulador Valora'!$E$52)))) -> 0 | AR91: 0 | AS91: 0 | AU91: 0 | AV91: 72
A92: 73 | B92: 0 | D92: =IF(B92+F92-D91<=0,B92+F92,IF(A92=$B$10,$F$10,IF(A92=$B$11,$F$11,IF(A92=$B$12,$F$12,IF(A92=$B$13,$F$13,IF(A92=$B$14,$F$14,IF(AND('Simulador Valora'!$AE$45=2,L91=0),D91*(1+Z92),IF($AO$3=2,B92*AI92,D91*(1+Z92))))))))) -> 0 | F92: 0 | H92: 0 | N92: =IF(OR('Simulador Valora'!$T$65=1,'Simulador Valora'!$T$65=3),0,L92*'Simulador Valora'!$T$66*'Simulador Valora'!$U$64) -> 0 | P92: 0 | R92: 0 | T92: =IF(B92<=0,0,IF('Simulador Valora'!$X$73=1,0,B92*'Simulador Valora'!$X$76)) -> 0 | V92: =IF(B92<=0,0,IF('Simulador Valora'!$V$40=1,'Simulador Valora'!$L$52,IF('Simulador Valora'!$V$40=3,'Simulador Valora'!$I$52,IF('Simulador Valora'!$V$40=4,'Simulador Valora'!$E$52)))) -> 0 | X92: 0 | Z92: =IF(B92<=0,0,'Simulador Valora'!$AF$53) -> 0 | AB92: 6 | AC92: 1 | AD92: 0 | AE92: 0 | AF92: 0 | AG92: 0 | AH92: =IF(AH91=$AG$4,AH91,IF(AH91-0.25%<=$AG$4,$AG$4,AH91-0.25%)) -> 0.12 | AI92: 0 | AJ92: 0 | AK92: 0 | AL92: 0 | AM92: 0 | AN92: 0 | AP92: =IF(AJ92<=0,0,IF('Simulador Valora'!$X$73=1,0,AJ92*'Simulador Valora'!$X$76))+IF(AJ92<=0,0,IF('Simulador Valora'!$V$40=1,'Simulador Valora'!$L$52,IF('Simulador Valora'!$V$40=3,'Simulador Valora'!$I$52,IF('Simulador Valora'!$V$40=4,'Simulador Valora'!$E$52)))) -> 0 | AQ92: =IF(AJ92<=0,0,$AQ$32) -> 0 | AR92: 0 | AS92: 0 | AU92: 0 | AV92: 73
A93: 74 | B93: 0 | D93: =IF(B93+F93-D92<=0,B93+F93,IF(A93=$B$10,$F$10,IF(A93=$B$11,$F$11,IF(A93=$B$12,$F$12,IF(A93=$B$13,$F$13,IF(A93=$B$14,$F$14,IF(AND('Simulador Valora'!$AE$45=2,L92=0),D92*(1+Z93),IF($AO$3=2,B93*AI93,D92*(1+Z93))))))))) -> 0 | F93: 0 | H93: 0 | J93: =IF(B93-H93=0,0,J91*(1+(3%))) -> 0 | N93: =IF(OR('Simulador Valora'!$T$65=1,'Simulador Valora'!$T$65=3),0,L93*'Simulador Valora'!$T$66*'Simulador Valora'!$U$64) -> 0 | P93: 0 | R93: 0 | T93: =IF(B93<=0,0,IF('Simulador Valora'!$X$73=1,0,B93*'Simulador Valora'!$X$76)) -> 0 | V93: =IF(B93<=0,0,IF('Simulador Valora'!$V$40=1,'Simulador Valora'!$L$52,IF('Simulador Valora'!$V$40=3,'Simulador Valora'!$I$52,IF('Simulador Valora'!$V$40=4,'Simulador Valora'!$E$52)))) -> 0 | X93: 0 | AB93: 6 | AC93: 2 | AD93: 0 | AE93: 0 | AF93: 0 | AG93: 0 | AH93: =AH92 -> 0.12 | AI93: 0 | AJ93: 0 | AK93: 0 | AL93: 0 | AM93: 0 | AN93: 0 | AP93: =IF(AJ93<=0,0,IF('Simulador Valora'!$X$73=1,0,AJ93*'Simulador Valora'!$X$76))+IF(AJ93<=0,0,IF('Simulador Valora'!$V$40=1,'Simulador Valora'!$L$52,IF('Simulador Valora'!$V$40=3,'Simulador Valora'!$I$52,IF('Simulador Valora'!$V$40=4,'Simulador Valora'!$E$52)))) -> 0 | AR93: 0 | AS93: 0 | AU93: 0 | AV93: 74
A94: 75 | B94: 0 | D94: =IF(B94+F94-D93<=0,B94+F94,IF(A94=$B$10,$F$10,IF(A94=$B$11,$F$11,IF(A94=$B$12,$F$12,IF(A94=$B$13,$F$13,IF(A94=$B$14,$F$14,IF(AND('Simulador Valora'!$AE$45=2,L93=0),D93*(1+Z94),IF($AO$3=2,B94*AI94,D93*(1+Z94))))))))) -> 0 | F94: 0 | H94: 0 | N94: =IF(OR('Simulador Valora'!$T$65=1,'Simulador Valora'!$T$65=3),0,L94*'Simulador Valora'!$T$66*'Simulador Valora'!$U$64) -> 0 | P94: 0 | R94: 0 | T94: =IF(B94<=0,0,IF('Simulador Valora'!$X$73=1,0,B94*'Simulador Valora'!$X$76)) -> 0 | V94: =IF(B94<=0,0,IF('Simulador Valora'!$V$40=1,'Simulador Valora'!$L$52,IF('Simulador Valora'!$V$40=3,'Simulador Valora'!$I$52,IF('Simulador Valora'!$V$40=4,'Simulador Valora'!$E$52)))) -> 0 | X94: 0 | AB94: 6 | AC94: 3 | AD94: 0 | AE94: 0 | AF94: 0 | AG94: 0 | AH94: =AH93 -> 0.12 | AI94: 0 | AJ94: 0 | AK94: 0 | AL94: 0 | AM94: 0 | AN94: 0 | AP94: =IF(AJ94<=0,0,IF('Simulador Valora'!$X$73=1,0,AJ94*'Simulador Valora'!$X$76))+IF(AJ94<=0,0,IF('Simulador Valora'!$V$40=1,'Simulador Valora'!$L$52,IF('Simulador Valora'!$V$40=3,'Simulador Valora'!$I$52,IF('Simulador Valora'!$V$40=4,'Simulador Valora'!$E$52)))) -> 0 | AR94: 0 | AS94: 0 | AU94: 0 | AV94: 75
A95: 76 | B95: 0 | D95: =IF(B95+F95-D94<=0,B95+F95,IF(A95=$B$10,$F$10,IF(A95=$B$11,$F$11,IF(A95=$B$12,$F$12,IF(A95=$B$13,$F$13,IF(A95=$B$14,$F$14,IF(AND('Simulador Valora'!$AE$45=2,L94=0),D94*(1+Z95),IF($AO$3=2,B95*AI95,D94*(1+Z95))))))))) -> 0 | F95: 0 | H95: 0 | J95: =IF(B95-H95=0,0,J93) -> 0 | N95: =IF(OR('Simulador Valora'!$T$65=1,'Simulador Valora'!$T$65=3),0,L95*'Simulador Valora'!$T$66*'Simulador Valora'!$U$64) -> 0 | P95: 0 | R95: 0 | T95: =IF(B95<=0,0,IF('Simulador Valora'!$X$73=1,0,B95*'Simulador Valora'!$X$76)) -> 0 | V95: =IF(B95<=0,0,IF('Simulador Valora'!$V$40=1,'Simulador Valora'!$L$52,IF('Simulador Valora'!$V$40=3,'Simulador Valora'!$I$52,IF('Simulador Valora'!$V$40=4,'Simulador Valora'!$E$52)))) -> 0 | X95: 0 | AB95: 6 | AC95: 4 | AD95: 0 | AE95: 0 | AF95: 0 | AG95: 0 | AH95: 0.12 | AI95: 0 | AJ95: 0 | AK95: 0 | AL95: 0 | AM95: 0 | AN95: 0 | AP95: =IF(AJ95<=0,0,IF('Simulador Valora'!$X$73=1,0,AJ95*'Simulador Valora'!$X$76))+IF(AJ95<=0,0,IF('Simulador Valora'!$V$40=1,'Simulador Valora'!$L$52,IF('Simulador Valora'!$V$40=3,'Simulador Valora'!$I$52,IF('Simulador Valora'!$V$40=4,'Simulador Valora'!$E$52)))) -> 0 | AR95: 0 | AS95: 0 | AU95: 0 | AV95: 76
A96: 77 | B96: 0 | D96: =IF(B96+F96-D95<=0,B96+F96,IF(A96=$B$10,$F$10,IF(A96=$B$11,$F$11,IF(A96=$B$12,$F$12,IF(A96=$B$13,$F$13,IF(A96=$B$14,$F$14,IF(AND('Simulador Valora'!$AE$45=2,L95=0),D95*(1+Z96),IF($AO$3=2,B96*AI96,D95*(1+Z96))))))))) -> 0 | F96: 0 | H96: 0 | N96: =IF(OR('Simulador Valora'!$T$65=1,'Simulador Valora'!$T$65=3),0,L96*'Simulador Valora'!$T$66*'Simulador Valora'!$U$64) -> 0 | P96: 0 | R96: 0 | T96: =IF(B96<=0,0,IF('Simulador Valora'!$X$73=1,0,B96*'Simulador Valora'!$X$76)) -> 0 | V96: =IF(B96<=0,0,IF('Simulador Valora'!$V$40=1,'Simulador Valora'!$L$52,IF('Simulador Valora'!$V$40=3,'Simulador Valora'!$I$52,IF('Simulador Valora'!$V$40=4,'Simulador Valora'!$E$52)))) -> 0 | X96: 0 | AB96: 6 | AC96: 5 | AD96: 0 | AE96: 0 | AF96: 0 | AG96: 0 | AH96: 0.12 | AI96: 0 | AJ96: 0 | AK96: 0 | AL96: 0 | AM96: 0 | AN96: 0 | AP96: =IF(AJ96<=0,0,IF('Simulador Valora'!$X$73=1,0,AJ96*'Simulador Valora'!$X$76))+IF(AJ96<=0,0,IF('Simulador Valora'!$V$40=1,'Simulador Valora'!$L$52,IF('Simulador Valora'!$V$40=3,'Simulador Valora'!$I$52,IF('Simulador Valora'!$V$40=4,'Simulador Valora'!$E$52)))) -> 0 | AR96: 0 | AS96: 0 | AU96: 0 | AV96: 77
A97: 78 | B97: 0 | D97: =IF(B97+F97-D96<=0,B97+F97,IF(A97=$B$10,$F$10,IF(A97=$B$11,$F$11,IF(A97=$B$12,$F$12,IF(A97=$B$13,$F$13,IF(A97=$B$14,$F$14,IF(AND('Simulador Valora'!$AE$45=2,L96=0),D96*(1+Z97),IF($AO$3=2,B97*AI97,D96*(1+Z97))))))))) -> 0 | F97: 0 | H97: 0 | J97: =IF(B97-H97=0,0,J95) -> 0 | N97: =IF(OR('Simulador Valora'!$T$65=1,'Simulador Valora'!$T$65=3),0,L97*'Simulador Valora'!$T$66*'Simulador Valora'!$U$64) -> 0 | P97: 0 | R97: 0 | T97: =IF(B97<=0,0,IF('Simulador Valora'!$X$73=1,0,B97*'Simulador Valora'!$X$76)) -> 0 | V97: =IF(B97<=0,0,IF('Simulador Valora'!$V$40=1,'Simulador Valora'!$L$52,IF('Simulador Valora'!$V$40=3,'Simulador Valora'!$I$52,IF('Simulador Valora'!$V$40=4,'Simulador Valora'!$E$52)))) -> 0 | X97: 0 | AB97: 6 | AC97: 6 | AD97: 0 | AE97: 0 | AF97: 0 | AG97: 0 | AH97: 0.12 | AI97: 0 | AJ97: 0 | AK97: 0 | AL97: 0 | AM97: 0 | AN97: 0 | AP97: =IF(AJ97<=0,0,IF('Simulador Valora'!$X$73=1,0,AJ97*'Simulador Valora'!$X$76))+IF(AJ97<=0,0,IF('Simulador Valora'!$V$40=1,'Simulador Valora'!$L$52,IF('Simulador Valora'!$V$40=3,'Simulador Valora'!$I$52,IF('Simulador Valora'!$V$40=4,'Simulador Valora'!$E$52)))) -> 0 | AR97: 0 | AS97: 0 | AU97: 0 | AV97: 78
A98: 79 | B98: 0 | D98: =IF(B98+F98-D97<=0,B98+F98,IF(A98=$B$10,$F$10,IF(A98=$B$11,$F$11,IF(A98=$B$12,$F$12,IF(A98=$B$13,$F$13,IF(A98=$B$14,$F$14,IF(AND('Simulador Valora'!$AE$45=2,L97=0),D97*(1+Z98),IF($AO$3=2,B98*AI98,D97*(1+Z98))))))))) -> 0 | F98: 0 | H98: 0 | N98: =IF(OR('Simulador Valora'!$T$65=1,'Simulador Valora'!$T$65=3),0,L98*'Simulador Valora'!$T$66*'Simulador Valora'!$U$64) -> 0 | P98: 0 | R98: 0 | T98: =IF(B98<=0,0,IF('Simulador Valora'!$X$73=1,0,B98*'Simulador Valora'!$X$76)) -> 0 | V98: =IF(B98<=0,0,IF('Simulador Valora'!$V$40=1,'Simulador Valora'!$L$52,IF('Simulador Valora'!$V$40=3,'Simulador Valora'!$I$52,IF('Simulador Valora'!$V$40=4,'Simulador Valora'!$E$52)))) -> 0 | X98: 0 | AB98: 6 | AC98: 7 | AD98: 0 | AE98: 0 | AF98: 0 | AG98: 0 | AH98: 0.12 | AI98: 0 | AJ98: 0 | AK98: 0 | AL98: 0 | AM98: 0 | AN98: 0 | AP98: =IF(AJ98<=0,0,IF('Simulador Valora'!$X$73=1,0,AJ98*'Simulador Valora'!$X$76))+IF(AJ98<=0,0,IF('Simulador Valora'!$V$40=1,'Simulador Valora'!$L$52,IF('Simulador Valora'!$V$40=3,'Simulador Valora'!$I$52,IF('Simulador Valora'!$V$40=4,'Simulador Valora'!$E$52)))) -> 0 | AR98: 0 | AS98: 0 | AU98: 0 | AV98: 79
A99: 80 | B99: 0 | D99: =IF(B99+F99-D98<=0,B99+F99,IF(A99=$B$10,$F$10,IF(A99=$B$11,$F$11,IF(A99=$B$12,$F$12,IF(A99=$B$13,$F$13,IF(A99=$B$14,$F$14,IF(AND('Simulador Valora'!$AE$45=2,L98=0),D98*(1+Z99),IF($AO$3=2,B99*AI99,D98*(1+Z99))))))))) -> 0 | F99: 0 | H99: 0 | J99: =IF(B99-H99=0,0,J97) -> 0 | N99: =IF(OR('Simulador Valora'!$T$65=1,'Simulador Valora'!$T$65=3),0,L99*'Simulador Valora'!$T$66*'Simulador Valora'!$U$64) -> 0 | P99: 0 | R99: 0 | T99: =IF(B99<=0,0,IF('Simulador Valora'!$X$73=1,0,B99*'Simulador Valora'!$X$76)) -> 0 | V99: =IF(B99<=0,0,IF('Simulador Valora'!$V$40=1,'Simulador Valora'!$L$52,IF('Simulador Valora'!$V$40=3,'Simulador Valora'!$I$52,IF('Simulador Valora'!$V$40=4,'Simulador Valora'!$E$52)))) -> 0 | X99: 0 | AB99: 6 | AC99: 8 | AD99: 0 | AE99: 0 | AF99: 0 | AG99: 0 | AH99: 0.12 | AI99: 0 | AJ99: 0 | AK99: 0 | AL99: 0 | AM99: 0 | AN99: 0 | AP99: =IF(AJ99<=0,0,IF('Simulador Valora'!$X$73=1,0,AJ99*'Simulador Valora'!$X$76))+IF(AJ99<=0,0,IF('Simulador Valora'!$V$40=1,'Simulador Valora'!$L$52,IF('Simulador Valora'!$V$40=3,'Simulador Valora'!$I$52,IF('Simulador Valora'!$V$40=4,'Simulador Valora'!$E$52)))) -> 0 | AR99: 0 | AS99: 0 | AU99: 0 | AV99: 80
A100: 81 | B100: 0 | D100: =IF(B100+F100-D99<=0,B100+F100,IF(A100=$B$10,$F$10,IF(A100=$B$11,$F$11,IF(A100=$B$12,$F$12,IF(A100=$B$13,$F$13,IF(A100=$B$14,$F$14,IF(AND('Simulador Valora'!$AE$45=2,L99=0),D99*(1+Z100),IF($AO$3=2,B100*AI100,D99*(1+Z100))))))))) -> 0 | F100: 0 | H100: 0 | N100: =IF(OR('Simulador Valora'!$T$65=1,'Simulador Valora'!$T$65=3),0,L100*'Simulador Valora'!$T$66*'Simulador Valora'!$U$64) -> 0 | P100: 0 | R100: 0 | T100: =IF(B100<=0,0,IF('Simulador Valora'!$X$73=1,0,B100*'Simulador Valora'!$X$76)) -> 0 | V100: =IF(B100<=0,0,IF('Simulador Valora'!$V$40=1,'Simulador Valora'!$L$52,IF('Simulador Valora'!$V$40=3,'Simulador Valora'!$I$52,IF('Simulador Valora'!$V$40=4,'Simulador Valora'!$E$52)))) -> 0 | X100: 0 | AB100: 6 | AC100: 9 | AD100: 0 | AE100: 0 | AF100: 0 | AG100: 0 | AH100: 0.12 | AI100: 0 | AJ100: 0 | AK100: 0 | AL100: 0 | AM100: 0 | AN100: 0 | AP100: =IF(AJ100<=0,0,IF('Simulador Valora'!$X$73=1,0,AJ100*'Simulador Valora'!$X$76))+IF(AJ100<=0,0,IF('Simulador Valora'!$V$40=1,'Simulador Valora'!$L$52,IF('Simulador Valora'!$V$40=3,'Simulador Valora'!$I$52,IF('Simulador Valora'!$V$40=4,'Simulador Valora'!$E$52)))) -> 0 | AR100: 0 | AS100: 0 | AU100: 0 | AV100: 81
A101: 82 | B101: 0 | D101: =IF(B101+F101-D100<=0,B101+F101,IF(A101=$B$10,$F$10,IF(A101=$B$11,$F$11,IF(A101=$B$12,$F$12,IF(A101=$B$13,$F$13,IF(A101=$B$14,$F$14,IF(AND('Simulador Valora'!$AE$45=2,L100=0),D100*(1+Z101),IF($AO$3=2,B101*AI101,D100*(1+Z101))))))))) -> 0 | F101: 0 | H101: 0 | J101: =IF(B101-H101=0,0,J99) -> 0 | N101: =IF(OR('Simulador Valora'!$T$65=1,'Simulador Valora'!$T$65=3),0,L101*'Simulador Valora'!$T$66*'Simulador Valora'!$U$64) -> 0 | P101: 0 | R101: 0 | T101: =IF(B101<=0,0,IF('Simulador Valora'!$X$73=1,0,B101*'Simulador Valora'!$X$76)) -> 0 | V101: =IF(B101<=0,0,IF('Simulador Valora'!$V$40=1,'Simulador Valora'!$L$52,IF('Simulador Valora'!$V$40=3,'Simulador Valora'!$I$52,IF('Simulador Valora'!$V$40=4,'Simulador Valora'!$E$52)))) -> 0 | X101: 0 | AB101: 6 | AC101: 10 | AD101: 0 | AE101: 0 | AF101: 0 | AG101: 0 | AH101: 0.12 | AI101: 0 | AJ101: 0 | AK101: 0 | AL101: 0 | AM101: 0 | AN101: 0 | AP101: =IF(AJ101<=0,0,IF('Simulador Valora'!$X$73=1,0,AJ101*'Simulador Valora'!$X$76))+IF(AJ101<=0,0,IF('Simulador Valora'!$V$40=1,'Simulador Valora'!$L$52,IF('Simulador Valora'!$V$40=3,'Simulador Valora'!$I$52,IF('Simulador Valora'!$V$40=4,'Simulador Valora'!$E$52)))) -> 0 | AR101: 0 | AS101: 0 | AU101: 0 | AV101: 82
A102: 83 | B102: 0 | D102: =IF(B102+F102-D101<=0,B102+F102,IF(A102=$B$10,$F$10,IF(A102=$B$11,$F$11,IF(A102=$B$12,$F$12,IF(A102=$B$13,$F$13,IF(A102=$B$14,$F$14,IF(AND('Simulador Valora'!$AE$45=2,L101=0),D101*(1+Z102),IF($AO$3=2,B102*AI102,D101*(1+Z102))))))))) -> 0 | F102: 0 | H102: 0 | N102: =IF(OR('Simulador Valora'!$T$65=1,'Simulador Valora'!$T$65=3),0,L102*'Simulador Valora'!$T$66*'Simulador Valora'!$U$64) -> 0 | P102: 0 | R102: 0 | T102: =IF(B102<=0,0,IF('Simulador Valora'!$X$73=1,0,B102*'Simulador Valora'!$X$76)) -> 0 | V102: =IF(B102<=0,0,IF('Simulador Valora'!$V$40=1,'Simulador Valora'!$L$52,IF('Simulador Valora'!$V$40=3,'Simulador Valora'!$I$52,IF('Simulador Valora'!$V$40=4,'Simulador Valora'!$E$52)))) -> 0 | X102: 0 | AB102: 6 | AC102: 11 | AD102: 0 | AE102: 0 | AF102: 0 | AG102: 0 | AH102: 0.12 | AI102: 0 | AJ102: 0 | AK102: 0 | AL102: 0 | AM102: 0 | AN102: 0 | AP102: =IF(AJ102<=0,0,IF('Simulador Valora'!$X$73=1,0,AJ102*'Simulador Valora'!$X$76))+IF(AJ102<=0,0,IF('Simulador Valora'!$V$40=1,'Simulador Valora'!$L$52,IF('Simulador Valora'!$V$40=3,'Simulador Valora'!$I$52,IF('Simulador Valora'!$V$40=4,'Simulador Valora'!$E$52)))) -> 0 | AR102: 0 | AS102: 0 | AU102: 0 | AV102: 83
A103: 84 | B103: 0 | D103: =IF(B103+F103-D102<=0,B103+F103,IF(A103=$B$10,$F$10,IF(A103=$B$11,$F$11,IF(A103=$B$12,$F$12,IF(A103=$B$13,$F$13,IF(A103=$B$14,$F$14,IF(AND('Simulador Valora'!$AE$45=2,L102=0),D102*(1+Z103),IF($AO$3=2,B103*AI103,D102*(1+Z103))))))))) -> 0 | F103: 0 | H103: 0 | J103: =IF(B103-H103=0,0,J101) -> 0 | N103: =IF(OR('Simulador Valora'!$T$65=1,'Simulador Valora'!$T$65=3),0,L103*'Simulador Valora'!$T$66*'Simulador Valora'!$U$64) -> 0 | P103: 0 | R103: 0 | T103: =IF(B103<=0,0,IF('Simulador Valora'!$X$73=1,0,B103*'Simulador Valora'!$X$76)) -> 0 | V103: =IF(B103<=0,0,IF('Simulador Valora'!$V$40=1,'Simulador Valora'!$L$52,IF('Simulador Valora'!$V$40=3,'Simulador Valora'!$I$52,IF('Simulador Valora'!$V$40=4,'Simulador Valora'!$E$52)))) -> 0 | X103: 0 | AB103: 7 | AC103: 0 | AD103: 0 | AE103: 0 | AF103: 0 | AG103: 0 | AH103: 0.12 | AI103: 0 | AJ103: 0 | AK103: 0 | AL103: 0 | AM103: 0 | AN103: 0 | AP103: =IF(AJ103<=0,0,IF('Simulador Valora'!$X$73=1,0,AJ103*'Simulador Valora'!$X$76))+IF(AJ103<=0,0,IF('Simulador Valora'!$V$40=1,'Simulador Valora'!$L$52,IF('Simulador Valora'!$V$40=3,'Simulador Valora'!$I$52,IF('Simulador Valora'!$V$40=4,'Simulador Valora'!$E$52)))) -> 0 | AR103: 0 | AS103: 0 | AU103: 0 | AV103: 84
A104: 85 | B104: 0 | D104: =IF(B104+F104-D103<=0,B104+F104,IF(A104=$B$10,$F$10,IF(A104=$B$11,$F$11,IF(A104=$B$12,$F$12,IF(A104=$B$13,$F$13,IF(A104=$B$14,$F$14,IF(AND('Simulador Valora'!$AE$45=2,L103=0),D103*(1+Z104),IF($AO$3=2,B104*AI104,D103*(1+Z104))))))))) -> 0 | F104: 0 | H104: 0 | N104: =IF(OR('Simulador Valora'!$T$65=1,'Simulador Valora'!$T$65=3),0,L104*'Simulador Valora'!$T$66*'Simulador Valora'!$U$64) -> 0 | P104: 0 | R104: 0 | T104: =IF(B104<=0,0,IF('Simulador Valora'!$X$73=1,0,B104*'Simulador Valora'!$X$76)) -> 0 | V104: =IF(B104<=0,0,IF('Simulador Valora'!$V$40=1,'Simulador Valora'!$L$52,IF('Simulador Valora'!$V$40=3,'Simulador Valora'!$I$52,IF('Simulador Valora'!$V$40=4,'Simulador Valora'!$E$52)))) -> 0 | X104: 0 | Z104: =IF(B104<=0,0,'Simulador Valora'!$AF$53) -> 0 | AB104: 7 | AC104: 1 | AD104: 0 | AE104: 0 | AF104: 0 | AG104: 0 | AH104: =IF(AH103=$AG$4,AH103,IF(AH103-0.25%<=$AG$4,$AG$4,AH103-0.25%)) -> 0.12 | AI104: 0 | AJ104: 0 | AK104: 0 | AL104: 0 | AM104: 0 | AN104: 0 | AP104: =IF(AJ104<=0,0,IF('Simulador Valora'!$X$73=1,0,AJ104*'Simulador Valora'!$X$76))+IF(AJ104<=0,0,IF('Simulador Valora'!$V$40=1,'Simulador Valora'!$L$52,IF('Simulador Valora'!$V$40=3,'Simulador Valora'!$I$52,IF('Simulador Valora'!$V$40=4,'Simulador Valora'!$E$52)))) -> 0 | AQ104: =IF(AJ104<=0,0,$AQ$32) -> 0 | AR104: 0 | AS104: 0 | AU104: 0 | AV104: 85
A105: 86 | B105: 0 | D105: =IF(B105+F105-D104<=0,B105+F105,IF(A105=$B$10,$F$10,IF(A105=$B$11,$F$11,IF(A105=$B$12,$F$12,IF(A105=$B$13,$F$13,IF(A105=$B$14,$F$14,IF(AND('Simulador Valora'!$AE$45=2,L104=0),D104*(1+Z105),IF($AO$3=2,B105*AI105,D104*(1+Z105))))))))) -> 0 | F105: 0 | H105: 0 | J105: =IF(B105-H105=0,0,J103*(1+(3%))) -> 0 | N105: =IF(OR('Simulador Valora'!$T$65=1,'Simulador Valora'!$T$65=3),0,L105*'Simulador Valora'!$T$66*'Simulador Valora'!$U$64) -> 0 | P105: 0 | R105: 0 | T105: =IF(B105<=0,0,IF('Simulador Valora'!$X$73=1,0,B105*'Simulador Valora'!$X$76)) -> 0 | V105: =IF(B105<=0,0,IF('Simulador Valora'!$V$40=1,'Simulador Valora'!$L$52,IF('Simulador Valora'!$V$40=3,'Simulador Valora'!$I$52,IF('Simulador Valora'!$V$40=4,'Simulador Valora'!$E$52)))) -> 0 | X105: 0 | AB105: 7 | AC105: 2 | AD105: 0 | AE105: 0 | AF105: 0 | AG105: 0 | AH105: =AH104 -> 0.12 | AI105: 0 | AJ105: 0 | AK105: 0 | AL105: 0 | AM105: 0 | AN105: 0 | AP105: =IF(AJ105<=0,0,IF('Simulador Valora'!$X$73=1,0,AJ105*'Simulador Valora'!$X$76))+IF(AJ105<=0,0,IF('Simulador Valora'!$V$40=1,'Simulador Valora'!$L$52,IF('Simulador Valora'!$V$40=3,'Simulador Valora'!$I$52,IF('Simulador Valora'!$V$40=4,'Simulador Valora'!$E$52)))) -> 0 | AR105: 0 | AS105: 0 | AU105: 0 | AV105: 86
A106: 87 | B106: 0 | D106: =IF(B106+F106-D105<=0,B106+F106,IF(A106=$B$10,$F$10,IF(A106=$B$11,$F$11,IF(A106=$B$12,$F$12,IF(A106=$B$13,$F$13,IF(A106=$B$14,$F$14,IF(AND('Simulador Valora'!$AE$45=2,L105=0),D105*(1+Z106),IF($AO$3=2,B106*AI106,D105*(1+Z106))))))))) -> 0 | F106: 0 | H106: 0 | N106: =IF(OR('Simulador Valora'!$T$65=1,'Simulador Valora'!$T$65=3),0,L106*'Simulador Valora'!$T$66*'Simulador Valora'!$U$64) -> 0 | P106: 0 | R106: 0 | T106: =IF(B106<=0,0,IF('Simulador Valora'!$X$73=1,0,B106*'Simulador Valora'!$X$76)) -> 0 | V106: =IF(B106<=0,0,IF('Simulador Valora'!$V$40=1,'Simulador Valora'!$L$52,IF('Simulador Valora'!$V$40=3,'Simulador Valora'!$I$52,IF('Simulador Valora'!$V$40=4,'Simulador Valora'!$E$52)))) -> 0 | X106: 0 | AB106: 7 | AC106: 3 | AD106: 0 | AE106: 0 | AF106: 0 | AG106: 0 | AH106: =AH105 -> 0.12 | AI106: 0 | AJ106: 0 | AK106: 0 | AL106: 0 | AM106: 0 | AN106: 0 | AP106: =IF(AJ106<=0,0,IF('Simulador Valora'!$X$73=1,0,AJ106*'Simulador Valora'!$X$76))+IF(AJ106<=0,0,IF('Simulador Valora'!$V$40=1,'Simulador Valora'!$L$52,IF('Simulador Valora'!$V$40=3,'Simulador Valora'!$I$52,IF('Simulador Valora'!$V$40=4,'Simulador Valora'!$E$52)))) -> 0 | AR106: 0 | AS106: 0 | AU106: 0 | AV106: 87
A107: 88 | B107: 0 | D107: =IF(B107+F107-D106<=0,B107+F107,IF(A107=$B$10,$F$10,IF(A107=$B$11,$F$11,IF(A107=$B$12,$F$12,IF(A107=$B$13,$F$13,IF(A107=$B$14,$F$14,IF(AND('Simulador Valora'!$AE$45=2,L106=0),D106*(1+Z107),IF($AO$3=2,B107*AI107,D106*(1+Z107))))))))) -> 0 | F107: 0 | H107: 0 | J107: =IF(B107-H107=0,0,J105) -> 0 | N107: =IF(OR('Simulador Valora'!$T$65=1,'Simulador Valora'!$T$65=3),0,L107*'Simulador Valora'!$T$66*'Simulador Valora'!$U$64) -> 0 | P107: 0 | R107: 0 | T107: =IF(B107<=0,0,IF('Simulador Valora'!$X$73=1,0,B107*'Simulador Valora'!$X$76)) -> 0 | V107: =IF(B107<=0,0,IF('Simulador Valora'!$V$40=1,'Simulador Valora'!$L$52,IF('Simulador Valora'!$V$40=3,'Simulador Valora'!$I$52,IF('Simulador Valora'!$V$40=4,'Simulador Valora'!$E$52)))) -> 0 | X107: 0 | AB107: 7 | AC107: 4 | AD107: 0 | AE107: 0 | AF107: 0 | AG107: 0 | AH107: 0.12 | AI107: 0 | AJ107: 0 | AK107: 0 | AL107: 0 | AM107: 0 | AN107: 0 | AP107: =IF(AJ107<=0,0,IF('Simulador Valora'!$X$73=1,0,AJ107*'Simulador Valora'!$X$76))+IF(AJ107<=0,0,IF('Simulador Valora'!$V$40=1,'Simulador Valora'!$L$52,IF('Simulador Valora'!$V$40=3,'Simulador Valora'!$I$52,IF('Simulador Valora'!$V$40=4,'Simulador Valora'!$E$52)))) -> 0 | AR107: 0 | AS107: 0 | AU107: 0 | AV107: 88
A108: 89 | B108: 0 | D108: =IF(B108+F108-D107<=0,B108+F108,IF(A108=$B$10,$F$10,IF(A108=$B$11,$F$11,IF(A108=$B$12,$F$12,IF(A108=$B$13,$F$13,IF(A108=$B$14,$F$14,IF(AND('Simulador Valora'!$AE$45=2,L107=0),D107*(1+Z108),IF($AO$3=2,B108*AI108,D107*(1+Z108))))))))) -> 0 | F108: 0 | H108: 0 | N108: =IF(OR('Simulador Valora'!$T$65=1,'Simulador Valora'!$T$65=3),0,L108*'Simulador Valora'!$T$66*'Simulador Valora'!$U$64) -> 0 | P108: 0 | R108: 0 | T108: =IF(B108<=0,0,IF('Simulador Valora'!$X$73=1,0,B108*'Simulador Valora'!$X$76)) -> 0 | V108: =IF(B108<=0,0,IF('Simulador Valora'!$V$40=1,'Simulador Valora'!$L$52,IF('Simulador Valora'!$V$40=3,'Simulador Valora'!$I$52,IF('Simulador Valora'!$V$40=4,'Simulador Valora'!$E$52)))) -> 0 | X108: 0 | AB108: 7 | AC108: 5 | AD108: 0 | AE108: 0 | AF108: 0 | AG108: 0 | AH108: 0.12 | AI108: 0 | AJ108: 0 | AK108: 0 | AL108: 0 | AM108: 0 | AN108: 0 | AP108: =IF(AJ108<=0,0,IF('Simulador Valora'!$X$73=1,0,AJ108*'Simulador Valora'!$X$76))+IF(AJ108<=0,0,IF('Simulador Valora'!$V$40=1,'Simulador Valora'!$L$52,IF('Simulador Valora'!$V$40=3,'Simulador Valora'!$I$52,IF('Simulador Valora'!$V$40=4,'Simulador Valora'!$E$52)))) -> 0 | AR108: 0 | AS108: 0 | AU108: 0 | AV108: 89
A109: 90 | B109: 0 | D109: =IF(B109+F109-D108<=0,B109+F109,IF(A109=$B$10,$F$10,IF(A109=$B$11,$F$11,IF(A109=$B$12,$F$12,IF(A109=$B$13,$F$13,IF(A109=$B$14,$F$14,IF(AND('Simulador Valora'!$AE$45=2,L108=0),D108*(1+Z109),IF($AO$3=2,B109*AI109,D108*(1+Z109))))))))) -> 0 | F109: 0 | H109: 0 | J109: =IF(B109-H109=0,0,J107) -> 0 | N109: =IF(OR('Simulador Valora'!$T$65=1,'Simulador Valora'!$T$65=3),0,L109*'Simulador Valora'!$T$66*'Simulador Valora'!$U$64) -> 0 | P109: 0 | R109: 0 | T109: =IF(B109<=0,0,IF('Simulador Valora'!$X$73=1,0,B109*'Simulador Valora'!$X$76)) -> 0 | V109: =IF(B109<=0,0,IF('Simulador Valora'!$V$40=1,'Simulador Valora'!$L$52,IF('Simulador Valora'!$V$40=3,'Simulador Valora'!$I$52,IF('Simulador Valora'!$V$40=4,'Simulador Valora'!$E$52)))) -> 0 | X109: 0 | AB109: 7 | AC109: 6 | AD109: 0 | AE109: 0 | AF109: 0 | AG109: 0 | AH109: 0.12 | AI109: 0 | AJ109: 0 | AK109: 0 | AL109: 0 | AM109: 0 | AN109: 0 | AP109: =IF(AJ109<=0,0,IF('Simulador Valora'!$X$73=1,0,AJ109*'Simulador Valora'!$X$76))+IF(AJ109<=0,0,IF('Simulador Valora'!$V$40=1,'Simulador Valora'!$L$52,IF('Simulador Valora'!$V$40=3,'Simulador Valora'!$I$52,IF('Simulador Valora'!$V$40=4,'Simulador Valora'!$E$52)))) -> 0 | AR109: 0 | AS109: 0 | AU109: 0 | AV109: 90
A110: 91 | B110: 0 | D110: =IF(B110+F110-D109<=0,B110+F110,IF(A110=$B$10,$F$10,IF(A110=$B$11,$F$11,IF(A110=$B$12,$F$12,IF(A110=$B$13,$F$13,IF(A110=$B$14,$F$14,IF(AND('Simulador Valora'!$AE$45=2,L109=0),D109*(1+Z110),IF($AO$3=2,B110*AI110,D109*(1+Z110))))))))) -> 0 | F110: 0 | H110: 0 | N110: =IF(OR('Simulador Valora'!$T$65=1,'Simulador Valora'!$T$65=3),0,L110*'Simulador Valora'!$T$66*'Simulador Valora'!$U$64) -> 0 | P110: 0 | R110: 0 | T110: =IF(B110<=0,0,IF('Simulador Valora'!$X$73=1,0,B110*'Simulador Valora'!$X$76)) -> 0 | V110: =IF(B110<=0,0,IF('Simulador Valora'!$V$40=1,'Simulador Valora'!$L$52,IF('Simulador Valora'!$V$40=3,'Simulador Valora'!$I$52,IF('Simulador Valora'!$V$40=4,'Simulador Valora'!$E$52)))) -> 0 | X110: 0 | AB110: 7 | AC110: 7 | AD110: 0 | AE110: 0 | AF110: 0 | AG110: 0 | AH110: 0.12 | AI110: 0 | AJ110: 0 | AK110: 0 | AL110: 0 | AM110: 0 | AN110: 0 | AP110: =IF(AJ110<=0,0,IF('Simulador Valora'!$X$73=1,0,AJ110*'Simulador Valora'!$X$76))+IF(AJ110<=0,0,IF('Simulador Valora'!$V$40=1,'Simulador Valora'!$L$52,IF('Simulador Valora'!$V$40=3,'Simulador Valora'!$I$52,IF('Simulador Valora'!$V$40=4,'Simulador Valora'!$E$52)))) -> 0 | AR110: 0 | AS110: 0 | AU110: 0 | AV110: 91
A111: 92 | B111: 0 | D111: =IF(B111+F111-D110<=0,B111+F111,IF(A111=$B$10,$F$10,IF(A111=$B$11,$F$11,IF(A111=$B$12,$F$12,IF(A111=$B$13,$F$13,IF(A111=$B$14,$F$14,IF(AND('Simulador Valora'!$AE$45=2,L110=0),D110*(1+Z111),IF($AO$3=2,B111*AI111,D110*(1+Z111))))))))) -> 0 | F111: 0 | H111: 0 | J111: =IF(B111-H111=0,0,J109) -> 0 | N111: =IF(OR('Simulador Valora'!$T$65=1,'Simulador Valora'!$T$65=3),0,L111*'Simulador Valora'!$T$66*'Simulador Valora'!$U$64) -> 0 | P111: 0 | R111: 0 | T111: =IF(B111<=0,0,IF('Simulador Valora'!$X$73=1,0,B111*'Simulador Valora'!$X$76)) -> 0 | V111: =IF(B111<=0,0,IF('Simulador Valora'!$V$40=1,'Simulador Valora'!$L$52,IF('Simulador Valora'!$V$40=3,'Simulador Valora'!$I$52,IF('Simulador Valora'!$V$40=4,'Simulador Valora'!$E$52)))) -> 0 | X111: 0 | AB111: 7 | AC111: 8 | AD111: 0 | AE111: 0 | AF111: 0 | AG111: 0 | AH111: 0.12 | AI111: 0 | AJ111: 0 | AK111: 0 | AL111: 0 | AM111: 0 | AN111: 0 | AP111: =IF(AJ111<=0,0,IF('Simulador Valora'!$X$73=1,0,AJ111*'Simulador Valora'!$X$76))+IF(AJ111<=0,0,IF('Simulador Valora'!$V$40=1,'Simulador Valora'!$L$52,IF('Simulador Valora'!$V$40=3,'Simulador Valora'!$I$52,IF('Simulador Valora'!$V$40=4,'Simulador Valora'!$E$52)))) -> 0 | AR111: 0 | AS111: 0 | AU111: 0 | AV111: 92
A112: 93 | B112: 0 | D112: =IF(B112+F112-D111<=0,B112+F112,IF(A112=$B$10,$F$10,IF(A112=$B$11,$F$11,IF(A112=$B$12,$F$12,IF(A112=$B$13,$F$13,IF(A112=$B$14,$F$14,IF(AND('Simulador Valora'!$AE$45=2,L111=0),D111*(1+Z112),IF($AO$3=2,B112*AI112,D111*(1+Z112))))))))) -> 0 | F112: 0 | H112: 0 | N112: =IF(OR('Simulador Valora'!$T$65=1,'Simulador Valora'!$T$65=3),0,L112*'Simulador Valora'!$T$66*'Simulador Valora'!$U$64) -> 0 | P112: 0 | R112: 0 | T112: =IF(B112<=0,0,IF('Simulador Valora'!$X$73=1,0,B112*'Simulador Valora'!$X$76)) -> 0 | V112: =IF(B112<=0,0,IF('Simulador Valora'!$V$40=1,'Simulador Valora'!$L$52,IF('Simulador Valora'!$V$40=3,'Simulador Valora'!$I$52,IF('Simulador Valora'!$V$40=4,'Simulador Valora'!$E$52)))) -> 0 | X112: 0 | AB112: 7 | AC112: 9 | AD112: 0 | AE112: 0 | AF112: 0 | AG112: 0 | AH112: 0.12 | AI112: 0 | AJ112: 0 | AK112: 0 | AL112: 0 | AM112: 0 | AN112: 0 | AP112: =IF(AJ112<=0,0,IF('Simulador Valora'!$X$73=1,0,AJ112*'Simulador Valora'!$X$76))+IF(AJ112<=0,0,IF('Simulador Valora'!$V$40=1,'Simulador Valora'!$L$52,IF('Simulador Valora'!$V$40=3,'Simulador Valora'!$I$52,IF('Simulador Valora'!$V$40=4,'Simulador Valora'!$E$52)))) -> 0 | AR112: 0 | AS112: 0 | AU112: 0 | AV112: 93
A113: 94 | B113: 0 | D113: =IF(B113+F113-D112<=0,B113+F113,IF(A113=$B$10,$F$10,IF(A113=$B$11,$F$11,IF(A113=$B$12,$F$12,IF(A113=$B$13,$F$13,IF(A113=$B$14,$F$14,IF(AND('Simulador Valora'!$AE$45=2,L112=0),D112*(1+Z113),IF($AO$3=2,B113*AI113,D112*(1+Z113))))))))) -> 0 | F113: 0 | H113: 0 | J113: =IF(B113-H113=0,0,J111) -> 0 | N113: =IF(OR('Simulador Valora'!$T$65=1,'Simulador Valora'!$T$65=3),0,L113*'Simulador Valora'!$T$66*'Simulador Valora'!$U$64) -> 0 | P113: 0 | R113: 0 | T113: =IF(B113<=0,0,IF('Simulador Valora'!$X$73=1,0,B113*'Simulador Valora'!$X$76)) -> 0 | V113: =IF(B113<=0,0,IF('Simulador Valora'!$V$40=1,'Simulador Valora'!$L$52,IF('Simulador Valora'!$V$40=3,'Simulador Valora'!$I$52,IF('Simulador Valora'!$V$40=4,'Simulador Valora'!$E$52)))) -> 0 | X113: 0 | AB113: 7 | AC113: 10 | AD113: 0 | AE113: 0 | AF113: 0 | AG113: 0 | AH113: 0.12 | AI113: 0 | AJ113: 0 | AK113: 0 | AL113: 0 | AM113: 0 | AN113: 0 | AP113: =IF(AJ113<=0,0,IF('Simulador Valora'!$X$73=1,0,AJ113*'Simulador Valora'!$X$76))+IF(AJ113<=0,0,IF('Simulador Valora'!$V$40=1,'Simulador Valora'!$L$52,IF('Simulador Valora'!$V$40=3,'Simulador Valora'!$I$52,IF('Simulador Valora'!$V$40=4,'Simulador Valora'!$E$52)))) -> 0 | AR113: 0 | AS113: 0 | AU113: 0 | AV113: 94
A114: 95 | B114: 0 | D114: =IF(B114+F114-D113<=0,B114+F114,IF(A114=$B$10,$F$10,IF(A114=$B$11,$F$11,IF(A114=$B$12,$F$12,IF(A114=$B$13,$F$13,IF(A114=$B$14,$F$14,IF(AND('Simulador Valora'!$AE$45=2,L113=0),D113*(1+Z114),IF($AO$3=2,B114*AI114,D113*(1+Z114))))))))) -> 0 | F114: 0 | H114: 0 | N114: =IF(OR('Simulador Valora'!$T$65=1,'Simulador Valora'!$T$65=3),0,L114*'Simulador Valora'!$T$66*'Simulador Valora'!$U$64) -> 0 | P114: 0 | R114: 0 | T114: =IF(B114<=0,0,IF('Simulador Valora'!$X$73=1,0,B114*'Simulador Valora'!$X$76)) -> 0 | V114: =IF(B114<=0,0,IF('Simulador Valora'!$V$40=1,'Simulador Valora'!$L$52,IF('Simulador Valora'!$V$40=3,'Simulador Valora'!$I$52,IF('Simulador Valora'!$V$40=4,'Simulador Valora'!$E$52)))) -> 0 | X114: 0 | AB114: 7 | AC114: 11 | AD114: 0 | AE114: 0 | AF114: 0 | AG114: 0 | AH114: 0.12 | AI114: 0 | AJ114: 0 | AK114: 0 | AL114: 0 | AM114: 0 | AN114: 0 | AP114: =IF(AJ114<=0,0,IF('Simulador Valora'!$X$73=1,0,AJ114*'Simulador Valora'!$X$76))+IF(AJ114<=0,0,IF('Simulador Valora'!$V$40=1,'Simulador Valora'!$L$52,IF('Simulador Valora'!$V$40=3,'Simulador Valora'!$I$52,IF('Simulador Valora'!$V$40=4,'Simulador Valora'!$E$52)))) -> 0 | AR114: 0 | AS114: 0 | AU114: 0 | AV114: 95
A115: 96 | B115: 0 | D115: =IF(B115+F115-D114<=0,B115+F115,IF(A115=$B$10,$F$10,IF(A115=$B$11,$F$11,IF(A115=$B$12,$F$12,IF(A115=$B$13,$F$13,IF(A115=$B$14,$F$14,IF(AND('Simulador Valora'!$AE$45=2,L114=0),D114*(1+Z115),IF($AO$3=2,B115*AI115,D114*(1+Z115))))))))) -> 0 | F115: 0 | H115: 0 | J115: =IF(B115-H115=0,0,J113) -> 0 | N115: =IF(OR('Simulador Valora'!$T$65=1,'Simulador Valora'!$T$65=3),0,L115*'Simulador Valora'!$T$66*'Simulador Valora'!$U$64) -> 0 | P115: 0 | R115: 0 | T115: =IF(B115<=0,0,IF('Simulador Valora'!$X$73=1,0,B115*'Simulador Valora'!$X$76)) -> 0 | V115: =IF(B115<=0,0,IF('Simulador Valora'!$V$40=1,'Simulador Valora'!$L$52,IF('Simulador Valora'!$V$40=3,'Simulador Valora'!$I$52,IF('Simulador Valora'!$V$40=4,'Simulador Valora'!$E$52)))) -> 0 | X115: 0 | AB115: 8 | AC115: 0 | AD115: 0 | AE115: 0 | AF115: 0 | AG115: 0 | AH115: 0.12 | AI115: 0 | AJ115: 0 | AK115: 0 | AL115: 0 | AM115: 0 | AN115: 0 | AP115: =IF(AJ115<=0,0,IF('Simulador Valora'!$X$73=1,0,AJ115*'Simulador Valora'!$X$76))+IF(AJ115<=0,0,IF('Simulador Valora'!$V$40=1,'Simulador Valora'!$L$52,IF('Simulador Valora'!$V$40=3,'Simulador Valora'!$I$52,IF('Simulador Valora'!$V$40=4,'Simulador Valora'!$E$52)))) -> 0 | AR115: 0 | AS115: 0 | AU115: 0 | AV115: 96
A116: 97 | B116: 0 | D116: =IF(B116+F116-D115<=0,B116+F116,IF(A116=$B$10,$F$10,IF(A116=$B$11,$F$11,IF(A116=$B$12,$F$12,IF(A116=$B$13,$F$13,IF(A116=$B$14,$F$14,IF(AND('Simulador Valora'!$AE$45=2,L115=0),D115*(1+Z116),IF($AO$3=2,B116*AI116,D115*(1+Z116))))))))) -> 0 | F116: 0 | H116: 0 | N116: =IF(OR('Simulador Valora'!$T$65=1,'Simulador Valora'!$T$65=3),0,L116*'Simulador Valora'!$T$66*'Simulador Valora'!$U$64) -> 0 | P116: 0 | R116: 0 | T116: =IF(B116<=0,0,IF('Simulador Valora'!$X$73=1,0,B116*'Simulador Valora'!$X$76)) -> 0 | V116: =IF(B116<=0,0,IF('Simulador Valora'!$V$40=1,'Simulador Valora'!$L$52,IF('Simulador Valora'!$V$40=3,'Simulador Valora'!$I$52,IF('Simulador Valora'!$V$40=4,'Simulador Valora'!$E$52)))) -> 0 | X116: 0 | Z116: =IF(B116<=0,0,'Simulador Valora'!$AF$53) -> 0 | AB116: 8 | AC116: 1 | AD116: 0 | AE116: 0 | AF116: 0 | AG116: 0 | AH116: =IF(AH115=$AG$4,AH115,IF(AH115-0.25%<=$AG$4,$AG$4,AH115-0.25%)) -> 0.12 | AI116: 0 | AJ116: 0 | AK116: 0 | AL116: 0 | AM116: 0 | AN116: 0 | AP116: =IF(AJ116<=0,0,IF('Simulador Valora'!$X$73=1,0,AJ116*'Simulador Valora'!$X$76))+IF(AJ116<=0,0,IF('Simulador Valora'!$V$40=1,'Simulador Valora'!$L$52,IF('Simulador Valora'!$V$40=3,'Simulador Valora'!$I$52,IF('Simulador Valora'!$V$40=4,'Simulador Valora'!$E$52)))) -> 0 | AQ116: =IF(AJ116<=0,0,$AQ$32) -> 0 | AR116: 0 | AS116: 0 | AU116: 0 | AV116: 97
A117: 98 | B117: 0 | D117: =IF(B117+F117-D116<=0,B117+F117,IF(A117=$B$10,$F$10,IF(A117=$B$11,$F$11,IF(A117=$B$12,$F$12,IF(A117=$B$13,$F$13,IF(A117=$B$14,$F$14,IF(AND('Simulador Valora'!$AE$45=2,L116=0),D116*(1+Z117),IF($AO$3=2,B117*AI117,D116*(1+Z117))))))))) -> 0 | F117: 0 | H117: 0 | J117: =IF(B117-H117=0,0,J115*(1+(3%))) -> 0 | N117: =IF(OR('Simulador Valora'!$T$65=1,'Simulador Valora'!$T$65=3),0,L117*'Simulador Valora'!$T$66*'Simulador Valora'!$U$64) -> 0 | P117: 0 | R117: 0 | T117: =IF(B117<=0,0,IF('Simulador Valora'!$X$73=1,0,B117*'Simulador Valora'!$X$76)) -> 0 | V117: =IF(B117<=0,0,IF('Simulador Valora'!$V$40=1,'Simulador Valora'!$L$52,IF('Simulador Valora'!$V$40=3,'Simulador Valora'!$I$52,IF('Simulador Valora'!$V$40=4,'Simulador Valora'!$E$52)))) -> 0 | X117: 0 | AB117: 8 | AC117: 2 | AD117: 0 | AE117: 0 | AF117: 0 | AG117: 0 | AH117: =AH116 -> 0.12 | AI117: 0 | AJ117: 0 | AK117: 0 | AL117: 0 | AM117: 0 | AN117: 0 | AP117: =IF(AJ117<=0,0,IF('Simulador Valora'!$X$73=1,0,AJ117*'Simulador Valora'!$X$76))+IF(AJ117<=0,0,IF('Simulador Valora'!$V$40=1,'Simulador Valora'!$L$52,IF('Simulador Valora'!$V$40=3,'Simulador Valora'!$I$52,IF('Simulador Valora'!$V$40=4,'Simulador Valora'!$E$52)))) -> 0 | AR117: 0 | AS117: 0 | AU117: 0 | AV117: 98
A118: 99 | B118: 0 | D118: =IF(B118+F118-D117<=0,B118+F118,IF(A118=$B$10,$F$10,IF(A118=$B$11,$F$11,IF(A118=$B$12,$F$12,IF(A118=$B$13,$F$13,IF(A118=$B$14,$F$14,IF(AND('Simulador Valora'!$AE$45=2,L117=0),D117*(1+Z118),IF($AO$3=2,B118*AI118,D117*(1+Z118))))))))) -> 0 | F118: 0 | H118: 0 | N118: =IF(OR('Simulador Valora'!$T$65=1,'Simulador Valora'!$T$65=3),0,L118*'Simulador Valora'!$T$66*'Simulador Valora'!$U$64) -> 0 | P118: 0 | R118: 0 | T118: =IF(B118<=0,0,IF('Simulador Valora'!$X$73=1,0,B118*'Simulador Valora'!$X$76)) -> 0 | V118: =IF(B118<=0,0,IF('Simulador Valora'!$V$40=1,'Simulador Valora'!$L$52,IF('Simulador Valora'!$V$40=3,'Simulador Valora'!$I$52,IF('Simulador Valora'!$V$40=4,'Simulador Valora'!$E$52)))) -> 0 | X118: 0 | AB118: 8 | AC118: 3 | AD118: 0 | AE118: 0 | AF118: 0 | AG118: 0 | AH118: =AH117 -> 0.12 | AI118: 0 | AJ118: 0 | AK118: 0 | AL118: 0 | AM118: 0 | AN118: 0 | AP118: =IF(AJ118<=0,0,IF('Simulador Valora'!$X$73=1,0,AJ118*'Simulador Valora'!$X$76))+IF(AJ118<=0,0,IF('Simulador Valora'!$V$40=1,'Simulador Valora'!$L$52,IF('Simulador Valora'!$V$40=3,'Simulador Valora'!$I$52,IF('Simulador Valora'!$V$40=4,'Simulador Valora'!$E$52)))) -> 0 | AR118: 0 | AS118: 0 | AU118: 0 | AV118: 99
A119: 100 | B119: 0 | D119: =IF(B119+F119-D118<=0,B119+F119,IF(A119=$B$10,$F$10,IF(A119=$B$11,$F$11,IF(A119=$B$12,$F$12,IF(A119=$B$13,$F$13,IF(A119=$B$14,$F$14,IF(AND('Simulador Valora'!$AE$45=2,L118=0),D118*(1+Z119),IF($AO$3=2,B119*AI119,D118*(1+Z119))))))))) -> 0 | F119: 0 | H119: 0 | J119: =IF(B119-H119=0,0,J117) -> 0 | N119: =IF(OR('Simulador Valora'!$T$65=1,'Simulador Valora'!$T$65=3),0,L119*'Simulador Valora'!$T$66*'Simulador Valora'!$U$64) -> 0 | P119: 0 | R119: 0 | T119: =IF(B119<=0,0,IF('Simulador Valora'!$X$73=1,0,B119*'Simulador Valora'!$X$76)) -> 0 | V119: =IF(B119<=0,0,IF('Simulador Valora'!$V$40=1,'Simulador Valora'!$L$52,IF('Simulador Valora'!$V$40=3,'Simulador Valora'!$I$52,IF('Simulador Valora'!$V$40=4,'Simulador Valora'!$E$52)))) -> 0 | X119: 0 | AB119: 8 | AC119: 4 | AD119: 0 | AE119: 0 | AF119: 0 | AG119: 0 | AH119: 0.12 | AI119: 0 | AJ119: 0 | AK119: 0 | AL119: 0 | AM119: 0 | AN119: 0 | AP119: =IF(AJ119<=0,0,IF('Simulador Valora'!$X$73=1,0,AJ119*'Simulador Valora'!$X$76))+IF(AJ119<=0,0,IF('Simulador Valora'!$V$40=1,'Simulador Valora'!$L$52,IF('Simulador Valora'!$V$40=3,'Simulador Valora'!$I$52,IF('Simulador Valora'!$V$40=4,'Simulador Valora'!$E$52)))) -> 0 | AR119: 0 | AS119: 0 | AU119: 0 | AV119: 100
A120: 101 | B120: 0 | D120: =IF(B120+F120-D119<=0,B120+F120,IF(A120=$B$10,$F$10,IF(A120=$B$11,$F$11,IF(A120=$B$12,$F$12,IF(A120=$B$13,$F$13,IF(A120=$B$14,$F$14,IF(AND('Simulador Valora'!$AE$45=2,L119=0),D119*(1+Z120),IF($AO$3=2,B120*AI120,D119*(1+Z120))))))))) -> 0 | F120: 0 | H120: 0 | N120: =IF(OR('Simulador Valora'!$T$65=1,'Simulador Valora'!$T$65=3),0,L120*'Simulador Valora'!$T$66*'Simulador Valora'!$U$64) -> 0 | P120: 0 | R120: 0 | T120: =IF(B120<=0,0,IF('Simulador Valora'!$X$73=1,0,B120*'Simulador Valora'!$X$76)) -> 0 | V120: =IF(B120<=0,0,IF('Simulador Valora'!$V$40=1,'Simulador Valora'!$L$52,IF('Simulador Valora'!$V$40=3,'Simulador Valora'!$I$52,IF('Simulador Valora'!$V$40=4,'Simulador Valora'!$E$52)))) -> 0 | X120: 0 | AB120: 8 | AC120: 5 | AD120: 0 | AE120: 0 | AF120: 0 | AG120: 0 | AH120: 0.12 | AI120: 0 | AJ120: 0 | AK120: 0 | AL120: 0 | AM120: 0 | AN120: 0 | AP120: =IF(AJ120<=0,0,IF('Simulador Valora'!$X$73=1,0,AJ120*'Simulador Valora'!$X$76))+IF(AJ120<=0,0,IF('Simulador Valora'!$V$40=1,'Simulador Valora'!$L$52,IF('Simulador Valora'!$V$40=3,'Simulador Valora'!$I$52,IF('Simulador Valora'!$V$40=4,'Simulador Valora'!$E$52)))) -> 0 | AR120: 0 | AS120: 0 | AU120: 0 | AV120: 101
A121: 102 | B121: 0 | D121: =IF(B121+F121-D120<=0,B121+F121,IF(A121=$B$10,$F$10,IF(A121=$B$11,$F$11,IF(A121=$B$12,$F$12,IF(A121=$B$13,$F$13,IF(A121=$B$14,$F$14,IF(AND('Simulador Valora'!$AE$45=2,L120=0),D120*(1+Z121),IF($AO$3=2,B121*AI121,D120*(1+Z121))))))))) -> 0 | F121: 0 | H121: 0 | J121: =IF(B121-H121=0,0,J119) -> 0 | N121: =IF(OR('Simulador Valora'!$T$65=1,'Simulador Valora'!$T$65=3),0,L121*'Simulador Valora'!$T$66*'Simulador Valora'!$U$64) -> 0 | P121: 0 | R121: 0 | T121: =IF(B121<=0,0,IF('Simulador Valora'!$X$73=1,0,B121*'Simulador Valora'!$X$76)) -> 0 | V121: =IF(B121<=0,0,IF('Simulador Valora'!$V$40=1,'Simulador Valora'!$L$52,IF('Simulador Valora'!$V$40=3,'Simulador Valora'!$I$52,IF('Simulador Valora'!$V$40=4,'Simulador Valora'!$E$52)))) -> 0 | X121: 0 | AB121: 8 | AC121: 6 | AD121: 0 | AE121: 0 | AF121: 0 | AG121: 0 | AH121: 0.12 | AI121: 0 | AJ121: 0 | AK121: 0 | AL121: 0 | AM121: 0 | AN121: 0 | AP121: =IF(AJ121<=0,0,IF('Simulador Valora'!$X$73=1,0,AJ121*'Simulador Valora'!$X$76))+IF(AJ121<=0,0,IF('Simulador Valora'!$V$40=1,'Simulador Valora'!$L$52,IF('Simulador Valora'!$V$40=3,'Simulador Valora'!$I$52,IF('Simulador Valora'!$V$40=4,'Simulador Valora'!$E$52)))) -> 0 | AR121: 0 | AS121: 0 | AU121: 0 | AV121: 102
A122: 103 | B122: 0 | D122: =IF(B122+F122-D121<=0,B122+F122,IF(A122=$B$10,$F$10,IF(A122=$B$11,$F$11,IF(A122=$B$12,$F$12,IF(A122=$B$13,$F$13,IF(A122=$B$14,$F$14,IF(AND('Simulador Valora'!$AE$45=2,L121=0),D121*(1+Z122),IF($AO$3=2,B122*AI122,D121*(1+Z122))))))))) -> 0 | F122: 0 | H122: 0 | N122: =IF(OR('Simulador Valora'!$T$65=1,'Simulador Valora'!$T$65=3),0,L122*'Simulador Valora'!$T$66*'Simulador Valora'!$U$64) -> 0 | P122: 0 | R122: 0 | T122: =IF(B122<=0,0,IF('Simulador Valora'!$X$73=1,0,B122*'Simulador Valora'!$X$76)) -> 0 | V122: =IF(B122<=0,0,IF('Simulador Valora'!$V$40=1,'Simulador Valora'!$L$52,IF('Simulador Valora'!$V$40=3,'Simulador Valora'!$I$52,IF('Simulador Valora'!$V$40=4,'Simulador Valora'!$E$52)))) -> 0 | X122: 0 | AB122: 8 | AC122: 7 | AD122: 0 | AE122: 0 | AF122: 0 | AG122: 0 | AH122: 0.12 | AI122: 0 | AJ122: 0 | AK122: 0 | AL122: 0 | AM122: 0 | AN122: 0 | AP122: =IF(AJ122<=0,0,IF('Simulador Valora'!$X$73=1,0,AJ122*'Simulador Valora'!$X$76))+IF(AJ122<=0,0,IF('Simulador Valora'!$V$40=1,'Simulador Valora'!$L$52,IF('Simulador Valora'!$V$40=3,'Simulador Valora'!$I$52,IF('Simulador Valora'!$V$40=4,'Simulador Valora'!$E$52)))) -> 0 | AR122: 0 | AS122: 0 | AU122: 0 | AV122: 103
A123: 104 | B123: 0 | D123: =IF(B123+F123-D122<=0,B123+F123,IF(A123=$B$10,$F$10,IF(A123=$B$11,$F$11,IF(A123=$B$12,$F$12,IF(A123=$B$13,$F$13,IF(A123=$B$14,$F$14,IF(AND('Simulador Valora'!$AE$45=2,L122=0),D122*(1+Z123),IF($AO$3=2,B123*AI123,D122*(1+Z123))))))))) -> 0 | F123: 0 | H123: 0 | J123: =IF(B123-H123=0,0,J121) -> 0 | N123: =IF(OR('Simulador Valora'!$T$65=1,'Simulador Valora'!$T$65=3),0,L123*'Simulador Valora'!$T$66*'Simulador Valora'!$U$64) -> 0 | P123: 0 | R123: 0 | T123: =IF(B123<=0,0,IF('Simulador Valora'!$X$73=1,0,B123*'Simulador Valora'!$X$76)) -> 0 | V123: =IF(B123<=0,0,IF('Simulador Valora'!$V$40=1,'Simulador Valora'!$L$52,IF('Simulador Valora'!$V$40=3,'Simulador Valora'!$I$52,IF('Simulador Valora'!$V$40=4,'Simulador Valora'!$E$52)))) -> 0 | X123: 0 | AB123: 8 | AC123: 8 | AD123: 0 | AE123: 0 | AF123: 0 | AG123: 0 | AH123: 0.12 | AI123: 0 | AJ123: 0 | AK123: 0 | AL123: 0 | AM123: 0 | AN123: 0 | AP123: =IF(AJ123<=0,0,IF('Simulador Valora'!$X$73=1,0,AJ123*'Simulador Valora'!$X$76))+IF(AJ123<=0,0,IF('Simulador Valora'!$V$40=1,'Simulador Valora'!$L$52,IF('Simulador Valora'!$V$40=3,'Simulador Valora'!$I$52,IF('Simulador Valora'!$V$40=4,'Simulador Valora'!$E$52)))) -> 0 | AR123: 0 | AS123: 0 | AU123: 0 | AV123: 104
A124: 105 | B124: 0 | D124: =IF(B124+F124-D123<=0,B124+F124,IF(A124=$B$10,$F$10,IF(A124=$B$11,$F$11,IF(A124=$B$12,$F$12,IF(A124=$B$13,$F$13,IF(A124=$B$14,$F$14,IF(AND('Simulador Valora'!$AE$45=2,L123=0),D123*(1+Z124),IF($AO$3=2,B124*AI124,D123*(1+Z124))))))))) -> 0 | F124: 0 | H124: 0 | N124: =IF(OR('Simulador Valora'!$T$65=1,'Simulador Valora'!$T$65=3),0,L124*'Simulador Valora'!$T$66*'Simulador Valora'!$U$64) -> 0 | P124: 0 | R124: 0 | T124: =IF(B124<=0,0,IF('Simulador Valora'!$X$73=1,0,B124*'Simulador Valora'!$X$76)) -> 0 | V124: =IF(B124<=0,0,IF('Simulador Valora'!$V$40=1,'Simulador Valora'!$L$52,IF('Simulador Valora'!$V$40=3,'Simulador Valora'!$I$52,IF('Simulador Valora'!$V$40=4,'Simulador Valora'!$E$52)))) -> 0 | X124: 0 | AB124: 8 | AC124: 9 | AD124: 0 | AE124: 0 | AF124: 0 | AG124: 0 | AH124: 0.12 | AI124: 0 | AJ124: 0 | AK124: 0 | AL124: 0 | AM124: 0 | AN124: 0 | AP124: =IF(AJ124<=0,0,IF('Simulador Valora'!$X$73=1,0,AJ124*'Simulador Valora'!$X$76))+IF(AJ124<=0,0,IF('Simulador Valora'!$V$40=1,'Simulador Valora'!$L$52,IF('Simulador Valora'!$V$40=3,'Simulador Valora'!$I$52,IF('Simulador Valora'!$V$40=4,'Simulador Valora'!$E$52)))) -> 0 | AR124: 0 | AS124: 0 | AU124: 0 | AV124: 105
A125: 106 | B125: 0 | D125: =IF(B125+F125-D124<=0,B125+F125,IF(A125=$B$10,$F$10,IF(A125=$B$11,$F$11,IF(A125=$B$12,$F$12,IF(A125=$B$13,$F$13,IF(A125=$B$14,$F$14,IF(AND('Simulador Valora'!$AE$45=2,L124=0),D124*(1+Z125),IF($AO$3=2,B125*AI125,D124*(1+Z125))))))))) -> 0 | F125: 0 | H125: 0 | J125: =IF(B125-H125=0,0,J123) -> 0 | N125: =IF(OR('Simulador Valora'!$T$65=1,'Simulador Valora'!$T$65=3),0,L125*'Simulador Valora'!$T$66*'Simulador Valora'!$U$64) -> 0 | P125: 0 | R125: 0 | T125: =IF(B125<=0,0,IF('Simulador Valora'!$X$73=1,0,B125*'Simulador Valora'!$X$76)) -> 0 | V125: =IF(B125<=0,0,IF('Simulador Valora'!$V$40=1,'Simulador Valora'!$L$52,IF('Simulador Valora'!$V$40=3,'Simulador Valora'!$I$52,IF('Simulador Valora'!$V$40=4,'Simulador Valora'!$E$52)))) -> 0 | X125: 0 | AB125: 8 | AC125: 10 | AD125: 0 | AE125: 0 | AF125: 0 | AG125: 0 | AH125: 0.12 | AI125: 0 | AJ125: 0 | AK125: 0 | AL125: 0 | AM125: 0 | AN125: 0 | AP125: =IF(AJ125<=0,0,IF('Simulador Valora'!$X$73=1,0,AJ125*'Simulador Valora'!$X$76))+IF(AJ125<=0,0,IF('Simulador Valora'!$V$40=1,'Simulador Valora'!$L$52,IF('Simulador Valora'!$V$40=3,'Simulador Valora'!$I$52,IF('Simulador Valora'!$V$40=4,'Simulador Valora'!$E$52)))) -> 0 | AR125: 0 | AS125: 0 | AU125: 0 | AV125: 106
A126: 107 | B126: 0 | D126: =IF(B126+F126-D125<=0,B126+F126,IF(A126=$B$10,$F$10,IF(A126=$B$11,$F$11,IF(A126=$B$12,$F$12,IF(A126=$B$13,$F$13,IF(A126=$B$14,$F$14,IF(AND('Simulador Valora'!$AE$45=2,L125=0),D125*(1+Z126),IF($AO$3=2,B126*AI126,D125*(1+Z126))))))))) -> 0 | F126: 0 | H126: 0 | N126: =IF(OR('Simulador Valora'!$T$65=1,'Simulador Valora'!$T$65=3),0,L126*'Simulador Valora'!$T$66*'Simulador Valora'!$U$64) -> 0 | P126: 0 | R126: 0 | T126: =IF(B126<=0,0,IF('Simulador Valora'!$X$73=1,0,B126*'Simulador Valora'!$X$76)) -> 0 | V126: =IF(B126<=0,0,IF('Simulador Valora'!$V$40=1,'Simulador Valora'!$L$52,IF('Simulador Valora'!$V$40=3,'Simulador Valora'!$I$52,IF('Simulador Valora'!$V$40=4,'Simulador Valora'!$E$52)))) -> 0 | X126: 0 | AB126: 8 | AC126: 11 | AD126: 0 | AE126: 0 | AF126: 0 | AG126: 0 | AH126: 0.12 | AI126: 0 | AJ126: 0 | AK126: 0 | AL126: 0 | AM126: 0 | AN126: 0 | AP126: =IF(AJ126<=0,0,IF('Simulador Valora'!$X$73=1,0,AJ126*'Simulador Valora'!$X$76))+IF(AJ126<=0,0,IF('Simulador Valora'!$V$40=1,'Simulador Valora'!$L$52,IF('Simulador Valora'!$V$40=3,'Simulador Valora'!$I$52,IF('Simulador Valora'!$V$40=4,'Simulador Valora'!$E$52)))) -> 0 | AR126: 0 | AS126: 0 | AU126: 0 | AV126: 107
A127: 108 | B127: 0 | D127: =IF(B127+F127-D126<=0,B127+F127,IF(A127=$B$10,$F$10,IF(A127=$B$11,$F$11,IF(A127=$B$12,$F$12,IF(A127=$B$13,$F$13,IF(A127=$B$14,$F$14,IF(AND('Simulador Valora'!$AE$45=2,L126=0),D126*(1+Z127),IF($AO$3=2,B127*AI127,D126*(1+Z127))))))))) -> 0 | F127: 0 | H127: 0 | J127: =IF(B127-H127=0,0,J125) -> 0 | N127: =IF(OR('Simulador Valora'!$T$65=1,'Simulador Valora'!$T$65=3),0,L127*'Simulador Valora'!$T$66*'Simulador Valora'!$U$64) -> 0 | P127: 0 | R127: 0 | T127: =IF(B127<=0,0,IF('Simulador Valora'!$X$73=1,0,B127*'Simulador Valora'!$X$76)) -> 0 | V127: =IF(B127<=0,0,IF('Simulador Valora'!$V$40=1,'Simulador Valora'!$L$52,IF('Simulador Valora'!$V$40=3,'Simulador Valora'!$I$52,IF('Simulador Valora'!$V$40=4,'Simulador Valora'!$E$52)))) -> 0 | X127: 0 | AB127: 9 | AC127: 0 | AD127: 0 | AE127: 0 | AF127: 0 | AG127: 0 | AH127: 0.12 | AI127: 0 | AJ127: 0 | AK127: 0 | AL127: 0 | AM127: 0 | AN127: 0 | AP127: =IF(AJ127<=0,0,IF('Simulador Valora'!$X$73=1,0,AJ127*'Simulador Valora'!$X$76))+IF(AJ127<=0,0,IF('Simulador Valora'!$V$40=1,'Simulador Valora'!$L$52,IF('Simulador Valora'!$V$40=3,'Simulador Valora'!$I$52,IF('Simulador Valora'!$V$40=4,'Simulador Valora'!$E$52)))) -> 0 | AR127: 0 | AS127: 0 | AU127: 0 | AV127: 108
A128: 109 | B128: 0 | D128: =IF(B128+F128-D127<=0,B128+F128,IF(A128=$B$10,$F$10,IF(A128=$B$11,$F$11,IF(A128=$B$12,$F$12,IF(A128=$B$13,$F$13,IF(A128=$B$14,$F$14,IF(AND('Simulador Valora'!$AE$45=2,L127=0),D127*(1+Z128),IF($AO$3=2,B128*AI128,D127*(1+Z128))))))))) -> 0 | F128: 0 | H128: 0 | N128: =IF(OR('Simulador Valora'!$T$65=1,'Simulador Valora'!$T$65=3),0,L128*'Simulador Valora'!$T$66*'Simulador Valora'!$U$64) -> 0 | P128: 0 | R128: 0 | T128: =IF(B128<=0,0,IF('Simulador Valora'!$X$73=1,0,B128*'Simulador Valora'!$X$76)) -> 0 | V128: =IF(B128<=0,0,IF('Simulador Valora'!$V$40=1,'Simulador Valora'!$L$52,IF('Simulador Valora'!$V$40=3,'Simulador Valora'!$I$52,IF('Simulador Valora'!$V$40=4,'Simulador Valora'!$E$52)))) -> 0 | X128: 0 | Z128: =IF(B128<=0,0,'Simulador Valora'!$AF$53) -> 0 | AB128: 9 | AC128: 1 | AD128: 0 | AE128: 0 | AF128: 0 | AG128: 0 | AH128: =IF(AH127=$AG$4,AH127,IF(AH127-0.25%<=$AG$4,$AG$4,AH127-0.25%)) -> 0.12 | AI128: 0 | AJ128: 0 | AK128: 0 | AL128: 0 | AM128: 0 | AN128: 0 | AP128: =IF(AJ128<=0,0,IF('Simulador Valora'!$X$73=1,0,AJ128*'Simulador Valora'!$X$76))+IF(AJ128<=0,0,IF('Simulador Valora'!$V$40=1,'Simulador Valora'!$L$52,IF('Simulador Valora'!$V$40=3,'Simulador Valora'!$I$52,IF('Simulador Valora'!$V$40=4,'Simulador Valora'!$E$52)))) -> 0 | AQ128: =IF(AJ128<=0,0,$AQ$32) -> 0 | AR128: 0 | AS128: 0 | AU128: 0 | AV128: 109
A129: 110 | B129: 0 | D129: =IF(B129+F129-D128<=0,B129+F129,IF(A129=$B$10,$F$10,IF(A129=$B$11,$F$11,IF(A129=$B$12,$F$12,IF(A129=$B$13,$F$13,IF(A129=$B$14,$F$14,IF(AND('Simulador Valora'!$AE$45=2,L128=0),D128*(1+Z129),IF($AO$3=2,B129*AI129,D128*(1+Z129))))))))) -> 0 | F129: 0 | H129: 0 | J129: =IF(B129-H129=0,0,J127*(1+(3%))) -> 0 | N129: =IF(OR('Simulador Valora'!$T$65=1,'Simulador Valora'!$T$65=3),0,L129*'Simulador Valora'!$T$66*'Simulador Valora'!$U$64) -> 0 | P129: 0 | R129: 0 | T129: =IF(B129<=0,0,IF('Simulador Valora'!$X$73=1,0,B129*'Simulador Valora'!$X$76)) -> 0 | V129: =IF(B129<=0,0,IF('Simulador Valora'!$V$40=1,'Simulador Valora'!$L$52,IF('Simulador Valora'!$V$40=3,'Simulador Valora'!$I$52,IF('Simulador Valora'!$V$40=4,'Simulador Valora'!$E$52)))) -> 0 | X129: 0 | AB129: 9 | AC129: 2 | AD129: 0 | AE129: 0 | AF129: 0 | AG129: 0 | AH129: =AH128 -> 0.12 | AI129: 0 | AJ129: 0 | AK129: 0 | AL129: 0 | AM129: 0 | AN129: 0 | AP129: =IF(AJ129<=0,0,IF('Simulador Valora'!$X$73=1,0,AJ129*'Simulador Valora'!$X$76))+IF(AJ129<=0,0,IF('Simulador Valora'!$V$40=1,'Simulador Valora'!$L$52,IF('Simulador Valora'!$V$40=3,'Simulador Valora'!$I$52,IF('Simulador Valora'!$V$40=4,'Simulador Valora'!$E$52)))) -> 0 | AR129: 0 | AS129: 0 | AU129: 0 | AV129: 110
A130: 111 | B130: 0 | D130: =IF(B130+F130-D129<=0,B130+F130,IF(A130=$B$10,$F$10,IF(A130=$B$11,$F$11,IF(A130=$B$12,$F$12,IF(A130=$B$13,$F$13,IF(A130=$B$14,$F$14,IF(AND('Simulador Valora'!$AE$45=2,L129=0),D129*(1+Z130),IF($AO$3=2,B130*AI130,D129*(1+Z130))))))))) -> 0 | F130: 0 | H130: 0 | N130: =IF(OR('Simulador Valora'!$T$65=1,'Simulador Valora'!$T$65=3),0,L130*'Simulador Valora'!$T$66*'Simulador Valora'!$U$64) -> 0 | P130: 0 | R130: 0 | T130: =IF(B130<=0,0,IF('Simulador Valora'!$X$73=1,0,B130*'Simulador Valora'!$X$76)) -> 0 | V130: =IF(B130<=0,0,IF('Simulador Valora'!$V$40=1,'Simulador Valora'!$L$52,IF('Simulador Valora'!$V$40=3,'Simulador Valora'!$I$52,IF('Simulador Valora'!$V$40=4,'Simulador Valora'!$E$52)))) -> 0 | X130: 0 | AB130: 9 | AC130: 3 | AD130: 0 | AE130: 0 | AF130: 0 | AG130: 0 | AH130: =AH129 -> 0.12 | AI130: 0 | AJ130: 0 | AK130: 0 | AL130: 0 | AM130: 0 | AN130: 0 | AP130: =IF(AJ130<=0,0,IF('Simulador Valora'!$X$73=1,0,AJ130*'Simulador Valora'!$X$76))+IF(AJ130<=0,0,IF('Simulador Valora'!$V$40=1,'Simulador Valora'!$L$52,IF('Simulador Valora'!$V$40=3,'Simulador Valora'!$I$52,IF('Simulador Valora'!$V$40=4,'Simulador Valora'!$E$52)))) -> 0 | AR130: 0 | AS130: 0 | AU130: 0 | AV130: 111
A131: 112 | B131: 0 | D131: =IF(B131+F131-D130<=0,B131+F131,IF(A131=$B$10,$F$10,IF(A131=$B$11,$F$11,IF(A131=$B$12,$F$12,IF(A131=$B$13,$F$13,IF(A131=$B$14,$F$14,IF(AND('Simulador Valora'!$AE$45=2,L130=0),D130*(1+Z131),IF($AO$3=2,B131*AI131,D130*(1+Z131))))))))) -> 0 | F131: 0 | H131: 0 | J131: =IF(B131-H131=0,0,J129) -> 0 | N131: =IF(OR('Simulador Valora'!$T$65=1,'Simulador Valora'!$T$65=3),0,L131*'Simulador Valora'!$T$66*'Simulador Valora'!$U$64) -> 0 | P131: 0 | R131: 0 | T131: =IF(B131<=0,0,IF('Simulador Valora'!$X$73=1,0,B131*'Simulador Valora'!$X$76)) -> 0 | V131: =IF(B131<=0,0,IF('Simulador Valora'!$V$40=1,'Simulador Valora'!$L$52,IF('Simulador Valora'!$V$40=3,'Simulador Valora'!$I$52,IF('Simulador Valora'!$V$40=4,'Simulador Valora'!$E$52)))) -> 0 | X131: 0 | AB131: 9 | AC131: 4 | AD131: 0 | AE131: 0 | AF131: 0 | AG131: 0 | AH131: 0.12 | AI131: 0 | AJ131: 0 | AK131: 0 | AL131: 0 | AM131: 0 | AN131: 0 | AP131: =IF(AJ131<=0,0,IF('Simulador Valora'!$X$73=1,0,AJ131*'Simulador Valora'!$X$76))+IF(AJ131<=0,0,IF('Simulador Valora'!$V$40=1,'Simulador Valora'!$L$52,IF('Simulador Valora'!$V$40=3,'Simulador Valora'!$I$52,IF('Simulador Valora'!$V$40=4,'Simulador Valora'!$E$52)))) -> 0 | AR131: 0 | AS131: 0 | AU131: 0 | AV131: 112
A132: 113 | B132: 0 | D132: =IF(B132+F132-D131<=0,B132+F132,IF(A132=$B$10,$F$10,IF(A132=$B$11,$F$11,IF(A132=$B$12,$F$12,IF(A132=$B$13,$F$13,IF(A132=$B$14,$F$14,IF(AND('Simulador Valora'!$AE$45=2,L131=0),D131*(1+Z132),IF($AO$3=2,B132*AI132,D131*(1+Z132))))))))) -> 0 | F132: 0 | H132: 0 | N132: =IF(OR('Simulador Valora'!$T$65=1,'Simulador Valora'!$T$65=3),0,L132*'Simulador Valora'!$T$66*'Simulador Valora'!$U$64) -> 0 | P132: 0 | R132: 0 | T132: =IF(B132<=0,0,IF('Simulador Valora'!$X$73=1,0,B132*'Simulador Valora'!$X$76)) -> 0 | V132: =IF(B132<=0,0,IF('Simulador Valora'!$V$40=1,'Simulador Valora'!$L$52,IF('Simulador Valora'!$V$40=3,'Simulador Valora'!$I$52,IF('Simulador Valora'!$V$40=4,'Simulador Valora'!$E$52)))) -> 0 | X132: 0 | AB132: 9 | AC132: 5 | AD132: 0 | AE132: 0 | AF132: 0 | AG132: 0 | AH132: 0.12 | AI132: 0 | AJ132: 0 | AK132: 0 | AL132: 0 | AM132: 0 | AN132: 0 | AP132: =IF(AJ132<=0,0,IF('Simulador Valora'!$X$73=1,0,AJ132*'Simulador Valora'!$X$76))+IF(AJ132<=0,0,IF('Simulador Valora'!$V$40=1,'Simulador Valora'!$L$52,IF('Simulador Valora'!$V$40=3,'Simulador Valora'!$I$52,IF('Simulador Valora'!$V$40=4,'Simulador Valora'!$E$52)))) -> 0 | AR132: 0 | AS132: 0 | AU132: 0 | AV132: 113
A133: 114 | B133: 0 | D133: =IF(B133+F133-D132<=0,B133+F133,IF(A133=$B$10,$F$10,IF(A133=$B$11,$F$11,IF(A133=$B$12,$F$12,IF(A133=$B$13,$F$13,IF(A133=$B$14,$F$14,IF(AND('Simulador Valora'!$AE$45=2,L132=0),D132*(1+Z133),IF($AO$3=2,B133*AI133,D132*(1+Z133))))))))) -> 0 | F133: 0 | H133: 0 | J133: =IF(B133-H133=0,0,J131) -> 0 | N133: =IF(OR('Simulador Valora'!$T$65=1,'Simulador Valora'!$T$65=3),0,L133*'Simulador Valora'!$T$66*'Simulador Valora'!$U$64) -> 0 | P133: 0 | R133: 0 | T133: =IF(B133<=0,0,IF('Simulador Valora'!$X$73=1,0,B133*'Simulador Valora'!$X$76)) -> 0 | V133: =IF(B133<=0,0,IF('Simulador Valora'!$V$40=1,'Simulador Valora'!$L$52,IF('Simulador Valora'!$V$40=3,'Simulador Valora'!$I$52,IF('Simulador Valora'!$V$40=4,'Simulador Valora'!$E$52)))) -> 0 | X133: 0 | AB133: 9 | AC133: 6 | AD133: 0 | AE133: 0 | AF133: 0 | AG133: 0 | AH133: 0.12 | AI133: 0 | AJ133: 0 | AK133: 0 | AL133: 0 | AM133: 0 | AN133: 0 | AP133: =IF(AJ133<=0,0,IF('Simulador Valora'!$X$73=1,0,AJ133*'Simulador Valora'!$X$76))+IF(AJ133<=0,0,IF('Simulador Valora'!$V$40=1,'Simulador Valora'!$L$52,IF('Simulador Valora'!$V$40=3,'Simulador Valora'!$I$52,IF('Simulador Valora'!$V$40=4,'Simulador Valora'!$E$52)))) -> 0 | AR133: 0 | AS133: 0 | AU133: 0 | AV133: 114
A134: 115 | B134: 0 | D134: =IF(B134+F134-D133<=0,B134+F134,IF(A134=$B$10,$F$10,IF(A134=$B$11,$F$11,IF(A134=$B$12,$F$12,IF(A134=$B$13,$F$13,IF(A134=$B$14,$F$14,IF(AND('Simulador Valora'!$AE$45=2,L133=0),D133*(1+Z134),IF($AO$3=2,B134*AI134,D133*(1+Z134))))))))) -> 0 | F134: 0 | H134: 0 | N134: =IF(OR('Simulador Valora'!$T$65=1,'Simulador Valora'!$T$65=3),0,L134*'Simulador Valora'!$T$66*'Simulador Valora'!$U$64) -> 0 | P134: 0 | R134: 0 | T134: =IF(B134<=0,0,IF('Simulador Valora'!$X$73=1,0,B134*'Simulador Valora'!$X$76)) -> 0 | V134: =IF(B134<=0,0,IF('Simulador Valora'!$V$40=1,'Simulador Valora'!$L$52,IF('Simulador Valora'!$V$40=3,'Simulador Valora'!$I$52,IF('Simulador Valora'!$V$40=4,'Simulador Valora'!$E$52)))) -> 0 | X134: 0 | AB134: 9 | AC134: 7 | AD134: 0 | AE134: 0 | AF134: 0 | AG134: 0 | AH134: 0.12 | AI134: 0 | AJ134: 0 | AK134: 0 | AL134: 0 | AM134: 0 | AN134: 0 | AP134: =IF(AJ134<=0,0,IF('Simulador Valora'!$X$73=1,0,AJ134*'Simulador Valora'!$X$76))+IF(AJ134<=0,0,IF('Simulador Valora'!$V$40=1,'Simulador Valora'!$L$52,IF('Simulador Valora'!$V$40=3,'Simulador Valora'!$I$52,IF('Simulador Valora'!$V$40=4,'Simulador Valora'!$E$52)))) -> 0 | AR134: 0 | AS134: 0 | AU134: 0 | AV134: 115
A135: 116 | B135: 0 | D135: =IF(B135+F135-D134<=0,B135+F135,IF(A135=$B$10,$F$10,IF(A135=$B$11,$F$11,IF(A135=$B$12,$F$12,IF(A135=$B$13,$F$13,IF(A135=$B$14,$F$14,IF(AND('Simulador Valora'!$AE$45=2,L134=0),D134*(1+Z135),IF($AO$3=2,B135*AI135,D134*(1+Z135))))))))) -> 0 | F135: 0 | H135: 0 | J135: =IF(B135-H135=0,0,J133) -> 0 | N135: =IF(OR('Simulador Valora'!$T$65=1,'Simulador Valora'!$T$65=3),0,L135*'Simulador Valora'!$T$66*'Simulador Valora'!$U$64) -> 0 | P135: 0 | R135: 0 | T135: =IF(B135<=0,0,IF('Simulador Valora'!$X$73=1,0,B135*'Simulador Valora'!$X$76)) -> 0 | V135: =IF(B135<=0,0,IF('Simulador Valora'!$V$40=1,'Simulador Valora'!$L$52,IF('Simulador Valora'!$V$40=3,'Simulador Valora'!$I$52,IF('Simulador Valora'!$V$40=4,'Simulador Valora'!$E$52)))) -> 0 | X135: 0 | AB135: 9 | AC135: 8 | AD135: 0 | AE135: 0 | AF135: 0 | AG135: 0 | AH135: 0.12 | AI135: 0 | AJ135: 0 | AK135: 0 | AL135: 0 | AM135: 0 | AN135: 0 | AP135: =IF(AJ135<=0,0,IF('Simulador Valora'!$X$73=1,0,AJ135*'Simulador Valora'!$X$76))+IF(AJ135<=0,0,IF('Simulador Valora'!$V$40=1,'Simulador Valora'!$L$52,IF('Simulador Valora'!$V$40=3,'Simulador Valora'!$I$52,IF('Simulador Valora'!$V$40=4,'Simulador Valora'!$E$52)))) -> 0 | AR135: 0 | AS135: 0 | AU135: 0 | AV135: 116
A136: 117 | B136: 0 | D136: =IF(B136+F136-D135<=0,B136+F136,IF(A136=$B$10,$F$10,IF(A136=$B$11,$F$11,IF(A136=$B$12,$F$12,IF(A136=$B$13,$F$13,IF(A136=$B$14,$F$14,IF(AND('Simulador Valora'!$AE$45=2,L135=0),D135*(1+Z136),IF($AO$3=2,B136*AI136,D135*(1+Z136))))))))) -> 0 | F136: 0 | H136: 0 | N136: =IF(OR('Simulador Valora'!$T$65=1,'Simulador Valora'!$T$65=3),0,L136*'Simulador Valora'!$T$66*'Simulador Valora'!$U$64) -> 0 | P136: 0 | R136: 0 | T136: =IF(B136<=0,0,IF('Simulador Valora'!$X$73=1,0,B136*'Simulador Valora'!$X$76)) -> 0 | V136: =IF(B136<=0,0,IF('Simulador Valora'!$V$40=1,'Simulador Valora'!$L$52,IF('Simulador Valora'!$V$40=3,'Simulador Valora'!$I$52,IF('Simulador Valora'!$V$40=4,'Simulador Valora'!$E$52)))) -> 0 | X136: 0 | AB136: 9 | AC136: 9 | AD136: 0 | AE136: 0 | AF136: 0 | AG136: 0 | AH136: 0.12 | AI136: 0 | AJ136: 0 | AK136: 0 | AL136: 0 | AM136: 0 | AN136: 0 | AP136: =IF(AJ136<=0,0,IF('Simulador Valora'!$X$73=1,0,AJ136*'Simulador Valora'!$X$76))+IF(AJ136<=0,0,IF('Simulador Valora'!$V$40=1,'Simulador Valora'!$L$52,IF('Simulador Valora'!$V$40=3,'Simulador Valora'!$I$52,IF('Simulador Valora'!$V$40=4,'Simulador Valora'!$E$52)))) -> 0 | AR136: 0 | AS136: 0 | AU136: 0 | AV136: 117
A137: 118 | B137: 0 | D137: =IF(B137+F137-D136<=0,B137+F137,IF(A137=$B$10,$F$10,IF(A137=$B$11,$F$11,IF(A137=$B$12,$F$12,IF(A137=$B$13,$F$13,IF(A137=$B$14,$F$14,IF(AND('Simulador Valora'!$AE$45=2,L136=0),D136*(1+Z137),IF($AO$3=2,B137*AI137,D136*(1+Z137))))))))) -> 0 | F137: 0 | H137: 0 | J137: =IF(B137-H137=0,0,J135) -> 0 | N137: =IF(OR('Simulador Valora'!$T$65=1,'Simulador Valora'!$T$65=3),0,L137*'Simulador Valora'!$T$66*'Simulador Valora'!$U$64) -> 0 | P137: 0 | R137: 0 | T137: =IF(B137<=0,0,IF('Simulador Valora'!$X$73=1,0,B137*'Simulador Valora'!$X$76)) -> 0 | V137: =IF(B137<=0,0,IF('Simulador Valora'!$V$40=1,'Simulador Valora'!$L$52,IF('Simulador Valora'!$V$40=3,'Simulador Valora'!$I$52,IF('Simulador Valora'!$V$40=4,'Simulador Valora'!$E$52)))) -> 0 | X137: 0 | AB137: 9 | AC137: 10 | AD137: 0 | AE137: 0 | AF137: 0 | AG137: 0 | AH137: 0.12 | AI137: 0 | AJ137: 0 | AK137: 0 | AL137: 0 | AM137: 0 | AN137: 0 | AP137: =IF(AJ137<=0,0,IF('Simulador Valora'!$X$73=1,0,AJ137*'Simulador Valora'!$X$76))+IF(AJ137<=0,0,IF('Simulador Valora'!$V$40=1,'Simulador Valora'!$L$52,IF('Simulador Valora'!$V$40=3,'Simulador Valora'!$I$52,IF('Simulador Valora'!$V$40=4,'Simulador Valora'!$E$52)))) -> 0 | AR137: 0 | AS137: 0 | AU137: 0 | AV137: 118
A138: 119 | B138: 0 | D138: =IF(B138+F138-D137<=0,B138+F138,IF(A138=$B$10,$F$10,IF(A138=$B$11,$F$11,IF(A138=$B$12,$F$12,IF(A138=$B$13,$F$13,IF(A138=$B$14,$F$14,IF(AND('Simulador Valora'!$AE$45=2,L137=0),D137*(1+Z138),IF($AO$3=2,B138*AI138,D137*(1+Z138))))))))) -> 0 | F138: 0 | H138: 0 | N138: =IF(OR('Simulador Valora'!$T$65=1,'Simulador Valora'!$T$65=3),0,L138*'Simulador Valora'!$T$66*'Simulador Valora'!$U$64) -> 0 | P138: 0 | R138: 0 | T138: =IF(B138<=0,0,IF('Simulador Valora'!$X$73=1,0,B138*'Simulador Valora'!$X$76)) -> 0 | V138: =IF(B138<=0,0,IF('Simulador Valora'!$V$40=1,'Simulador Valora'!$L$52,IF('Simulador Valora'!$V$40=3,'Simulador Valora'!$I$52,IF('Simulador Valora'!$V$40=4,'Simulador Valora'!$E$52)))) -> 0 | X138: 0 | AB138: 9 | AC138: 11 | AD138: 0 | AE138: 0 | AF138: 0 | AG138: 0 | AH138: 0.12 | AI138: 0 | AJ138: 0 | AK138: 0 | AL138: 0 | AM138: 0 | AN138: 0 | AP138: =IF(AJ138<=0,0,IF('Simulador Valora'!$X$73=1,0,AJ138*'Simulador Valora'!$X$76))+IF(AJ138<=0,0,IF('Simulador Valora'!$V$40=1,'Simulador Valora'!$L$52,IF('Simulador Valora'!$V$40=3,'Simulador Valora'!$I$52,IF('Simulador Valora'!$V$40=4,'Simulador Valora'!$E$52)))) -> 0 | AR138: 0 | AS138: 0 | AU138: 0 | AV138: 119
A139: 120 | B139: 0 | D139: =IF(B139+F139-D138<=0,B139+F139,IF(A139=$B$10,$F$10,IF(A139=$B$11,$F$11,IF(A139=$B$12,$F$12,IF(A139=$B$13,$F$13,IF(A139=$B$14,$F$14,IF(AND('Simulador Valora'!$AE$45=2,L138=0),D138*(1+Z139),IF($AO$3=2,B139*AI139,D138*(1+Z139))))))))) -> 0 | F139: 0 | H139: 0 | J139: =IF(B139-H139=0,0,J137) -> 0 | N139: =IF(OR('Simulador Valora'!$T$65=1,'Simulador Valora'!$T$65=3),0,L139*'Simulador Valora'!$T$66*'Simulador Valora'!$U$64) -> 0 | P139: 0 | R139: 0 | T139: =IF(B139<=0,0,IF('Simulador Valora'!$X$73=1,0,B139*'Simulador Valora'!$X$76)) -> 0 | V139: =IF(B139<=0,0,IF('Simulador Valora'!$V$40=1,'Simulador Valora'!$L$52,IF('Simulador Valora'!$V$40=3,'Simulador Valora'!$I$52,IF('Simulador Valora'!$V$40=4,'Simulador Valora'!$E$52)))) -> 0 | X139: 0 | AB139: 10 | AC139: 0 | AD139: 0 | AE139: 0 | AF139: 0 | AG139: 0 | AH139: 0.12 | AI139: 0 | AJ139: 0 | AK139: 0 | AL139: 0 | AM139: 0 | AN139: 0 | AP139: =IF(AJ139<=0,0,IF('Simulador Valora'!$X$73=1,0,AJ139*'Simulador Valora'!$X$76))+IF(AJ139<=0,0,IF('Simulador Valora'!$V$40=1,'Simulador Valora'!$L$52,IF('Simulador Valora'!$V$40=3,'Simulador Valora'!$I$52,IF('Simulador Valora'!$V$40=4,'Simulador Valora'!$E$52)))) -> 0 | AR139: 0 | AS139: 0 | AU139: 0 | AV139: 120
A140: 121 | B140: 0 | D140: =IF(B140+F140-D139<=0,B140+F140,IF(A140=$B$10,$F$10,IF(A140=$B$11,$F$11,IF(A140=$B$12,$F$12,IF(A140=$B$13,$F$13,IF(A140=$B$14,$F$14,IF(AND('Simulador Valora'!$AE$45=2,L139=0),D139*(1+Z140),IF($AO$3=2,B140*AI140,D139*(1+Z140))))))))) -> 0 | F140: 0 | H140: 0 | N140: =IF(OR('Simulador Valora'!$T$65=1,'Simulador Valora'!$T$65=3),0,L140*'Simulador Valora'!$T$66*'Simulador Valora'!$U$64) -> 0 | P140: 0 | R140: 0 | T140: =IF(B140<=0,0,IF('Simulador Valora'!$X$73=1,0,B140*'Simulador Valora'!$X$76)) -> 0 | V140: =IF(B140<=0,0,IF('Simulador Valora'!$V$40=1,'Simulador Valora'!$L$52,IF('Simulador Valora'!$V$40=3,'Simulador Valora'!$I$52,IF('Simulador Valora'!$V$40=4,'Simulador Valora'!$E$52)))) -> 0 | X140: 0 | Z140: =IF(B140<=0,0,'Simulador Valora'!$AF$53) -> 0 | AB140: 10 | AC140: 1 | AD140: 0 | AE140: 0 | AF140: 0 | AG140: 0 | AH140: =IF(AH139=$AG$4,AH139,IF(AH139-0.25%<=$AG$4,$AG$4,AH139-0.25%)) -> 0.12 | AI140: 0 | AJ140: 0 | AK140: 0 | AL140: 0 | AM140: 0 | AN140: 0 | AP140: =IF(AJ140<=0,0,IF('Simulador Valora'!$X$73=1,0,AJ140*'Simulador Valora'!$X$76))+IF(AJ140<=0,0,IF('Simulador Valora'!$V$40=1,'Simulador Valora'!$L$52,IF('Simulador Valora'!$V$40=3,'Simulador Valora'!$I$52,IF('Simulador Valora'!$V$40=4,'Simulador Valora'!$E$52)))) -> 0 | AQ140: =IF(AJ140<=0,0,$AQ$32) -> 0 | AR140: 0 | AS140: =IFERROR(IF(AK140<=0.01,0,AS139-1),0) -> 0 | AU140: 0 | AV140: 121
A141: 122 | B141: 0 | D141: =IF(B141+F141-D140<=0,B141+F141,IF(A141=$B$10,$F$10,IF(A141=$B$11,$F$11,IF(A141=$B$12,$F$12,IF(A141=$B$13,$F$13,IF(A141=$B$14,$F$14,IF(AND('Simulador Valora'!$AE$45=2,L140=0),D140*(1+Z141),IF($AO$3=2,B141*AI141,D140*(1+Z141))))))))) -> 0 | F141: 0 | H141: 0 | J141: =IF(B141-H141=0,0,J139*(1+(3%))) -> 0 | N141: =IF(OR('Simulador Valora'!$T$65=1,'Simulador Valora'!$T$65=3),0,L141*'Simulador Valora'!$T$66*'Simulador Valora'!$U$64) -> 0 | P141: 0 | R141: 0 | T141: =IF(B141<=0,0,IF('Simulador Valora'!$X$73=1,0,B141*'Simulador Valora'!$X$76)) -> 0 | V141: =IF(B141<=0,0,IF('Simulador Valora'!$V$40=1,'Simulador Valora'!$L$52,IF('Simulador Valora'!$V$40=3,'Simulador Valora'!$I$52,IF('Simulador Valora'!$V$40=4,'Simulador Valora'!$E$52)))) -> 0 | X141: 0 | AB141: 10 | AC141: 2 | AD141: 0 | AE141: 0 | AF141: 0 | AG141: 0 | AH141: =AH140 -> 0.12 | AI141: 0 | AJ141: 0 | AK141: 0 | AL141: 0 | AM141: 0 | AN141: 0 | AP141: =IF(AJ141<=0,0,IF('Simulador Valora'!$X$73=1,0,AJ141*'Simulador Valora'!$X$76))+IF(AJ141<=0,0,IF('Simulador Valora'!$V$40=1,'Simulador Valora'!$L$52,IF('Simulador Valora'!$V$40=3,'Simulador Valora'!$I$52,IF('Simulador Valora'!$V$40=4,'Simulador Valora'!$E$52)))) -> 0 | AR141: 0 | AS141: =IFERROR(IF(AK141<=0.01,0,AS140-1),0) -> 0 | AU141: 0 | AV141: 122
A142: 123 | B142: 0 | D142: =IF(B142+F142-D141<=0,B142+F142,IF(A142=$B$10,$F$10,IF(A142=$B$11,$F$11,IF(A142=$B$12,$F$12,IF(A142=$B$13,$F$13,IF(A142=$B$14,$F$14,IF(AND('Simulador Valora'!$AE$45=2,L141=0),D141*(1+Z142),IF($AO$3=2,B142*AI142,D141*(1+Z142))))))))) -> 0 | F142: 0 | H142: 0 | N142: =IF(OR('Simulador Valora'!$T$65=1,'Simulador Valora'!$T$65=3),0,L142*'Simulador Valora'!$T$66*'Simulador Valora'!$U$64) -> 0 | P142: 0 | R142: 0 | T142: =IF(B142<=0,0,IF('Simulador Valora'!$X$73=1,0,B142*'Simulador Valora'!$X$76)) -> 0 | V142: =IF(B142<=0,0,IF('Simulador Valora'!$V$40=1,'Simulador Valora'!$L$52,IF('Simulador Valora'!$V$40=3,'Simulador Valora'!$I$52,IF('Simulador Valora'!$V$40=4,'Simulador Valora'!$E$52)))) -> 0 | X142: 0 | AB142: 10 | AC142: 3 | AD142: 0 | AE142: 0 | AF142: 0 | AG142: 0 | AH142: =AH141 -> 0.12 | AI142: 0 | AJ142: 0 | AK142: 0 | AL142: 0 | AM142: 0 | AN142: 0 | AP142: =IF(AJ142<=0,0,IF('Simulador Valora'!$X$73=1,0,AJ142*'Simulador Valora'!$X$76))+IF(AJ142<=0,0,IF('Simulador Valora'!$V$40=1,'Simulador Valora'!$L$52,IF('Simulador Valora'!$V$40=3,'Simulador Valora'!$I$52,IF('Simulador Valora'!$V$40=4,'Simulador Valora'!$E$52)))) -> 0 | AR142: 0 | AS142: 0 | AU142: 0 | AV142: 123
A143: 124 | B143: 0 | D143: =IF(B143+F143-D142<=0,B143+F143,IF(A143=$B$10,$F$10,IF(A143=$B$11,$F$11,IF(A143=$B$12,$F$12,IF(A143=$B$13,$F$13,IF(A143=$B$14,$F$14,IF(AND('Simulador Valora'!$AE$45=2,L142=0),D142*(1+Z143),IF($AO$3=2,B143*AI143,D142*(1+Z143))))))))) -> 0 | F143: 0 | H143: 0 | J143: =IF(B143-H143=0,0,J141) -> 0 | N143: =IF(OR('Simulador Valora'!$T$65=1,'Simulador Valora'!$T$65=3),0,L143*'Simulador Valora'!$T$66*'Simulador Valora'!$U$64) -> 0 | P143: 0 | R143: 0 | T143: =IF(B143<=0,0,IF('Simulador Valora'!$X$73=1,0,B143*'Simulador Valora'!$X$76)) -> 0 | V143: =IF(B143<=0,0,IF('Simulador Valora'!$V$40=1,'Simulador Valora'!$L$52,IF('Simulador Valora'!$V$40=3,'Simulador Valora'!$I$52,IF('Simulador Valora'!$V$40=4,'Simulador Valora'!$E$52)))) -> 0 | X143: 0 | AB143: 10 | AC143: 4 | AD143: 0 | AE143: 0 | AF143: 0 | AG143: 0 | AH143: 0.12 | AI143: 0 | AJ143: 0 | AK143: 0 | AL143: 0 | AM143: 0 | AN143: 0 | AP143: =IF(AJ143<=0,0,IF('Simulador Valora'!$X$73=1,0,AJ143*'Simulador Valora'!$X$76))+IF(AJ143<=0,0,IF('Simulador Valora'!$V$40=1,'Simulador Valora'!$L$52,IF('Simulador Valora'!$V$40=3,'Simulador Valora'!$I$52,IF('Simulador Valora'!$V$40=4,'Simulador Valora'!$E$52)))) -> 0 | AR143: 0 | AS143: 0 | AU143: 0 | AV143: 124
A144: 125 | B144: 0 | D144: =IF(B144+F144-D143<=0,B144+F144,IF(A144=$B$10,$F$10,IF(A144=$B$11,$F$11,IF(A144=$B$12,$F$12,IF(A144=$B$13,$F$13,IF(A144=$B$14,$F$14,IF(AND('Simulador Valora'!$AE$45=2,L143=0),D143*(1+Z144),IF($AO$3=2,B144*AI144,D143*(1+Z144))))))))) -> 0 | F144: 0 | H144: 0 | N144: =IF(OR('Simulador Valora'!$T$65=1,'Simulador Valora'!$T$65=3),0,L144*'Simulador Valora'!$T$66*'Simulador Valora'!$U$64) -> 0 | P144: 0 | R144: 0 | T144: =IF(B144<=0,0,IF('Simulador Valora'!$X$73=1,0,B144*'Simulador Valora'!$X$76)) -> 0 | V144: =IF(B144<=0,0,IF('Simulador Valora'!$V$40=1,'Simulador Valora'!$L$52,IF('Simulador Valora'!$V$40=3,'Simulador Valora'!$I$52,IF('Simulador Valora'!$V$40=4,'Simulador Valora'!$E$52)))) -> 0 | X144: 0 | AB144: 10 | AC144: 5 | AD144: 0 | AE144: 0 | AF144: 0 | AG144: 0 | AH144: 0.12 | AI144: 0 | AJ144: 0 | AK144: 0 | AL144: 0 | AM144: 0 | AN144: 0 | AP144: =IF(AJ144<=0,0,IF('Simulador Valora'!$X$73=1,0,AJ144*'Simulador Valora'!$X$76))+IF(AJ144<=0,0,IF('Simulador Valora'!$V$40=1,'Simulador Valora'!$L$52,IF('Simulador Valora'!$V$40=3,'Simulador Valora'!$I$52,IF('Simulador Valora'!$V$40=4,'Simulador Valora'!$E$52)))) -> 0 | AR144: 0 | AS144: 0 | AU144: 0 | AV144: 125
A145: 126 | B145: 0 | D145: =IF(B145+F145-D144<=0,B145+F145,IF(A145=$B$10,$F$10,IF(A145=$B$11,$F$11,IF(A145=$B$12,$F$12,IF(A145=$B$13,$F$13,IF(A145=$B$14,$F$14,IF(AND('Simulador Valora'!$AE$45=2,L144=0),D144*(1+Z145),IF($AO$3=2,B145*AI145,D144*(1+Z145))))))))) -> 0 | F145: 0 | H145: 0 | J145: =IF(B145-H145=0,0,J143) -> 0 | N145: =IF(OR('Simulador Valora'!$T$65=1,'Simulador Valora'!$T$65=3),0,L145*'Simulador Valora'!$T$66*'Simulador Valora'!$U$64) -> 0 | P145: 0 | R145: 0 | T145: =IF(B145<=0,0,IF('Simulador Valora'!$X$73=1,0,B145*'Simulador Valora'!$X$76)) -> 0 | V145: =IF(B145<=0,0,IF('Simulador Valora'!$V$40=1,'Simulador Valora'!$L$52,IF('Simulador Valora'!$V$40=3,'Simulador Valora'!$I$52,IF('Simulador Valora'!$V$40=4,'Simulador Valora'!$E$52)))) -> 0 | X145: 0 | AB145: 10 | AC145: 6 | AD145: 0 | AE145: 0 | AF145: 0 | AG145: 0 | AH145: 0.12 | AI145: 0 | AJ145: 0 | AK145: 0 | AL145: 0 | AM145: 0 | AN145: 0 | AP145: =IF(AJ145<=0,0,IF('Simulador Valora'!$X$73=1,0,AJ145*'Simulador Valora'!$X$76))+IF(AJ145<=0,0,IF('Simulador Valora'!$V$40=1,'Simulador Valora'!$L$52,IF('Simulador Valora'!$V$40=3,'Simulador Valora'!$I$52,IF('Simulador Valora'!$V$40=4,'Simulador Valora'!$E$52)))) -> 0 | AR145: 0 | AS145: 0 | AU145: 0 | AV145: 126
A146: 127 | B146: 0 | D146: =IF(B146+F146-D145<=0,B146+F146,IF(A146=$B$10,$F$10,IF(A146=$B$11,$F$11,IF(A146=$B$12,$F$12,IF(A146=$B$13,$F$13,IF(A146=$B$14,$F$14,IF(AND('Simulador Valora'!$AE$45=2,L145=0),D145*(1+Z146),IF($AO$3=2,B146*AI146,D145*(1+Z146))))))))) -> 0 | F146: 0 | H146: 0 | N146: =IF(OR('Simulador Valora'!$T$65=1,'Simulador Valora'!$T$65=3),0,L146*'Simulador Valora'!$T$66*'Simulador Valora'!$U$64) -> 0 | P146: 0 | R146: 0 | T146: =IF(B146<=0,0,IF('Simulador Valora'!$X$73=1,0,B146*'Simulador Valora'!$X$76)) -> 0 | V146: =IF(B146<=0,0,IF('Simulador Valora'!$V$40=1,'Simulador Valora'!$L$52,IF('Simulador Valora'!$V$40=3,'Simulador Valora'!$I$52,IF('Simulador Valora'!$V$40=4,'Simulador Valora'!$E$52)))) -> 0 | X146: 0 | AB146: 10 | AC146: 7 | AD146: 0 | AE146: 0 | AF146: 0 | AG146: 0 | AH146: 0.12 | AI146: 0 | AJ146: 0 | AK146: 0 | AL146: 0 | AM146: 0 | AN146: 0 | AP146: =IF(AJ146<=0,0,IF('Simulador Valora'!$X$73=1,0,AJ146*'Simulador Valora'!$X$76))+IF(AJ146<=0,0,IF('Simulador Valora'!$V$40=1,'Simulador Valora'!$L$52,IF('Simulador Valora'!$V$40=3,'Simulador Valora'!$I$52,IF('Simulador Valora'!$V$40=4,'Simulador Valora'!$E$52)))) -> 0 | AR146: 0 | AS146: 0 | AU146: 0 | AV146: 127
A147: 128 | B147: 0 | D147: =IF(B147+F147-D146<=0,B147+F147,IF(A147=$B$10,$F$10,IF(A147=$B$11,$F$11,IF(A147=$B$12,$F$12,IF(A147=$B$13,$F$13,IF(A147=$B$14,$F$14,IF(AND('Simulador Valora'!$AE$45=2,L146=0),D146*(1+Z147),IF($AO$3=2,B147*AI147,D146*(1+Z147))))))))) -> 0 | F147: 0 | H147: 0 | J147: =IF(B147-H147=0,0,J145) -> 0 | N147: =IF(OR('Simulador Valora'!$T$65=1,'Simulador Valora'!$T$65=3),0,L147*'Simulador Valora'!$T$66*'Simulador Valora'!$U$64) -> 0 | P147: 0 | R147: 0 | T147: =IF(B147<=0,0,IF('Simulador Valora'!$X$73=1,0,B147*'Simulador Valora'!$X$76)) -> 0 | V147: =IF(B147<=0,0,IF('Simulador Valora'!$V$40=1,'Simulador Valora'!$L$52,IF('Simulador Valora'!$V$40=3,'Simulador Valora'!$I$52,IF('Simulador Valora'!$V$40=4,'Simulador Valora'!$E$52)))) -> 0 | X147: 0 | AB147: 10 | AC147: 8 | AD147: 0 | AE147: 0 | AF147: 0 | AG147: 0 | AH147: 0.12 | AI147: 0 | AJ147: 0 | AK147: 0 | AL147: 0 | AM147: 0 | AN147: 0 | AP147: =IF(AJ147<=0,0,IF('Simulador Valora'!$X$73=1,0,AJ147*'Simulador Valora'!$X$76))+IF(AJ147<=0,0,IF('Simulador Valora'!$V$40=1,'Simulador Valora'!$L$52,IF('Simulador Valora'!$V$40=3,'Simulador Valora'!$I$52,IF('Simulador Valora'!$V$40=4,'Simulador Valora'!$E$52)))) -> 0 | AR147: 0 | AS147: 0 | AU147: 0 | AV147: 128
A148: 129 | B148: 0 | D148: =IF(B148+F148-D147<=0,B148+F148,IF(A148=$B$10,$F$10,IF(A148=$B$11,$F$11,IF(A148=$B$12,$F$12,IF(A148=$B$13,$F$13,IF(A148=$B$14,$F$14,IF(AND('Simulador Valora'!$AE$45=2,L147=0),D147*(1+Z148),IF($AO$3=2,B148*AI148,D147*(1+Z148))))))))) -> 0 | F148: 0 | H148: 0 | N148: =IF(OR('Simulador Valora'!$T$65=1,'Simulador Valora'!$T$65=3),0,L148*'Simulador Valora'!$T$66*'Simulador Valora'!$U$64) -> 0 | P148: 0 | R148: 0 | T148: =IF(B148<=0,0,IF('Simulador Valora'!$X$73=1,0,B148*'Simulador Valora'!$X$76)) -> 0 | V148: =IF(B148<=0,0,IF('Simulador Valora'!$V$40=1,'Simulador Valora'!$L$52,IF('Simulador Valora'!$V$40=3,'Simulador Valora'!$I$52,IF('Simulador Valora'!$V$40=4,'Simulador Valora'!$E$52)))) -> 0 | X148: 0 | AB148: 10 | AC148: 9 | AD148: 0 | AE148: 0 | AF148: 0 | AG148: 0 | AH148: 0.12 | AI148: 0 | AJ148: 0 | AK148: 0 | AL148: 0 | AM148: =+AK148-AL148 -> 0 | AN148: =+AJ148-AM148 -> 0 | AP148: =IF(AJ148<=0,0,IF('Simulador Valora'!$X$73=1,0,AJ148*'Simulador Valora'!$X$76))+IF(AJ148<=0,0,IF('Simulador Valora'!$V$40=1,'Simulador Valora'!$L$52,IF('Simulador Valora'!$V$40=3,'Simulador Valora'!$I$52,IF('Simulador Valora'!$V$40=4,'Simulador Valora'!$E$52)))) -> 0 | AR148: 0 | AS148: 0 | AU148: 0 | AV148: 129
A149: 130 | B149: =IF(R148<0,0,IF(A149=$B$10,R148+$D$10,IF(A149=$B$11,R148+$D$11,IF(A149=$B$12,R148+$D$12,IF(A149=$B$13,R148+$D$13,IF(A149=$B$14,R148+$D$14,R148)))))) -> 0 | D149: =IF(B149+F149-D148<=0,B149+F149,IF(A149=$B$10,$F$10,IF(A149=$B$11,$F$11,IF(A149=$B$12,$F$12,IF(A149=$B$13,$F$13,IF(A149=$B$14,$F$14,IF(AND('Simulador Valora'!$AE$45=2,L148=0),D148*(1+Z149),IF($AO$3=2,B149*AI149,D148*(1+Z149))))))))) -> 0 | F149: =IF(B149=0,0,P149/360*AU149*B149) -> 0 | H149: 0 | J149: =IF(B149-H149=0,0,J147) -> 0 | N149: =IF(OR('Simulador Valora'!$T$65=1,'Simulador Valora'!$T$65=3),0,L149*'Simulador Valora'!$T$66*'Simulador Valora'!$U$64) -> 0 | P149: =IF(B149=0,0,AH149) -> 0 | R149: =B149-H149-J149-L149+N149 -> 0 | T149: =IF(B149<=0,0,IF('Simulador Valora'!$X$73=1,0,B149*'Simulador Valora'!$X$76)) -> 0 | V149: =IF(B149<=0,0,IF('Simulador Valora'!$V$40=1,'Simulador Valora'!$L$52,IF('Simulador Valora'!$V$40=3,'Simulador Valora'!$I$52,IF('Simulador Valora'!$V$40=4,'Simulador Valora'!$E$52)))) -> 0 | X149: =IF(B149<=0,0,(D149+L149+T149+V149)) -> 0 | AB149: 10 | AC149: 10 | AD149: =+IF(R149<=0,IF(R148>0,+A149,0),0) -> 0 | AE149: =+IF(AD149>0,+AB149,0) -> 0 | AF149: =+IF(AD149>0,+AC149,0) -> 0 | AG149: =X149 -> 0 | AH149: 0.12 | AI149: =IFERROR(AK149/AJ149,0) -> 0 | AJ149: 0 | AK149: 0 | AL149: =IFERROR((AO149/360*AU149*AJ149),0) -> 0 | AM149: 0 | AN149: 0 | AO149: =IF(AJ149=0,"",AH149) ->  | AP149: =IF(AJ149<=0,0,IF('Simulador Valora'!$X$73=1,0,AJ149*'Simulador Valora'!$X$76))+IF(AJ149<=0,0,IF('Simulador Valora'!$V$40=1,'Simulador Valora'!$L$52,IF('Simulador Valora'!$V$40=3,'Simulador Valora'!$I$52,IF('Simulador Valora'!$V$40=4,'Simulador Valora'!$E$52)))) -> 0 | AR149: =AL149+AM149+AP149 -> 0 | AS149: 0 | AU149: =IFERROR(DAY(DATE(YEAR(AT149),MONTH(AT149)+1,0)),0) -> 0 | AV149: 130
A150: 131 | B150: 0 | D150: =IF(B150+F150-D149<=0,B150+F150,IF(A150=$B$10,$F$10,IF(A150=$B$11,$F$11,IF(A150=$B$12,$F$12,IF(A150=$B$13,$F$13,IF(A150=$B$14,$F$14,IF(AND('Simulador Valora'!$AE$45=2,L149=0),D149*(1+Z150),IF($AO$3=2,B150*AI150,D149*(1+Z150))))))))) -> 0 | F150: 0 | H150: =D150-F150 -> 0 | N150: =IF(OR('Simulador Valora'!$T$65=1,'Simulador Valora'!$T$65=3),0,L150*'Simulador Valora'!$T$66*'Simulador Valora'!$U$64) -> 0 | P150: 0 | R150: 0 | T150: =IF(B150<=0,0,IF('Simulador Valora'!$X$73=1,0,B150*'Simulador Valora'!$X$76)) -> 0 | V150: =IF(B150<=0,0,IF('Simulador Valora'!$V$40=1,'Simulador Valora'!$L$52,IF('Simulador Valora'!$V$40=3,'Simulador Valora'!$I$52,IF('Simulador Valora'!$V$40=4,'Simulador Valora'!$E$52)))) -> 0 | X150: 0 | AB150: 10 | AC150: 11 | AD150: 0 | AE150: 0 | AF150: 0 | AG150: 0 | AH150: 0.12 | AI150: 0 | AJ150: =IF(AN149<0,0,IF(A150=$B$10,AN149+$D$10,IF(A150=$B$11,AN149+$D$11,IF(A150=$B$12,AN149+$D$12,IF(A150=$B$13,AN149+$D$13,IF(A150=$B$14,AN149+$D$14,AN149)))))) -> 0 | AK150: =IF(AJ150+AL150-AK149<=0,AJ150+AL150,IF(A150=$B$10,$F$10,IF(A150=$B$11,$F$11,IF(A150=$B$12,$F$12,IF(A150=$B$13,$F$13,IF(A150=$B$14,$F$14,AK149*(1+AQ150))))))) -> 0 | AL150: 0 | AM150: 0 | AN150: 0 | AP150: =IF(AJ150<=0,0,IF('Simulador Valora'!$X$73=1,0,AJ150*'Simulador Valora'!$X$76))+IF(AJ150<=0,0,IF('Simulador Valora'!$V$40=1,'Simulador Valora'!$L$52,IF('Simulador Valora'!$V$40=3,'Simulador Valora'!$I$52,IF('Simulador Valora'!$V$40=4,'Simulador Valora'!$E$52)))) -> 0 | AR150: 0 | AS150: 0 | AT150: =IF(AJ150=0,"",DATE(YEAR(AT149),MONTH(AT149)+1,1)) ->  | AU150: 0 | AV150: 131
A151: 132 | B151: 0 | D151: =IF(B151+F151-D150<=0,B151+F151,IF(A151=$B$10,$F$10,IF(A151=$B$11,$F$11,IF(A151=$B$12,$F$12,IF(A151=$B$13,$F$13,IF(A151=$B$14,$F$14,IF(AND('Simulador Valora'!$AE$45=2,L150=0),D150*(1+Z151),IF($AO$3=2,B151*AI151,D150*(1+Z151))))))))) -> 0 | F151: 0 | H151: 0 | J151: =IF(B151-H151=0,0,J149) -> 0 | N151: =IF(OR('Simulador Valora'!$T$65=1,'Simulador Valora'!$T$65=3),0,L151*'Simulador Valora'!$T$66*'Simulador Valora'!$U$64) -> 0 | P151: 0 | R151: 0 | T151: =IF(B151<=0,0,IF('Simulador Valora'!$X$73=1,0,B151*'Simulador Valora'!$X$76)) -> 0 | V151: =IF(B151<=0,0,IF('Simulador Valora'!$V$40=1,'Simulador Valora'!$L$52,IF('Simulador Valora'!$V$40=3,'Simulador Valora'!$I$52,IF('Simulador Valora'!$V$40=4,'Simulador Valora'!$E$52)))) -> 0 | X151: 0 | AB151: 11 | AC151: 0 | AD151: 0 | AE151: 0 | AF151: 0 | AG151: 0 | AH151: 0.12 | AI151: 0 | AJ151: 0 | AK151: 0 | AL151: 0 | AM151: 0 | AN151: 0 | AP151: =IF(AJ151<=0,0,IF('Simulador Valora'!$X$73=1,0,AJ151*'Simulador Valora'!$X$76))+IF(AJ151<=0,0,IF('Simulador Valora'!$V$40=1,'Simulador Valora'!$L$52,IF('Simulador Valora'!$V$40=3,'Simulador Valora'!$I$52,IF('Simulador Valora'!$V$40=4,'Simulador Valora'!$E$52)))) -> 0 | AR151: 0 | AS151: 0 | AU151: 0 | AV151: 132
A152: 133 | B152: 0 | D152: =IF(B152+F152-D151<=0,B152+F152,IF(A152=$B$10,$F$10,IF(A152=$B$11,$F$11,IF(A152=$B$12,$F$12,IF(A152=$B$13,$F$13,IF(A152=$B$14,$F$14,IF(AND('Simulador Valora'!$AE$45=2,L151=0),D151*(1+Z152),IF($AO$3=2,B152*AI152,D151*(1+Z152))))))))) -> 0 | F152: 0 | H152: 0 | N152: =IF(OR('Simulador Valora'!$T$65=1,'Simulador Valora'!$T$65=3),0,L152*'Simulador Valora'!$T$66*'Simulador Valora'!$U$64) -> 0 | P152: 0 | R152: 0 | T152: =IF(B152<=0,0,IF('Simulador Valora'!$X$73=1,0,B152*'Simulador Valora'!$X$76)) -> 0 | V152: =IF(B152<=0,0,IF('Simulador Valora'!$V$40=1,'Simulador Valora'!$L$52,IF('Simulador Valora'!$V$40=3,'Simulador Valora'!$I$52,IF('Simulador Valora'!$V$40=4,'Simulador Valora'!$E$52)))) -> 0 | X152: 0 | Z152: =IF(B152<=0,0,'Simulador Valora'!$AF$53) -> 0 | AB152: 11 | AC152: 1 | AD152: 0 | AE152: 0 | AF152: 0 | AG152: 0 | AH152: =IF(AH151=$AG$4,AH151,IF(AH151-0.25%<=$AG$4,$AG$4,AH151-0.25%)) -> 0.12 | AI152: 0 | AJ152: 0 | AK152: 0 | AL152: 0 | AM152: 0 | AN152: 0 | AP152: =IF(AJ152<=0,0,IF('Simulador Valora'!$X$73=1,0,AJ152*'Simulador Valora'!$X$76))+IF(AJ152<=0,0,IF('Simulador Valora'!$V$40=1,'Simulador Valora'!$L$52,IF('Simulador Valora'!$V$40=3,'Simulador Valora'!$I$52,IF('Simulador Valora'!$V$40=4,'Simulador Valora'!$E$52)))) -> 0 | AQ152: =IF(AJ152<=0,0,$AQ$32) -> 0 | AR152: 0 | AS152: 0 | AU152: 0 | AV152: 133
A153: 134 | B153: 0 | D153: =IF(B153+F153-D152<=0,B153+F153,IF(A153=$B$10,$F$10,IF(A153=$B$11,$F$11,IF(A153=$B$12,$F$12,IF(A153=$B$13,$F$13,IF(A153=$B$14,$F$14,IF(AND('Simulador Valora'!$AE$45=2,L152=0),D152*(1+Z153),IF($AO$3=2,B153*AI153,D152*(1+Z153))))))))) -> 0 | F153: 0 | H153: 0 | J153: =IF(B153-H153=0,0,J151*(1+(3%))) -> 0 | N153: =IF(OR('Simulador Valora'!$T$65=1,'Simulador Valora'!$T$65=3),0,L153*'Simulador Valora'!$T$66*'Simulador Valora'!$U$64) -> 0 | P153: 0 | R153: 0 | T153: =IF(B153<=0,0,IF('Simulador Valora'!$X$73=1,0,B153*'Simulador Valora'!$X$76)) -> 0 | V153: =IF(B153<=0,0,IF('Simulador Valora'!$V$40=1,'Simulador Valora'!$L$52,IF('Simulador Valora'!$V$40=3,'Simulador Valora'!$I$52,IF('Simulador Valora'!$V$40=4,'Simulador Valora'!$E$52)))) -> 0 | X153: 0 | AB153: 11 | AC153: 2 | AD153: 0 | AE153: 0 | AF153: 0 | AG153: 0 | AH153: =AH152 -> 0.12 | AI153: 0 | AJ153: 0 | AK153: 0 | AL153: 0 | AM153: 0 | AN153: 0 | AP153: =IF(AJ153<=0,0,IF('Simulador Valora'!$X$73=1,0,AJ153*'Simulador Valora'!$X$76))+IF(AJ153<=0,0,IF('Simulador Valora'!$V$40=1,'Simulador Valora'!$L$52,IF('Simulador Valora'!$V$40=3,'Simulador Valora'!$I$52,IF('Simulador Valora'!$V$40=4,'Simulador Valora'!$E$52)))) -> 0 | AR153: 0 | AS153: 0 | AU153: 0 | AV153: 134
A154: 135 | B154: 0 | D154: =IF(B154+F154-D153<=0,B154+F154,IF(A154=$B$10,$F$10,IF(A154=$B$11,$F$11,IF(A154=$B$12,$F$12,IF(A154=$B$13,$F$13,IF(A154=$B$14,$F$14,IF(AND('Simulador Valora'!$AE$45=2,L153=0),D153*(1+Z154),IF($AO$3=2,B154*AI154,D153*(1+Z154))))))))) -> 0 | F154: 0 | H154: 0 | N154: =IF(OR('Simulador Valora'!$T$65=1,'Simulador Valora'!$T$65=3),0,L154*'Simulador Valora'!$T$66*'Simulador Valora'!$U$64) -> 0 | P154: 0 | R154: 0 | T154: =IF(B154<=0,0,IF('Simulador Valora'!$X$73=1,0,B154*'Simulador Valora'!$X$76)) -> 0 | V154: =IF(B154<=0,0,IF('Simulador Valora'!$V$40=1,'Simulador Valora'!$L$52,IF('Simulador Valora'!$V$40=3,'Simulador Valora'!$I$52,IF('Simulador Valora'!$V$40=4,'Simulador Valora'!$E$52)))) -> 0 | X154: 0 | AB154: 11 | AC154: 3 | AD154: 0 | AE154: 0 | AF154: 0 | AG154: 0 | AH154: =AH153 -> 0.12 | AI154: 0 | AJ154: 0 | AK154: 0 | AL154: 0 | AM154: 0 | AN154: 0 | AP154: =IF(AJ154<=0,0,IF('Simulador Valora'!$X$73=1,0,AJ154*'Simulador Valora'!$X$76))+IF(AJ154<=0,0,IF('Simulador Valora'!$V$40=1,'Simulador Valora'!$L$52,IF('Simulador Valora'!$V$40=3,'Simulador Valora'!$I$52,IF('Simulador Valora'!$V$40=4,'Simulador Valora'!$E$52)))) -> 0 | AR154: 0 | AS154: 0 | AU154: 0 | AV154: 135
A155: 136 | B155: 0 | D155: =IF(B155+F155-D154<=0,B155+F155,IF(A155=$B$10,$F$10,IF(A155=$B$11,$F$11,IF(A155=$B$12,$F$12,IF(A155=$B$13,$F$13,IF(A155=$B$14,$F$14,IF(AND('Simulador Valora'!$AE$45=2,L154=0),D154*(1+Z155),IF($AO$3=2,B155*AI155,D154*(1+Z155))))))))) -> 0 | F155: 0 | H155: 0 | J155: =IF(B155-H155=0,0,J153) -> 0 | N155: =IF(OR('Simulador Valora'!$T$65=1,'Simulador Valora'!$T$65=3),0,L155*'Simulador Valora'!$T$66*'Simulador Valora'!$U$64) -> 0 | P155: 0 | R155: 0 | T155: =IF(B155<=0,0,IF('Simulador Valora'!$X$73=1,0,B155*'Simulador Valora'!$X$76)) -> 0 | V155: =IF(B155<=0,0,IF('Simulador Valora'!$V$40=1,'Simulador Valora'!$L$52,IF('Simulador Valora'!$V$40=3,'Simulador Valora'!$I$52,IF('Simulador Valora'!$V$40=4,'Simulador Valora'!$E$52)))) -> 0 | X155: 0 | AB155: 11 | AC155: 4 | AD155: 0 | AE155: 0 | AF155: 0 | AG155: 0 | AH155: 0.12 | AI155: 0 | AJ155: 0 | AK155: 0 | AL155: 0 | AM155: 0 | AN155: 0 | AP155: =IF(AJ155<=0,0,IF('Simulador Valora'!$X$73=1,0,AJ155*'Simulador Valora'!$X$76))+IF(AJ155<=0,0,IF('Simulador Valora'!$V$40=1,'Simulador Valora'!$L$52,IF('Simulador Valora'!$V$40=3,'Simulador Valora'!$I$52,IF('Simulador Valora'!$V$40=4,'Simulador Valora'!$E$52)))) -> 0 | AR155: 0 | AS155: 0 | AU155: 0 | AV155: 136
A156: 137 | B156: 0 | D156: =IF(B156+F156-D155<=0,B156+F156,IF(A156=$B$10,$F$10,IF(A156=$B$11,$F$11,IF(A156=$B$12,$F$12,IF(A156=$B$13,$F$13,IF(A156=$B$14,$F$14,IF(AND('Simulador Valora'!$AE$45=2,L155=0),D155*(1+Z156),IF($AO$3=2,B156*AI156,D155*(1+Z156))))))))) -> 0 | F156: 0 | H156: 0 | N156: =IF(OR('Simulador Valora'!$T$65=1,'Simulador Valora'!$T$65=3),0,L156*'Simulador Valora'!$T$66*'Simulador Valora'!$U$64) -> 0 | P156: 0 | R156: 0 | T156: =IF(B156<=0,0,IF('Simulador Valora'!$X$73=1,0,B156*'Simulador Valora'!$X$76)) -> 0 | V156: =IF(B156<=0,0,IF('Simulador Valora'!$V$40=1,'Simulador Valora'!$L$52,IF('Simulador Valora'!$V$40=3,'Simulador Valora'!$I$52,IF('Simulador Valora'!$V$40=4,'Simulador Valora'!$E$52)))) -> 0 | X156: 0 | AB156: 11 | AC156: 5 | AD156: 0 | AE156: 0 | AF156: 0 | AG156: 0 | AH156: 0.12 | AI156: 0 | AJ156: 0 | AK156: 0 | AL156: 0 | AM156: 0 | AN156: 0 | AP156: =IF(AJ156<=0,0,IF('Simulador Valora'!$X$73=1,0,AJ156*'Simulador Valora'!$X$76))+IF(AJ156<=0,0,IF('Simulador Valora'!$V$40=1,'Simulador Valora'!$L$52,IF('Simulador Valora'!$V$40=3,'Simulador Valora'!$I$52,IF('Simulador Valora'!$V$40=4,'Simulador Valora'!$E$52)))) -> 0 | AR156: 0 | AS156: 0 | AU156: 0 | AV156: 137
A157: 138 | B157: 0 | D157: =IF(B157+F157-D156<=0,B157+F157,IF(A157=$B$10,$F$10,IF(A157=$B$11,$F$11,IF(A157=$B$12,$F$12,IF(A157=$B$13,$F$13,IF(A157=$B$14,$F$14,IF(AND('Simulador Valora'!$AE$45=2,L156=0),D156*(1+Z157),IF($AO$3=2,B157*AI157,D156*(1+Z157))))))))) -> 0 | F157: 0 | H157: 0 | J157: =IF(B157-H157=0,0,J155) -> 0 | N157: =IF(OR('Simulador Valora'!$T$65=1,'Simulador Valora'!$T$65=3),0,L157*'Simulador Valora'!$T$66*'Simulador Valora'!$U$64) -> 0 | P157: 0 | R157: 0 | T157: =IF(B157<=0,0,IF('Simulador Valora'!$X$73=1,0,B157*'Simulador Valora'!$X$76)) -> 0 | V157: =IF(B157<=0,0,IF('Simulador Valora'!$V$40=1,'Simulador Valora'!$L$52,IF('Simulador Valora'!$V$40=3,'Simulador Valora'!$I$52,IF('Simulador Valora'!$V$40=4,'Simulador Valora'!$E$52)))) -> 0 | X157: 0 | AB157: 11 | AC157: 6 | AD157: 0 | AE157: 0 | AF157: 0 | AG157: 0 | AH157: 0.12 | AI157: 0 | AJ157: 0 | AK157: 0 | AL157: 0 | AM157: 0 | AN157: 0 | AP157: =IF(AJ157<=0,0,IF('Simulador Valora'!$X$73=1,0,AJ157*'Simulador Valora'!$X$76))+IF(AJ157<=0,0,IF('Simulador Valora'!$V$40=1,'Simulador Valora'!$L$52,IF('Simulador Valora'!$V$40=3,'Simulador Valora'!$I$52,IF('Simulador Valora'!$V$40=4,'Simulador Valora'!$E$52)))) -> 0 | AR157: 0 | AS157: 0 | AU157: 0 | AV157: 138
A158: 139 | B158: 0 | D158: =IF(B158+F158-D157<=0,B158+F158,IF(A158=$B$10,$F$10,IF(A158=$B$11,$F$11,IF(A158=$B$12,$F$12,IF(A158=$B$13,$F$13,IF(A158=$B$14,$F$14,IF(AND('Simulador Valora'!$AE$45=2,L157=0),D157*(1+Z158),IF($AO$3=2,B158*AI158,D157*(1+Z158))))))))) -> 0 | F158: 0 | H158: 0 | N158: =IF(OR('Simulador Valora'!$T$65=1,'Simulador Valora'!$T$65=3),0,L158*'Simulador Valora'!$T$66*'Simulador Valora'!$U$64) -> 0 | P158: 0 | R158: 0 | T158: =IF(B158<=0,0,IF('Simulador Valora'!$X$73=1,0,B158*'Simulador Valora'!$X$76)) -> 0 | V158: =IF(B158<=0,0,IF('Simulador Valora'!$V$40=1,'Simulador Valora'!$L$52,IF('Simulador Valora'!$V$40=3,'Simulador Valora'!$I$52,IF('Simulador Valora'!$V$40=4,'Simulador Valora'!$E$52)))) -> 0 | X158: 0 | AB158: 11 | AC158: 7 | AD158: 0 | AE158: 0 | AF158: 0 | AG158: 0 | AH158: 0.12 | AI158: 0 | AJ158: 0 | AK158: 0 | AL158: 0 | AM158: 0 | AN158: 0 | AP158: =IF(AJ158<=0,0,IF('Simulador Valora'!$X$73=1,0,AJ158*'Simulador Valora'!$X$76))+IF(AJ158<=0,0,IF('Simulador Valora'!$V$40=1,'Simulador Valora'!$L$52,IF('Simulador Valora'!$V$40=3,'Simulador Valora'!$I$52,IF('Simulador Valora'!$V$40=4,'Simulador Valora'!$E$52)))) -> 0 | AR158: 0 | AS158: 0 | AU158: 0 | AV158: 139
A159: 140 | B159: 0 | D159: =IF(B159+F159-D158<=0,B159+F159,IF(A159=$B$10,$F$10,IF(A159=$B$11,$F$11,IF(A159=$B$12,$F$12,IF(A159=$B$13,$F$13,IF(A159=$B$14,$F$14,IF(AND('Simulador Valora'!$AE$45=2,L158=0),D158*(1+Z159),IF($AO$3=2,B159*AI159,D158*(1+Z159))))))))) -> 0 | F159: 0 | H159: 0 | J159: =IF(B159-H159=0,0,J157) -> 0 | N159: =IF(OR('Simulador Valora'!$T$65=1,'Simulador Valora'!$T$65=3),0,L159*'Simulador Valora'!$T$66*'Simulador Valora'!$U$64) -> 0 | P159: 0 | R159: 0 | T159: =IF(B159<=0,0,IF('Simulador Valora'!$X$73=1,0,B159*'Simulador Valora'!$X$76)) -> 0 | V159: =IF(B159<=0,0,IF('Simulador Valora'!$V$40=1,'Simulador Valora'!$L$52,IF('Simulador Valora'!$V$40=3,'Simulador Valora'!$I$52,IF('Simulador Valora'!$V$40=4,'Simulador Valora'!$E$52)))) -> 0 | X159: 0 | AB159: 11 | AC159: 8 | AD159: 0 | AE159: 0 | AF159: 0 | AG159: 0 | AH159: 0.12 | AI159: 0 | AJ159: 0 | AK159: 0 | AL159: 0 | AM159: 0 | AN159: 0 | AP159: =IF(AJ159<=0,0,IF('Simulador Valora'!$X$73=1,0,AJ159*'Simulador Valora'!$X$76))+IF(AJ159<=0,0,IF('Simulador Valora'!$V$40=1,'Simulador Valora'!$L$52,IF('Simulador Valora'!$V$40=3,'Simulador Valora'!$I$52,IF('Simulador Valora'!$V$40=4,'Simulador Valora'!$E$52)))) -> 0 | AR159: 0 | AS159: 0 | AU159: 0 | AV159: 140
A160: 141 | B160: 0 | D160: =IF(B160+F160-D159<=0,B160+F160,IF(A160=$B$10,$F$10,IF(A160=$B$11,$F$11,IF(A160=$B$12,$F$12,IF(A160=$B$13,$F$13,IF(A160=$B$14,$F$14,IF(AND('Simulador Valora'!$AE$45=2,L159=0),D159*(1+Z160),IF($AO$3=2,B160*AI160,D159*(1+Z160))))))))) -> 0 | F160: 0 | H160: 0 | N160: =IF(OR('Simulador Valora'!$T$65=1,'Simulador Valora'!$T$65=3),0,L160*'Simulador Valora'!$T$66*'Simulador Valora'!$U$64) -> 0 | P160: 0 | R160: 0 | T160: =IF(B160<=0,0,IF('Simulador Valora'!$X$73=1,0,B160*'Simulador Valora'!$X$76)) -> 0 | V160: =IF(B160<=0,0,IF('Simulador Valora'!$V$40=1,'Simulador Valora'!$L$52,IF('Simulador Valora'!$V$40=3,'Simulador Valora'!$I$52,IF('Simulador Valora'!$V$40=4,'Simulador Valora'!$E$52)))) -> 0 | X160: 0 | AB160: 11 | AC160: 9 | AD160: 0 | AE160: 0 | AF160: 0 | AG160: 0 | AH160: 0.12 | AI160: 0 | AJ160: 0 | AK160: 0 | AL160: 0 | AM160: 0 | AN160: 0 | AP160: =IF(AJ160<=0,0,IF('Simulador Valora'!$X$73=1,0,AJ160*'Simulador Valora'!$X$76))+IF(AJ160<=0,0,IF('Simulador Valora'!$V$40=1,'Simulador Valora'!$L$52,IF('Simulador Valora'!$V$40=3,'Simulador Valora'!$I$52,IF('Simulador Valora'!$V$40=4,'Simulador Valora'!$E$52)))) -> 0 | AR160: 0 | AS160: 0 | AU160: 0 | AV160: 141
A161: 142 | B161: 0 | D161: =IF(B161+F161-D160<=0,B161+F161,IF(A161=$B$10,$F$10,IF(A161=$B$11,$F$11,IF(A161=$B$12,$F$12,IF(A161=$B$13,$F$13,IF(A161=$B$14,$F$14,IF(AND('Simulador Valora'!$AE$45=2,L160=0),D160*(1+Z161),IF($AO$3=2,B161*AI161,D160*(1+Z161))))))))) -> 0 | F161: 0 | H161: 0 | J161: =IF(B161-H161=0,0,J159) -> 0 | N161: =IF(OR('Simulador Valora'!$T$65=1,'Simulador Valora'!$T$65=3),0,L161*'Simulador Valora'!$T$66*'Simulador Valora'!$U$64) -> 0 | P161: 0 | R161: 0 | T161: =IF(B161<=0,0,IF('Simulador Valora'!$X$73=1,0,B161*'Simulador Valora'!$X$76)) -> 0 | V161: =IF(B161<=0,0,IF('Simulador Valora'!$V$40=1,'Simulador Valora'!$L$52,IF('Simulador Valora'!$V$40=3,'Simulador Valora'!$I$52,IF('Simulador Valora'!$V$40=4,'Simulador Valora'!$E$52)))) -> 0 | X161: 0 | AB161: 11 | AC161: 10 | AD161: 0 | AE161: 0 | AF161: 0 | AG161: 0 | AH161: 0.12 | AI161: 0 | AJ161: 0 | AK161: 0 | AL161: 0 | AM161: 0 | AN161: 0 | AP161: =IF(AJ161<=0,0,IF('Simulador Valora'!$X$73=1,0,AJ161*'Simulador Valora'!$X$76))+IF(AJ161<=0,0,IF('Simulador Valora'!$V$40=1,'Simulador Valora'!$L$52,IF('Simulador Valora'!$V$40=3,'Simulador Valora'!$I$52,IF('Simulador Valora'!$V$40=4,'Simulador Valora'!$E$52)))) -> 0 | AR161: 0 | AS161: 0 | AU161: 0 | AV161: 142
A162: 143 | B162: 0 | D162: =IF(B162+F162-D161<=0,B162+F162,IF(A162=$B$10,$F$10,IF(A162=$B$11,$F$11,IF(A162=$B$12,$F$12,IF(A162=$B$13,$F$13,IF(A162=$B$14,$F$14,IF(AND('Simulador Valora'!$AE$45=2,L161=0),D161*(1+Z162),IF($AO$3=2,B162*AI162,D161*(1+Z162))))))))) -> 0 | F162: 0 | H162: 0 | N162: =IF(OR('Simulador Valora'!$T$65=1,'Simulador Valora'!$T$65=3),0,L162*'Simulador Valora'!$T$66*'Simulador Valora'!$U$64) -> 0 | P162: 0 | R162: 0 | T162: =IF(B162<=0,0,IF('Simulador Valora'!$X$73=1,0,B162*'Simulador Valora'!$X$76)) -> 0 | V162: =IF(B162<=0,0,IF('Simulador Valora'!$V$40=1,'Simulador Valora'!$L$52,IF('Simulador Valora'!$V$40=3,'Simulador Valora'!$I$52,IF('Simulador Valora'!$V$40=4,'Simulador Valora'!$E$52)))) -> 0 | X162: 0 | AB162: 11 | AC162: 11 | AD162: 0 | AE162: 0 | AF162: 0 | AG162: 0 | AH162: 0.12 | AI162: 0 | AJ162: 0 | AK162: 0 | AL162: 0 | AM162: 0 | AN162: 0 | AP162: =IF(AJ162<=0,0,IF('Simulador Valora'!$X$73=1,0,AJ162*'Simulador Valora'!$X$76))+IF(AJ162<=0,0,IF('Simulador Valora'!$V$40=1,'Simulador Valora'!$L$52,IF('Simulador Valora'!$V$40=3,'Simulador Valora'!$I$52,IF('Simulador Valora'!$V$40=4,'Simulador Valora'!$E$52)))) -> 0 | AR162: 0 | AS162: 0 | AU162: 0 | AV162: 143
A163: 144 | B163: 0 | D163: =IF(B163+F163-D162<=0,B163+F163,IF(A163=$B$10,$F$10,IF(A163=$B$11,$F$11,IF(A163=$B$12,$F$12,IF(A163=$B$13,$F$13,IF(A163=$B$14,$F$14,IF(AND('Simulador Valora'!$AE$45=2,L162=0),D162*(1+Z163),IF($AO$3=2,B163*AI163,D162*(1+Z163))))))))) -> 0 | F163: 0 | H163: 0 | J163: =IF(B163-H163=0,0,J161) -> 0 | N163: =IF(OR('Simulador Valora'!$T$65=1,'Simulador Valora'!$T$65=3),0,L163*'Simulador Valora'!$T$66*'Simulador Valora'!$U$64) -> 0 | P163: 0 | R163: 0 | T163: =IF(B163<=0,0,IF('Simulador Valora'!$X$73=1,0,B163*'Simulador Valora'!$X$76)) -> 0 | V163: =IF(B163<=0,0,IF('Simulador Valora'!$V$40=1,'Simulador Valora'!$L$52,IF('Simulador Valora'!$V$40=3,'Simulador Valora'!$I$52,IF('Simulador Valora'!$V$40=4,'Simulador Valora'!$E$52)))) -> 0 | X163: 0 | AB163: 12 | AC163: 0 | AD163: 0 | AE163: 0 | AF163: 0 | AG163: 0 | AH163: 0.12 | AI163: 0 | AJ163: 0 | AK163: 0 | AL163: 0 | AM163: 0 | AN163: 0 | AP163: =IF(AJ163<=0,0,IF('Simulador Valora'!$X$73=1,0,AJ163*'Simulador Valora'!$X$76))+IF(AJ163<=0,0,IF('Simulador Valora'!$V$40=1,'Simulador Valora'!$L$52,IF('Simulador Valora'!$V$40=3,'Simulador Valora'!$I$52,IF('Simulador Valora'!$V$40=4,'Simulador Valora'!$E$52)))) -> 0 | AR163: 0 | AS163: 0 | AU163: 0 | AV163: 144
A164: 145 | B164: 0 | D164: =IF(B164+F164-D163<=0,B164+F164,IF(A164=$B$10,$F$10,IF(A164=$B$11,$F$11,IF(A164=$B$12,$F$12,IF(A164=$B$13,$F$13,IF(A164=$B$14,$F$14,IF(AND('Simulador Valora'!$AE$45=2,L163=0),D163*(1+Z164),IF($AO$3=2,B164*AI164,D163*(1+Z164))))))))) -> 0 | F164: 0 | H164: 0 | N164: =IF(OR('Simulador Valora'!$T$65=1,'Simulador Valora'!$T$65=3),0,L164*'Simulador Valora'!$T$66*'Simulador Valora'!$U$64) -> 0 | P164: 0 | R164: 0 | T164: =IF(B164<=0,0,IF('Simulador Valora'!$X$73=1,0,B164*'Simulador Valora'!$X$76)) -> 0 | V164: =IF(B164<=0,0,IF('Simulador Valora'!$V$40=1,'Simulador Valora'!$L$52,IF('Simulador Valora'!$V$40=3,'Simulador Valora'!$I$52,IF('Simulador Valora'!$V$40=4,'Simulador Valora'!$E$52)))) -> 0 | X164: 0 | Z164: =IF(B164<=0,0,'Simulador Valora'!$AF$53) -> 0 | AB164: 12 | AC164: 1 | AD164: 0 | AE164: 0 | AF164: 0 | AG164: 0 | AH164: =IF(AH163=$AG$4,AH163,IF(AH163-0.25%<=$AG$4,$AG$4,AH163-0.25%)) -> 0.12 | AI164: 0 | AJ164: 0 | AK164: 0 | AL164: 0 | AM164: 0 | AN164: 0 | AP164: =IF(AJ164<=0,0,IF('Simulador Valora'!$X$73=1,0,AJ164*'Simulador Valora'!$X$76))+IF(AJ164<=0,0,IF('Simulador Valora'!$V$40=1,'Simulador Valora'!$L$52,IF('Simulador Valora'!$V$40=3,'Simulador Valora'!$I$52,IF('Simulador Valora'!$V$40=4,'Simulador Valora'!$E$52)))) -> 0 | AQ164: =IF(AJ164<=0,0,$AQ$32) -> 0 | AR164: 0 | AS164: 0 | AU164: 0 | AV164: 145
A165: 146 | B165: 0 | D165: =IF(B165+F165-D164<=0,B165+F165,IF(A165=$B$10,$F$10,IF(A165=$B$11,$F$11,IF(A165=$B$12,$F$12,IF(A165=$B$13,$F$13,IF(A165=$B$14,$F$14,IF(AND('Simulador Valora'!$AE$45=2,L164=0),D164*(1+Z165),IF($AO$3=2,B165*AI165,D164*(1+Z165))))))))) -> 0 | F165: 0 | H165: 0 | J165: =IF(B165-H165=0,0,J163*(1+(3%))) -> 0 | N165: =IF(OR('Simulador Valora'!$T$65=1,'Simulador Valora'!$T$65=3),0,L165*'Simulador Valora'!$T$66*'Simulador Valora'!$U$64) -> 0 | P165: 0 | R165: 0 | T165: =IF(B165<=0,0,IF('Simulador Valora'!$X$73=1,0,B165*'Simulador Valora'!$X$76)) -> 0 | V165: =IF(B165<=0,0,IF('Simulador Valora'!$V$40=1,'Simulador Valora'!$L$52,IF('Simulador Valora'!$V$40=3,'Simulador Valora'!$I$52,IF('Simulador Valora'!$V$40=4,'Simulador Valora'!$E$52)))) -> 0 | X165: 0 | AB165: 12 | AC165: 2 | AD165: 0 | AE165: 0 | AF165: 0 | AG165: 0 | AH165: =AH164 -> 0.12 | AI165: 0 | AJ165: 0 | AK165: 0 | AL165: 0 | AM165: 0 | AN165: 0 | AP165: =IF(AJ165<=0,0,IF('Simulador Valora'!$X$73=1,0,AJ165*'Simulador Valora'!$X$76))+IF(AJ165<=0,0,IF('Simulador Valora'!$V$40=1,'Simulador Valora'!$L$52,IF('Simulador Valora'!$V$40=3,'Simulador Valora'!$I$52,IF('Simulador Valora'!$V$40=4,'Simulador Valora'!$E$52)))) -> 0 | AR165: 0 | AS165: 0 | AU165: 0 | AV165: 146
A166: 147 | B166: 0 | D166: =IF(B166+F166-D165<=0,B166+F166,IF(A166=$B$10,$F$10,IF(A166=$B$11,$F$11,IF(A166=$B$12,$F$12,IF(A166=$B$13,$F$13,IF(A166=$B$14,$F$14,IF(AND('Simulador Valora'!$AE$45=2,L165=0),D165*(1+Z166),IF($AO$3=2,B166*AI166,D165*(1+Z166))))))))) -> 0 | F166: 0 | H166: 0 | N166: =IF(OR('Simulador Valora'!$T$65=1,'Simulador Valora'!$T$65=3),0,L166*'Simulador Valora'!$T$66*'Simulador Valora'!$U$64) -> 0 | P166: 0 | R166: 0 | T166: =IF(B166<=0,0,IF('Simulador Valora'!$X$73=1,0,B166*'Simulador Valora'!$X$76)) -> 0 | V166: =IF(B166<=0,0,IF('Simulador Valora'!$V$40=1,'Simulador Valora'!$L$52,IF('Simulador Valora'!$V$40=3,'Simulador Valora'!$I$52,IF('Simulador Valora'!$V$40=4,'Simulador Valora'!$E$52)))) -> 0 | X166: 0 | AB166: 12 | AC166: 3 | AD166: 0 | AE166: 0 | AF166: 0 | AG166: 0 | AH166: =AH165 -> 0.12 | AI166: 0 | AJ166: 0 | AK166: 0 | AL166: 0 | AM166: 0 | AN166: 0 | AP166: =IF(AJ166<=0,0,IF('Simulador Valora'!$X$73=1,0,AJ166*'Simulador Valora'!$X$76))+IF(AJ166<=0,0,IF('Simulador Valora'!$V$40=1,'Simulador Valora'!$L$52,IF('Simulador Valora'!$V$40=3,'Simulador Valora'!$I$52,IF('Simulador Valora'!$V$40=4,'Simulador Valora'!$E$52)))) -> 0 | AR166: 0 | AS166: 0 | AU166: 0 | AV166: 147
A167: 148 | B167: 0 | D167: =IF(B167+F167-D166<=0,B167+F167,IF(A167=$B$10,$F$10,IF(A167=$B$11,$F$11,IF(A167=$B$12,$F$12,IF(A167=$B$13,$F$13,IF(A167=$B$14,$F$14,IF(AND('Simulador Valora'!$AE$45=2,L166=0),D166*(1+Z167),IF($AO$3=2,B167*AI167,D166*(1+Z167))))))))) -> 0 | F167: 0 | H167: 0 | J167: =IF(B167-H167=0,0,J165) -> 0 | N167: =IF(OR('Simulador Valora'!$T$65=1,'Simulador Valora'!$T$65=3),0,L167*'Simulador Valora'!$T$66*'Simulador Valora'!$U$64) -> 0 | P167: 0 | R167: 0 | T167: =IF(B167<=0,0,IF('Simulador Valora'!$X$73=1,0,B167*'Simulador Valora'!$X$76)) -> 0 | V167: =IF(B167<=0,0,IF('Simulador Valora'!$V$40=1,'Simulador Valora'!$L$52,IF('Simulador Valora'!$V$40=3,'Simulador Valora'!$I$52,IF('Simulador Valora'!$V$40=4,'Simulador Valora'!$E$52)))) -> 0 | X167: 0 | AB167: 12 | AC167: 4 | AD167: 0 | AE167: 0 | AF167: 0 | AG167: 0 | AH167: 0.12 | AI167: 0 | AJ167: 0 | AK167: 0 | AL167: 0 | AM167: 0 | AN167: 0 | AP167: =IF(AJ167<=0,0,IF('Simulador Valora'!$X$73=1,0,AJ167*'Simulador Valora'!$X$76))+IF(AJ167<=0,0,IF('Simulador Valora'!$V$40=1,'Simulador Valora'!$L$52,IF('Simulador Valora'!$V$40=3,'Simulador Valora'!$I$52,IF('Simulador Valora'!$V$40=4,'Simulador Valora'!$E$52)))) -> 0 | AR167: 0 | AS167: 0 | AU167: 0 | AV167: 148
A168: 149 | B168: 0 | D168: =IF(B168+F168-D167<=0,B168+F168,IF(A168=$B$10,$F$10,IF(A168=$B$11,$F$11,IF(A168=$B$12,$F$12,IF(A168=$B$13,$F$13,IF(A168=$B$14,$F$14,IF(AND('Simulador Valora'!$AE$45=2,L167=0),D167*(1+Z168),IF($AO$3=2,B168*AI168,D167*(1+Z168))))))))) -> 0 | F168: 0 | H168: 0 | N168: =IF(OR('Simulador Valora'!$T$65=1,'Simulador Valora'!$T$65=3),0,L168*'Simulador Valora'!$T$66*'Simulador Valora'!$U$64) -> 0 | P168: 0 | R168: 0 | T168: =IF(B168<=0,0,IF('Simulador Valora'!$X$73=1,0,B168*'Simulador Valora'!$X$76)) -> 0 | V168: =IF(B168<=0,0,IF('Simulador Valora'!$V$40=1,'Simulador Valora'!$L$52,IF('Simulador Valora'!$V$40=3,'Simulador Valora'!$I$52,IF('Simulador Valora'!$V$40=4,'Simulador Valora'!$E$52)))) -> 0 | X168: 0 | AB168: 12 | AC168: 5 | AD168: 0 | AE168: 0 | AF168: 0 | AG168: 0 | AH168: 0.12 | AI168: 0 | AJ168: 0 | AK168: 0 | AL168: 0 | AM168: 0 | AN168: 0 | AP168: =IF(AJ168<=0,0,IF('Simulador Valora'!$X$73=1,0,AJ168*'Simulador Valora'!$X$76))+IF(AJ168<=0,0,IF('Simulador Valora'!$V$40=1,'Simulador Valora'!$L$52,IF('Simulador Valora'!$V$40=3,'Simulador Valora'!$I$52,IF('Simulador Valora'!$V$40=4,'Simulador Valora'!$E$52)))) -> 0 | AR168: 0 | AS168: 0 | AU168: 0 | AV168: 149
A169: 150 | B169: 0 | D169: =IF(B169+F169-D168<=0,B169+F169,IF(A169=$B$10,$F$10,IF(A169=$B$11,$F$11,IF(A169=$B$12,$F$12,IF(A169=$B$13,$F$13,IF(A169=$B$14,$F$14,IF(AND('Simulador Valora'!$AE$45=2,L168=0),D168*(1+Z169),IF($AO$3=2,B169*AI169,D168*(1+Z169))))))))) -> 0 | F169: 0 | H169: 0 | J169: =IF(B169-H169=0,0,J167) -> 0 | N169: =IF(OR('Simulador Valora'!$T$65=1,'Simulador Valora'!$T$65=3),0,L169*'Simulador Valora'!$T$66*'Simulador Valora'!$U$64) -> 0 | P169: 0 | R169: 0 | T169: =IF(B169<=0,0,IF('Simulador Valora'!$X$73=1,0,B169*'Simulador Valora'!$X$76)) -> 0 | V169: =IF(B169<=0,0,IF('Simulador Valora'!$V$40=1,'Simulador Valora'!$L$52,IF('Simulador Valora'!$V$40=3,'Simulador Valora'!$I$52,IF('Simulador Valora'!$V$40=4,'Simulador Valora'!$E$52)))) -> 0 | X169: 0 | AB169: 12 | AC169: 6 | AD169: 0 | AE169: 0 | AF169: 0 | AG169: 0 | AH169: 0.12 | AI169: 0 | AJ169: 0 | AK169: 0 | AL169: 0 | AM169: 0 | AN169: 0 | AP169: =IF(AJ169<=0,0,IF('Simulador Valora'!$X$73=1,0,AJ169*'Simulador Valora'!$X$76))+IF(AJ169<=0,0,IF('Simulador Valora'!$V$40=1,'Simulador Valora'!$L$52,IF('Simulador Valora'!$V$40=3,'Simulador Valora'!$I$52,IF('Simulador Valora'!$V$40=4,'Simulador Valora'!$E$52)))) -> 0 | AR169: 0 | AS169: 0 | AU169: 0 | AV169: 150
A170: 151 | B170: 0 | D170: =IF(B170+F170-D169<=0,B170+F170,IF(A170=$B$10,$F$10,IF(A170=$B$11,$F$11,IF(A170=$B$12,$F$12,IF(A170=$B$13,$F$13,IF(A170=$B$14,$F$14,IF(AND('Simulador Valora'!$AE$45=2,L169=0),D169*(1+Z170),IF($AO$3=2,B170*AI170,D169*(1+Z170))))))))) -> 0 | F170: 0 | H170: 0 | N170: =IF(OR('Simulador Valora'!$T$65=1,'Simulador Valora'!$T$65=3),0,L170*'Simulador Valora'!$T$66*'Simulador Valora'!$U$64) -> 0 | P170: 0 | R170: 0 | T170: =IF(B170<=0,0,IF('Simulador Valora'!$X$73=1,0,B170*'Simulador Valora'!$X$76)) -> 0 | V170: =IF(B170<=0,0,IF('Simulador Valora'!$V$40=1,'Simulador Valora'!$L$52,IF('Simulador Valora'!$V$40=3,'Simulador Valora'!$I$52,IF('Simulador Valora'!$V$40=4,'Simulador Valora'!$E$52)))) -> 0 | X170: 0 | AB170: 12 | AC170: 7 | AD170: 0 | AE170: 0 | AF170: 0 | AG170: 0 | AH170: 0.12 | AI170: 0 | AJ170: 0 | AK170: 0 | AL170: 0 | AM170: 0 | AN170: 0 | AP170: =IF(AJ170<=0,0,IF('Simulador Valora'!$X$73=1,0,AJ170*'Simulador Valora'!$X$76))+IF(AJ170<=0,0,IF('Simulador Valora'!$V$40=1,'Simulador Valora'!$L$52,IF('Simulador Valora'!$V$40=3,'Simulador Valora'!$I$52,IF('Simulador Valora'!$V$40=4,'Simulador Valora'!$E$52)))) -> 0 | AR170: 0 | AS170: 0 | AU170: 0 | AV170: 151
A171: 152 | B171: 0 | D171: =IF(B171+F171-D170<=0,B171+F171,IF(A171=$B$10,$F$10,IF(A171=$B$11,$F$11,IF(A171=$B$12,$F$12,IF(A171=$B$13,$F$13,IF(A171=$B$14,$F$14,IF(AND('Simulador Valora'!$AE$45=2,L170=0),D170*(1+Z171),IF($AO$3=2,B171*AI171,D170*(1+Z171))))))))) -> 0 | F171: 0 | H171: 0 | J171: =IF(B171-H171=0,0,J169) -> 0 | N171: =IF(OR('Simulador Valora'!$T$65=1,'Simulador Valora'!$T$65=3),0,L171*'Simulador Valora'!$T$66*'Simulador Valora'!$U$64) -> 0 | P171: 0 | R171: 0 | T171: =IF(B171<=0,0,IF('Simulador Valora'!$X$73=1,0,B171*'Simulador Valora'!$X$76)) -> 0 | V171: =IF(B171<=0,0,IF('Simulador Valora'!$V$40=1,'Simulador Valora'!$L$52,IF('Simulador Valora'!$V$40=3,'Simulador Valora'!$I$52,IF('Simulador Valora'!$V$40=4,'Simulador Valora'!$E$52)))) -> 0 | X171: 0 | AB171: 12 | AC171: 8 | AD171: 0 | AE171: 0 | AF171: 0 | AG171: 0 | AH171: 0.12 | AI171: 0 | AJ171: 0 | AK171: 0 | AL171: 0 | AM171: 0 | AN171: 0 | AP171: =IF(AJ171<=0,0,IF('Simulador Valora'!$X$73=1,0,AJ171*'Simulador Valora'!$X$76))+IF(AJ171<=0,0,IF('Simulador Valora'!$V$40=1,'Simulador Valora'!$L$52,IF('Simulador Valora'!$V$40=3,'Simulador Valora'!$I$52,IF('Simulador Valora'!$V$40=4,'Simulador Valora'!$E$52)))) -> 0 | AR171: 0 | AS171: 0 | AU171: 0 | AV171: 152
A172: 153 | B172: 0 | D172: =IF(B172+F172-D171<=0,B172+F172,IF(A172=$B$10,$F$10,IF(A172=$B$11,$F$11,IF(A172=$B$12,$F$12,IF(A172=$B$13,$F$13,IF(A172=$B$14,$F$14,IF(AND('Simulador Valora'!$AE$45=2,L171=0),D171*(1+Z172),IF($AO$3=2,B172*AI172,D171*(1+Z172))))))))) -> 0 | F172: 0 | H172: 0 | N172: =IF(OR('Simulador Valora'!$T$65=1,'Simulador Valora'!$T$65=3),0,L172*'Simulador Valora'!$T$66*'Simulador Valora'!$U$64) -> 0 | P172: 0 | R172: 0 | T172: =IF(B172<=0,0,IF('Simulador Valora'!$X$73=1,0,B172*'Simulador Valora'!$X$76)) -> 0 | V172: =IF(B172<=0,0,IF('Simulador Valora'!$V$40=1,'Simulador Valora'!$L$52,IF('Simulador Valora'!$V$40=3,'Simulador Valora'!$I$52,IF('Simulador Valora'!$V$40=4,'Simulador Valora'!$E$52)))) -> 0 | X172: 0 | AB172: 12 | AC172: 9 | AD172: 0 | AE172: 0 | AF172: 0 | AG172: 0 | AH172: 0.12 | AI172: 0 | AJ172: 0 | AK172: 0 | AL172: 0 | AM172: 0 | AN172: 0 | AP172: =IF(AJ172<=0,0,IF('Simulador Valora'!$X$73=1,0,AJ172*'Simulador Valora'!$X$76))+IF(AJ172<=0,0,IF('Simulador Valora'!$V$40=1,'Simulador Valora'!$L$52,IF('Simulador Valora'!$V$40=3,'Simulador Valora'!$I$52,IF('Simulador Valora'!$V$40=4,'Simulador Valora'!$E$52)))) -> 0 | AR172: 0 | AS172: 0 | AU172: 0 | AV172: 153
A173: 154 | B173: 0 | D173: =IF(B173+F173-D172<=0,B173+F173,IF(A173=$B$10,$F$10,IF(A173=$B$11,$F$11,IF(A173=$B$12,$F$12,IF(A173=$B$13,$F$13,IF(A173=$B$14,$F$14,IF(AND('Simulador Valora'!$AE$45=2,L172=0),D172*(1+Z173),IF($AO$3=2,B173*AI173,D172*(1+Z173))))))))) -> 0 | F173: 0 | H173: 0 | J173: =IF(B173-H173=0,0,J171) -> 0 | N173: =IF(OR('Simulador Valora'!$T$65=1,'Simulador Valora'!$T$65=3),0,L173*'Simulador Valora'!$T$66*'Simulador Valora'!$U$64) -> 0 | P173: 0 | R173: 0 | T173: =IF(B173<=0,0,IF('Simulador Valora'!$X$73=1,0,B173*'Simulador Valora'!$X$76)) -> 0 | V173: =IF(B173<=0,0,IF('Simulador Valora'!$V$40=1,'Simulador Valora'!$L$52,IF('Simulador Valora'!$V$40=3,'Simulador Valora'!$I$52,IF('Simulador Valora'!$V$40=4,'Simulador Valora'!$E$52)))) -> 0 | X173: 0 | AB173: 12 | AC173: 10 | AD173: 0 | AE173: 0 | AF173: 0 | AG173: 0 | AH173: 0.12 | AI173: 0 | AJ173: 0 | AK173: 0 | AL173: 0 | AM173: 0 | AN173: 0 | AP173: =IF(AJ173<=0,0,IF('Simulador Valora'!$X$73=1,0,AJ173*'Simulador Valora'!$X$76))+IF(AJ173<=0,0,IF('Simulador Valora'!$V$40=1,'Simulador Valora'!$L$52,IF('Simulador Valora'!$V$40=3,'Simulador Valora'!$I$52,IF('Simulador Valora'!$V$40=4,'Simulador Valora'!$E$52)))) -> 0 | AR173: 0 | AS173: 0 | AU173: 0 | AV173: 154
A174: 155 | B174: 0 | D174: =IF(B174+F174-D173<=0,B174+F174,IF(A174=$B$10,$F$10,IF(A174=$B$11,$F$11,IF(A174=$B$12,$F$12,IF(A174=$B$13,$F$13,IF(A174=$B$14,$F$14,IF(AND('Simulador Valora'!$AE$45=2,L173=0),D173*(1+Z174),IF($AO$3=2,B174*AI174,D173*(1+Z174))))))))) -> 0 | F174: 0 | H174: 0 | N174: =IF(OR('Simulador Valora'!$T$65=1,'Simulador Valora'!$T$65=3),0,L174*'Simulador Valora'!$T$66*'Simulador Valora'!$U$64) -> 0 | P174: 0 | R174: 0 | T174: =IF(B174<=0,0,IF('Simulador Valora'!$X$73=1,0,B174*'Simulador Valora'!$X$76)) -> 0 | V174: =IF(B174<=0,0,IF('Simulador Valora'!$V$40=1,'Simulador Valora'!$L$52,IF('Simulador Valora'!$V$40=3,'Simulador Valora'!$I$52,IF('Simulador Valora'!$V$40=4,'Simulador Valora'!$E$52)))) -> 0 | X174: 0 | AB174: 12 | AC174: 11 | AD174: 0 | AE174: 0 | AF174: 0 | AG174: 0 | AH174: 0.12 | AI174: 0 | AJ174: 0 | AK174: 0 | AL174: 0 | AM174: 0 | AN174: 0 | AP174: =IF(AJ174<=0,0,IF('Simulador Valora'!$X$73=1,0,AJ174*'Simulador Valora'!$X$76))+IF(AJ174<=0,0,IF('Simulador Valora'!$V$40=1,'Simulador Valora'!$L$52,IF('Simulador Valora'!$V$40=3,'Simulador Valora'!$I$52,IF('Simulador Valora'!$V$40=4,'Simulador Valora'!$E$52)))) -> 0 | AR174: 0 | AS174: 0 | AU174: 0 | AV174: 155
A175: 156 | B175: 0 | D175: =IF(B175+F175-D174<=0,B175+F175,IF(A175=$B$10,$F$10,IF(A175=$B$11,$F$11,IF(A175=$B$12,$F$12,IF(A175=$B$13,$F$13,IF(A175=$B$14,$F$14,IF(AND('Simulador Valora'!$AE$45=2,L174=0),D174*(1+Z175),IF($AO$3=2,B175*AI175,D174*(1+Z175))))))))) -> 0 | F175: 0 | H175: 0 | J175: =IF(B175-H175=0,0,J173) -> 0 | N175: =IF(OR('Simulador Valora'!$T$65=1,'Simulador Valora'!$T$65=3),0,L175*'Simulador Valora'!$T$66*'Simulador Valora'!$U$64) -> 0 | P175: 0 | R175: 0 | T175: =IF(B175<=0,0,IF('Simulador Valora'!$X$73=1,0,B175*'Simulador Valora'!$X$76)) -> 0 | V175: =IF(B175<=0,0,IF('Simulador Valora'!$V$40=1,'Simulador Valora'!$L$52,IF('Simulador Valora'!$V$40=3,'Simulador Valora'!$I$52,IF('Simulador Valora'!$V$40=4,'Simulador Valora'!$E$52)))) -> 0 | X175: 0 | AB175: 13 | AC175: 0 | AD175: 0 | AE175: 0 | AF175: 0 | AG175: 0 | AH175: 0.12 | AI175: 0 | AJ175: 0 | AK175: 0 | AL175: 0 | AM175: 0 | AN175: 0 | AP175: =IF(AJ175<=0,0,IF('Simulador Valora'!$X$73=1,0,AJ175*'Simulador Valora'!$X$76))+IF(AJ175<=0,0,IF('Simulador Valora'!$V$40=1,'Simulador Valora'!$L$52,IF('Simulador Valora'!$V$40=3,'Simulador Valora'!$I$52,IF('Simulador Valora'!$V$40=4,'Simulador Valora'!$E$52)))) -> 0 | AR175: 0 | AS175: 0 | AU175: 0 | AV175: 156
A176: 157 | B176: 0 | D176: =IF(B176+F176-D175<=0,B176+F176,IF(A176=$B$10,$F$10,IF(A176=$B$11,$F$11,IF(A176=$B$12,$F$12,IF(A176=$B$13,$F$13,IF(A176=$B$14,$F$14,IF(AND('Simulador Valora'!$AE$45=2,L175=0),D175*(1+Z176),IF($AO$3=2,B176*AI176,D175*(1+Z176))))))))) -> 0 | F176: 0 | H176: 0 | N176: =IF(OR('Simulador Valora'!$T$65=1,'Simulador Valora'!$T$65=3),0,L176*'Simulador Valora'!$T$66*'Simulador Valora'!$U$64) -> 0 | P176: 0 | R176: 0 | T176: =IF(B176<=0,0,IF('Simulador Valora'!$X$73=1,0,B176*'Simulador Valora'!$X$76)) -> 0 | V176: =IF(B176<=0,0,IF('Simulador Valora'!$V$40=1,'Simulador Valora'!$L$52,IF('Simulador Valora'!$V$40=3,'Simulador Valora'!$I$52,IF('Simulador Valora'!$V$40=4,'Simulador Valora'!$E$52)))) -> 0 | X176: 0 | Z176: =IF(B176<=0,0,'Simulador Valora'!$AF$53) -> 0 | AB176: 13 | AC176: 1 | AD176: 0 | AE176: 0 | AF176: 0 | AG176: 0 | AH176: =IF(AH175=$AG$4,AH175,IF(AH175-0.25%<=$AG$4,$AG$4,AH175-0.25%)) -> 0.12 | AI176: 0 | AJ176: 0 | AK176: 0 | AL176: 0 | AM176: 0 | AN176: 0 | AP176: =IF(AJ176<=0,0,IF('Simulador Valora'!$X$73=1,0,AJ176*'Simulador Valora'!$X$76))+IF(AJ176<=0,0,IF('Simulador Valora'!$V$40=1,'Simulador Valora'!$L$52,IF('Simulador Valora'!$V$40=3,'Simulador Valora'!$I$52,IF('Simulador Valora'!$V$40=4,'Simulador Valora'!$E$52)))) -> 0 | AQ176: =IF(AJ176<=0,0,$AQ$32) -> 0 | AR176: 0 | AS176: 0 | AU176: 0 | AV176: 157
A177: 158 | B177: 0 | D177: =IF(B177+F177-D176<=0,B177+F177,IF(A177=$B$10,$F$10,IF(A177=$B$11,$F$11,IF(A177=$B$12,$F$12,IF(A177=$B$13,$F$13,IF(A177=$B$14,$F$14,IF(AND('Simulador Valora'!$AE$45=2,L176=0),D176*(1+Z177),IF($AO$3=2,B177*AI177,D176*(1+Z177))))))))) -> 0 | F177: 0 | H177: 0 | J177: =IF(B177-H177=0,0,J175*(1+(3%))) -> 0 | N177: =IF(OR('Simulador Valora'!$T$65=1,'Simulador Valora'!$T$65=3),0,L177*'Simulador Valora'!$T$66*'Simulador Valora'!$U$64) -> 0 | P177: 0 | R177: 0 | T177: =IF(B177<=0,0,IF('Simulador Valora'!$X$73=1,0,B177*'Simulador Valora'!$X$76)) -> 0 | V177: =IF(B177<=0,0,IF('Simulador Valora'!$V$40=1,'Simulador Valora'!$L$52,IF('Simulador Valora'!$V$40=3,'Simulador Valora'!$I$52,IF('Simulador Valora'!$V$40=4,'Simulador Valora'!$E$52)))) -> 0 | X177: 0 | AB177: 13 | AC177: 2 | AD177: 0 | AE177: 0 | AF177: 0 | AG177: 0 | AH177: =AH176 -> 0.12 | AI177: 0 | AJ177: 0 | AK177: 0 | AL177: 0 | AM177: 0 | AN177: 0 | AP177: =IF(AJ177<=0,0,IF('Simulador Valora'!$X$73=1,0,AJ177*'Simulador Valora'!$X$76))+IF(AJ177<=0,0,IF('Simulador Valora'!$V$40=1,'Simulador Valora'!$L$52,IF('Simulador Valora'!$V$40=3,'Simulador Valora'!$I$52,IF('Simulador Valora'!$V$40=4,'Simulador Valora'!$E$52)))) -> 0 | AR177: 0 | AS177: 0 | AU177: 0 | AV177: 158
A178: 159 | B178: 0 | D178: =IF(B178+F178-D177<=0,B178+F178,IF(A178=$B$10,$F$10,IF(A178=$B$11,$F$11,IF(A178=$B$12,$F$12,IF(A178=$B$13,$F$13,IF(A178=$B$14,$F$14,IF(AND('Simulador Valora'!$AE$45=2,L177=0),D177*(1+Z178),IF($AO$3=2,B178*AI178,D177*(1+Z178))))))))) -> 0 | F178: 0 | H178: 0 | N178: =IF(OR('Simulador Valora'!$T$65=1,'Simulador Valora'!$T$65=3),0,L178*'Simulador Valora'!$T$66*'Simulador Valora'!$U$64) -> 0 | P178: 0 | R178: 0 | T178: =IF(B178<=0,0,IF('Simulador Valora'!$X$73=1,0,B178*'Simulador Valora'!$X$76)) -> 0 | V178: =IF(B178<=0,0,IF('Simulador Valora'!$V$40=1,'Simulador Valora'!$L$52,IF('Simulador Valora'!$V$40=3,'Simulador Valora'!$I$52,IF('Simulador Valora'!$V$40=4,'Simulador Valora'!$E$52)))) -> 0 | X178: 0 | AB178: 13 | AC178: 3 | AD178: 0 | AE178: 0 | AF178: 0 | AG178: 0 | AH178: =AH177 -> 0.12 | AI178: 0 | AJ178: 0 | AK178: 0 | AL178: 0 | AM178: 0 | AN178: 0 | AP178: =IF(AJ178<=0,0,IF('Simulador Valora'!$X$73=1,0,AJ178*'Simulador Valora'!$X$76))+IF(AJ178<=0,0,IF('Simulador Valora'!$V$40=1,'Simulador Valora'!$L$52,IF('Simulador Valora'!$V$40=3,'Simulador Valora'!$I$52,IF('Simulador Valora'!$V$40=4,'Simulador Valora'!$E$52)))) -> 0 | AR178: 0 | AS178: 0 | AU178: 0 | AV178: 159
A179: 160 | B179: 0 | D179: =IF(B179+F179-D178<=0,B179+F179,IF(A179=$B$10,$F$10,IF(A179=$B$11,$F$11,IF(A179=$B$12,$F$12,IF(A179=$B$13,$F$13,IF(A179=$B$14,$F$14,IF(AND('Simulador Valora'!$AE$45=2,L178=0),D178*(1+Z179),IF($AO$3=2,B179*AI179,D178*(1+Z179))))))))) -> 0 | F179: 0 | H179: 0 | J179: =IF(B179-H179=0,0,J177) -> 0 | N179: =IF(OR('Simulador Valora'!$T$65=1,'Simulador Valora'!$T$65=3),0,L179*'Simulador Valora'!$T$66*'Simulador Valora'!$U$64) -> 0 | P179: 0 | R179: 0 | T179: =IF(B179<=0,0,IF('Simulador Valora'!$X$73=1,0,B179*'Simulador Valora'!$X$76)) -> 0 | V179: =IF(B179<=0,0,IF('Simulador Valora'!$V$40=1,'Simulador Valora'!$L$52,IF('Simulador Valora'!$V$40=3,'Simulador Valora'!$I$52,IF('Simulador Valora'!$V$40=4,'Simulador Valora'!$E$52)))) -> 0 | X179: 0 | AB179: 13 | AC179: 4 | AD179: 0 | AE179: 0 | AF179: 0 | AG179: 0 | AH179: 0.12 | AI179: 0 | AJ179: 0 | AK179: 0 | AL179: 0 | AM179: 0 | AN179: 0 | AP179: =IF(AJ179<=0,0,IF('Simulador Valora'!$X$73=1,0,AJ179*'Simulador Valora'!$X$76))+IF(AJ179<=0,0,IF('Simulador Valora'!$V$40=1,'Simulador Valora'!$L$52,IF('Simulador Valora'!$V$40=3,'Simulador Valora'!$I$52,IF('Simulador Valora'!$V$40=4,'Simulador Valora'!$E$52)))) -> 0 | AR179: 0 | AS179: 0 | AU179: 0 | AV179: 160
A180: 161 | B180: 0 | D180: =IF(B180+F180-D179<=0,B180+F180,IF(A180=$B$10,$F$10,IF(A180=$B$11,$F$11,IF(A180=$B$12,$F$12,IF(A180=$B$13,$F$13,IF(A180=$B$14,$F$14,IF(AND('Simulador Valora'!$AE$45=2,L179=0),D179*(1+Z180),IF($AO$3=2,B180*AI180,D179*(1+Z180))))))))) -> 0 | F180: 0 | H180: 0 | N180: =IF(OR('Simulador Valora'!$T$65=1,'Simulador Valora'!$T$65=3),0,L180*'Simulador Valora'!$T$66*'Simulador Valora'!$U$64) -> 0 | P180: 0 | R180: 0 | T180: =IF(B180<=0,0,IF('Simulador Valora'!$X$73=1,0,B180*'Simulador Valora'!$X$76)) -> 0 | V180: =IF(B180<=0,0,IF('Simulador Valora'!$V$40=1,'Simulador Valora'!$L$52,IF('Simulador Valora'!$V$40=3,'Simulador Valora'!$I$52,IF('Simulador Valora'!$V$40=4,'Simulador Valora'!$E$52)))) -> 0 | X180: 0 | AB180: 13 | AC180: 5 | AD180: 0 | AE180: 0 | AF180: 0 | AG180: 0 | AH180: 0.12 | AI180: 0 | AJ180: 0 | AK180: 0 | AL180: 0 | AM180: 0 | AN180: 0 | AP180: =IF(AJ180<=0,0,IF('Simulador Valora'!$X$73=1,0,AJ180*'Simulador Valora'!$X$76))+IF(AJ180<=0,0,IF('Simulador Valora'!$V$40=1,'Simulador Valora'!$L$52,IF('Simulador Valora'!$V$40=3,'Simulador Valora'!$I$52,IF('Simulador Valora'!$V$40=4,'Simulador Valora'!$E$52)))) -> 0 | AR180: 0 | AS180: 0 | AU180: 0 | AV180: 161
A181: 162 | B181: 0 | D181: =IF(B181+F181-D180<=0,B181+F181,IF(A181=$B$10,$F$10,IF(A181=$B$11,$F$11,IF(A181=$B$12,$F$12,IF(A181=$B$13,$F$13,IF(A181=$B$14,$F$14,IF(AND('Simulador Valora'!$AE$45=2,L180=0),D180*(1+Z181),IF($AO$3=2,B181*AI181,D180*(1+Z181))))))))) -> 0 | F181: 0 | H181: 0 | J181: =IF(B181-H181=0,0,J179) -> 0 | N181: =IF(OR('Simulador Valora'!$T$65=1,'Simulador Valora'!$T$65=3),0,L181*'Simulador Valora'!$T$66*'Simulador Valora'!$U$64) -> 0 | P181: 0 | R181: 0 | T181: =IF(B181<=0,0,IF('Simulador Valora'!$X$73=1,0,B181*'Simulador Valora'!$X$76)) -> 0 | V181: =IF(B181<=0,0,IF('Simulador Valora'!$V$40=1,'Simulador Valora'!$L$52,IF('Simulador Valora'!$V$40=3,'Simulador Valora'!$I$52,IF('Simulador Valora'!$V$40=4,'Simulador Valora'!$E$52)))) -> 0 | X181: 0 | AB181: 13 | AC181: 6 | AD181: 0 | AE181: 0 | AF181: 0 | AG181: 0 | AH181: 0.12 | AI181: 0 | AJ181: 0 | AK181: 0 | AL181: 0 | AM181: 0 | AN181: 0 | AP181: =IF(AJ181<=0,0,IF('Simulador Valora'!$X$73=1,0,AJ181*'Simulador Valora'!$X$76))+IF(AJ181<=0,0,IF('Simulador Valora'!$V$40=1,'Simulador Valora'!$L$52,IF('Simulador Valora'!$V$40=3,'Simulador Valora'!$I$52,IF('Simulador Valora'!$V$40=4,'Simulador Valora'!$E$52)))) -> 0 | AR181: 0 | AS181: 0 | AU181: 0 | AV181: 162
A182: 163 | B182: 0 | D182: =IF(B182+F182-D181<=0,B182+F182,IF(A182=$B$10,$F$10,IF(A182=$B$11,$F$11,IF(A182=$B$12,$F$12,IF(A182=$B$13,$F$13,IF(A182=$B$14,$F$14,IF(AND('Simulador Valora'!$AE$45=2,L181=0),D181*(1+Z182),IF($AO$3=2,B182*AI182,D181*(1+Z182))))))))) -> 0 | F182: 0 | H182: 0 | N182: =IF(OR('Simulador Valora'!$T$65=1,'Simulador Valora'!$T$65=3),0,L182*'Simulador Valora'!$T$66*'Simulador Valora'!$U$64) -> 0 | P182: 0 | R182: 0 | T182: =IF(B182<=0,0,IF('Simulador Valora'!$X$73=1,0,B182*'Simulador Valora'!$X$76)) -> 0 | V182: =IF(B182<=0,0,IF('Simulador Valora'!$V$40=1,'Simulador Valora'!$L$52,IF('Simulador Valora'!$V$40=3,'Simulador Valora'!$I$52,IF('Simulador Valora'!$V$40=4,'Simulador Valora'!$E$52)))) -> 0 | X182: 0 | AB182: 13 | AC182: 7 | AD182: 0 | AE182: 0 | AF182: 0 | AG182: 0 | AH182: 0.12 | AI182: 0 | AJ182: 0 | AK182: 0 | AL182: 0 | AM182: 0 | AN182: 0 | AP182: =IF(AJ182<=0,0,IF('Simulador Valora'!$X$73=1,0,AJ182*'Simulador Valora'!$X$76))+IF(AJ182<=0,0,IF('Simulador Valora'!$V$40=1,'Simulador Valora'!$L$52,IF('Simulador Valora'!$V$40=3,'Simulador Valora'!$I$52,IF('Simulador Valora'!$V$40=4,'Simulador Valora'!$E$52)))) -> 0 | AR182: 0 | AS182: 0 | AU182: 0 | AV182: 163
A183: 164 | B183: 0 | D183: =IF(B183+F183-D182<=0,B183+F183,IF(A183=$B$10,$F$10,IF(A183=$B$11,$F$11,IF(A183=$B$12,$F$12,IF(A183=$B$13,$F$13,IF(A183=$B$14,$F$14,IF(AND('Simulador Valora'!$AE$45=2,L182=0),D182*(1+Z183),IF($AO$3=2,B183*AI183,D182*(1+Z183))))))))) -> 0 | F183: 0 | H183: 0 | J183: =IF(B183-H183=0,0,J181) -> 0 | N183: =IF(OR('Simulador Valora'!$T$65=1,'Simulador Valora'!$T$65=3),0,L183*'Simulador Valora'!$T$66*'Simulador Valora'!$U$64) -> 0 | P183: 0 | R183: 0 | T183: =IF(B183<=0,0,IF('Simulador Valora'!$X$73=1,0,B183*'Simulador Valora'!$X$76)) -> 0 | V183: =IF(B183<=0,0,IF('Simulador Valora'!$V$40=1,'Simulador Valora'!$L$52,IF('Simulador Valora'!$V$40=3,'Simulador Valora'!$I$52,IF('Simulador Valora'!$V$40=4,'Simulador Valora'!$E$52)))) -> 0 | X183: 0 | AB183: 13 | AC183: 8 | AD183: 0 | AE183: 0 | AF183: 0 | AG183: 0 | AH183: 0.12 | AI183: 0 | AJ183: 0 | AK183: 0 | AL183: 0 | AM183: 0 | AN183: 0 | AP183: =IF(AJ183<=0,0,IF('Simulador Valora'!$X$73=1,0,AJ183*'Simulador Valora'!$X$76))+IF(AJ183<=0,0,IF('Simulador Valora'!$V$40=1,'Simulador Valora'!$L$52,IF('Simulador Valora'!$V$40=3,'Simulador Valora'!$I$52,IF('Simulador Valora'!$V$40=4,'Simulador Valora'!$E$52)))) -> 0 | AR183: 0 | AS183: 0 | AU183: 0 | AV183: 164
A184: 165 | B184: 0 | D184: =IF(B184+F184-D183<=0,B184+F184,IF(A184=$B$10,$F$10,IF(A184=$B$11,$F$11,IF(A184=$B$12,$F$12,IF(A184=$B$13,$F$13,IF(A184=$B$14,$F$14,IF(AND('Simulador Valora'!$AE$45=2,L183=0),D183*(1+Z184),IF($AO$3=2,B184*AI184,D183*(1+Z184))))))))) -> 0 | F184: 0 | H184: 0 | N184: =IF(OR('Simulador Valora'!$T$65=1,'Simulador Valora'!$T$65=3),0,L184*'Simulador Valora'!$T$66*'Simulador Valora'!$U$64) -> 0 | P184: 0 | R184: 0 | T184: =IF(B184<=0,0,IF('Simulador Valora'!$X$73=1,0,B184*'Simulador Valora'!$X$76)) -> 0 | V184: =IF(B184<=0,0,IF('Simulador Valora'!$V$40=1,'Simulador Valora'!$L$52,IF('Simulador Valora'!$V$40=3,'Simulador Valora'!$I$52,IF('Simulador Valora'!$V$40=4,'Simulador Valora'!$E$52)))) -> 0 | X184: 0 | AB184: 13 | AC184: 9 | AD184: 0 | AE184: 0 | AF184: 0 | AG184: 0 | AH184: 0.12 | AI184: 0 | AJ184: 0 | AK184: 0 | AL184: 0 | AM184: 0 | AN184: 0 | AP184: =IF(AJ184<=0,0,IF('Simulador Valora'!$X$73=1,0,AJ184*'Simulador Valora'!$X$76))+IF(AJ184<=0,0,IF('Simulador Valora'!$V$40=1,'Simulador Valora'!$L$52,IF('Simulador Valora'!$V$40=3,'Simulador Valora'!$I$52,IF('Simulador Valora'!$V$40=4,'Simulador Valora'!$E$52)))) -> 0 | AR184: 0 | AS184: 0 | AU184: 0 | AV184: 165
A185: 166 | B185: 0 | D185: =IF(B185+F185-D184<=0,B185+F185,IF(A185=$B$10,$F$10,IF(A185=$B$11,$F$11,IF(A185=$B$12,$F$12,IF(A185=$B$13,$F$13,IF(A185=$B$14,$F$14,IF(AND('Simulador Valora'!$AE$45=2,L184=0),D184*(1+Z185),IF($AO$3=2,B185*AI185,D184*(1+Z185))))))))) -> 0 | F185: 0 | H185: 0 | J185: =IF(B185-H185=0,0,J183) -> 0 | N185: =IF(OR('Simulador Valora'!$T$65=1,'Simulador Valora'!$T$65=3),0,L185*'Simulador Valora'!$T$66*'Simulador Valora'!$U$64) -> 0 | P185: 0 | R185: 0 | T185: =IF(B185<=0,0,IF('Simulador Valora'!$X$73=1,0,B185*'Simulador Valora'!$X$76)) -> 0 | V185: =IF(B185<=0,0,IF('Simulador Valora'!$V$40=1,'Simulador Valora'!$L$52,IF('Simulador Valora'!$V$40=3,'Simulador Valora'!$I$52,IF('Simulador Valora'!$V$40=4,'Simulador Valora'!$E$52)))) -> 0 | X185: 0 | AB185: 13 | AC185: 10 | AD185: 0 | AE185: 0 | AF185: 0 | AG185: 0 | AH185: 0.12 | AI185: 0 | AJ185: 0 | AK185: 0 | AL185: 0 | AM185: 0 | AN185: 0 | AP185: =IF(AJ185<=0,0,IF('Simulador Valora'!$X$73=1,0,AJ185*'Simulador Valora'!$X$76))+IF(AJ185<=0,0,IF('Simulador Valora'!$V$40=1,'Simulador Valora'!$L$52,IF('Simulador Valora'!$V$40=3,'Simulador Valora'!$I$52,IF('Simulador Valora'!$V$40=4,'Simulador Valora'!$E$52)))) -> 0 | AR185: 0 | AS185: 0 | AU185: 0 | AV185: 166
A186: 167 | B186: 0 | D186: =IF(B186+F186-D185<=0,B186+F186,IF(A186=$B$10,$F$10,IF(A186=$B$11,$F$11,IF(A186=$B$12,$F$12,IF(A186=$B$13,$F$13,IF(A186=$B$14,$F$14,IF(AND('Simulador Valora'!$AE$45=2,L185=0),D185*(1+Z186),IF($AO$3=2,B186*AI186,D185*(1+Z186))))))))) -> 0 | F186: 0 | H186: 0 | N186: =IF(OR('Simulador Valora'!$T$65=1,'Simulador Valora'!$T$65=3),0,L186*'Simulador Valora'!$T$66*'Simulador Valora'!$U$64) -> 0 | P186: 0 | R186: 0 | T186: =IF(B186<=0,0,IF('Simulador Valora'!$X$73=1,0,B186*'Simulador Valora'!$X$76)) -> 0 | V186: =IF(B186<=0,0,IF('Simulador Valora'!$V$40=1,'Simulador Valora'!$L$52,IF('Simulador Valora'!$V$40=3,'Simulador Valora'!$I$52,IF('Simulador Valora'!$V$40=4,'Simulador Valora'!$E$52)))) -> 0 | X186: 0 | AB186: 13 | AC186: 11 | AD186: 0 | AE186: 0 | AF186: 0 | AG186: 0 | AH186: 0.12 | AI186: 0 | AJ186: 0 | AK186: 0 | AL186: 0 | AM186: 0 | AN186: 0 | AP186: =IF(AJ186<=0,0,IF('Simulador Valora'!$X$73=1,0,AJ186*'Simulador Valora'!$X$76))+IF(AJ186<=0,0,IF('Simulador Valora'!$V$40=1,'Simulador Valora'!$L$52,IF('Simulador Valora'!$V$40=3,'Simulador Valora'!$I$52,IF('Simulador Valora'!$V$40=4,'Simulador Valora'!$E$52)))) -> 0 | AR186: 0 | AS186: 0 | AU186: 0 | AV186: 167
A187: 168 | B187: 0 | D187: =IF(B187+F187-D186<=0,B187+F187,IF(A187=$B$10,$F$10,IF(A187=$B$11,$F$11,IF(A187=$B$12,$F$12,IF(A187=$B$13,$F$13,IF(A187=$B$14,$F$14,IF(AND('Simulador Valora'!$AE$45=2,L186=0),D186*(1+Z187),IF($AO$3=2,B187*AI187,D186*(1+Z187))))))))) -> 0 | F187: 0 | H187: 0 | J187: =IF(B187-H187=0,0,J185) -> 0 | N187: =IF(OR('Simulador Valora'!$T$65=1,'Simulador Valora'!$T$65=3),0,L187*'Simulador Valora'!$T$66*'Simulador Valora'!$U$64) -> 0 | P187: 0 | R187: 0 | T187: =IF(B187<=0,0,IF('Simulador Valora'!$X$73=1,0,B187*'Simulador Valora'!$X$76)) -> 0 | V187: =IF(B187<=0,0,IF('Simulador Valora'!$V$40=1,'Simulador Valora'!$L$52,IF('Simulador Valora'!$V$40=3,'Simulador Valora'!$I$52,IF('Simulador Valora'!$V$40=4,'Simulador Valora'!$E$52)))) -> 0 | X187: 0 | AB187: 14 | AC187: 0 | AD187: 0 | AE187: 0 | AF187: 0 | AG187: 0 | AH187: 0.12 | AI187: 0 | AJ187: 0 | AK187: 0 | AL187: 0 | AM187: 0 | AN187: 0 | AP187: =IF(AJ187<=0,0,IF('Simulador Valora'!$X$73=1,0,AJ187*'Simulador Valora'!$X$76))+IF(AJ187<=0,0,IF('Simulador Valora'!$V$40=1,'Simulador Valora'!$L$52,IF('Simulador Valora'!$V$40=3,'Simulador Valora'!$I$52,IF('Simulador Valora'!$V$40=4,'Simulador Valora'!$E$52)))) -> 0 | AR187: 0 | AS187: 0 | AU187: 0 | AV187: 168
A188: 169 | B188: 0 | D188: =IF(B188+F188-D187<=0,B188+F188,IF(A188=$B$10,$F$10,IF(A188=$B$11,$F$11,IF(A188=$B$12,$F$12,IF(A188=$B$13,$F$13,IF(A188=$B$14,$F$14,IF(AND('Simulador Valora'!$AE$45=2,L187=0),D187*(1+Z188),IF($AO$3=2,B188*AI188,D187*(1+Z188))))))))) -> 0 | F188: 0 | H188: 0 | N188: =IF(OR('Simulador Valora'!$T$65=1,'Simulador Valora'!$T$65=3),0,L188*'Simulador Valora'!$T$66*'Simulador Valora'!$U$64) -> 0 | P188: 0 | R188: 0 | T188: =IF(B188<=0,0,IF('Simulador Valora'!$X$73=1,0,B188*'Simulador Valora'!$X$76)) -> 0 | V188: =IF(B188<=0,0,IF('Simulador Valora'!$V$40=1,'Simulador Valora'!$L$52,IF('Simulador Valora'!$V$40=3,'Simulador Valora'!$I$52,IF('Simulador Valora'!$V$40=4,'Simulador Valora'!$E$52)))) -> 0 | X188: 0 | Z188: =IF(B188<=0,0,'Simulador Valora'!$AF$53) -> 0 | AB188: 14 | AC188: 1 | AD188: 0 | AE188: 0 | AF188: 0 | AG188: 0 | AH188: =IF(AH187=$AG$4,AH187,IF(AH187-0.25%<=$AG$4,$AG$4,AH187-0.25%)) -> 0.12 | AI188: 0 | AJ188: 0 | AK188: 0 | AL188: 0 | AM188: 0 | AN188: 0 | AP188: =IF(AJ188<=0,0,IF('Simulador Valora'!$X$73=1,0,AJ188*'Simulador Valora'!$X$76))+IF(AJ188<=0,0,IF('Simulador Valora'!$V$40=1,'Simulador Valora'!$L$52,IF('Simulador Valora'!$V$40=3,'Simulador Valora'!$I$52,IF('Simulador Valora'!$V$40=4,'Simulador Valora'!$E$52)))) -> 0 | AQ188: =IF(AJ188<=0,0,$AQ$32) -> 0 | AR188: 0 | AS188: 0 | AU188: 0 | AV188: 169
A189: 170 | B189: 0 | D189: =IF(B189+F189-D188<=0,B189+F189,IF(A189=$B$10,$F$10,IF(A189=$B$11,$F$11,IF(A189=$B$12,$F$12,IF(A189=$B$13,$F$13,IF(A189=$B$14,$F$14,IF(AND('Simulador Valora'!$AE$45=2,L188=0),D188*(1+Z189),IF($AO$3=2,B189*AI189,D188*(1+Z189))))))))) -> 0 | F189: 0 | H189: 0 | J189: =IF(B189-H189=0,0,J187*(1+(3%))) -> 0 | N189: =IF(OR('Simulador Valora'!$T$65=1,'Simulador Valora'!$T$65=3),0,L189*'Simulador Valora'!$T$66*'Simulador Valora'!$U$64) -> 0 | P189: 0 | R189: 0 | T189: =IF(B189<=0,0,IF('Simulador Valora'!$X$73=1,0,B189*'Simulador Valora'!$X$76)) -> 0 | V189: =IF(B189<=0,0,IF('Simulador Valora'!$V$40=1,'Simulador Valora'!$L$52,IF('Simulador Valora'!$V$40=3,'Simulador Valora'!$I$52,IF('Simulador Valora'!$V$40=4,'Simulador Valora'!$E$52)))) -> 0 | X189: 0 | AB189: 14 | AC189: 2 | AD189: 0 | AE189: 0 | AF189: 0 | AG189: 0 | AH189: =AH188 -> 0.12 | AI189: 0 | AJ189: 0 | AK189: 0 | AL189: 0 | AM189: 0 | AN189: 0 | AP189: =IF(AJ189<=0,0,IF('Simulador Valora'!$X$73=1,0,AJ189*'Simulador Valora'!$X$76))+IF(AJ189<=0,0,IF('Simulador Valora'!$V$40=1,'Simulador Valora'!$L$52,IF('Simulador Valora'!$V$40=3,'Simulador Valora'!$I$52,IF('Simulador Valora'!$V$40=4,'Simulador Valora'!$E$52)))) -> 0 | AR189: 0 | AS189: 0 | AU189: 0 | AV189: 170
A190: 171 | B190: 0 | D190: =IF(B190+F190-D189<=0,B190+F190,IF(A190=$B$10,$F$10,IF(A190=$B$11,$F$11,IF(A190=$B$12,$F$12,IF(A190=$B$13,$F$13,IF(A190=$B$14,$F$14,IF(AND('Simulador Valora'!$AE$45=2,L189=0),D189*(1+Z190),IF($AO$3=2,B190*AI190,D189*(1+Z190))))))))) -> 0 | F190: 0 | H190: 0 | N190: =IF(OR('Simulador Valora'!$T$65=1,'Simulador Valora'!$T$65=3),0,L190*'Simulador Valora'!$T$66*'Simulador Valora'!$U$64) -> 0 | P190: 0 | R190: 0 | T190: =IF(B190<=0,0,IF('Simulador Valora'!$X$73=1,0,B190*'Simulador Valora'!$X$76)) -> 0 | V190: =IF(B190<=0,0,IF('Simulador Valora'!$V$40=1,'Simulador Valora'!$L$52,IF('Simulador Valora'!$V$40=3,'Simulador Valora'!$I$52,IF('Simulador Valora'!$V$40=4,'Simulador Valora'!$E$52)))) -> 0 | X190: 0 | AB190: 14 | AC190: 3 | AD190: 0 | AE190: 0 | AF190: 0 | AG190: 0 | AH190: =AH189 -> 0.12 | AI190: 0 | AJ190: 0 | AK190: 0 | AL190: 0 | AM190: 0 | AN190: 0 | AP190: =IF(AJ190<=0,0,IF('Simulador Valora'!$X$73=1,0,AJ190*'Simulador Valora'!$X$76))+IF(AJ190<=0,0,IF('Simulador Valora'!$V$40=1,'Simulador Valora'!$L$52,IF('Simulador Valora'!$V$40=3,'Simulador Valora'!$I$52,IF('Simulador Valora'!$V$40=4,'Simulador Valora'!$E$52)))) -> 0 | AR190: 0 | AS190: 0 | AU190: 0 | AV190: 171
A191: 172 | B191: 0 | D191: =IF(B191+F191-D190<=0,B191+F191,IF(A191=$B$10,$F$10,IF(A191=$B$11,$F$11,IF(A191=$B$12,$F$12,IF(A191=$B$13,$F$13,IF(A191=$B$14,$F$14,IF(AND('Simulador Valora'!$AE$45=2,L190=0),D190*(1+Z191),IF($AO$3=2,B191*AI191,D190*(1+Z191))))))))) -> 0 | F191: 0 | H191: 0 | J191: =IF(B191-H191=0,0,J189) -> 0 | N191: =IF(OR('Simulador Valora'!$T$65=1,'Simulador Valora'!$T$65=3),0,L191*'Simulador Valora'!$T$66*'Simulador Valora'!$U$64) -> 0 | P191: 0 | R191: 0 | T191: =IF(B191<=0,0,IF('Simulador Valora'!$X$73=1,0,B191*'Simulador Valora'!$X$76)) -> 0 | V191: =IF(B191<=0,0,IF('Simulador Valora'!$V$40=1,'Simulador Valora'!$L$52,IF('Simulador Valora'!$V$40=3,'Simulador Valora'!$I$52,IF('Simulador Valora'!$V$40=4,'Simulador Valora'!$E$52)))) -> 0 | X191: 0 | AB191: 14 | AC191: 4 | AD191: 0 | AE191: 0 | AF191: 0 | AG191: 0 | AH191: 0.12 | AI191: 0 | AJ191: 0 | AK191: 0 | AL191: 0 | AM191: 0 | AN191: 0 | AP191: =IF(AJ191<=0,0,IF('Simulador Valora'!$X$73=1,0,AJ191*'Simulador Valora'!$X$76))+IF(AJ191<=0,0,IF('Simulador Valora'!$V$40=1,'Simulador Valora'!$L$52,IF('Simulador Valora'!$V$40=3,'Simulador Valora'!$I$52,IF('Simulador Valora'!$V$40=4,'Simulador Valora'!$E$52)))) -> 0 | AR191: 0 | AS191: 0 | AU191: 0 | AV191: 172
A192: 173 | B192: 0 | D192: =IF(B192+F192-D191<=0,B192+F192,IF(A192=$B$10,$F$10,IF(A192=$B$11,$F$11,IF(A192=$B$12,$F$12,IF(A192=$B$13,$F$13,IF(A192=$B$14,$F$14,IF(AND('Simulador Valora'!$AE$45=2,L191=0),D191*(1+Z192),IF($AO$3=2,B192*AI192,D191*(1+Z192))))))))) -> 0 | F192: 0 | H192: 0 | N192: =IF(OR('Simulador Valora'!$T$65=1,'Simulador Valora'!$T$65=3),0,L192*'Simulador Valora'!$T$66*'Simulador Valora'!$U$64) -> 0 | P192: 0 | R192: 0 | T192: =IF(B192<=0,0,IF('Simulador Valora'!$X$73=1,0,B192*'Simulador Valora'!$X$76)) -> 0 | V192: =IF(B192<=0,0,IF('Simulador Valora'!$V$40=1,'Simulador Valora'!$L$52,IF('Simulador Valora'!$V$40=3,'Simulador Valora'!$I$52,IF('Simulador Valora'!$V$40=4,'Simulador Valora'!$E$52)))) -> 0 | X192: 0 | AB192: 14 | AC192: 5 | AD192: 0 | AE192: 0 | AF192: 0 | AG192: 0 | AH192: 0.12 | AI192: 0 | AJ192: 0 | AK192: 0 | AL192: 0 | AM192: 0 | AN192: 0 | AP192: =IF(AJ192<=0,0,IF('Simulador Valora'!$X$73=1,0,AJ192*'Simulador Valora'!$X$76))+IF(AJ192<=0,0,IF('Simulador Valora'!$V$40=1,'Simulador Valora'!$L$52,IF('Simulador Valora'!$V$40=3,'Simulador Valora'!$I$52,IF('Simulador Valora'!$V$40=4,'Simulador Valora'!$E$52)))) -> 0 | AR192: 0 | AS192: 0 | AU192: 0 | AV192: 173
A193: 174 | B193: 0 | D193: =IF(B193+F193-D192<=0,B193+F193,IF(A193=$B$10,$F$10,IF(A193=$B$11,$F$11,IF(A193=$B$12,$F$12,IF(A193=$B$13,$F$13,IF(A193=$B$14,$F$14,IF(AND('Simulador Valora'!$AE$45=2,L192=0),D192*(1+Z193),IF($AO$3=2,B193*AI193,D192*(1+Z193))))))))) -> 0 | F193: 0 | H193: 0 | J193: =IF(B193-H193=0,0,J191) -> 0 | N193: =IF(OR('Simulador Valora'!$T$65=1,'Simulador Valora'!$T$65=3),0,L193*'Simulador Valora'!$T$66*'Simulador Valora'!$U$64) -> 0 | P193: 0 | R193: 0 | T193: =IF(B193<=0,0,IF('Simulador Valora'!$X$73=1,0,B193*'Simulador Valora'!$X$76)) -> 0 | V193: =IF(B193<=0,0,IF('Simulador Valora'!$V$40=1,'Simulador Valora'!$L$52,IF('Simulador Valora'!$V$40=3,'Simulador Valora'!$I$52,IF('Simulador Valora'!$V$40=4,'Simulador Valora'!$E$52)))) -> 0 | X193: 0 | AB193: 14 | AC193: 6 | AD193: 0 | AE193: 0 | AF193: 0 | AG193: 0 | AH193: 0.12 | AI193: 0 | AJ193: 0 | AK193: 0 | AL193: 0 | AM193: 0 | AN193: 0 | AP193: =IF(AJ193<=0,0,IF('Simulador Valora'!$X$73=1,0,AJ193*'Simulador Valora'!$X$76))+IF(AJ193<=0,0,IF('Simulador Valora'!$V$40=1,'Simulador Valora'!$L$52,IF('Simulador Valora'!$V$40=3,'Simulador Valora'!$I$52,IF('Simulador Valora'!$V$40=4,'Simulador Valora'!$E$52)))) -> 0 | AR193: 0 | AS193: 0 | AU193: 0 | AV193: 174
A194: 175 | B194: 0 | D194: =IF(B194+F194-D193<=0,B194+F194,IF(A194=$B$10,$F$10,IF(A194=$B$11,$F$11,IF(A194=$B$12,$F$12,IF(A194=$B$13,$F$13,IF(A194=$B$14,$F$14,IF(AND('Simulador Valora'!$AE$45=2,L193=0),D193*(1+Z194),IF($AO$3=2,B194*AI194,D193*(1+Z194))))))))) -> 0 | F194: 0 | H194: 0 | N194: =IF(OR('Simulador Valora'!$T$65=1,'Simulador Valora'!$T$65=3),0,L194*'Simulador Valora'!$T$66*'Simulador Valora'!$U$64) -> 0 | P194: 0 | R194: 0 | T194: =IF(B194<=0,0,IF('Simulador Valora'!$X$73=1,0,B194*'Simulador Valora'!$X$76)) -> 0 | V194: =IF(B194<=0,0,IF('Simulador Valora'!$V$40=1,'Simulador Valora'!$L$52,IF('Simulador Valora'!$V$40=3,'Simulador Valora'!$I$52,IF('Simulador Valora'!$V$40=4,'Simulador Valora'!$E$52)))) -> 0 | X194: 0 | AB194: 14 | AC194: 7 | AD194: 0 | AE194: 0 | AF194: 0 | AG194: 0 | AH194: 0.12 | AI194: 0 | AJ194: 0 | AK194: 0 | AL194: 0 | AM194: 0 | AN194: 0 | AP194: =IF(AJ194<=0,0,IF('Simulador Valora'!$X$73=1,0,AJ194*'Simulador Valora'!$X$76))+IF(AJ194<=0,0,IF('Simulador Valora'!$V$40=1,'Simulador Valora'!$L$52,IF('Simulador Valora'!$V$40=3,'Simulador Valora'!$I$52,IF('Simulador Valora'!$V$40=4,'Simulador Valora'!$E$52)))) -> 0 | AR194: 0 | AS194: 0 | AU194: 0 | AV194: 175
A195: 176 | B195: 0 | D195: =IF(B195+F195-D194<=0,B195+F195,IF(A195=$B$10,$F$10,IF(A195=$B$11,$F$11,IF(A195=$B$12,$F$12,IF(A195=$B$13,$F$13,IF(A195=$B$14,$F$14,IF(AND('Simulador Valora'!$AE$45=2,L194=0),D194*(1+Z195),IF($AO$3=2,B195*AI195,D194*(1+Z195))))))))) -> 0 | F195: 0 | H195: 0 | J195: =IF(B195-H195=0,0,J193) -> 0 | N195: =IF(OR('Simulador Valora'!$T$65=1,'Simulador Valora'!$T$65=3),0,L195*'Simulador Valora'!$T$66*'Simulador Valora'!$U$64) -> 0 | P195: 0 | R195: 0 | T195: =IF(B195<=0,0,IF('Simulador Valora'!$X$73=1,0,B195*'Simulador Valora'!$X$76)) -> 0 | V195: =IF(B195<=0,0,IF('Simulador Valora'!$V$40=1,'Simulador Valora'!$L$52,IF('Simulador Valora'!$V$40=3,'Simulador Valora'!$I$52,IF('Simulador Valora'!$V$40=4,'Simulador Valora'!$E$52)))) -> 0 | X195: 0 | AB195: 14 | AC195: 8 | AD195: 0 | AE195: 0 | AF195: 0 | AG195: 0 | AH195: 0.12 | AI195: 0 | AJ195: 0 | AK195: 0 | AL195: 0 | AM195: 0 | AN195: 0 | AP195: =IF(AJ195<=0,0,IF('Simulador Valora'!$X$73=1,0,AJ195*'Simulador Valora'!$X$76))+IF(AJ195<=0,0,IF('Simulador Valora'!$V$40=1,'Simulador Valora'!$L$52,IF('Simulador Valora'!$V$40=3,'Simulador Valora'!$I$52,IF('Simulador Valora'!$V$40=4,'Simulador Valora'!$E$52)))) -> 0 | AR195: 0 | AS195: 0 | AU195: 0 | AV195: 176
A196: 177 | B196: 0 | D196: =IF(B196+F196-D195<=0,B196+F196,IF(A196=$B$10,$F$10,IF(A196=$B$11,$F$11,IF(A196=$B$12,$F$12,IF(A196=$B$13,$F$13,IF(A196=$B$14,$F$14,IF(AND('Simulador Valora'!$AE$45=2,L195=0),D195*(1+Z196),IF($AO$3=2,B196*AI196,D195*(1+Z196))))))))) -> 0 | F196: 0 | H196: 0 | N196: =IF(OR('Simulador Valora'!$T$65=1,'Simulador Valora'!$T$65=3),0,L196*'Simulador Valora'!$T$66*'Simulador Valora'!$U$64) -> 0 | P196: 0 | R196: 0 | T196: =IF(B196<=0,0,IF('Simulador Valora'!$X$73=1,0,B196*'Simulador Valora'!$X$76)) -> 0 | V196: =IF(B196<=0,0,IF('Simulador Valora'!$V$40=1,'Simulador Valora'!$L$52,IF('Simulador Valora'!$V$40=3,'Simulador Valora'!$I$52,IF('Simulador Valora'!$V$40=4,'Simulador Valora'!$E$52)))) -> 0 | X196: 0 | AB196: 14 | AC196: 9 | AD196: 0 | AE196: 0 | AF196: 0 | AG196: 0 | AH196: 0.12 | AI196: 0 | AJ196: 0 | AK196: 0 | AL196: 0 | AM196: 0 | AN196: 0 | AP196: =IF(AJ196<=0,0,IF('Simulador Valora'!$X$73=1,0,AJ196*'Simulador Valora'!$X$76))+IF(AJ196<=0,0,IF('Simulador Valora'!$V$40=1,'Simulador Valora'!$L$52,IF('Simulador Valora'!$V$40=3,'Simulador Valora'!$I$52,IF('Simulador Valora'!$V$40=4,'Simulador Valora'!$E$52)))) -> 0 | AR196: 0 | AS196: 0 | AU196: 0 | AV196: 177
A197: 178 | B197: 0 | D197: =IF(B197+F197-D196<=0,B197+F197,IF(A197=$B$10,$F$10,IF(A197=$B$11,$F$11,IF(A197=$B$12,$F$12,IF(A197=$B$13,$F$13,IF(A197=$B$14,$F$14,IF(AND('Simulador Valora'!$AE$45=2,L196=0),D196*(1+Z197),IF($AO$3=2,B197*AI197,D196*(1+Z197))))))))) -> 0 | F197: 0 | H197: 0 | J197: =IF(B197-H197=0,0,J195) -> 0 | N197: =IF(OR('Simulador Valora'!$T$65=1,'Simulador Valora'!$T$65=3),0,L197*'Simulador Valora'!$T$66*'Simulador Valora'!$U$64) -> 0 | P197: 0 | R197: 0 | T197: =IF(B197<=0,0,IF('Simulador Valora'!$X$73=1,0,B197*'Simulador Valora'!$X$76)) -> 0 | V197: =IF(B197<=0,0,IF('Simulador Valora'!$V$40=1,'Simulador Valora'!$L$52,IF('Simulador Valora'!$V$40=3,'Simulador Valora'!$I$52,IF('Simulador Valora'!$V$40=4,'Simulador Valora'!$E$52)))) -> 0 | X197: 0 | AB197: 14 | AC197: 10 | AD197: 0 | AE197: 0 | AF197: 0 | AG197: 0 | AH197: 0.12 | AI197: 0 | AJ197: 0 | AK197: 0 | AL197: 0 | AM197: 0 | AN197: 0 | AP197: =IF(AJ197<=0,0,IF('Simulador Valora'!$X$73=1,0,AJ197*'Simulador Valora'!$X$76))+IF(AJ197<=0,0,IF('Simulador Valora'!$V$40=1,'Simulador Valora'!$L$52,IF('Simulador Valora'!$V$40=3,'Simulador Valora'!$I$52,IF('Simulador Valora'!$V$40=4,'Simulador Valora'!$E$52)))) -> 0 | AR197: 0 | AS197: 0 | AU197: 0 | AV197: 178
A198: 179 | B198: 0 | D198: =IF(B198+F198-D197<=0,B198+F198,IF(A198=$B$10,$F$10,IF(A198=$B$11,$F$11,IF(A198=$B$12,$F$12,IF(A198=$B$13,$F$13,IF(A198=$B$14,$F$14,IF(AND('Simulador Valora'!$AE$45=2,L197=0),D197*(1+Z198),IF($AO$3=2,B198*AI198,D197*(1+Z198))))))))) -> 0 | F198: 0 | H198: 0 | N198: =IF(OR('Simulador Valora'!$T$65=1,'Simulador Valora'!$T$65=3),0,L198*'Simulador Valora'!$T$66*'Simulador Valora'!$U$64) -> 0 | P198: 0 | R198: 0 | T198: =IF(B198<=0,0,IF('Simulador Valora'!$X$73=1,0,B198*'Simulador Valora'!$X$76)) -> 0 | V198: =IF(B198<=0,0,IF('Simulador Valora'!$V$40=1,'Simulador Valora'!$L$52,IF('Simulador Valora'!$V$40=3,'Simulador Valora'!$I$52,IF('Simulador Valora'!$V$40=4,'Simulador Valora'!$E$52)))) -> 0 | X198: 0 | AB198: 14 | AC198: 11 | AD198: 0 | AE198: 0 | AF198: 0 | AG198: 0 | AH198: 0.12 | AI198: 0 | AJ198: 0 | AK198: 0 | AL198: 0 | AM198: 0 | AN198: 0 | AP198: =IF(AJ198<=0,0,IF('Simulador Valora'!$X$73=1,0,AJ198*'Simulador Valora'!$X$76))+IF(AJ198<=0,0,IF('Simulador Valora'!$V$40=1,'Simulador Valora'!$L$52,IF('Simulador Valora'!$V$40=3,'Simulador Valora'!$I$52,IF('Simulador Valora'!$V$40=4,'Simulador Valora'!$E$52)))) -> 0 | AR198: 0 | AS198: 0 | AU198: 0 | AV198: 179
A199: 180 | B199: 0 | D199: =IF(B199+F199-D198<=0,B199+F199,IF(A199=$B$10,$F$10,IF(A199=$B$11,$F$11,IF(A199=$B$12,$F$12,IF(A199=$B$13,$F$13,IF(A199=$B$14,$F$14,IF(AND('Simulador Valora'!$AE$45=2,L198=0),D198*(1+Z199),IF($AO$3=2,B199*AI199,D198*(1+Z199))))))))) -> 0 | F199: 0 | H199: 0 | J199: =IF(B199-H199=0,0,J197) -> 0 | N199: =IF(OR('Simulador Valora'!$T$65=1,'Simulador Valora'!$T$65=3),0,L199*'Simulador Valora'!$T$66*'Simulador Valora'!$U$64) -> 0 | P199: 0 | R199: 0 | T199: =IF(B199<=0,0,IF('Simulador Valora'!$X$73=1,0,B199*'Simulador Valora'!$X$76)) -> 0 | V199: =IF(B199<=0,0,IF('Simulador Valora'!$V$40=1,'Simulador Valora'!$L$52,IF('Simulador Valora'!$V$40=3,'Simulador Valora'!$I$52,IF('Simulador Valora'!$V$40=4,'Simulador Valora'!$E$52)))) -> 0 | X199: 0 | AB199: 15 | AC199: 0 | AD199: 0 | AE199: 0 | AF199: 0 | AG199: 0 | AH199: 0.12 | AI199: 0 | AJ199: 0 | AK199: 0 | AL199: 0 | AM199: 0 | AN199: 0 | AP199: =IF(AJ199<=0,0,IF('Simulador Valora'!$X$73=1,0,AJ199*'Simulador Valora'!$X$76))+IF(AJ199<=0,0,IF('Simulador Valora'!$V$40=1,'Simulador Valora'!$L$52,IF('Simulador Valora'!$V$40=3,'Simulador Valora'!$I$52,IF('Simulador Valora'!$V$40=4,'Simulador Valora'!$E$52)))) -> 0 | AR199: 0 | AS199: 0 | AU199: 0 | AV199: 180
A200: 181 | B200: 0 | D200: =IF(B200+F200-D199<=0,B200+F200,IF(A200=$B$10,$F$10,IF(A200=$B$11,$F$11,IF(A200=$B$12,$F$12,IF(A200=$B$13,$F$13,IF(A200=$B$14,$F$14,IF(AND('Simulador Valora'!$AE$45=2,L199=0),D199*(1+Z200),IF($AO$3=2,B200*AI200,D199*(1+Z200))))))))) -> 0 | F200: 0 | H200: 0 | N200: =IF(OR('Simulador Valora'!$T$65=1,'Simulador Valora'!$T$65=3),0,L200*'Simulador Valora'!$T$66*'Simulador Valora'!$U$64) -> 0 | P200: 0 | R200: 0 | T200: =IF(B200<=0,0,IF('Simulador Valora'!$X$73=1,0,B200*'Simulador Valora'!$X$76)) -> 0 | V200: =IF(B200<=0,0,IF('Simulador Valora'!$V$40=1,'Simulador Valora'!$L$52,IF('Simulador Valora'!$V$40=3,'Simulador Valora'!$I$52,IF('Simulador Valora'!$V$40=4,'Simulador Valora'!$E$52)))) -> 0 | X200: 0 | Z200: =IF(B200<=0,0,'Simulador Valora'!$AF$53) -> 0 | AB200: 15 | AC200: 1 | AD200: 0 | AE200: 0 | AF200: 0 | AG200: 0 | AH200: =IF(AH199=$AG$4,AH199,IF(AH199-0.25%<=$AG$4,$AG$4,AH199-0.25%)) -> 0.12 | AI200: 0 | AJ200: 0 | AK200: 0 | AL200: 0 | AM200: 0 | AN200: 0 | AP200: =IF(AJ200<=0,0,IF('Simulador Valora'!$X$73=1,0,AJ200*'Simulador Valora'!$X$76))+IF(AJ200<=0,0,IF('Simulador Valora'!$V$40=1,'Simulador Valora'!$L$52,IF('Simulador Valora'!$V$40=3,'Simulador Valora'!$I$52,IF('Simulador Valora'!$V$40=4,'Simulador Valora'!$E$52)))) -> 0 | AQ200: =IF(AJ200<=0,0,$AQ$32) -> 0 | AR200: 0 | AS200: 0 | AU200: 0 | AV200: 181
... 62 more rows

Sheet Exclusivo SB Carta Bienvenida (hidden)
A1: Liga para obtener certificado vida | D1: Certificado de seguro de vida
A2: Liga para obtener certificado daños | D2: Certificado de seguro de daños
A3: Liga para obtener certificado obra civil | D3: Certificado de seguro obra civil
A4: Datos de entrada
A5: Fecha de Operación (cuando se depositó el crédito): | F5: (DD/MM/AAAA) | N5: Crédito | O5: ='Tabla Valora'!B20 -> 0 | Q5: dia | R5: =DAY(E5) -> 0
A6: Numero de crédito: | N6: Tasa | O6: ='Tabla Valora'!P20 -> 0 | Q6: Mes | R6: =MONTH(E5) -> 1
N7: Fecha de vencimiento | O7: =VALUE(CONCATENATE("17","-",R7,"-",R9)) -> 1900-01-17 | Q7: Mes siguiente | R7: =IF(R5<17,R6,IF(R6=12,1,R6+1)) -> 1
N8: Días transcurridos | O8: =O7-E5 -> 17 | Q8: Año | R8: =YEAR(E5) -> 1900
N9: Intereses | O9: =ROUND($O$5*O6/360*$O$8,2) -> 0 | Q9: Año siguiente | R9: =IF(AND(R6=12,R5>=17),R8+1,R8) -> 1900
A10: Para que los calculos de la carta sean correctos es necesario que en el simulador se simule el crédito autorizado y el esquema que el cliente escogió | N10: Seguro hipotecario | O10: =ROUND($O$5*E7/360*$O$8,2) -> 0
N11: Total | O11: =IF(R5=17,0,O9+O10) -> 0
G18: =E5 -> 00:00:00
A21: Estimado (s) Clientes (s):
A23: ScotiaBank lo(s) felicita por la construcción de su nueva casa y se complace en ser parte importante de la
A24: consolidación de su patrimonio familiar, a través de su crédito hipotecario Scotiabank.
A26: A continuación le proporcionamos información importante relativa a su Financiamiento:
A28: =CONCATENATE("Su número de crédito es el No ",E6," que le servirá como referencia para cualquier aclaración") -> Su número de crédito es el No que le servirá como referencia para cualquier aclaración
A29: futura que tenga con su crédito, en caso de querer realizar anticipos a capital, deberá abonar a este
A30: número a través de nuestra red de sucursales con cheque a favor de Scotiabank Inverlat S.A.
A32: La fecha de pago de sus mensualidades serán los días 17 de cada mes. Este pago lo realizará mediante
A33: cargo automático a su cuenta de cheques. Si el día de pago fuera inhábil, el cargo automático a su
A34: cuenta de cheques se realizará el día hábil inmediato siguiente.
A36: Le recomendamos depositar el importe de su pago mensual antes de la fecha de pago, especialmente
A37: si su depósito es con cheque de otro banco.
A39: Es importante mencionar que el cálculo del seguro de daños se realiza con base en el valor
A40: destructible del inmueble, por lo que es posible que difiera de las tablas de amortización que le hemos
A41: entregado, y además tenga variaciones en el tiempo.
A43: =IF(R5=17,"Su primer pago deberá ser por la mensualidad completa que se establece en su contrato","El importe de su primer pago será por la cantidad de $"&TEXT(O11,"#,##0.00")&" que corresponden a los intereses") -> El importe de su primer pago será por la cantidad de $0.00 que corresponden a los intereses
A44: =IF(R5=17,"de crédito y que le será informada mediante su estado de cuenta.","que se devengarán entre hoy y el próximo día 17.") -> que se devengarán entre hoy y el próximo día 17.
A45: =IF(AND(E7>0,R5<>17),"Esta cantidad ya tiene incluida la parte proporcional de la prima de seguro de crédito a la vivienda","") -> 
A47: A partir de este momento, usted cuenta con un seguro de vida e invalidez total y permanente, un
A48: seguro de obra civil, durante la etapa de construcción del inmueble y un seguro de daños sobre la
A49: propiedad ya construida, anexo a la presente, las cartas de cobertura correspondientes.
A51: Si por algún motivo no recibiera su estado de cuenta con oportunidad o tuviera dudas relacionadas
A52: con su crédito, le sugerimos llamar a nuestro Centro de Atención Telefónica a los teléfonos
A53: 5728-1900 para el D.F. y para el interior de la República, sin costo para usted, al 01-800-70459-00;
A54: donde con gusto le atenderán.
A56: Con su financiamiento Scotiabank, el hogar de sus sueños es hoy una realidad.
A58: Atentamente
A62: Ejecutivo Especializado
A63: Crédito Hipotecario.

Sheet caratula de contrato (hidden)
D1: CONTRATO DE APERTURA DE CRÉDITO SIMPLE
A2: CONTRATO DE APERTURA DE CRÉDITO SIMPLE CON INTERÉS Y GARANTÍA HIPOTECARIA QUE CELEBRAN POR UNA PARTE SCOTIABANK INVERLAT S.A., INSTITUCIÓN DE BANCA MÚLTIPLE, GRUPO FINANCIERO SCOTIABANK, A QUIEN EN LO SUCESIVO SE LE DENOMINARÁ "EL ACREDITANTE" Y POR OTRA PARTE, LA PERSONA CUYOS DATOS Y FIRMA SE ENCUENTRAN EN LA SOLICITUD, A QUIEN EN LO SUCESIVO SE LE DENOMINARÁ "EL ACREDITADO", DE CONFORMIDAD CON LAS DECLARACIONES Y CLÁUSULAS SIGUIENTES:
A3: CARÁTULA DEL CONTRATO DE ADHESIÓN DE CRÉDITO HIPOTECARIO
A4: NOMBRE COMPLETO DEL ACREDITADO
A5: ='Simulador Valora'!C13 -> 0
A7: CAT Sin IVA COSTO ANUAL TOTAL | B7: TASA DE INTERÉS ANUAL | D7: MONTO DEL CRÉDITO | E7: MONTO TOTAL A PAGAR | F7: COMISIONES
F9: Montos (sin IVA) | G9: Cláusulas
A11: ='Tabla Valora'!M13 -> 0 | B11: Ordinaria | C11: Moratoria | D11: ='Tabla Valora'!H10 -> 0 | E11: Estimado según el contrato | F11: Por apertura | G11: Decimo Primera
A12: Para fines informativos y de comparación exclusivamente Nota: IVA (Impuesto al Valor Agregado) | B12: ='Simulador Valora'!AD69 -> 0.12 | C12: =B12*1.5 -> 0.18 | D12: Moneda en Pesos Mexicanos (Sin incluir intereses, comisiones y demás accesorios) | E12: ='Tabla Valora'!X263 -> 0 | F12: ='Tabla Valora'!AM3 -> 0
E13: Segun Tabla de Amortización Moneda en Pesos Mexicanos (Incluyendo intereses, comisiones y demás accesorios) | F13: Por prepago | G13: Aplican otras comisiones
F14: =IF('Simulador Valora'!T65=1,0,3%) -> 0
B15: Las tasas están sujetas a lo establecido en las cláusulas financieras | F15: Por cobranza
F16: 350
A17: Metodología de cálculo de interés:
A18: La tasa de interés ordinaria aplicable al período de que se trate, se multiplica por el saldo insoluto decreciente del crédito, se divide entre 360 y se multiplica por el número de días transcurridos en el período de cómputo de los intereses.
A20: La tasa de interés moratoria, se calculará multiplicando por uno punto cinco veces la tasa de interés ordinaria aplicable al período de que se trate y se aplica al período en que subsista la mora por parte del ACREDITADO.
A22: Plazo o vigencia del crédito: 20 años.
A23: Sus Pagos serán como siguen:
A24: Número | C24: Monto | E24: Cuándo se realizan los pagos
A25: 240 | C25: ='Tabla Valora'!X20 -> 0 | E25: Periodicidad: MENSUAL
C26: Incluye IVA y accesorios, por lo que pueden existir pequeñas variaciones en cada pago. Aplica sobre la primer ministración | E26: Fecha límite de pago: Día 17 de cada mes*.
E27: Fecha de corte: Día 17 de cada mes.
A29: Con tasas de interés variable: "Si su crédito es de tasa variable, los intereses que se generen a su cargo, pueden cambiar y, en su caso, aumentar ante un ajuste en las tasas de interés utilizadas como referencia."
A30: Sujetas a una variable de ajuste: "Esta operación puede variar según las condiciones de mercado existentes, sobre todo cuando se usen referencias variables."
A31: De crédito: "Contratar créditos en exceso a su capacidad de pago puede afectar su patrimonio y su historial crediticio"
A32: TASE VARIABLE
A33: Tasa de referencia | C33: Descripción | E33: Comportamiento del Diferencial
A34: Tasa de referencia: No Aplica | C34: Tasa de referencia de | E34: No Aplica
A35: Puede consultarse en: No Aplica | C35: Hoy No Aplica
C36: Diferencial No Aplica
C37: Total de Interés: No aplica
A38: [MONEDA]: Pesos Moneda Nacional
A41: [País de curso legal: | B41: Forma de consultar el tipo de cambio o equivalencia | E41: Informativo
A42: México ] | B42: www.banxico.org.mx
E43: [Tipo de cambio]/ [Equivalencia] a la fecha: No aplica
E44: Monto del crédito en pesos a la fecha: "No aplica"
A45: Autorización Los datos personales pueden utilizarse para mercadeo:
D46: Si | E46: No
A47: GARANTÍA: Para garantizar el pago de este crédito, el ACREDITADO deja en garantía el bien que se describe a continuación:
A48: Bien | B48: Descripción | C48: Referencias
A50: Inmueble | B50: Casa habitación | C50: Cláusula Vigésima Segunda
A52: SEGURO: La presente operación cuenta con seguro de vida contratado con la compañía: ASSURANT Vida México S.A.
A53: Fecha para presentar renovación No aplica.
A54: Independientemente del seguro anterior, se cuenta con los siguientes:
A55: Tipo de seguro: | B55: Cía. De Seguros: | C55: Monto Asegurado | D55: Siniestro objeto de cobertura | E55: Beneficiarios | F55: Cláusula
A56: De daños y de obra y responsabilidad civil, en su caso. | B56: MAPFRE TEPEYAC S.A. | C56: ='Simulador Valora'!C23 -> 0 | D56: Consultar cláusula: Vigésima Tercer, en caso de Apoyo Infonavit y/u Obligación Solidaria Vigésima Cuarta o Vigésima Quinta | E56: ScotiaBank Inverlat S.A DE C.V. y/o Acreditado | F56: Vigésima Tercera, en caso de Apoyo Infonavit y/u Obligación Solidaria Vigésima Cuarta o Vigésima Quinta.
A61: Prima pagadera con periodicidad MENSUAL en moneda nacional, por el monto indicado en el estado de cuenta
A63: Dudas, aclaraciones y reclamaciones:
A64: El procedimiento de reclamaciones está previsto en el artículo 23 de la Ley para la Transparencia y Ordenamiento de los Servicios financieros y se describe en la cláusula Décima Novena del contrato. Para seguir dicho procedimiento la reclamación respectiva deberá dirigirse a la:
A66: Unidad especializada de Atención a clientes localizada en:
A67: Domicilio: Lorenzo Boturini no. 206, Colonia tránsito, código Postal 06820, en méxico, distrito Federal
A68: Teléfono: en la zona metropolitana al teléfono 57281000 extensiones 4484 y e el interior de la República al 018007045900
A69: Correo electrónico: servclientes@scotiabank.com.mx
A70: Pagina de Internet: www.scotiabank.com.mx
A71: Condusef: Teléfono 5340 0099 y en el interior de la República 01 800 999 8080 Página de Internet: www.condusef.gob.mx
A72: Estado de cuenta | D72: Consulta de Movimientos
A73: Periodicidad | B73: Mensual | D73: Internet.
A74: Lugar de entrega | B74: Domicilio donde se ubica la garantía del crédito o en el indicado por el ACREDITADO | D74: Invertel*: Centro de atención telefónica 5728 1900 o 018000 704 59 00 del interior de la República.
A75: Lugar para consulta | B75: Cualquier sucursal | D75: Inverweb*: Banca electrónica por Internet
D76: *Previa contratación de estos servicios.
A78: Datos de inscripcion en el Registro de Contratos de Adhesión
A79: Fecha: | B79: ='Simulador Valora'!C7 -> 2025-04-10 | C79: No: de Registro: | E79: =IF('Simulador Valora'!AE45=1,'caratula de contrato'!I81,'caratula de contrato'!I82) -> 0319-138-003328/05-08926-0610
A80: *La presente carátula es parte integrante del contrato de apertura de crédito simple con interés y garantía hipotecaria *Crédito Hipotecario* para todos los efectos legales a que haya lugar.
A81: Firma de conformidad: | E81: Firma de conformidad: | I81: 0319-138-003328/05-08926-0610 | L81: construc
I82: 0319-138-003329/05-08927-0610 | L82: const con apoyo
A84: EL ACREDITADO. | E84: EL OBLIGADO SOLIDARIO

Sheet Oferta Vinculante (hidden)
A4: Scotiabank Inverlat, S.A.,
A5: Institución de Banca Múltiple,
A6: Grupo Financiero Scotiabank Inverlat
B7: OFERTA VINCULANTE
A10: Lugar y Fecha: | B10: ='Simulador Valora'!C10&" a" -> a | D10: ='Simulador Valora'!C7 -> 2025-04-10
A12: Nombre del Solicitante y Cónyuge, en su caso: | B12: ='Simulador Valora'!C13 -> 0
A14: Destino del crédito: | B14: Construcción de vivienda
A17: Importe del Crédito Solicitado: | B17: ='Tabla Valora'!H10 -> 0
A19: Valor Estimado de la garantía*: | B19: ='Simulador Valora'!AB74 -> 0 | C19: Aforo (máximo 70%)*: | E19: =B17/B19 -> 
A21: Comisión por Apertura: | B21: ='Tabla Valora'!AM3 -> 0 | C21: Comisión por dictámen técnico: | E21: ='Tabla Valora'!AM5 -> 0
A23: Seguro de Vida: | B23: =B17*0.0005 -> 0 | C23: Seguro de Daños: | E23: =B19*0.0002623 -> 0
C25: Gastos Notariales y
A26: Costo de Avalúo*: | B26: ='Tabla Valora'!AM4 -> 0 | C26: de Escrituración (Aprox): | E26: =B19*5% -> 0
A28: *El valor real se conocerá hasta tener el avalúo correspondiente del inmueble
A30: Condiciones del Crédito:
A31: Tasa de Interés ordinaria anual: | B31: ='Tabla Valora'!P20 -> 0 | C31: Fija inicial
A32: Tasa Moratoria anual: | B32: =B31*1.5 -> 0 | C32: Fija inicial
A33: Pago por cada mil pesos de préstamo: | B33: ='Simulador Valora'!AB75 -> 10.36 | C33: Inicial
A34: Plazo: | B34: ='Simulador Valora'!AB76 -> 20 Años
A35: Financiamiento Máximo (Aforo) | B35: 0.7
A36: Costo Anual Total (1): | B36: ='Tabla Valora'!M13 -> 0
A37: Forma de Amortización: | B37: Amortización mensual creciente
A38: Gastos notariales y de escrituración (Aproximados): | B38: 0.05 | C38: sobre valor del inmueble
A39: Seguro de Vida: | B39: 0.50 al millar sobre saldo insoluto
A40: Seguro de Daños: | B40: 0.2623 al millar sobre el valor destructible de la garantía, el cual corresponde al
B41: valor de la construcción, según avalúo.
A42: Forma de entrega del préstamo | B42: En parcialidades de acuerdo con los avances de obra que se fijen
A44: Comisiones del Crédito:
A46: Comisión por Apertura de Crédito (2) | B46: 2% sobre el importe de crédito autorizado.
A47: Comisión por Pago Anticipado de Crédito (2) | B47: 3% más impuesto al valor agregado (I.V.A.) sobre el importe a anticipar
A49: Comisiones Adicionales del Crédito:
A51: Por copia de documento o certificación del estado de cuenta (copia del estado de cuenta, certificación del saldo, integración, amortización o desglose). Costo por hoja. | B51: $25.00 (veinticinco pesos, moneda nacional) más el impuesto al valor agregado (I.V.A.)
A52: Por concepto de gastos de cobranza, por cada mensualidad no pagada | B52: $350.00 (trescientos cincuenta pesos, moneda nacional) más el impuesto al valor agragado (I.V.A.)
A53: Nota: Las comisiones adicionales al crédito se cobrarán en caso de que el cliente solicite el servicio o incurra en ellos.
A55: Costos del Crédito:
A57: Seguro de Vida | B57: 0.50 al millar sobre el saldo insoluto del crédito
A58: Seguro de Daños | B58: 0.2623 al millar sobre el valor de construcción
A59: Costo del Avalúo | B59: Depende del valor del inmueble (ver tabla de costos anexa)
A60: Dictamen Técnico | B60: 1% sobre el monto del crédito autorizado, con un costo máximo de $12,000 y mínimo de $4,500.
A62: (1)Costo Anual Total (CAT promedio sin IVA)): factor que anualiza la totalidad de los costos por el Crédito Garantizado (Hipotecario), incluyendo seguro de vida y daños,
A63: avalúo, comisiones e intereses, excluyendo las contribuciones federales y locales, así como los costos correspondientes a trámites y servicios prestados por terceros.
A64: Costo Anual Total de créditos denominados en moneda nacional a tasa fija para fines informativos y de comparación exclusivamente. Este CAT sólo es comprable con el
A65: CAT de otros créditos denominados en moneda nacional a tasa fija.
A67: (2) El cliente elige entre la comisión por apertura o la comisión por pagos anticipados, esta opción solo aplica para el esquema de Valora (I.V.A.: Impuesto al valor agregado)
A70: Condiciones y Especificaciones de la Oferta Vinculante.
A168: ='Simulador Valora'!F13 -> 0 | D168: =B12 -> 0
A169: Nombre del Ejecutivo | D169: Firma del Solicitante
A170: =CONCATENATE("Sucursal: ",'Simulador Valora'!F10) -> Sucursal:
B174: =D10 -> 2025-04-10
B175: Fecha de Recepción

Sheet Carat_cont_VA
A2: Carátula de Crédito
D3: Nombre del Acreditado y/o Coacreditado:
D4: =IF('Simulador Valora'!C13="","",'Simulador Valora'!C13) -> 
D5: Número de Crédito:
A7: Nombre comercial del producto: | B7: ="CREDICONSTRUCCION VALORA"&" "&A18 -> CREDICONSTRUCCION VALORA 20 Años
A9: Tipo de Crédito: Crédito Hipotecario
A10: CAT | B10: TASA DE INTERES | C10: MONTO O LINEA DE | D10: MONTO TOTAL A PAGAR O
A11: (Costo Anual Total) | B11: ANUAL ORDINARIA | C11: CRÉDITO | D11: MINIMO A PAGAR
A12: ='Tabla Valora'!$M$13 -> 0 | B12: =IF('Simulador Valora'!C23=0,0,'Simulador Valora'!$AB$77) -> 0 | C12: ='Simulador Valora'!$AB$78 -> 0 | D12: =IFERROR(SUM('Tabla Valora'!$X$20:$X$259),0) -> 0
A13: Sin IVA | D13: Moneda en
A14: Para fines | D14: Pesos
A15: informativos y de | D15: Mexicanos
A16: comparación | B16: Tasa Fija
A17: PLAZO DEL CRÉDITO: | B17: Fecha Límite de pago:
A18: ='Simulador Valora'!$AB$76 -> 20 Años | B18: =IF(AND(DAY('Simulador Valora'!E10)>=3,DAY('Simulador Valora'!E10)<=16),"Si tu fecha de corte es el día 3, tu fecha de pago es el día 3 de cada mes.","Si tu fecha de corte es el día 17, tu fecha de pago es el día 17 de cada mes.") -> Si tu fecha de corte es el día 17, tu fecha de pago es el día 17 de cada mes.
B19: Fecha de corte:
B20: =IF(AND(DAY('Simulador Valora'!E10)>=3,DAY('Simulador Valora'!E10)<=16),"Si tu fecha de disposición es entre el dia 3 y 16, tu fecha de corte será el día 3 de cada mes.","Si tu fecha de disposición es entre el día 17 y 2, tu fecha de corte será el día 17 de cada mes.") -> Si tu fecha de disposición es entre el día 17 y 2, tu fecha de corte será el día 17 de cada mes.
A21: COMISIONES RELEVANTES
A22: ="Apertura: "&TEXT('Tabla Valora'!$AM$3,"$###,###.00") -> Apertura: $.00 | C22: Cobranza: $500.00 más IVA por pago tardío
A23: ="Prepago: "&IF('Simulador Valora'!$T$65=1,"0% ","3% ")&"más IVA sobre el monto anticipado" -> Prepago: 0% más IVA sobre el monto anticipado | C23: Para otras comisiones consulte la cláusula décimo tercera
A24: ADVERTENCIAS
A26: Incumplir tus obligaciones te puede generar comisiones e intereses moratorios.
A27: Contratar créditos que excedan tu capacidad de pago afecta tu historial crediticio.
A28: El avalista, obligado solidario o coacreditado responderá como obligado principal por el total del pago frente a la Institución Financiera.
A29: SEGUROS
A30: Seguros Obligatorios: | B30: Aseguradora: | C30: Cláusulas:
A32: Vida y Desempleo | B32: Cardif México Seguros de Vida, S.A. de C.V. | C32: Vigésima Cuarta
C33: Scotiabank Inverlat le ofrece al acreditado y/o coacreditado, la posibilidad de contratar a nombre de este (os) último(s) los seguros establecidos en la cláusula vigésima cuarta. Lo anterior sin perjuicio del derecho innegable que el cliente tiene de contratarlos a través de terceros.
A34: Daños y Responsabilidad Civil | B34: Cardif México Seguros Generales, S.A. de C.V.
A36: ESTADO DE CUENTA
A37: Envío a Domicilio ü Consulta vía Internet ___ Envío por Correo Electrónico ___
A38: Aclaraciones y reclamaciones:
A39: Unidad Especializada de Aclaraciones:
A40: Domicilio: Río Usumacinta S/N, esq. con Fernando Montes de Oca, Col. La Presita, Municipio de Cuautitlán Izcalli, Estado de México, C.P. 54763
A41: Teléfono: (55) 5123 0990
A42: Correo electrónico: une@scotiabank.com.mx
A43: Página de Internet: www.scotiabank.com.mx
A44: ="Registro de Contratos de Adhesión Núm: "&IF('Simulador Valora'!C23=0,"",IFERROR(VLOOKUP('Simulador Valora'!$AE$45&"-1-1",RECAS!$A$3:$D$6,4,0),"Revisa los datos ingresados")) -> Registro de Contratos de Adhesión Núm:
A45: Comisión Nacional para la Protección y Defensa de los Usuarios de Servicios Financieros (CONDUSEF):
A46: Teléfono: 800 999 8080 y (55) 5340 0999. Página de Internet. www.condusef.gob.mx

Sheet Simulador Pagos Oportunos
R1: . | AS1: .
C3: SIMULADOR CREDITO HIPOTECARIO
C4: FINANCIAMIENTO PARA CONSTRUCCION SCOTIABANK
C5: PAGOS OPORTUNOS
C7: =TODAY() -> 2025-04-10
C9: Lugar | E9: Fecha Firma | G9: Sucursal
C12: Nombre del cliente / Conyuge en su caso. | G12: Ejecutivo / Broker que le atendió
C15: Telefonos del cliente | G15: Teléfonos del ejecutivo
C18: Paso 1 | G18: =IF(S49=1,"Paso 4","") -> Paso 4
C19: Escoja su base de cálculo | G19: =IF(S49=1,"Escoja la opción de su interés:","") -> Escoja la opción de su interés:
C20: Campaña
C21: Paso 2
C22: Escriba los datos solicitados: | G22: =IF(S49=1,"Comisión Manual por Apertura","") -> Comisión Manual por Apertura
E23: =IF(AC45=1,"Presupuesto de obra","Ingresos brutos mensuales") -> Presupuesto de obra | G23: =IF(S49=1,"Paso 5","Paso 4") -> Paso 5 | L23: =IF(AND(L22<>"",$U$65=2),"corrije comisión en el pto 4","") -> 
E24: Valor del terreno | G24: Va a construir en la frontera
E25: =IF(AC45=1,"Capital invertido en la obra",IF(AND(C23>0,AC45=2),"El crédito solicitado podría ser menor por perfil de cliente","")) -> Capital invertido en la obra
C26: =IF(AND(C23="",C24=""),"",IF(AC45=1,C23+C24,"")) ->  | E26: =IF(AC45=2,"","Valor físico proyectado") -> Valor físico proyectado
C27: =IF(AND(AC45=1,C23>0,C24>0,C25>=AD39),"",AD39) ->  | E27: =IF(C27<>"","Usted necesita como mínimo de capital invertido","") ->  | G27: =IF(S49=1,"Paso 6","Paso 5") -> Paso 6
C28: Paso 3 | G28: Con apoyo Infonavit
C29: Financiamiento para comprar el terreno? | G29: =IF(AND($AC$45=1,$AF$45=1),"",IF($AC$45=2,"","Teclee su sueldo bruto")) -> 
C30: =IF(AC45=2,"",IF(AND(C23=0,C24=0,C25=0),"",IF(H46<150000,"El monto mínimo a financiar es de $150,000",""))) ->  | G30: =IF(S49=1,"Paso 7","Paso 6") -> Paso 7
C31: =IF(AC45=2,"",IF(AND(C23=0,C24=0,C25=0),"",IF(AND(AC45=1,C23+C24<1000000),"El valor de la vivienda mínimo para Monterrey, Guadalajara y México es de $1,000,000 para el resto de la república es de $750,000",""))) ->  | G31: El cliente opta por seguros externos
C32: =IF(AND(AC45=1,C23=0,C24=0,C25=0),"",IF(AND(AC45=1,C25>=C23),"El capital invertido en la obra es más alto o igual que el presupuesto de obra","")) -> 
C33: =IF(C23="","","Línea máxima a otorgar puede ser menor por perfil del cliente") -> 
AB34: credito maximo | AC34: =MAX(E46:O46) -> 0
AB35: LTV | AC35: =E46/E42 ->  | AE35: =H46/H42 ->  | AF35: =J46/J42 ->  | AG35: =L46/L42 ->  | AH35: =N46/N42 -> 
H36: PAGOS OPORTUNOS
C38: Plazo | H38: 7 AÑOS | J38: 10 AÑOS | L38: 15 AÑOS | N38: 20 AÑOS | AB38: Calculo de credito construcción | AD38: AFORO = | AE38: 0.8 | AG38: 0.5
Y39: =450+750 -> 1200 | AB39: =IF($AC$45=1,(C23+C24)*AE$38,C23*$AG$38) -> 0 | AD39: =IF(AND(AC45=1,C23>0,C24>0),C23-AB42,"") ->  | AE39: capital invertido | AG39: PTI
C40: Tasa de Interés | H40: ="1 año / "&TEXT(Z54,"0.00%")& " 2 año / "&TEXT(Z54-0.002,"0.00%")& " 3 año / "&TEXT(Z54-0.004,"0.00%")& " 4 año / "&TEXT(Z54-0.006,"0.00%")& " 5 al 7 / "&TEXT(Z54-0.0075,"0.00%") -> 1 año / 13.00% 2 año / 12.80% 3 año / 12.60% 4 año / 12.40% 5 al 7 / 12.25% | J40: ="1 año / "&TEXT(AB54,"0.00%")& " 2 año / "&TEXT(AB54-0.002,"0.00%")& " 3 año / "&TEXT(AB54-0.004,"0.00%")& " 4 año / "&TEXT(AB54-0.006,"0.00%")& " 5 al 10 / "&TEXT(AB54-0.0075,"0.00%") -> 1 año / 13.00% 2 año / 12.80% 3 año / 12.60% 4 año / 12.40% 5 al 10 / 12.25% | L40: ="1 año / "&TEXT(AB54,"0.00%")& " 2 año / "&TEXT(AB54-0.002,"0.00%")& " 3 año / "&TEXT(AB54-0.004,"0.00%")& " 4 año / "&TEXT(AB54-0.006,"0.00%")& " 5 al 15 / "&TEXT(AB54-0.0075,"0.00%") -> 1 año / 13.00% 2 año / 12.80% 3 año / 12.60% 4 año / 12.40% 5 al 15 / 12.25% | N40: ="1 año / "&TEXT(AB54,"0.00%")& " 2 año / "&TEXT(AB54-0.002,"0.00%")& " 3 año / "&TEXT(AB54-0.004,"0.00%")& " 4 año / "&TEXT(AB54-0.006,"0.00%")& " 5 al 20 / "&TEXT(AB54-0.0075,"0.00%") -> 1 año / 13.00% 2 año / 12.80% 3 año / 12.60% 4 año / 12.40% 5 al 20 / 12.25% | T40: Esquemas | V40: 4 | W40: =V40+1 -> 5 | AB40: =C23 -> 0
AB41: =+AB39 -> 0 | AD41: =IF((C25+C24)<((C23+C24)*0.7),"Se necesita mayor capital invertido","") -> 
C42: Valor de la vivienda proyectado | H42: =IF($AC$45=1,$C$23+$C$24,H$46/$AE$38) -> 0 | J42: =IF($AC$45=1,$C$23+$C$24,J46/$AE$38) -> 0 | L42: =IF($AC$45=1,$C$23+$C$24,L46/$AE$38) -> 0 | N42: =IF($AC$45=1,$C$23+$C$24,N46/$AE$38) -> 0 | T42: =E46/E42 ->  | AB42: =+IF(C23+C24-C25<AB41,C23+C24-C25,AB41) -> 0
X43: Cambio de etiqueta | Y43: =IF(AC45=1,"Valor del inmueble","Ingresos Brutos Mensuales") -> Valor del inmueble | AB43: Ingresos | AC43: =IF(AND(AF45=2,AC45=1),J29,C23) -> 0
C44: % máximo de financiamiento | H44: =$AE$38 -> 0.8 | J44: =$AE$38 -> 0.8 | L44: =$AE$38 -> 0.8 | N44: =$AE$38 -> 0.8 | AE44: Apoyo Infonavit
T45: Adquisición | U45: 1 | Y45: =IF(U45=2," ","Monto a Financiar") -> Monto a Financiar | AA45: Pago por mil | AB45: Por Valor del Inmueble | AC45: 1 | AD45: 1 | AE45: NO | AF45: 1
C46: Monto del crédito | H46: =Z61 -> 0 | J46: =AA61 -> 0 | L46: =AC61 -> 0 | N46: =AD61 -> 0 | T46: Pasivo Hipotecario | V46: Cambio de pasivo o adquisi | X46: =IF(AND(U45=1,AC45=1),"Enganche",IF(AND(U45=2,AC45=1),"Saldo actual","")) -> Enganche | Y46: =IF($W$40=6,H46,IF($W$40=3,J46,IF($W$40=4,L46,IF($W$40=5,N46)))) -> 0 | AA46: =IF($W$40=1,AE67,IF($W$40=2,AE67,IF($W$40=3,AA51,IF($W$40=4,AB51,IF($W$40=5,AC51,IF($W$40=6,Z51,AE51)))))) -> 11.86 | AB46: Por Ingresos | AE46: SI
C48: Erogación inicial | H48: =IF($AC$45=1,H46/1000*Z51,$C$23*$AG$38) -> 0 | J48: =IF($AC$45=1,J46/1000*AA51,$C$23*$AG$38) -> 0 | L48: =IF($AC$45=1,L46/1000*AB51,$C$23*$AG$38) -> 0 | N48: =IF($AC$45=1,N46/1000*AC51,$C$23*$AG$38) -> 0 | Z48: Pagos oportunos | AA48: Pagos oportunos | AB48: Pagos oportunos | AC48: Pagos oportunos
S49: 1 | U49: 7 | V49: 10 | W49: 15 | X49: 20 | Y49: Plazo | Z49: 7 | AA49: 10 | AB49: 15 | AC49: 20
C50: Seguro de vida | H50: =IF($Y$73=1,0,H46*$Y$76) -> 0 | J50: =IF($Y$73=1,0,J46*$Y$76) -> 0 | L50: =IF($Y$73=1,0,L46*$Y$76) -> 0 | N50: =IF(4=1,0,N46*$Y$76) -> 0 | S50: Ninguna | T50: 0.13 | U50: 18.38 | V50: 15.05 | W50: 12.79 | X50: 11.86
S51: Premium | T51: 0.0975 | U51: 16.55 | V51: 13.16 | W51: 10.7 | X51: 9.59 | Y51: Pago x mil | Z51: =IF($S$49=1,U50,IF($S$49=2,U51,IF($S$49=3,U52,""))) -> 18.38 | AA51: =IF($S$49=1,V50,IF($S$49=2,V51,IF($S$49=3,V52,""))) -> 15.05 | AB51: =IF($S$49=1,W50,IF($S$49=2,W51,IF($S$49=3,W52,""))) -> 12.79 | AC51: 11.86 | AG51: =IF($W$40=1,$V$51*$E$46/1000,IF($W$40=2,$X$51*#REF!/1000,0)) -> 0
C52: Seguro de daños | H52: =IF($AC$45=1,$C$23,H42)*IF($Y$73=1,0,$Y$77) -> 0 | J52: =IF($AC$45=1,$C$23,J42)*IF($Y$73=1,0,$Y$77) -> 0 | L52: =IF($AC$45=1,$C$23,L42)*IF($Y$73=1,0,$Y$77) -> 0 | N52: =IF($AC$45=1,$C$23,N42)*IF($Y$73=1,0,$Y$77) -> 0 | S52: Vinculación | T52: 0.1075 | U52: 17.1 | V52: 13.73 | W52: 11.32 | X52: 10.27
Y53: Incremento anual | Z53: 0 | AA53: 0 | AB53: 0 | AC53: 0 | AG53: 0
C54: Total mensualidad inicial | H54: =H52+H50+H48 -> 0 | J54: =J52+J50+J48 -> 0 | L54: =L52+L50+L48 -> 0 | N54: =N52+N50+N48 -> 0 | Y54: Tasa de int. | Z54: =IF($S$49=1,T50,IF($S$49=2,T51,IF($S$49=3,T52,""))) -> 0.13 | AA54: =Z54 -> 0.13 | AB54: =Z54 -> 0.13 | AC54: =Z54 -> 0.13
C56: Incremento anual del pago | H56: No aplica | J56: No aplica | L56: No aplica | N56: No aplica | S56: Monto a financiar adquisición | Z56: =IF($AC$45=1,$AB$42,IF($AC$45=2,H48/Z51*1000,0)) -> 0 | AA56: =IF($AC$45=1,$AB$42,J48/AA51*1000) -> 0 | AC56: =IF($AC$45=1,$AB$42,IF($AC$45=2,L48/AB51*1000,0)) -> 0 | AD56: =IF($AC$45=1,$AB$42,IF($AC$45=2,N48/AC51*1000,0)) -> 0
S57: Monto a financiar adquisición | V57: =IF(V56>4000000,4000000,V56) -> 0 | X57: =IF(X56>4000000,4000000,X56) -> 0 | Z57: =IF(Z56>4000000,4000000,Z56) -> 0 | AA57: =IF(AA56>4000000,4000000,AA56) -> 0 | AC57: =IF(AC56>4000000,4000000,AC56) -> 0 | AD57: =IF(AD56>4000000,4000000,AD56) -> 0 | AE57: =IF(AE56>4000000,4000000,AE56) -> 0
C58: Ingresos brutos por comprobar | H58: =IF($AC$45=1,H48/$AG$38,$C$23) -> 0 | J58: =IF($AC$45=1,J48/$AG$38,$C$23) -> 0 | L58: =IF($AC$45=1,L48/$AG$38,$C$23) -> 0 | N58: =IF($AC$45=1,N48/$AG$38,$C$23) -> 0 | S58: erogación adquisición | V58: =V57/1000*V51 -> 0 | X58: =X57/1000*X51 -> 0 | Z58: =Z57/1000*Z51 -> 0 | AA58: =AA57/1000*AA51 -> 0 | AC58: =AC57/1000*AB51 -> 0 | AD58: =AD57/1000*AC51 -> 0 | AE58: =AE57/1000*AE51 -> 0
S59: Monto a financiar pasivo | V59: =IF(AND($AC$45=1,$X$45>=0.2),#REF!,IF($AC$45=2,$E$48/V51*1000,0)) -> 0 | X59: =IF(AND($AC$45=1,$X$45>=0.2),Y46,IF($AC$45=2,Y46/X51*1000,0)) -> 0 | Z59: =IF(AND($AC$45=1,$X$45>=0.25),Y46,IF($AC$45=2,Y46/Z51*1000,0)) -> 0 | AA59: =IF(AND($AC$45=1,$X$45>=0.25),Y46,IF($AC$45=2,Y46/AA51*1000,0)) -> 0 | AC59: =IF(AND($AC$45=1,$X$45>=0.2),Y46,IF($AC$45=2,Y46/AB51*1000,0)) -> 0 | AD59: =IF(AND($AC$45=1,$X$45>=0.2),Y46,IF($AC$45=2,Y46/AC51*1000,0)) -> 0 | AE59: =IF(AND($AC$45=1,$X$45>=0.2),Y46,IF($AC$45=2,Y46/AE51*1000,0)) -> 0
C60: Comisión por apertura | H60: =IF(OR(S49=2,S49=3),0,IF(OR($U$65=1,$L$22<>""),H46*$Y$86,0)) -> 0 | J60: =IF(OR(S49=2,S49=3),0,IF(OR($U$65=1,$L$22<>""),J46*$Y$86,0)) -> 0 | L60: =IF(OR(S49=2,S49=3),0,IF(OR($U$65=1,$L$22<>""),L46*$Y$86,0)) -> 0 | N60: =IF(OR(S49=2,S49=3),0,IF(OR($U$65=1,$L$22<>""),N46*$Y$86,0)) -> 0 | S60: Monto a financiar pasivo | V60: =IF(V59>4000000,4000000,V59) -> 0 | X60: =IF(X59>4000000,4000000,X59) -> 0 | Z60: =IF(Z59>4000000,4000000,Z59) -> 0 | AA60: =IF(AA59>4000000,4000000,AA59) -> 0 | AC60: =IF(AC59>4000000,4000000,AC59) -> 0 | AD60: =IF(AD59>4000000,4000000,AD59) -> 0 | AE60: =IF(AE59>4000000,4000000,AE59) -> 0
S61: Desición de monto a financiar | V61: =V56 -> 0 | X61: =X56 -> 0 | Z61: =Z56 -> 0 | AA61: =AA56 -> 0 | AC61: =AC56 -> 0 | AD61: =AD56 -> 0 | AE61: =AE56 -> 0
C62: ="Avalúo "&IFERROR(IF(OR(AND($AC$45=1,$C$23>T84),($C$23+$C$24)>T84),"'Favor de Cotizar.' - Val. apróx.",""),"") -> Avalúo | H62: =IF(S49=2,0,IFERROR(IF(AND($AC$45=1,$C$23<=$T$84),VLOOKUP(($C$23+$C$24),$S$71:$U$85,3),IF(AND($AC$45=2,H42<=$T$84),VLOOKUP(H42,$S$71:$U$85,3),$U$85)),0)) -> 0 | J62: =IF(S49=2,0,IFERROR(IF(AND($AC$45=1,$C$23<=$T$84),VLOOKUP(($C$23+$C$24),$S$71:$U$85,3),IF(AND($AC$45=2,J42<=$T$84),VLOOKUP(J42,$S$71:$U$85,3),$U$85)),0)) -> 0 | L62: =IF(S49=2,0,IFERROR(IF(AND($AC$45=1,$C$23<=$T$84),VLOOKUP(($C$23+$C$24),$S$71:$U$85,3),IF(AND($AC$45=2,L42<=$T$84),VLOOKUP(L42,$S$71:$U$85,3),$U$85)),0)) -> 0 | N62: =IF(S49=2,0,IFERROR(IF(AND($AC$45=1,$C$23<=$T$84),VLOOKUP(($C$23+$C$24),$S$71:$U$85,3),IF(AND($AC$45=2,N42<=$T$84),VLOOKUP(N42,$S$71:$U$85,3),$U$85)),0)) -> 0 | AI62: 5000000 | AJ62: 5000000 | AK62: 6500000
S63: Frontera | T63: NO | W63: Compra Terreno? | Y63: NO | AI63: 1 | AJ63: 2 | AK63: 3
C64: Comisión por pagos anticipados | H64: =$U$66 -> NO APLICA | J64: =$U$66 -> NO APLICA | L64: =$U$66 -> NO APLICA | N64: =$U$66 -> NO APLICA | S64: IVA | T64: SI | U64: 1 | V64: =IF(U64=1,1.16,1.16) -> 1.16 | W64: No compra terreno | Y64: SI | Z64: 1 | AI64: Aforo p/créd > $5'000,000
S65: Comisión de apertura | U65: 1 | V65: =IF(S49=1,"Comisión por apertura "&TEXT($Y$86,"##.00%")&" y comisión por prepago 0%","Comisión por apertura 0% y comisión por prepago 0%") -> Comisión por apertura 1.00% y comisión por prepago 0% | AB65: Tasas PAR | AI65: < $5mdp | AJ65: < $6.5mdp | AK65: > $6.5 mdp
C66: Ver tabla de amortización | S66: Comisión por prepago | U66: =IF(U65=2,3%,"NO APLICA") -> NO APLICA | AA66: 1 | AB66: 0.105 | AC66: 9.05 | AD66: 0.027 | AE66: 2 | AI66: 0.8 | AJ66: 0.7 | AK66: 0.65
AA67: 2 | AB67: 0.11 | AC67: 9.5 | AD67: 0.027 | AE67: =IF($AE$66=1,AC66,IF($AE$66=2,AC67,IF($AE$66=3,AC68,IF($AE$66=4,AC69,IF($AE$66=5,AC70,IF($AE$66=6,AC71,AC72)))))) -> 9.5 | AI67: 0.8 | AJ67: 0.7 | AK67: 0.65
C68: Observaciones: | S68: Com Aut Dif | T68: 250 | U68: 250 | V68: 250 | W68: 250 | X68: 250 | Y68: =IF($W$40=1,V68,IF($W$40=2,U68,IF($W$40=3,T68,IF($W$40=4,W68,IF($W$40=5,X68,0))))) -> 250 | AA68: 3 | AB68: 0.1125 | AC68: 9.7 | AD68: 0.026 | AE68: =IF($AE$66=1,AD66,IF($AE$66=2,AD67,IF($AE$66=3,AD68,IF($AE$66=4,AD69,IF($AE$66=5,AD70,IF($AE$66=6,AD71,AD72)))))) -> 0.027 | AI68: 0.8 | AJ68: 0.7 | AK68: 0.65
C69: -No se incluyen los gastos notariales, los cuales se pagaran al momento de la firma del crédito | S69: Avalúo | T69: =IFERROR(IF(C23<15000001,VLOOKUP(C23,$S$71:$U$87,3),"Cotización especial"),0) -> 0 | AA69: 4 | AB69: 0.1175 | AC69: 10.12 | AD69: 0.021 | AE69: =IF($AE$66=1,AB66,IF($AE$66=2,AB67,IF($AE$66=3,AB68,IF($AE$66=4,AB69,IF($AE$66=5,AB70,IF($AE$66=6,AB71,AB72)))))) -> 0.11 | AI69: 0.7 | AJ69: 0.65 | AK69: 0.5
C70: - El crédito solicitado dependerá de la capacidad de pago de cada cliente | S70: Mayor a | T70: Hasta a | U70: Importe | AA70: 5 | AB70: 0.12 | AC70: 10.34 | AD70: 0.021 | AI70: 0.7 | AJ70: 0.65 | AK70: 0.5
C71: - Scotiabank se reserva el derecho de solicitar información adicional y/o restringir parámetros de enganche, monto, plazo o tasa en función de las características específicas del solicitante | S71: 0.01 | T71: 500000 | U71: 1900 | AA71: 6 | AB71: 0.125 | AC71: 10.8 | AD71: 0.017 | AI71: 0.7 | AJ71: 0.65 | AK71: 0.5
C72: y del inmueble objeto de la operación. | S72: 500001 | T72: 1000000 | U72: 3300 | X72: Contratación de Seguros
C73: - En caso de que aplique, la comisión por pagos anticipados causa I.V.A. | S73: 1000001 | T73: 1500000 | U73: 4500 | X73: SI | Y73: 2 | AI73: =IF($C$23>$AK$62,3,IF($C$23>$AJ$62,2,IF($C$23<=$AI$62,1,0))) -> 1
C74: - Esta cotización tiene carácter informativo, Scotiabank se reserva el derecho de cambiar cualquier condición sin previo aviso. | S74: 1500001 | T74: 2000000 | U74: 5750 | X74: NO | AB74: Valor del Inmueble | AC74: =IF($W$40=1,E42,IF($W$40=6,H42,IF($W$40=3,J42,IF($W$40=4,L42,IF($W$40=5,N42,0))))) -> 0
C75: - Este documento NO implica que el crédito ha sido autorizado, ni establece obligación alguna para Scotiabank. | S75: 2000001 | T75: 2500000 | U75: 7000 | X75: Seguros | AB75: Pago por mil | AC75: =IF($W$40=1,AE67,IF($W$40=6,Z51,IF($W$40=3,AA51,IF($W$40=4,AB51,IF($W$40=5,AC51,IF($W$40=7,AE51)))))) -> 11.86
C76: - Para los esquemas de "Pagos Oportunos" y "Valora" se deberá cumplir con las reglas establecidas en los programas para la disminución de la tasa de interés | N76: =+'Simulador Valora'!M76 -> v2025.04 | S76: 2500001 | T76: 3000000 | U76: 8200 | X76: Vida | Y76: 0.0006 | Z76: =Y76 -> 0.0006 | AB76: Plazo | AC76: =IF($W$40=1,"20 Años",IF($W$40=6,"7 Años",IF($W$40=3,"10 Años",IF($W$40=4,"15 Años",IF($W$40=5,"20 Años",IF($W$40=7,"30 Años")))))) -> 20 Años
S77: 3000001 | T77: 4000000 | U77: 11000 | X77: Daños | Y77: 0.00031 | Z77: =Y77 -> 0.00031 | AB77: Tasa | AC77: =IF($W$40=1,AE67,IF($W$40=6,Z54,IF($W$40=3,AA54,IF($W$40=4,AB54,IF($W$40=5,AC54,IF($W$40=7,AE54)))))) -> 0.13 | AF77: CALCULO PARA EL IMPORTE MAXIMO DE APORTACION PATRONAL
S78: 4000001 | T78: 5000000 | U78: 13900 | AB78: Monto Crédito | AC78: =IF($W$40=1,E46,IF($W$40=6,H46,IF($W$40=3,J46,IF($W$40=4,L46,IF($W$40=5,N46,0))))) -> 0 | AF78: ='Simulador Valora'!AD75 -> Salario diario nominal (UMA enero 2024) | AH78: ='Simulador Valora'!AF75 -> 108.57
S79: 5000001 | T79: 6000000 | U79: 15500 | X79: Plazo | AA79: LTV | AF79: Tope de aportación patronal | AH79: 25
S80: 6000001 | T80: 7000000 | U80: 19000 | X80: 7 | Y80: 6 | Z80: 5 | AA80: =E46/E42 ->  | AB80: =H46/H42 ->  | AC80: =J46/J42 ->  | AD80: =L46/L42 ->  | AE80: =N46/N42 ->  | AF80: Aportación patronal | AH80: =+AH78*AH79 -> 2714.25
S81: 7000001 | T81: 8000000 | U81: 20000 | X81: 10 | Y81: 3 | Z81: 2 | AF81: Aportación Patronal 5% | AH81: =+AH80*0.05 -> 135.7125
S82: 8000001 | T82: 9000000 | U82: 20100 | X82: 15 | Y82: 4 | Z82: 3 | AG82: 0.05
S83: 9000001 | T83: 10000000 | U83: 22500 | X83: 20 | Y83: 5 | Z83: 4 | AF83: No. de días del bimestre (promedio 60 días) | AH83: 60.8
S84: 10000001 | T84: 11000000 | U84: 27000 | AF84: Aportación Patronal bimestral | AH84: =+AH81*AH83 -> 8251.32
S85: 11000000 | T85: 30000000 | U85: 27000 | X85: Comisión por aut difer = | Y85: 250
X86: Comisión por Apertura = | Y86: =IFERROR(IF($L$22<>"",$L$22,1%),0) -> 0.01
X87: Comisión por Prepago = | Y87: 0.03
X88: Avalúo | Y88: 0.001
X89: Dictamen técnico | Y89: 0.01 | Z89: 18000
Z90: Máximo
Z91: Ya no hay minimo

Sheet Tabla Pagos Oportunos
A1: Scotiabank Inverlat, S.A., Institución de Banca Múltiple, Grupo Financiero Scotiabank Inverlat | BJ1: -
A2: SIMULADOR CREDITO HIPOTECARIO
A3: FINANCIAMIENTO PARA CONSTRUCCION SCOTIABANK | AK3: Comision por apertura | AN3: =IF('Simulador Pagos Oportunos'!$W$40=3,'Simulador Pagos Oportunos'!J60,IF('Simulador Pagos Oportunos'!$W$40=4,'Simulador Pagos Oportunos'!L60,IF('Simulador Pagos Oportunos'!$W$40=5,'Simulador Pagos Oportunos'!N60,IF('Simulador Pagos Oportunos'!$W$40=6,'Simulador Pagos Oportunos'!H60)))) -> 0 | AP3: 2
A4: =IF('Simulador Pagos Oportunos'!W40=3,"PAGOS OPORTUNOS 10 AÑOS",IF('Simulador Pagos Oportunos'!W40=4,"PAGOS OPORTUNOS 15 AÑOS",IF('Simulador Pagos Oportunos'!W40=5,"PAGOS OPORTUNOS 20 AÑOS",IF('Simulador Pagos Oportunos'!W40=6,"PAGOS OPORTUNOS 7 AÑOS")))) -> PAGOS OPORTUNOS 20 AÑOS | AK4: Avalúo | AN4: =IF('Simulador Pagos Oportunos'!$W$40=3,'Simulador Pagos Oportunos'!J62,IF('Simulador Pagos Oportunos'!$W$40=4,'Simulador Pagos Oportunos'!L62,IF('Simulador Pagos Oportunos'!$W$40=5,'Simulador Pagos Oportunos'!N62,IF('Simulador Pagos Oportunos'!$W$40=6,'Simulador Pagos Oportunos'!H62)))) -> 0 | AP4: Disminución de plazo
B5: Excepción 6 Ministraciones | L5: Observaciones | AP5: Disminución de pago
B6: Avance de Obra Actual | F6: 0 | H6: =IF(F6<20%,0,IF(F6<40%,1,IF(F6<60%,2,IF(F6<75%,3,IF(F6<90%,4,5))))) -> 0 | L6: - La comisión por prepagos causa IVA y en la corrida ya lo incluye | X6: ='Simulador Pagos Oportunos'!C7 -> 2025-04-10 | AE6: Valor del terreno | AF6: 100% terreno | AG6: 70% monto
B7: Teclear los datos con celdas en blanco | L7: - El escenario que se presenta en la tabla de amortización siempre es considerando que se paga de manera puntual. | AE7: ='Simulador Pagos Oportunos'!C24 -> 0 | AF7: =IF(AE7>0,IF(AE7/H10<70%,AE7,AG7),0) -> 0 | AG7: =+H10*70% -> 0 | AH7: =AH8/H10 ->  | AK7: Total | AN7: =SUM(AN3:AN5) -> 0
B8: Período | D8: Monto | F8: Erogación | L8: - Esta cotización tiene carácter informativo, Scotiabank se reserva el derecho de cambiar cualquier condición sin previo aviso. | AH8: =AF7 -> 0 | AI8: 2
A9: 0.2 | B9: 1 | D9: =IF(H6=0,AH9,IF(H6=1,AH10,IF(H6=2,AH11,IF(H6=3,AH12,IF(H6=4,AH13,IF(H6=5,AH13)))))) -> 0 | F9: =(D9/1000)*'Simulador Pagos Oportunos'!AA46 -> 0 | H9: Linea máxima de crédito | L9: - Este documento NO implica que el crédito ha sido autorizado, ni establece obligación alguna para Scotiabank. | AH9: =AF7 -> 0 | AI9: SI
A10: 0.4 | D10: =IF(AI8=2,IF(H6>=4,"",(H10-D9)/(5-H6-1)),IF(H6>=4,"",(H10-D9)/(5-H6-1))) -> 0 | F10: =IFERROR(IF(B10>12,(((D10+D9)/1000*'Simulador Pagos Oportunos'!AA46*Z32)+(D10+D9)/1000*'Simulador Pagos Oportunos'!AA46),(D10+D9)/1000*'Simulador Pagos Oportunos'!AA46),"") -> 0 | H10: ='Simulador Pagos Oportunos'!Y46 -> 0 | L10: - Para los esquemas "Pagos Oportunos" y "Valora" se deberán cumplir con las reglas establecidas en los programas | AG10: 1 | AH10: =IF(AI8=2,AH9+((H10-AH9)/4),AH9+((H10-AH9)/4)) -> 0 | AI10: NO
A11: 0.6 | D11: =IF(AI8=2,IF(H6>=3,"",(H10-D9)/(5-H6-1)),IF(H6>=3,"",(H10-D9)/(5-H6-1))) -> 0 | F11: =IFERROR(IF(B11>12,(((D11+D10+D9)/1000*'Simulador Pagos Oportunos'!AA46*Z32)+(D11+D10+D9)/1000*'Simulador Pagos Oportunos'!AA46),(D11+D10+D9)/1000*'Simulador Pagos Oportunos'!AA46),"") -> 0 | H11: =IF((D10+D9)>H10,"Se excede de la línea autorizada","") ->  | L11: para la disminución de la tasa de interés. | AG11: 2 | AH11: =IF(AI8=2,AH9+(((H10-AH9)/4)*2),AH9+(((H10-AH9)/4)*2)) -> 0
A12: 0.75 | D12: =IF(AI8=2,IF(H6>=2,"",(H10-D9)/(5-H6-1)),IF(H6>=2,"",(H10-D9)/(5-H6-1))) -> 0 | F12: =IFERROR(IF(B12>12,(((D12+D11+D10+D9)/1000*'Simulador Pagos Oportunos'!AA46*Z32)+(D12+D11+D10+D9)/1000*'Simulador Pagos Oportunos'!AA46),(D12+D11+D10+D9)/1000*'Simulador Pagos Oportunos'!AA46),"") -> 0 | H12: =IF((D11+D10)>H11,"Se excede de la línea autorizada","") ->  | AG12: 3 | AH12: =IF(AI8=2,AH9+(((H10-AH9)/4)*3),AH9+(((H10-AH9)/4)*3)) -> 0
A13: 0.9 | D13: =IF(AI8=2,IF(H6>=1,"",(H10-D9)/(5-H6-1)),IF(H6>=1,"",((H10-D9)/(5-H6-1)/2))) -> 0 | F13: =IFERROR(IF(B13>12,(((D13+D12+D11+D10+D9)/1000*'Simulador Pagos Oportunos'!AA46*Z32)+(D13+D12+D11+D10+D9)/1000*'Simulador Pagos Oportunos'!AA46),(D13+D12+D11+D10+D9)/1000*'Simulador Pagos Oportunos'!AA46),"") -> 0 | L13: - CAT =. | M13: =AW14 -> 0 | O13: "Para fines informativos de comparación exclusivamente sin IVA" | AG13: 4 | AH13: =IF(AI8=2,AH9+(((H10-AH9)/4)*4),AH9+((((H10-AH9)/4)))*3.5) -> 0 | AW13: =AW17*12 -> 0
D14: =IF(AI8=2,"",IF(H6>=1,"",((H10-D9)/(5-H6-1)/2))) ->  | F14: =IFERROR(IF(B14>12,(((D14+D13+D12+D11+D10+D9)/1000*'Simulador Pagos Oportunos'!AA46*Z33)+(D14+D13+D12+D11+D10+D9)/1000*'Simulador Pagos Oportunos'!AA46),(D14+D13+D12+D11+D10+D9)/1000*'Simulador Pagos Oportunos'!AA46),"") ->  | L14: - En caso de anticipos a capital escoja la opción: | AG14: 5 | AH14: =IF(AI8=2,"",AH9+((((H10-AH9)/4))*4)) ->  | AW14: =((1+AW17)^12)-1 -> 0
B15: ="Créditos en etapa de ministración no deben recibir pagos anticipados" -> Créditos en etapa de ministración no deben recibir pagos anticipados | AG15: Corrida CAT | AW15: Corrida para CAT
B16: =IF('Simulador Pagos Oportunos'!S49=1,"Se cobrará el 1% del monto por cada disposición","") -> Se cobrará el 1% del monto por cada disposición | L16: El crédito se liquida | P16: =AE19 -> 0 | Q16: Años | AG16: =IFERROR(IRR(AG19:AG259,0),0) -> 0 | AH16: =((1+AG16)^12)-1 -> 0 | AW16: TIR
L17: por pago puntual en: | P17: =AF19 -> 0 | Q17: Meses | AJ17: Tasa pagos oportunos | AW17: =IFERROR(IRR(AW18:AW259,0),0) -> 0
AW18: =AN7-H10 -> 0
A19: Período | B19: Saldo Inicial | D19: Erogación | F19: Interés | H19: Amortización | J19: Aportación Bimestral | L19: Prepagos a capital | N19: Comisión por prepagos | P19: Tasa aplicada | R19: Saldo Final | T19: Seguro de vida y desempleo | V19: Seguro de daños | X19: Pago Mensual | Z19: Inc. Pago | AB19: años | AC19: meses | AD19: =SUM(AD20:AD259) -> 1 | AE19: =SUM(AE20:AE259) -> 0 | AF19: =SUM(AF20:AF259) -> 0 | AG19: =AN7-H10 -> 0 | AH19: Tasa Aplic. | AI19: 7 años | AJ19: 10 años | AK19: 15 años | AL19: 20 años | AM19: 30 años | AN19: Factor de pago | AO19: Saldo Inicial | AP19: Erogación | AQ19: Interés | AR19: Amortización | AS19: Saldo Final | AT19: Tasa Aplic. | AU19: Seguros | AV19: Incremento Pago | AW19: Pago Mensual | AX19: Plazo | AY19: Fecha | AZ19: Dias | BA19: Período | BB19: Año actual | BC19: Mes actual | BD19: Día actual | BE19: Dia/corte | BF19: sumar a mes
A20: 1 | B20: =IFERROR(VLOOKUP(A20,$B$9:$F$14,3,FALSE),0) -> 0 | D20: =F9 -> 0 | F20: =IF(B20=0,0,P20/360*AZ20*B20) -> 0 | H20: =D20-F20 -> 0 | N20: =IF(OR('Simulador Pagos Oportunos'!$U$65=1,'Simulador Pagos Oportunos'!$U$65=3),0,L20*'Simulador Pagos Oportunos'!$U$66*'Simulador Pagos Oportunos'!$V$64) -> 0 | P20: =IF(B20=0,"",IF('Simulador Pagos Oportunos'!$W$40=3,AJ20,IF('Simulador Pagos Oportunos'!$W$40=4,AK20,IF('Simulador Pagos Oportunos'!$W$40=5,AL20,IF('Simulador Pagos Oportunos'!$W$40=6,AI20,AH20))))) ->  | R20: =B20-H20-J20-L20+N20 -> 0 | T20: =IF(B20<=0,0,B20*'Simulador Pagos Oportunos'!$Y$76) -> 0 | V20: =IF(B20<=0,0,IF('Simulador Pagos Oportunos'!$W$40=3,'Simulador Pagos Oportunos'!$J$52,IF('Simulador Pagos Oportunos'!$W$40=4,'Simulador Pagos Oportunos'!$L$52,IF('Simulador Pagos Oportunos'!$W$40=5,'Simulador Pagos Oportunos'!$N$52,IF('Simulador Pagos Oportunos'!$W$40=6,'Simulador Pagos Oportunos'!$H$52))))) -> 0 | X20: =IF(B20<=0,0,D20+L20+T20+V20) -> 0 | AB20: 0 | AC20: =IF(B20=0,0,1) -> 0 | AD20: =+IF(R20<=0,IF(R19>0,+A20,0),0) -> 1 | AE20: =+IF(AD20>0,+AB20,0) -> 0 | AF20: =+IF(AD20>0,+AC20,0) -> 0 | AG20: =X20 -> 0 | AH20: ='Simulador Pagos Oportunos'!$AC$77 -> 0.13 | AI20: ='Simulador Pagos Oportunos'!Z54 -> 0.13 | AJ20: ='Simulador Pagos Oportunos'!AA54 -> 0.13 | AK20: ='Simulador Pagos Oportunos'!AB54 -> 0.13 | AL20: ='Simulador Pagos Oportunos'!AC54 -> 0.13 | AM20: 0 | AN20: =IFERROR(AP20/AO20,0) -> 0 | AO20: =B20 -> 0 | AP20: =D20 -> 0 | AQ20: =IFERROR((AT20/360*AZ20*AO20),0) -> 0 | AR20: =+AP20-AQ20 -> 0 | AS20: =+AO20-AR20 -> 0 | AT20: =IF(AO20=0,"",IF('Simulador Pagos Oportunos'!$W$40=3,AJ20,IF('Simulador Pagos Oportunos'!$W$40=4,AK20,IF('Simulador Pagos Oportunos'!$W$40=5,AL20,IF('Simulador Pagos Oportunos'!$W$40=6,AI20,AH20))))) ->  | AU20: =IF(AO20<=0,0,IF('Simulador Pagos Oportunos'!$Y$73=1,0,AO20*'Simulador Pagos Oportunos'!$Y$76))+IF(AO20<=0,0,IF('Simulador Pagos Oportunos'!$W$40=6,'Simulador Pagos Oportunos'!$H$52,IF('Simulador Pagos Oportunos'!$W$40=3,'Simulador Pagos Oportunos'!$J$52,IF('Simulador Pagos Oportunos'!$W$40=4,'Simulador Pagos Oportunos'!$L$52,'Simulador Pagos Oportunos'!$N$52)))) -> 0 | AW20: =AQ20+AR20+AU20 -> 0 | AX20: =IF('Simulador Pagos Oportunos'!$W$40=6,84,IF('Simulador Pagos Oportunos'!$W$40=3,120,IF('Simulador Pagos Oportunos'!$W$40=4,180,240))) -> 240 | AY20: =IF(AO20=0,"",DATE(BB20,BC20+BF20,BE20)) ->  | AZ20: =IFERROR(DAY(DATE(YEAR(AY20),MONTH(AY20)+1,0)),0) -> 0 | BA20: 1 | BB20: =IFERROR(YEAR('Simulador Pagos Oportunos'!C7),YEAR('Simulador Pagos Oportunos'!C7)) -> 2025 | BC20: =IFERROR(MONTH('Simulador Pagos Oportunos'!C7),MONTH('Simulador Pagos Oportunos'!C7)) -> 4 | BD20: =IFERROR(DAY('Simulador Pagos Oportunos'!C7),DAY('Simulador Pagos Oportunos'!C7)) -> 10 | BE20: =IF(AND(DAY('Simulador Pagos Oportunos'!C7)>=3,DAY('Simulador Pagos Oportunos'!C7)<=16),3,17) -> 3 | BF20: =IF(BD20>BE20,1,0) -> 1
A21: 2 | B21: =IF(R20<0,0,IF(A21=$B$10,R20+$D$10,IF(A21=$B$11,R20+$D$11,IF(A21=$B$12,R20+$D$12,IF(A21=$B$13,R20+$D$13,IF(A21=$B$14,R20+$D$14,R20)))))) -> 0 | D21: =IF(B21+F21-D20<=0,B21+F21,IF(A21=$B$10,$F$10,IF(A21=$B$11,$F$11,IF(A21=$B$12,$F$12,IF(A21=$B$13,$F$13,IF(A21=$B$14,$F$14,IF(AND('Simulador Pagos Oportunos'!$AF$45=2,L20=0),D20*(1+Z21),IF($AP$3=2,B21*AN21,D20*(1+Z21))))))))) -> 0 | F21: =IF(B21=0,0,P21/360*AZ21*B21) -> 0 | H21: =D21-F21 -> 0 | J21: =IF(B21=0,0,IF('Simulador Pagos Oportunos'!$AF$45=1,0,IF('Simulador Pagos Oportunos'!$AC$43*'Simulador Pagos Oportunos'!$AG$82*2>'Simulador Pagos Oportunos'!$AH$84,'Simulador Pagos Oportunos'!$AH$84,IF(B21=0,0,'Simulador Pagos Oportunos'!$AC$43*'Simulador Pagos Oportunos'!$AG$82*2)))) -> 0 | N21: =IF(OR('Simulador Pagos Oportunos'!$U$65=1,'Simulador Pagos Oportunos'!$U$65=3),0,L21*'Simulador Pagos Oportunos'!$U$66*'Simulador Pagos Oportunos'!$V$64) -> 0 | P21: =IF(B21=0,"",IF('Simulador Pagos Oportunos'!$W$40=3,AJ21,IF('Simulador Pagos Oportunos'!$W$40=4,AK21,IF('Simulador Pagos Oportunos'!$W$40=5,AL21,IF('Simulador Pagos Oportunos'!$W$40=6,AI21,AH21))))) ->  | R21: =B21-H21-J21-L21+N21 -> 0 | T21: =IF(B21<=0,0,B21*'Simulador Pagos Oportunos'!$Y$76) -> 0 | V21: =IF(B21<=0,0,IF('Simulador Pagos Oportunos'!$W$40=3,'Simulador Pagos Oportunos'!$J$52,IF('Simulador Pagos Oportunos'!$W$40=4,'Simulador Pagos Oportunos'!$L$52,IF('Simulador Pagos Oportunos'!$W$40=5,'Simulador Pagos Oportunos'!$N$52,IF('Simulador Pagos Oportunos'!$W$40=6,'Simulador Pagos Oportunos'!$H$52))))) -> 0 | X21: =IF(B21<=0,0,D21+L21+T21+V21) -> 0 | AB21: 0 | AC21: 2 | AD21: =+IF(R21<=0,IF(R20>0,+A21,0),0) -> 0 | AE21: =+IF(AD21>0,+AB21,0) -> 0 | AF21: =+IF(AD21>0,+AC21,0) -> 0 | AG21: =X21 -> 0 | AH21: ='Simulador Pagos Oportunos'!$AC$77 -> 0.13 | AI21: =AI20 -> 0.13 | AJ21: =AJ20 -> 0.13 | AK21: 0.13 | AL21: 0.13 | AM21: 0 | AN21: =IFERROR(AP21/AO21,0) -> 0 | AO21: =IF(AS20<0,0,IF(A21=$B$10,AS20+$D$10,IF(A21=$B$11,AS20+$D$11,IF(A21=$B$12,AS20+$D$12,IF(A21=$B$13,AS20+$D$13,IF(A21=$B$14,AS20+$D$14,AS20)))))) -> 0 | AP21: =IF(AO21+AQ21-AP20<=0,AO21+AQ21,IF($A21=$B$10,$F$10,IF($A21=$B$11,$F$11,IF($A21=$B$12,$F$12,IF($A21=$B$13,$F$13,IF($A21=$B$14,$F$14,AP20*(1+AV21))))))) -> 0 | AQ21: =IFERROR((AT21/360*AZ21*AO21),0) -> 0 | AR21: 0 | AS21: 0 | AT21: =IF(AO21=0,"",IF('Simulador Pagos Oportunos'!$W$40=3,AJ21,IF('Simulador Pagos Oportunos'!$W$40=4,AK21,IF('Simulador Pagos Oportunos'!$W$40=5,AL21,IF('Simulador Pagos Oportunos'!$W$40=6,AI21,AH21))))) ->  | AU21: =IF(AO21<=0,0,IF('Simulador Pagos Oportunos'!$Y$73=1,0,AO21*'Simulador Pagos Oportunos'!$Y$76))+IF(AO21<=0,0,IF('Simulador Pagos Oportunos'!$W$40=6,'Simulador Pagos Oportunos'!$H$52,IF('Simulador Pagos Oportunos'!$W$40=3,'Simulador Pagos Oportunos'!$J$52,IF('Simulador Pagos Oportunos'!$W$40=4,'Simulador Pagos Oportunos'!$L$52,'Simulador Pagos Oportunos'!$N$52)))) -> 0 | AW21: =AQ21+AR21+AU21 -> 0 | AX21: =IFERROR(IF(AP21<=0.01,0,AX20-1),0) -> 0 | AY21: =IF(AO21=0,"",DATE(YEAR(AY20),MONTH(AY20)+1,1)) ->  | AZ21: =IFERROR(DAY(DATE(YEAR(AY21),MONTH(AY21)+1,0)),0) -> 0 | BA21: 2
